Workbook

Sheet fnd budget
T1: =VLOOKUP(orderCHA,charterinfo_a,4) -> 409
T2: =VLOOKUP(orderCHA,charterinfo_a,5) -> 201
T3: =VLOOKUP(orderCHA,charterinfo_a,6) -> 201
A6: Massachusetts Department of Elementary and Secondary Education
A7: F Y 1 7 H O L D H A R M L E S S F O U N D A T I O N B U D G E T
A8: =VLOOKUP(orderCHA,charterinfo_a,2) -> 409 - ALMA DEL MAR Charter School - NEW BEDFORD pupils
C9: Items | D9: ---------------------------------------- Base Foundation Components ------------------------------------------------- | O9: --- Incremental Costs Above The Base ---
C10: Adj by | D10: (1) | E10: (2) | F10: (3) | G10: (4) | H10: (5) | I10: (6) | J10: (7) | K10: (8) | L10: (9) | M10: (10) | O10: (11) | P10: (12) | Q10: (13) | R10: (14)
C11: Wage | D11: Pre- | E11: -- Kindergarten -- | G11: Elem- | H11: Jr High/ | I11: High | J11: ELL | K11: ELL | L11: ELL | M11: Voca- | O11: Sped In-school | P11: Sped Out | Q11: -- Low Income --
C12: Fctr = w | D12: School | E12: K Half | F12: K Full | G12: entary | H12: Middle | I12: School | J12: PK | K12: K Half | L12: KF - 12 | M12: tional | O12: (3.75% of total) | P12: of District* | Q12: Elem | R12: Other | T12: TOTAL**
B14: Foundation Enrollment | D14: =VLOOKUP(VLOOKUP(orderCHA,charterinfo_a,3), rate_chafnd,3) -> 0 | E14: =VLOOKUP(VLOOKUP(orderCHA,charterinfo_a,3),rate_chafnd,4) -> 0 | F14: =VLOOKUP(VLOOKUP(orderCHA,charterinfo_a,3),rate_chafnd,5) -> 27 | G14: =VLOOKUP(VLOOKUP(orderCHA,charterinfo_a,3),rate_chafnd,6) -> 191 | H14: =VLOOKUP(VLOOKUP(orderCHA,charterinfo_a,3),rate_chafnd,7) -> 40 | I14: =VLOOKUP(VLOOKUP(orderCHA,charterinfo_a,3),rate_chafnd,8) -> 0 | J14: =VLOOKUP(VLOOKUP(orderCHA,charterinfo_a,3),rate_chafnd,11) -> 0 | K14: =VLOOKUP(VLOOKUP(orderCHA,charterinfo_a,3),rate_chafnd,12) -> 0 | L14: =VLOOKUP(VLOOKUP(orderCHA,charterinfo_a,3),rate_chafnd,13) -> 26 | M14: =VLOOKUP(VLOOKUP(orderCHA,charterinfo_a,3),rate_chafnd,14) -> 0 | O14: =VLOOKUP(VLOOKUP(orderCHA,charterinfo_a,3),rate_chafnd,9) -> 10.65 | P14: =VLOOKUP(VLOOKUP(orderCHA,charterinfo_a,3),rate_chafnd,10) -> 0 | Q14: =VLOOKUP(VLOOKUP(orderCHA,charterinfo_a,3),rate_chafnd,15) -> 193 | R14: =VLOOKUP(VLOOKUP(orderCHA,charterinfo_a,3),rate_chafnd,16) -> 31 | T14: =VLOOKUP(VLOOKUP(orderCHA,charterinfo_a,3),rate_chafnd,17) -> 284
A16: 1 | B16: Administration | C16: w | D16: ='fnd base rates'!$C39*$D$30*D$14 -> 0 | E16: ='fnd base rates'!$C40*$D$30*E$14 -> 0 | F16: ='fnd base rates'!$C41*$D$30*F$14 -> 9828 | G16: ='fnd base rates'!$C42*$D$30*G$14 -> 69524 | H16: ='fnd base rates'!$C43*$D$30*H$14 -> 14560 | I16: ='fnd base rates'!$C44*$D$30*I$14 -> 0 | J16: ='fnd base rates'!$C47*$D$30*J$14 -> 0 | K16: ='fnd base rates'!$C48*$D$30*K$14 -> 0 | L16: ='fnd base rates'!$C49*$D$30*L$14 -> 9464 | M16: ='fnd base rates'!$C50*$D$30*M$14 -> 0 | O16: ='fnd base rates'!$C45*$D$30*O$14 -> 26755.569 | P16: ='fnd base rates'!$C46*$D$30*P$14 -> 0 | Q16: ='fnd base rates'!$C51*$D$30*Q$14 -> 0 | R16: ='fnd base rates'!$C52*$D$30*R$14 -> 0 | T16: =SUM(D16:R16) -> 130131.569
A17: 2 | B17: Instructional Leadership | C17: w | D17: ='fnd base rates'!$D39*$D$30*D$14 -> 0 | E17: ='fnd base rates'!$D40*$D$30*E$14 -> 0 | F17: ='fnd base rates'!$D41*$D$30*F$14 -> 17750.34 | G17: ='fnd base rates'!$D42*$D$30*G$14 -> 125567.22 | H17: ='fnd base rates'!$D43*$D$30*H$14 -> 26296.8 | I17: ='fnd base rates'!$D44*$D$30*I$14 -> 0 | J17: ='fnd base rates'!$D47*$D$30*J$14 -> 0 | K17: ='fnd base rates'!$D48*$D$30*K$14 -> 0 | L17: ='fnd base rates'!$D49*$D$30*L$14 -> 17092.92 | M17: ='fnd base rates'!$D50*$D$30*M$14 -> 0 | O17: ='fnd base rates'!$D45*$D$30*O$14 -> 0 | P17: ='fnd base rates'!$D46*$D$30*P$14 -> 0 | Q17: ='fnd base rates'!$D51*$D$30*Q$14 -> 0 | R17: ='fnd base rates'!$D52*$D$30*R$14 -> 0 | T17: =SUM(D17:R17) -> 186707.28
A18: 3 | B18: Classroom and Specialist Teachers | C18: w | D18: ='fnd base rates'!$E39*$D$30*D$14 -> 0 | E18: ='fnd base rates'!$E40*$D$30*E$14 -> 0 | F18: ='fnd base rates'!$E41*$D$30*F$14 -> 81391.77 | G18: ='fnd base rates'!$E42*$D$30*G$14 -> 575763.77 | H18: ='fnd base rates'!$E43*$D$30*H$14 -> 106110 | I18: ='fnd base rates'!$E44*$D$30*I$14 -> 0 | J18: ='fnd base rates'!$E47*$D$30*J$14 -> 0 | K18: ='fnd base rates'!$E48*$D$30*K$14 -> 0 | L18: ='fnd base rates'!$E49*$D$30*L$14 -> 118038.44 | M18: ='fnd base rates'!$E50*$D$30*M$14 -> 0 | O18: ='fnd base rates'!$E45*$D$30*O$14 -> 88286.6895 | P18: ='fnd base rates'!$E46*$D$30*P$14 -> 0 | Q18: ='fnd base rates'!$E51*$D$30*Q$14 -> 523435.3 | R18: ='fnd base rates'!$E52*$D$30*R$14 -> 63516.52 | T18: 1556542.489
A19: 4 | B19: Other Teaching Services | C19: w | D19: ='fnd base rates'!$F39*$D$30*D$14 -> 0 | E19: ='fnd base rates'!$F40*$D$30*E$14 -> 0 | F19: ='fnd base rates'!$F41*$D$30*F$14 -> 20875.32 | G19: ='fnd base rates'!$F42*$D$30*G$14 -> 147673.56 | H19: ='fnd base rates'!$F43*$D$30*H$14 -> 22262 | I19: ='fnd base rates'!$F44*$D$30*I$14 -> 0 | J19: ='fnd base rates'!$F47*$D$30*J$14 -> 0 | K19: ='fnd base rates'!$F48*$D$30*K$14 -> 0 | L19: ='fnd base rates'!$F49*$D$30*L$14 -> 16073.72 | M19: ='fnd base rates'!$F50*$D$30*M$14 -> 0 | O19: ='fnd base rates'!$F45*$D$30*O$14 -> 82432.065 | P19: ='fnd base rates'!$F46*$D$30*P$14 -> 0 | Q19: ='fnd base rates'!$F51*$D$30*Q$14 -> 0 | R19: ='fnd base rates'!$F52*$D$30*R$14 -> 0 | T19: 289316.665
A20: 5 | B20: Professional Development | C20: w | D20: ='fnd base rates'!$G39*$D$30*D$14 -> 0 | E20: ='fnd base rates'!$G40*$D$30*E$14 -> 0 | F20: ='fnd base rates'!$G41*$D$30*F$14 -> 3220.56 | G20: ='fnd base rates'!$G42*$D$30*G$14 -> 22786.3 | H20: ='fnd base rates'!$G43*$D$30*H$14 -> 5172.8 | I20: ='fnd base rates'!$G44*$D$30*I$14 -> 0 | J20: ='fnd base rates'!$G47*$D$30*J$14 -> 0 | K20: ='fnd base rates'!$G48*$D$30*K$14 -> 0 | L20: ='fnd base rates'!$G49*$D$30*L$14 -> 4198.22 | M20: ='fnd base rates'!$G50*$D$30*M$14 -> 0 | O20: ='fnd base rates'!$G45*$D$30*O$14 -> 4258.935 | P20: ='fnd base rates'!$G46*$D$30*P$14 -> 0 | Q20: ='fnd base rates'!$G51*$D$30*Q$14 -> 11520.17 | R20: ='fnd base rates'!$G52*$D$30*R$14 -> 1850.39 | T20: 53007.375
A21: 6 | B21: Instructional Equipment & Tech | C21: nw | D21: ='fnd base rates'!$H39*D$14 -> 0 | E21: ='fnd base rates'!$H40*E$14 -> 0 | F21: ='fnd base rates'!$H41*F$14 -> 11780.37 | G21: ='fnd base rates'!$H42*G$14 -> 83335.21 | H21: ='fnd base rates'!$H43*H$14 -> 17452.4 | I21: ='fnd base rates'!$H44*I$14 -> 0 | J21: ='fnd base rates'!$H47*J$14 -> 0 | K21: ='fnd base rates'!$H48*K$14 -> 0 | L21: ='fnd base rates'!$H49*L$14 -> 11344.06 | M21: ='fnd base rates'!$H50*M$14 -> 0 | O21: ='fnd base rates'!$H45*O$14 -> 3717.3825 | P21: ='fnd base rates'!$H46*P$14 -> 0 | Q21: ='fnd base rates'!$H51*Q$14 -> 0 | R21: ='fnd base rates'!$H52*R$14 -> 0 | T21: 127629.4225
A22: 7 | B22: Guidance and Pschological | C22: w | D22: ='fnd base rates'!$I39*$D$30*D$14 -> 0 | E22: ='fnd base rates'!$I40*$D$30*E$14 -> 0 | F22: ='fnd base rates'!$I41*$D$30*F$14 -> 5922.72 | G22: ='fnd base rates'!$I42*$D$30*G$14 -> 41897.76 | H22: ='fnd base rates'!$I43*$D$30*H$14 -> 11679.6 | I22: ='fnd base rates'!$I44*$D$30*I$14 -> 0 | J22: ='fnd base rates'!$I47*$D$30*J$14 -> 0 | K22: ='fnd base rates'!$I48*$D$30*K$14 -> 0 | L22: ='fnd base rates'!$I49*$D$30*L$14 -> 7591.74 | M22: ='fnd base rates'!$I50*$D$30*M$14 -> 0 | O22: ='fnd base rates'!$I45*$D$30*O$14 -> 0 | P22: ='fnd base rates'!$I46*$D$30*P$14 -> 0 | Q22: ='fnd base rates'!$I51*$D$30*Q$14 -> 0 | R22: ='fnd base rates'!$I52*$D$30*R$14 -> 0 | T22: 67091.82
A23: 8 | B23: Pupil Services | C23: w | D23: ='fnd base rates'!$J39*$D$30*D$14 -> 0 | E23: ='fnd base rates'!$J40*$D$30*E$14 -> 0 | F23: ='fnd base rates'!$J41*$D$30*F$14 -> 2356.29 | G23: ='fnd base rates'!$J42*$D$30*G$14 -> 25001.9 | H23: ='fnd base rates'!$J43*$D$30*H$14 -> 8552.4 | I23: ='fnd base rates'!$J44*$D$30*I$14 -> 0 | J23: ='fnd base rates'!$J47*$D$30*J$14 -> 0 | K23: ='fnd base rates'!$J48*$D$30*K$14 -> 0 | L23: ='fnd base rates'!$J49*$D$30*L$14 -> 3403.4 | M23: ='fnd base rates'!$J50*$D$30*M$14 -> 0 | O23: ='fnd base rates'!$J45*$D$30*O$14 -> 0 | P23: ='fnd base rates'!$J46*$D$30*P$14 -> 0 | Q23: ='fnd base rates'!$J51*$D$30*Q$14 -> 0 | R23: ='fnd base rates'!$J52*$D$30*R$14 -> 0 | T23: 39313.99
A24: 9 | B24: Operations and Maintenance | C24: w | D24: ='fnd base rates'!$K39*$D$30*D$14 -> 0 | E24: ='fnd base rates'!$K40*$D$30*E$14 -> 0 | F24: ='fnd base rates'!$K41*$D$30*F$14 -> 22601.43 | G24: ='fnd base rates'!$K42*$D$30*G$14 -> 159884.19 | H24: ='fnd base rates'!$K43*$D$30*H$14 -> 36300.8 | I24: ='fnd base rates'!$K44*$D$30*I$14 -> 0 | J24: ='fnd base rates'!$K47*$D$30*J$14 -> 0 | K24: ='fnd base rates'!$K48*$D$30*K$14 -> 0 | L24: ='fnd base rates'!$K49*$D$30*L$14 -> 29463.98 | M24: ='fnd base rates'!$K50*$D$30*M$14 -> 0 | O24: ='fnd base rates'!$K45*$D$30*O$14 -> 29887.308 | P24: ='fnd base rates'!$K46*$D$30*P$14 -> 0 | Q24: ='fnd base rates'!$K51*$D$30*Q$14 -> 80841.91 | R24: ='fnd base rates'!$K52*$D$30*R$14 -> 12984.97 | T24: 371964.588
A25: 10 | B25: Employee Benefits & Fixed Charges | C25: nw | D25: ='fnd base rates'!$L39*D$14 -> 0 | E25: ='fnd base rates'!$L40*E$14 -> 0 | F25: ='fnd base rates'!$L41*F$14 -> 20372.04 | G25: ='fnd base rates'!$L42*G$14 -> 144122.87 | H25: ='fnd base rates'!$L43*H$14 -> 28697.6 | I25: ='fnd base rates'!$L44*I$14 -> 0 | J25: ='fnd base rates'!$L47*J$14 -> 0 | K25: ='fnd base rates'!$L48*K$14 -> 0 | L25: ='fnd base rates'!$L49*L$14 -> 24679.46 | M25: ='fnd base rates'!$L50*M$14 -> 0 | O25: ='fnd base rates'!$L45*O$14 -> 33858.693 | P25: ='fnd base rates'!$L46*P$14 -> 0 | Q25: ='fnd base rates'!$L51*Q$14 -> 53132.9 | R25: ='fnd base rates'!$L52*R$14 -> 8534.3 | T25: 313397.863
A26: 11 | B26: Special Ed Tuition | C26: nw | D26: ='fnd base rates'!$M39*D$14 -> 0 | E26: ='fnd base rates'!$M40*E$14 -> 0 | F26: ='fnd base rates'!$M41*F$14 -> 0 | G26: ='fnd base rates'!$M42*G$14 -> 0 | H26: ='fnd base rates'!$M43*H$14 -> 0 | I26: ='fnd base rates'!$M44*I$14 -> 0 | J26: ='fnd base rates'!$M47*J$14 -> 0 | K26: ='fnd base rates'!$M48*K$14 -> 0 | L26: ='fnd base rates'!$M49*L$14 -> 0 | M26: ='fnd base rates'!$M50*M$14 -> 0 | O26: ='fnd base rates'!$M45*O$14 -> 0 | P26: ='fnd base rates'!$M46*P$14 -> 0 | Q26: ='fnd base rates'!$M51*Q$14 -> 0 | R26: ='fnd base rates'!$M52*R$14 -> 0 | T26: 0
A28: 12 | B28: Total | D28: =SUM(D16:D26) -> 0 | E28: 0 | F28: 196098.84 | G28: 1395556.78 | H28: 277084.4 | I28: 0 | J28: 0 | K28: 0 | L28: 241349.94 | M28: 0 | O28: =SUM(O16:O26) -> 269196.642 | P28: =SUM(P16:P26) -> 0 | Q28: =SUM(Q16:Q26) -> 668930.28 | R28: =SUM(R16:R26) -> 86886.18 | T28: =SUM(T16:T26) -> 3135103.062
A30: 13 | B30: Wage Adjustment Factor | D30: =VLOOKUP(orderCHA,charterinfo_a,8) -> 1 | R30: FOUNDATION RATE: | T30: =IF(T14=0,0,ROUND(T28/T14,0)) -> 11039
A32: * | B32: Charter schools do not send special education pupils to other districts or private programs; this category is removed from the calculation. The in-district special education increment uses an "assumed" enrollment
B33: percentage of 3.75 percent, as stipulated by the Chapter 70 statute.
A35: ** | B35: Total foundation enrollment does not include columns 11 through 14, because those columns are increments. The pupils have already been counted in columns 1 to 10. Pre-kindergarten and half-time kindergarten
B36: pupils count as one-half in total foundation enrollment. Low income headcount is the number of pupils in columns 1 through 10 who are eligible for free or reduced lunch. Each component of the foundation budget
B37: represents the enrollment on line 1 multiplied by the appropriate state-wide foundation allotment. The wage adjustment factor is applied to underlying rates in all functions except instructional equipment, benefits,
B38: and special education. October 2006 pupils are used to generate the FY08 rate. The resulting rate will be applied to the actual number of pupils enrolled during FY08.

Sheet charterinfo (hidden)
A1: chalocsend from 17 - Q2 fnd enro fy16pct.xls | C1: Input fnd enro chalocsend | I1: 1
A7: Order | D7: Cha | E7: Campus | F7: Send | G7: # of District/ | H7: Wage | I7: Above | J7: Found | K7: Above | L7: Fac
A8: # | B8: Drop Down Menu Chalocsend | C8: chalocsend | D8: Lea | E8: Lea | F8: Lea | G8: Campuses | H8: Adj Factor | I8: Fnd % | J8: Rate | K8: Fnd Rate | L8: Rate
A10: 1 | B10: 409 - ALMA DEL MAR Charter School - NEW BEDFORD pupils | C10: 409201201 | D10: 409 | E10: 201 | F10: 201 | G10: 1 | H10: 1 | J10: 11039 | L10: 893
A11: 2 | B11: 410 - EXCEL ACADEMY Charter School - BOSTON Campus - BOSTON pupils | C11: 410035035 | D11: 410 | E11: 35 | F11: 35 | G11: 2 | H11: 1.077 | J11: 11947 | L11: 893
A12: 3 | B12: 410 - EXCEL ACADEMY Charter School - BOSTON Campus - BROCKTON pupils | C12: 410035044 | D12: 410 | E12: 35 | F12: 44 | G12: 2 | H12: 1.077 | J12: 13204 | L12: 893
A13: 4 | B13: 410 - EXCEL ACADEMY Charter School - BOSTON Campus - CHELSEA pupils | C13: 410035057 | D13: 410 | E13: 35 | F13: 57 | G13: 2 | H13: 1.077 | J13: 12006 | L13: 893
A14: 5 | B14: 410 - EXCEL ACADEMY Charter School - BOSTON Campus - EVERETT pupils | C14: 410035093 | D14: 410 | E14: 35 | F14: 93 | G14: 2 | H14: 1.077 | J14: 12538 | L14: 893
A15: 6 | B15: 410 - EXCEL ACADEMY Charter School - BOSTON Campus - LEXINGTON pupils | C15: 410035155 | D15: 410 | E15: 35 | F15: 155 | G15: 2 | H15: 1.077 | J15: 13204 | L15: 893
A16: 7 | B16: 410 - EXCEL ACADEMY Charter School - BOSTON Campus - LOWELL pupils | C16: 410035160 | D16: 410 | E16: 35 | F16: 160 | G16: 2 | H16: 1.077 | J16: 13204 | L16: 893
A17: 8 | B17: 410 - EXCEL ACADEMY Charter School - BOSTON Campus - LYNN pupils | C17: 410035163 | D17: 410 | E17: 35 | F17: 163 | G17: 2 | H17: 1.077 | J17: 11335 | L17: 893
A18: 9 | B18: 410 - EXCEL ACADEMY Charter School - BOSTON Campus - REVERE pupils | C18: 410035248 | D18: 410 | E18: 35 | F18: 248 | G18: 2 | H18: 1.077 | J18: 11820 | L18: 893
A19: 10 | B19: 410 - EXCEL ACADEMY Charter School - BOSTON Campus - WALTHAM pupils | C19: 410035308 | D19: 410 | E19: 35 | F19: 308 | G19: 2 | H19: 1.077 | J19: 13204 | L19: 893
A20: 11 | B20: 410 - EXCEL ACADEMY Charter School - BOSTON Campus - WINTHROP pupils | C20: 410035346 | D20: 410 | E20: 35 | F20: 346 | G20: 2 | H20: 1.077 | J20: 10423 | L20: 893
A21: 12 | B21: 410 - EXCEL ACADEMY Charter School - CHELSEA Campus - BOSTON pupils | C21: 410057035 | D21: 410 | E21: 57 | F21: 35 | G21: 2 | H21: 1.038 | J21: 9330 | L21: 893
A22: 13 | B22: 410 - EXCEL ACADEMY Charter School - CHELSEA Campus - CHELSEA pupils | C22: 410057057 | D22: 410 | E22: 57 | F22: 57 | G22: 2 | H22: 1.038 | J22: 11419 | L22: 893
A23: 14 | B23: 410 - EXCEL ACADEMY Charter School - CHELSEA Campus - REVERE pupils | C23: 410057248 | D23: 410 | E23: 57 | F23: 248 | G23: 2 | H23: 1.038 | J23: 11713 | L23: 893
A24: 15 | B24: 412 - ACADEMY OF THE PACIFIC RIM Charter School - BOSTON pupils | C24: 412035035 | D24: 412 | E24: 35 | F24: 35 | G24: 1 | H24: 1.077 | J24: 11288 | L24: 893
A25: 16 | B25: 412 - ACADEMY OF THE PACIFIC RIM Charter School - BROCKTON pupils | C25: 412035044 | D25: 412 | E25: 35 | F25: 44 | G25: 1 | H25: 1.077 | J25: 11600 | L25: 893
A26: 17 | B26: 412 - ACADEMY OF THE PACIFIC RIM Charter School - MILTON pupils | C26: 412035189 | D26: 412 | E26: 35 | F26: 189 | G26: 1 | H26: 1.077 | J26: 10793 | L26: 893
A27: 18 | B27: 412 - ACADEMY OF THE PACIFIC RIM Charter School - NORWOOD pupils | C27: 412035220 | D27: 412 | E27: 35 | F27: 220 | G27: 1 | H27: 1.077 | J27: 13204 | L27: 893
A28: 19 | B28: 412 - ACADEMY OF THE PACIFIC RIM Charter School - RANDOLPH pupils | C28: 412035244 | D28: 412 | E28: 35 | F28: 244 | G28: 1 | H28: 1.077 | J28: 11918 | L28: 893
A29: 20 | B29: 412 - ACADEMY OF THE PACIFIC RIM Charter School - STOUGHTON pupils | C29: 412035285 | D29: 412 | E29: 35 | F29: 285 | G29: 1 | H29: 1.077 | J29: 12852 | L29: 893
A30: 21 | B30: 412 - ACADEMY OF THE PACIFIC RIM Charter School - TAUNTON pupils | C30: 412035293 | D30: 412 | E30: 35 | F30: 293 | G30: 1 | H30: 1.077 | J30: 13204 | L30: 893
A31: 22 | B31: 412 - ACADEMY OF THE PACIFIC RIM Charter School - WATERTOWN pupils | C31: 412035314 | D31: 412 | E31: 35 | F31: 314 | G31: 1 | H31: 1.077 | J31: 12094 | L31: 893
A32: 23 | B32: 412 - ACADEMY OF THE PACIFIC RIM Charter School - WEYMOUTH pupils | C32: 412035336 | D32: 412 | E32: 35 | F32: 336 | G32: 1 | H32: 1.077 | J32: 9598 | L32: 893
A33: 24 | B33: 413 - FOUR RIVERS Charter School - BELCHERTOWN pupils | C33: 413114024 | D33: 413 | E33: 114 | F33: 24 | G33: 1 | H33: 1 | J33: 7875 | L33: 893
A34: 25 | B34: 413 - FOUR RIVERS Charter School - EAST BRIDGEWATER pupils | C34: 413114083 | D34: 413 | E34: 114 | F34: 83 | G34: 1 | H34: 1 | J34: 7875 | L34: 893
A35: 26 | B35: 413 - FOUR RIVERS Charter School - ERVING pupils | C35: 413114091 | D35: 413 | E35: 114 | F35: 91 | G35: 1 | H35: 1 | J35: 9395 | L35: 893
A36: 27 | B36: 413 - FOUR RIVERS Charter School - GREENFIELD pupils | C36: 413114114 | D36: 413 | E36: 114 | F36: 114 | G36: 1 | H36: 1 | J36: 10099 | L36: 893
A37: 28 | B37: 413 - FOUR RIVERS Charter School - HADLEY pupils | C37: 413114117 | D37: 413 | E37: 114 | F37: 117 | G37: 1 | H37: 1 | J37: 12388 | L37: 893
A38: 29 | B38: 413 - FOUR RIVERS Charter School - NORTHAMPTON pupils | C38: 413114210 | D38: 413 | E38: 114 | F38: 210 | G38: 1 | H38: 1 | J38: 12388 | L38: 893
A39: 30 | B39: 413 - FOUR RIVERS Charter School - ROWE pupils | C39: 413114253 | D39: 413 | E39: 114 | F39: 253 | G39: 1 | H39: 1 | J39: 8730 | L39: 893
A40: 31 | B40: 413 - FOUR RIVERS Charter School - AMHERST PELHAM pupils | C40: 413114605 | D40: 413 | E40: 114 | F40: 605 | G40: 1 | H40: 1 | J40: 10132 | L40: 893
A41: 32 | B41: 413 - FOUR RIVERS Charter School - FRONTIER pupils | C41: 413114670 | D41: 413 | E41: 114 | F41: 670 | G41: 1 | H41: 1 | J41: 9855 | L41: 893
A42: 33 | B42: 413 - FOUR RIVERS Charter School - GILL MONTAGUE pupils | C42: 413114674 | D42: 413 | E42: 114 | F42: 674 | G42: 1 | H42: 1 | J42: 9773 | L42: 893
A43: 34 | B43: 413 - FOUR RIVERS Charter School - HAMPSHIRE pupils | C43: 413114683 | D43: 413 | E43: 114 | F43: 683 | G43: 1 | H43: 1 | J43: 9585 | L43: 893
A44: 35 | B44: 413 - FOUR RIVERS Charter School - MOHAWK TRAIL pupils | C44: 413114717 | D44: 413 | E44: 114 | F44: 717 | G44: 1 | H44: 1 | J44: 9998 | L44: 893
A45: 36 | B45: 413 - FOUR RIVERS Charter School - PIONEER pupils | C45: 413114750 | D45: 413 | E45: 114 | F45: 750 | G45: 1 | H45: 1 | J45: 9823 | L45: 893
A46: 37 | B46: 413 - FOUR RIVERS Charter School - RALPH C MAHAR pupils | C46: 413114755 | D46: 413 | E46: 114 | F46: 755 | G46: 1 | H46: 1 | J46: 9579 | L46: 893
A47: 38 | B47: 414 - BERKSHIRE ARTS AND TECHNOLOGY Charter School - CLARKSBURG pupils | C47: 414603063 | D47: 414 | E47: 603 | F47: 63 | G47: 1 | H47: 1 | J47: 10884 | L47: 893
A48: 39 | B48: 414 - BERKSHIRE ARTS AND TECHNOLOGY Charter School - FLORIDA pupils | C48: 414603098 | D48: 414 | E48: 603 | F48: 98 | G48: 1 | H48: 1 | J48: 8445 | L48: 893
A49: 40 | B49: 414 - BERKSHIRE ARTS AND TECHNOLOGY Charter School - LANESBOROUGH pupils | C49: 414603148 | D49: 414 | E49: 603 | F49: 148 | G49: 1 | H49: 1 | J49: 11341 | L49: 893
A50: 41 | B50: 414 - BERKSHIRE ARTS AND TECHNOLOGY Charter School - LEE pupils | C50: 414603150 | D50: 414 | E50: 603 | F50: 150 | G50: 1 | H50: 1 | J50: 12388 | L50: 893
A51: 42 | B51: 414 - BERKSHIRE ARTS AND TECHNOLOGY Charter School - LENOX pupils | C51: 414603152 | D51: 414 | E51: 603 | F51: 152 | G51: 1 | H51: 1 | J51: 7875 | L51: 893
A52: 43 | B52: 414 - BERKSHIRE ARTS AND TECHNOLOGY Charter School - NORTH ADAMS pupils | C52: 414603209 | D52: 414 | E52: 603 | F52: 209 | G52: 1 | H52: 1 | J52: 10792 | L52: 893
A53: 44 | B53: 414 - BERKSHIRE ARTS AND TECHNOLOGY Charter School - PITTSFIELD pupils | C53: 414603236 | D53: 414 | E53: 603 | F53: 236 | G53: 1 | H53: 1 | J53: 10389 | L53: 893
A54: 45 | B54: 414 - BERKSHIRE ARTS AND TECHNOLOGY Charter School - SAVOY pupils | C54: 414603263 | D54: 414 | E54: 603 | F54: 263 | G54: 1 | H54: 1 | J54: 9950 | L54: 893
A55: 46 | B55: 414 - BERKSHIRE ARTS AND TECHNOLOGY Charter School - WORTHINGTON pupils | C55: 414603349 | D55: 414 | E55: 603 | F55: 349 | G55: 1 | H55: 1 | J55: 9585 | L55: 893
A56: 47 | B56: 414 - BERKSHIRE ARTS AND TECHNOLOGY Charter School - ADAMS CHESHIRE pupils | C56: 414603603 | D56: 414 | E56: 603 | F56: 603 | G56: 1 | H56: 1 | J56: 10531 | L56: 893
A57: 48 | B57: 414 - BERKSHIRE ARTS AND TECHNOLOGY Charter School - BERKSHIRE HILLS pupils | C57: 414603618 | D57: 414 | E57: 603 | F57: 618 | G57: 1 | H57: 1 | J57: 11341 | L57: 893
A58: 49 | B58: 414 - BERKSHIRE ARTS AND TECHNOLOGY Charter School - CENTRAL BERKSHIRE pupils | C58: 414603635 | D58: 414 | E58: 603 | F58: 635 | G58: 1 | H58: 1 | J58: 8938 | L58: 893
A59: 50 | B59: 414 - BERKSHIRE ARTS AND TECHNOLOGY Charter School - MOUNT GREYLOCK pupils | C59: 414603715 | D59: 414 | E59: 603 | F59: 715 | G59: 1 | H59: 1 | J59: 9765 | L59: 893
A60: 51 | B60: 416 - BOSTON PREPARATORY Charter School - BOSTON pupils | C60: 416035035 | D60: 416 | E60: 35 | F60: 35 | G60: 1 | H60: 1.077 | J60: 11949 | L60: 893
A61: 52 | B61: 416 - BOSTON PREPARATORY Charter School - BROCKTON pupils | C61: 416035044 | D61: 416 | E61: 35 | F61: 44 | G61: 1 | H61: 1.077 | J61: 13204 | L61: 893
A62: 53 | B62: 416 - BOSTON PREPARATORY Charter School - DEDHAM pupils | C62: 416035073 | D62: 416 | E62: 35 | F62: 73 | G62: 1 | H62: 1.077 | J62: 13204 | L62: 893
A63: 54 | B63: 416 - BOSTON PREPARATORY Charter School - MILTON pupils | C63: 416035189 | D63: 416 | E63: 35 | F63: 189 | G63: 1 | H63: 1.077 | J63: 12094 | L63: 893
A64: 55 | B64: 416 - BOSTON PREPARATORY Charter School - RANDOLPH pupils | C64: 416035244 | D64: 416 | E64: 35 | F64: 244 | G64: 1 | H64: 1.077 | J64: 12205 | L64: 893
A65: 56 | B65: 416 - BOSTON PREPARATORY Charter School - STOUGHTON pupils | C65: 416035285 | D65: 416 | E65: 35 | F65: 285 | G65: 1 | H65: 1.077 | J65: 11835 | L65: 893
A66: 57 | B66: 417 - BRIDGE BOSTON Charter School - BOSTON pupils | C66: 417035035 | D66: 417 | E66: 35 | F66: 35 | G66: 1 | H66: 1.077 | J66: 12197 | L66: 893
A67: 58 | B67: 417 - BRIDGE BOSTON Charter School - RANDOLPH pupils | C67: 417035244 | D67: 417 | E67: 35 | F67: 244 | G67: 1 | H67: 1.077 | J67: 10901 | L67: 893
A68: 59 | B68: 417 - BRIDGE BOSTON Charter School - SOMERVILLE pupils | C68: 417035274 | D68: 417 | E68: 35 | F68: 274 | G68: 1 | H68: 1.077 | J68: 8183 | L68: 893
A69: 60 | B69: 417 - BRIDGE BOSTON Charter School - TAUNTON pupils | C69: 417035293 | D69: 417 | E69: 35 | F69: 293 | G69: 1 | H69: 1.077 | J69: 7943 | L69: 893
A70: 61 | B70: 418 - CHRISTA MCAULIFFE Charter School - ASHLAND pupils | C70: 418100014 | D70: 418 | E70: 100 | F70: 14 | G70: 1 | H70: 1.054 | J70: 8604 | L70: 893
A71: 62 | B71: 418 - CHRISTA MCAULIFFE Charter School - BOSTON pupils | C71: 418100035 | D71: 418 | E71: 100 | F71: 35 | G71: 1 | H71: 1.054 | J71: 8231 | L71: 893
A72: 63 | B72: 418 - CHRISTA MCAULIFFE Charter School - EVERETT pupils | C72: 418100093 | D72: 418 | E72: 100 | F72: 93 | G72: 1 | H72: 1.054 | J72: 8231 | L72: 893
A73: 64 | B73: 418 - CHRISTA MCAULIFFE Charter School - FRAMINGHAM pupils | C73: 418100100 | D73: 418 | E73: 100 | F73: 100 | G73: 1 | H73: 1.054 | J73: 9324 | L73: 893
A74: 65 | B74: 418 - CHRISTA MCAULIFFE Charter School - HOLLISTON pupils | C74: 418100136 | D74: 418 | E74: 100 | F74: 136 | G74: 1 | H74: 1.054 | J74: 8231 | L74: 893
A75: 66 | B75: 418 - CHRISTA MCAULIFFE Charter School - HOPKINTON pupils | C75: 418100139 | D75: 418 | E75: 100 | F75: 139 | G75: 1 | H75: 1.054 | J75: 8231 | L75: 893
A76: 67 | B76: 418 - CHRISTA MCAULIFFE Charter School - MARLBOROUGH pupils | C76: 418100170 | D76: 418 | E76: 100 | F76: 170 | G76: 1 | H76: 1.054 | J76: 8994 | L76: 893
A77: 68 | B77: 418 - CHRISTA MCAULIFFE Charter School - MAYNARD pupils | C77: 418100174 | D77: 418 | E77: 100 | F77: 174 | G77: 1 | H77: 1.054 | J77: 8231 | L77: 893
A78: 69 | B78: 418 - CHRISTA MCAULIFFE Charter School - MEDFIELD pupils | C78: 418100175 | D78: 418 | E78: 100 | F78: 175 | G78: 1 | H78: 1.054 | J78: 8231 | L78: 893
A79: 70 | B79: 418 - CHRISTA MCAULIFFE Charter School - MILFORD pupils | C79: 418100185 | D79: 418 | E79: 100 | F79: 185 | G79: 1 | H79: 1.054 | J79: 8231 | L79: 893
A80: 71 | B80: 418 - CHRISTA MCAULIFFE Charter School - NATICK pupils | C80: 418100198 | D80: 418 | E80: 100 | F80: 198 | G80: 1 | H80: 1.054 | J80: 8482 | L80: 893
A81: 72 | B81: 418 - CHRISTA MCAULIFFE Charter School - NORTHBOROUGH pupils | C81: 418100213 | D81: 418 | E81: 100 | F81: 213 | G81: 1 | H81: 1.054 | J81: 8231 | L81: 893
A82: 73 | B82: 418 - CHRISTA MCAULIFFE Charter School - SOUTHBOROUGH pupils | C82: 418100276 | D82: 418 | E82: 100 | F82: 276 | G82: 1 | H82: 1.054 | J82: 8231 | L82: 893
A83: 74 | B83: 418 - CHRISTA MCAULIFFE Charter School - SUDBURY pupils | C83: 418100288 | D83: 418 | E83: 100 | F83: 288 | G83: 1 | H83: 1.054 | J83: 8231 | L83: 893
A84: 75 | B84: 418 - CHRISTA MCAULIFFE Charter School - UXBRIDGE pupils | C84: 418100304 | D84: 418 | E84: 100 | F84: 304 | G84: 1 | H84: 1.054 | J84: 8231 | L84: 893
A85: 76 | B85: 418 - CHRISTA MCAULIFFE Charter School - WAYLAND pupils | C85: 418100315 | D85: 418 | E85: 100 | F85: 315 | G85: 1 | H85: 1.054 | J85: 8231 | L85: 893
A86: 77 | B86: 418 - CHRISTA MCAULIFFE Charter School - WESTBOROUGH pupils | C86: 418100321 | D86: 418 | E86: 100 | F86: 321 | G86: 1 | H86: 1.054 | J86: 8231 | L86: 893
A87: 78 | B87: 418 - CHRISTA MCAULIFFE Charter School - DOVER SHERBORN pupils | C87: 418100655 | D87: 418 | E87: 100 | F87: 655 | G87: 1 | H87: 1.054 | J87: 8231 | L87: 893
A88: 79 | B88: 418 - CHRISTA MCAULIFFE Charter School - MENDON UPTON pupils | C88: 418100710 | D88: 418 | E88: 100 | F88: 710 | G88: 1 | H88: 1.054 | J88: 8231 | L88: 893
A89: 80 | B89: 419 - HELEN Y. DAVIS LEADERSHIP ACADEMY Charter School - BOSTON pupils | C89: 419035035 | D89: 419 | E89: 35 | F89: 35 | G89: 1 | H89: 1.077 | J89: 11565 | L89: 893
A90: 81 | B90: 419 - HELEN Y. DAVIS LEADERSHIP ACADEMY Charter School - BROCKTON pupils | C90: 419035044 | D90: 419 | E90: 35 | F90: 44 | G90: 1 | H90: 1.077 | J90: 12094 | L90: 893
A91: 82 | B91: 419 - HELEN Y. DAVIS LEADERSHIP ACADEMY Charter School - CAMBRIDGE pupils | C91: 419035049 | D91: 419 | E91: 35 | F91: 49 | G91: 1 | H91: 1.077 | J91: 12094 | L91: 893
A92: 83 | B92: 419 - HELEN Y. DAVIS LEADERSHIP ACADEMY Charter School - HOLBROOK pupils | C92: 419035133 | D92: 419 | E92: 35 | F92: 133 | G92: 1 | H92: 1.077 | J92: 12094 | L92: 893
A93: 84 | B93: 419 - HELEN Y. DAVIS LEADERSHIP ACADEMY Charter School - MALDEN pupils | C93: 419035165 | D93: 419 | E93: 35 | F93: 165 | G93: 1 | H93: 1.077 | J93: 12094 | L93: 893
A94: 85 | B94: 419 - HELEN Y. DAVIS LEADERSHIP ACADEMY Charter School - RANDOLPH pupils | C94: 419035244 | D94: 419 | E94: 35 | F94: 244 | G94: 1 | H94: 1.077 | J94: 11113 | L94: 893
A95: 86 | B95: 420 - BENJAMIN BANNEKER Charter School - ARLINGTON pupils | C95: 420049010 | D95: 420 | E95: 49 | F95: 10 | G95: 1 | H95: 1.093 | J95: 12662 | L95: 893
A96: 87 | B96: 420 - BENJAMIN BANNEKER Charter School - BEDFORD pupils | C96: 420049023 | D96: 420 | E96: 49 | F96: 23 | G96: 1 | H96: 1.093 | J96: 8899 | L96: 893
A97: 88 | B97: 420 - BENJAMIN BANNEKER Charter School - BELMONT pupils | C97: 420049026 | D97: 420 | E97: 49 | F97: 26 | G97: 1 | H97: 1.093 | J97: 12662 | L97: 893
A98: 89 | B98: 420 - BENJAMIN BANNEKER Charter School - BILLERICA pupils | C98: 420049031 | D98: 420 | E98: 49 | F98: 31 | G98: 1 | H98: 1.093 | J98: 8899 | L98: 893
A99: 90 | B99: 420 - BENJAMIN BANNEKER Charter School - BOSTON pupils | C99: 420049035 | D99: 420 | E99: 49 | F99: 35 | G99: 1 | H99: 1.093 | J99: 11499 | L99: 893
A100: 91 | B100: 420 - BENJAMIN BANNEKER Charter School - BROCKTON pupils | C100: 420049044 | D100: 420 | E100: 49 | F100: 44 | G100: 1 | H100: 1.093 | J100: 10757 | L100: 893
A101: 92 | B101: 420 - BENJAMIN BANNEKER Charter School - CAMBRIDGE pupils | C101: 420049049 | D101: 420 | E101: 49 | F101: 49 | G101: 1 | H101: 1.093 | J101: 11437 | L101: 893
A102: 93 | B102: 420 - BENJAMIN BANNEKER Charter School - CHELSEA pupils | C102: 420049057 | D102: 420 | E102: 49 | F102: 57 | G102: 1 | H102: 1.093 | J102: 10499 | L102: 893
A103: 94 | B103: 420 - BENJAMIN BANNEKER Charter School - EVERETT pupils | C103: 420049093 | D103: 420 | E103: 49 | F103: 93 | G103: 1 | H103: 1.093 | J103: 11769 | L103: 893
A104: 95 | B104: 420 - BENJAMIN BANNEKER Charter School - LAWRENCE pupils | C104: 420049149 | D104: 420 | E104: 49 | F104: 149 | G104: 1 | H104: 1.093 | J104: 8899 | L104: 893
A105: 96 | B105: 420 - BENJAMIN BANNEKER Charter School - LYNN pupils | C105: 420049163 | D105: 420 | E105: 49 | F105: 163 | G105: 1 | H105: 1.093 | J105: 10322 | L105: 893
A106: 97 | B106: 420 - BENJAMIN BANNEKER Charter School - MALDEN pupils | C106: 420049165 | D106: 420 | E106: 49 | F106: 165 | G106: 1 | H106: 1.093 | J106: 11514 | L106: 893
A107: 98 | B107: 420 - BENJAMIN BANNEKER Charter School - MEDFORD pupils | C107: 420049176 | D107: 420 | E107: 49 | F107: 176 | G107: 1 | H107: 1.093 | J107: 10355 | L107: 893
A108: 99 | B108: 420 - BENJAMIN BANNEKER Charter School - METHUEN pupils | C108: 420049181 | D108: 420 | E108: 49 | F108: 181 | G108: 1 | H108: 1.093 | J108: 8899 | L108: 893
A109: 100 | B109: 420 - BENJAMIN BANNEKER Charter School - QUINCY pupils | C109: 420049243 | D109: 420 | E109: 49 | F109: 243 | G109: 1 | H109: 1.093 | J109: 8899 | L109: 893
A110: 101 | B110: 420 - BENJAMIN BANNEKER Charter School - RANDOLPH pupils | C110: 420049244 | D110: 420 | E110: 49 | F110: 244 | G110: 1 | H110: 1.093 | J110: 8880 | L110: 893
A111: 102 | B111: 420 - BENJAMIN BANNEKER Charter School - REVERE pupils | C111: 420049248 | D111: 420 | E111: 49 | F111: 248 | G111: 1 | H111: 1.093 | J111: 8784 | L111: 893
A112: 103 | B112: 420 - BENJAMIN BANNEKER Charter School - SAUGUS pupils | C112: 420049262 | D112: 420 | E112: 49 | F112: 262 | G112: 1 | H112: 1.093 | J112: 12662 | L112: 893
A113: 104 | B113: 420 - BENJAMIN BANNEKER Charter School - SOMERVILLE pupils | C113: 420049274 | D113: 420 | E113: 49 | F113: 274 | G113: 1 | H113: 1.093 | J113: 12051 | L113: 893
A114: 105 | B114: 420 - BENJAMIN BANNEKER Charter School - WALTHAM pupils | C114: 420049308 | D114: 420 | E114: 49 | F114: 308 | G114: 1 | H114: 1.093 | J114: 12662 | L114: 893
A115: 106 | B115: 420 - BENJAMIN BANNEKER Charter School - WOBURN pupils | C115: 420049347 | D115: 420 | E115: 49 | F115: 347 | G115: 1 | H115: 1.093 | J115: 11889 | L115: 893
A116: 107 | B116: 420 - BENJAMIN BANNEKER Charter School - AYER SHIRLEY pupils | C116: 420049616 | D116: 420 | E116: 49 | F116: 616 | G116: 1 | H116: 1.093 | J116: 10780 | L116: 893
A117: 108 | B117: 426 - COMMUNITY DAY - GATEWAY Charter School - ANDOVER pupils | C117: 426149009 | D117: 426 | E117: 149 | F117: 9 | G117: 1 | H117: 1 | J117: 9243 | L117: 893
A118: 109 | B118: 426 - COMMUNITY DAY - GATEWAY Charter School - CHELMSFORD pupils | C118: 426149056 | D118: 426 | E118: 149 | F118: 56 | G118: 1 | H118: 1 | J118: 7444 | L118: 893
A119: 110 | B119: 426 - COMMUNITY DAY - GATEWAY Charter School - DRACUT pupils | C119: 426149079 | D119: 426 | E119: 149 | F119: 79 | G119: 1 | H119: 1 | J119: 8254 | L119: 893
A120: 111 | B120: 426 - COMMUNITY DAY - GATEWAY Charter School - LAWRENCE pupils | C120: 426149149 | D120: 426 | E120: 149 | F120: 149 | G120: 1 | H120: 1 | J120: 12272 | L120: 893
A121: 112 | B121: 426 - COMMUNITY DAY - GATEWAY Charter School - METHUEN pupils | C121: 426149181 | D121: 426 | E121: 149 | F121: 181 | G121: 1 | H121: 1 | J121: 10542 | L121: 893
A122: 113 | B122: 428 - BROOKE Charter School - BOSTON pupils | C122: 428035035 | D122: 428 | E122: 35 | F122: 35 | G122: 1 | H122: 1.077 | J122: 11424 | L122: 893
A123: 114 | B123: 428 - BROOKE Charter School - BRAINTREE pupils | C123: 428035040 | D123: 428 | E123: 35 | F123: 40 | G123: 1 | H123: 1.077 | J123: 12500 | L123: 893
A124: 115 | B124: 428 - BROOKE Charter School - BROCKTON pupils | C124: 428035044 | D124: 428 | E124: 35 | F124: 44 | G124: 1 | H124: 1.077 | J124: 9407 | L124: 893
A125: 116 | B125: 428 - BROOKE Charter School - CANTON pupils | C125: 428035050 | D125: 428 | E125: 35 | F125: 50 | G125: 1 | H125: 1.077 | J125: 12500 | L125: 893
A126: 117 | B126: 428 - BROOKE Charter School - CHELSEA pupils | C126: 428035057 | D126: 428 | E126: 35 | F126: 57 | G126: 1 | H126: 1.077 | J126: 11490 | L126: 893
A127: 118 | B127: 428 - BROOKE Charter School - DEDHAM pupils | C127: 428035073 | D127: 428 | E127: 35 | F127: 73 | G127: 1 | H127: 1.077 | J127: 11470 | L127: 893
A128: 119 | B128: 428 - BROOKE Charter School - EVERETT pupils | C128: 428035093 | D128: 428 | E128: 35 | F128: 93 | G128: 1 | H128: 1.077 | J128: 11280 | L128: 893
A129: 120 | B129: 428 - BROOKE Charter School - LYNN pupils | C129: 428035163 | D129: 428 | E129: 35 | F129: 163 | G129: 1 | H129: 1.077 | J129: 12927 | L129: 893
A130: 121 | B130: 428 - BROOKE Charter School - MILTON pupils | C130: 428035189 | D130: 428 | E130: 35 | F130: 189 | G130: 1 | H130: 1.077 | J130: 10441 | L130: 893
A131: 122 | B131: 428 - BROOKE Charter School - NORWOOD pupils | C131: 428035220 | D131: 428 | E131: 35 | F131: 220 | G131: 1 | H131: 1.077 | J131: 12398 | L131: 893
A132: 123 | B132: 428 - BROOKE Charter School - QUINCY pupils | C132: 428035243 | D132: 428 | E132: 35 | F132: 243 | G132: 1 | H132: 1.077 | J132: 11112 | L132: 893
A133: 124 | B133: 428 - BROOKE Charter School - RANDOLPH pupils | C133: 428035244 | D133: 428 | E133: 35 | F133: 244 | G133: 1 | H133: 1.077 | J133: 11093 | L133: 893
A134: 125 | B134: 428 - BROOKE Charter School - REVERE pupils | C134: 428035248 | D134: 428 | E134: 35 | F134: 248 | G134: 1 | H134: 1.077 | J134: 11882 | L134: 893
A135: 126 | B135: 428 - BROOKE Charter School - STOUGHTON pupils | C135: 428035285 | D135: 428 | E135: 35 | F135: 285 | G135: 1 | H135: 1.077 | J135: 12365 | L135: 893
A136: 127 | B136: 428 - BROOKE Charter School - WALTHAM pupils | C136: 428035308 | D136: 428 | E136: 35 | F136: 308 | G136: 1 | H136: 1.077 | J136: 14613 | L136: 893
A137: 128 | B137: 428 - BROOKE Charter School - WINTHROP pupils | C137: 428035346 | D137: 428 | E137: 35 | F137: 346 | G137: 1 | H137: 1.077 | J137: 10644 | L137: 893
A138: 129 | B138: 428 - BROOKE Charter School - BRIDGEWATER RAYNHAM pupils | C138: 428035625 | D138: 428 | E138: 35 | F138: 625 | G138: 1 | H138: 1.077 | J138: 12500 | L138: 893
A139: 130 | B139: 428 - BROOKE Charter School - DIGHTON REHOBOTH pupils | C139: 428035650 | D139: 428 | E139: 35 | F139: 650 | G139: 1 | H139: 1.077 | J139: 12500 | L139: 893
A140: 131 | B140: 429 - KIPP ACADEMY LYNN Charter School - BEVERLY pupils | C140: 429163030 | D140: 429 | E140: 163 | F140: 30 | G140: 1 | H140: 1 | J140: 11753 | L140: 893
A141: 132 | B141: 429 - KIPP ACADEMY LYNN Charter School - CHELSEA pupils | C141: 429163057 | D141: 429 | E141: 163 | F141: 57 | G141: 1 | H141: 1 | J141: 13042 | L141: 893
A142: 133 | B142: 429 - KIPP ACADEMY LYNN Charter School - LYNN pupils | C142: 429163163 | D142: 429 | E142: 163 | F142: 163 | G142: 1 | H142: 1 | J142: 11703 | L142: 893
A143: 134 | B143: 429 - KIPP ACADEMY LYNN Charter School - LYNNFIELD pupils | C143: 429163164 | D143: 429 | E143: 163 | F143: 164 | G143: 1 | H143: 1 | J143: 13042 | L143: 893
A144: 135 | B144: 429 - KIPP ACADEMY LYNN Charter School - MARBLEHEAD pupils | C144: 429163168 | D144: 429 | E144: 163 | F144: 168 | G144: 1 | H144: 1 | J144: 8730 | L144: 893
A145: 136 | B145: 429 - KIPP ACADEMY LYNN Charter School - MEDFORD pupils | C145: 429163176 | D145: 429 | E145: 163 | F145: 176 | G145: 1 | H145: 1 | J145: 12388 | L145: 893
A146: 137 | B146: 429 - KIPP ACADEMY LYNN Charter School - PEABODY pupils | C146: 429163229 | D146: 429 | E146: 163 | F146: 229 | G146: 1 | H146: 1 | J146: 11828 | L146: 893
A147: 138 | B147: 429 - KIPP ACADEMY LYNN Charter School - REVERE pupils | C147: 429163248 | D147: 429 | E147: 163 | F147: 248 | G147: 1 | H147: 1 | J147: 12388 | L147: 893
A148: 139 | B148: 429 - KIPP ACADEMY LYNN Charter School - SALEM pupils | C148: 429163258 | D148: 429 | E148: 163 | F148: 258 | G148: 1 | H148: 1 | J148: 11866 | L148: 893
A149: 140 | B149: 429 - KIPP ACADEMY LYNN Charter School - SAUGUS pupils | C149: 429163262 | D149: 429 | E149: 163 | F149: 262 | G149: 1 | H149: 1 | J149: 12453 | L149: 893
A150: 141 | B150: 429 - KIPP ACADEMY LYNN Charter School - SWAMPSCOTT pupils | C150: 429163291 | D150: 429 | E150: 163 | F150: 291 | G150: 1 | H150: 1 | J150: 9158 | L150: 893
A151: 142 | B151: 430 - ADVANCED MATH AND SCIENCE ACADEMY Charter School - ANDOVER pupils | C151: 430170009 | D151: 430 | E151: 170 | F151: 9 | G151: 1 | H151: 1.065 | J151: 8303 | L151: 893
A152: 143 | B152: 430 - ADVANCED MATH AND SCIENCE ACADEMY Charter School - ASHLAND pupils | C152: 430170014 | D152: 430 | E152: 170 | F152: 14 | G152: 1 | H152: 1.065 | J152: 9835 | L152: 893
A153: 144 | B153: 430 - ADVANCED MATH AND SCIENCE ACADEMY Charter School - AUBURN pupils | C153: 430170017 | D153: 430 | E153: 170 | F153: 17 | G153: 1 | H153: 1.065 | J153: 10110 | L153: 893
A154: 145 | B154: 430 - ADVANCED MATH AND SCIENCE ACADEMY Charter School - BILLERICA pupils | C154: 430170031 | D154: 430 | E154: 170 | F154: 31 | G154: 1 | H154: 1.065 | J154: 10110 | L154: 893
A155: 146 | B155: 430 - ADVANCED MATH AND SCIENCE ACADEMY Charter School - CHELMSFORD pupils | C155: 430170056 | D155: 430 | E155: 170 | F155: 56 | G155: 1 | H155: 1.065 | J155: 10110 | L155: 893
A156: 147 | B156: 430 - ADVANCED MATH AND SCIENCE ACADEMY Charter School - CLINTON pupils | C156: 430170064 | D156: 430 | E156: 170 | F156: 64 | G156: 1 | H156: 1.065 | J156: 9089 | L156: 893
A157: 148 | B157: 430 - ADVANCED MATH AND SCIENCE ACADEMY Charter School - FRAMINGHAM pupils | C157: 430170100 | D157: 430 | E157: 170 | F157: 100 | G157: 1 | H157: 1.065 | J157: 10209 | L157: 893
A158: 149 | B158: 430 - ADVANCED MATH AND SCIENCE ACADEMY Charter School - FRANKLIN pupils | C158: 430170101 | D158: 430 | E158: 170 | F158: 101 | G158: 1 | H158: 1.065 | J158: 8303 | L158: 893
A159: 150 | B159: 430 - ADVANCED MATH AND SCIENCE ACADEMY Charter School - GRAFTON pupils | C159: 430170110 | D159: 430 | E159: 170 | F159: 110 | G159: 1 | H159: 1.065 | J159: 9595 | L159: 893
A160: 151 | B160: 430 - ADVANCED MATH AND SCIENCE ACADEMY Charter School - HARVARD pupils | C160: 430170125 | D160: 430 | E160: 170 | F160: 125 | G160: 1 | H160: 1.065 | J160: 10110 | L160: 893
A161: 152 | B161: 430 - ADVANCED MATH AND SCIENCE ACADEMY Charter School - HOLLISTON pupils | C161: 430170136 | D161: 430 | E161: 170 | F161: 136 | G161: 1 | H161: 1.065 | J161: 10110 | L161: 893
A162: 153 | B162: 430 - ADVANCED MATH AND SCIENCE ACADEMY Charter School - HOPEDALE pupils | C162: 430170138 | D162: 430 | E162: 170 | F162: 138 | G162: 1 | H162: 1.065 | J162: 10110 | L162: 893
A163: 154 | B163: 430 - ADVANCED MATH AND SCIENCE ACADEMY Charter School - HOPKINTON pupils | C163: 430170139 | D163: 430 | E163: 170 | F163: 139 | G163: 1 | H163: 1.065 | J163: 9415 | L163: 893
A164: 155 | B164: 430 - ADVANCED MATH AND SCIENCE ACADEMY Charter School - HUDSON pupils | C164: 430170141 | D164: 430 | E164: 170 | F164: 141 | G164: 1 | H164: 1.065 | J164: 9552 | L164: 893
A165: 156 | B165: 430 - ADVANCED MATH AND SCIENCE ACADEMY Charter School - LEOMINSTER pupils | C165: 430170153 | D165: 430 | E165: 170 | F165: 153 | G165: 1 | H165: 1.065 | J165: 10110 | L165: 893
A166: 157 | B166: 430 - ADVANCED MATH AND SCIENCE ACADEMY Charter School - LITTLETON pupils | C166: 430170158 | D166: 430 | E166: 170 | F166: 158 | G166: 1 | H166: 1.065 | J166: 9387 | L166: 893
A167: 158 | B167: 430 - ADVANCED MATH AND SCIENCE ACADEMY Charter School - MARLBOROUGH pupils | C167: 430170170 | D167: 430 | E167: 170 | F167: 170 | G167: 1 | H167: 1.065 | J167: 9295 | L167: 893
A168: 159 | B168: 430 - ADVANCED MATH AND SCIENCE ACADEMY Charter School - MAYNARD pupils | C168: 430170174 | D168: 430 | E168: 170 | F168: 174 | G168: 1 | H168: 1.065 | J168: 9048 | L168: 893
A169: 160 | B169: 430 - ADVANCED MATH AND SCIENCE ACADEMY Charter School - MEDWAY pupils | C169: 430170177 | D169: 430 | E169: 170 | F169: 177 | G169: 1 | H169: 1.065 | J169: 9387 | L169: 893
A170: 161 | B170: 430 - ADVANCED MATH AND SCIENCE ACADEMY Charter School - NATICK pupils | C170: 430170198 | D170: 430 | E170: 170 | F170: 198 | G170: 1 | H170: 1.065 | J170: 9852 | L170: 893
A171: 162 | B171: 430 - ADVANCED MATH AND SCIENCE ACADEMY Charter School - NEWTON pupils | C171: 430170207 | D171: 430 | E171: 170 | F171: 207 | G171: 1 | H171: 1.065 | J171: 10110 | L171: 893
A172: 163 | B172: 430 - ADVANCED MATH AND SCIENCE ACADEMY Charter School - NORTHBOROUGH pupils | C172: 430170213 | D172: 430 | E172: 170 | F172: 213 | G172: 1 | H172: 1.065 | J172: 8303 | L172: 893
A173: 164 | B173: 430 - ADVANCED MATH AND SCIENCE ACADEMY Charter School - SHREWSBURY pupils | C173: 430170271 | D173: 430 | E173: 170 | F173: 271 | G173: 1 | H173: 1.065 | J173: 9785 | L173: 893
A174: 165 | B174: 430 - ADVANCED MATH AND SCIENCE ACADEMY Charter School - UXBRIDGE pupils | C174: 430170304 | D174: 430 | E174: 170 | F174: 304 | G174: 1 | H174: 1.065 | J174: 10110 | L174: 893
A175: 166 | B175: 430 - ADVANCED MATH AND SCIENCE ACADEMY Charter School - WALTHAM pupils | C175: 430170308 | D175: 430 | E175: 170 | F175: 308 | G175: 1 | H175: 1.065 | J175: 9508 | L175: 893
A176: 167 | B176: 430 - ADVANCED MATH AND SCIENCE ACADEMY Charter School - WATERTOWN pupils | C176: 430170314 | D176: 430 | E176: 170 | F176: 314 | G176: 1 | H176: 1.065 | J176: 9207 | L176: 893
A177: 168 | B177: 430 - ADVANCED MATH AND SCIENCE ACADEMY Charter School - WELLESLEY pupils | C177: 430170317 | D177: 430 | E177: 170 | F177: 317 | G177: 1 | H177: 1.065 | J177: 10110 | L177: 893
A178: 169 | B178: 430 - ADVANCED MATH AND SCIENCE ACADEMY Charter School - WESTBOROUGH pupils | C178: 430170321 | D178: 430 | E178: 170 | F178: 321 | G178: 1 | H178: 1.065 | J178: 9387 | L178: 893
A179: 170 | B179: 430 - ADVANCED MATH AND SCIENCE ACADEMY Charter School - WEST BOYLSTON pupils | C179: 430170322 | D179: 430 | E179: 170 | F179: 322 | G179: 1 | H179: 1.065 | J179: 9267 | L179: 893
A180: 171 | B180: 430 - ADVANCED MATH AND SCIENCE ACADEMY Charter School - WESTFORD pupils | C180: 430170326 | D180: 430 | E180: 170 | F180: 326 | G180: 1 | H180: 1.065 | J180: 9508 | L180: 893
A181: 172 | B181: 430 - ADVANCED MATH AND SCIENCE ACADEMY Charter School - WORCESTER pupils | C181: 430170348 | D181: 430 | E181: 170 | F181: 348 | G181: 1 | H181: 1.065 | J181: 10264 | L181: 893
A182: 173 | B182: 430 - ADVANCED MATH AND SCIENCE ACADEMY Charter School - AYER SHIRLEY pupils | C182: 430170616 | D182: 430 | E182: 170 | F182: 616 | G182: 1 | H182: 1.065 | J182: 10110 | L182: 893
A183: 174 | B183: 430 - ADVANCED MATH AND SCIENCE ACADEMY Charter School - BERLIN BOYLSTON pupils | C183: 430170620 | D183: 430 | E183: 170 | F183: 620 | G183: 1 | H183: 1.065 | J183: 9997 | L183: 893
A184: 175 | B184: 430 - ADVANCED MATH AND SCIENCE ACADEMY Charter School - LINCOLN SUDBURY pupils | C184: 430170695 | D184: 430 | E184: 170 | F184: 695 | G184: 1 | H184: 1.065 | J184: 10110 | L184: 893
A185: 176 | B185: 430 - ADVANCED MATH AND SCIENCE ACADEMY Charter School - MENDON UPTON pupils | C185: 430170710 | D185: 430 | E185: 170 | F185: 710 | G185: 1 | H185: 1.065 | J185: 9748 | L185: 893
A186: 177 | B186: 430 - ADVANCED MATH AND SCIENCE ACADEMY Charter School - NASHOBA pupils | C186: 430170725 | D186: 430 | E186: 170 | F186: 725 | G186: 1 | H186: 1.065 | J186: 10110 | L186: 893
A187: 178 | B187: 430 - ADVANCED MATH AND SCIENCE ACADEMY Charter School - NORTHBORO SOUTHBORO pupils | C187: 430170730 | D187: 430 | E187: 170 | F187: 730 | G187: 1 | H187: 1.065 | J187: 10110 | L187: 893
A188: 179 | B188: 430 - ADVANCED MATH AND SCIENCE ACADEMY Charter School - NORTH MIDDLESEX pupils | C188: 430170735 | D188: 430 | E188: 170 | F188: 735 | G188: 1 | H188: 1.065 | J188: 9508 | L188: 893
A189: 180 | B189: 430 - ADVANCED MATH AND SCIENCE ACADEMY Charter School - WACHUSETT pupils | C189: 430170775 | D189: 430 | E189: 170 | F189: 775 | G189: 1 | H189: 1.065 | J189: 10110 | L189: 893
A190: 181 | B190: 431 - COMMUNITY DAY - R. KINGMAN WEBSTER Charter School - HAVERHILL pupils | C190: 431149128 | D190: 431 | E190: 149 | F190: 128 | G190: 1 | H190: 1 | J190: 11720 | L190: 893
A191: 182 | B191: 431 - COMMUNITY DAY - R. KINGMAN WEBSTER Charter School - LAWRENCE pupils | C191: 431149149 | D191: 431 | E191: 149 | F191: 149 | G191: 1 | H191: 1 | J191: 11592 | L191: 893
A192: 183 | B192: 431 - COMMUNITY DAY - R. KINGMAN WEBSTER Charter School - METHUEN pupils | C192: 431149181 | D192: 431 | E192: 149 | F192: 181 | G192: 1 | H192: 1 | J192: 8658 | L192: 893
A193: 184 | B193: 432 - CAPE COD LIGHTHOUSE Charter School - BARNSTABLE pupils | C193: 432712020 | D193: 432 | E193: 712 | F193: 20 | G193: 1 | H193: 1 | J193: 8315 | L193: 893
A194: 185 | B194: 432 - CAPE COD LIGHTHOUSE Charter School - MASHPEE pupils | C194: 432712172 | D194: 432 | E194: 712 | F194: 172 | G194: 1 | H194: 1 | J194: 7875 | L194: 893
A195: 186 | B195: 432 - CAPE COD LIGHTHOUSE Charter School - SANDWICH pupils | C195: 432712261 | D195: 432 | E195: 712 | F195: 261 | G195: 1 | H195: 1 | J195: 8741 | L195: 893
A196: 187 | B196: 432 - CAPE COD LIGHTHOUSE Charter School - TRURO pupils | C196: 432712300 | D196: 432 | E196: 712 | F196: 300 | G196: 1 | H196: 1 | J196: 9608 | L196: 893
A197: 188 | B197: 432 - CAPE COD LIGHTHOUSE Charter School - DENNIS YARMOUTH pupils | C197: 432712645 | D197: 432 | E197: 712 | F197: 645 | G197: 1 | H197: 1 | J197: 8202 | L197: 893
A198: 189 | B198: 432 - CAPE COD LIGHTHOUSE Charter School - NAUSET pupils | C198: 432712660 | D198: 432 | E198: 712 | F198: 660 | G198: 1 | H198: 1 | J198: 8832 | L198: 893
A199: 190 | B199: 432 - CAPE COD LIGHTHOUSE Charter School - MONOMOY pupils | C199: 432712712 | D199: 432 | E199: 712 | F199: 712 | G199: 1 | H199: 1 | J199: 8762 | L199: 893
A200: 191 | B200: 435 - INNOVATION ACADEMY Charter School - ANDOVER pupils | C200: 435301009 | D200: 435 | E200: 301 | F200: 9 | G200: 1 | H200: 1 | J200: 9585 | L200: 893
A201: 192 | B201: 435 - INNOVATION ACADEMY Charter School - BILLERICA pupils | C201: 435301031 | D201: 435 | E201: 301 | F201: 31 | G201: 1 | H201: 1 | J201: 9105 | L201: 893
A202: 193 | B202: 435 - INNOVATION ACADEMY Charter School - CHELMSFORD pupils | C202: 435301056 | D202: 435 | E202: 301 | F202: 56 | G202: 1 | H202: 1 | J202: 8932 | L202: 893
A203: 194 | B203: 435 - INNOVATION ACADEMY Charter School - DRACUT pupils | C203: 435301079 | D203: 435 | E203: 301 | F203: 79 | G203: 1 | H203: 1 | J203: 9003 | L203: 893
A204: 195 | B204: 435 - INNOVATION ACADEMY Charter School - HARVARD pupils | C204: 435301125 | D204: 435 | E204: 301 | F204: 125 | G204: 1 | H204: 1 | J204: 9585 | L204: 893
A205: 196 | B205: 435 - INNOVATION ACADEMY Charter School - LAWRENCE pupils | C205: 435301149 | D205: 435 | E205: 301 | F205: 149 | G205: 1 | H205: 1 | J205: 9585 | L205: 893
A206: 197 | B206: 435 - INNOVATION ACADEMY Charter School - LEXINGTON pupils | C206: 435301155 | D206: 435 | E206: 301 | F206: 155 | G206: 1 | H206: 1 | J206: 7875 | L206: 893
... 567 more rows

Sheet distinfo (hidden)
A1: Massachusetts Department of Elementary and Secondary Education
A2: Office of School Finance
A3: District Wage Adjustment Factor
F5: Hold
F6: Harmless
C7: Op | F7: Status
A8: Lea | B8: District | C8: Status | D8: WAF | F8: 1 - yes
A10: 1 | B10: ABINGTON | C10: 1 | D10: 1.027 | F10: 0
A11: 2 | B11: ACTON | C11: 0 | D11: 1.044 | F11: 0
A12: 3 | B12: ACUSHNET | C12: 1 | D12: 1 | F12: 0
A13: 4 | B13: ADAMS | C13: 0 | D13: 1 | F13: 0
A14: 5 | B14: AGAWAM | C14: 1 | D14: 1 | F14: 0
A15: 6 | B15: ALFORD | C15: 0 | D15: 1 | F15: 0
A16: 7 | B16: AMESBURY | C16: 1 | D16: 1 | F16: 0
A17: 8 | B17: AMHERST | C17: 1 | D17: 1 | F17: 0
A18: 9 | B18: ANDOVER | C18: 1 | D18: 1.078 | F18: 0
A19: 10 | B19: ARLINGTON | C19: 1 | D19: 1.033 | F19: 0
A20: 11 | B20: ASHBURNHAM | C20: 0 | D20: 1 | F20: 0
A21: 12 | B21: ASHBY | C21: 0 | D21: 1 | F21: 0
A22: 13 | B22: ASHFIELD | C22: 0 | D22: 1 | F22: 0
A23: 14 | B23: ASHLAND | C23: 1 | D23: 1.023 | F23: 0
A24: 15 | B24: ATHOL | C24: 0 | D24: 1 | F24: 0
A25: 16 | B25: ATTLEBORO | C25: 1 | D25: 1 | F25: 0
A26: 17 | B26: AUBURN | C26: 1 | D26: 1 | F26: 1
A27: 18 | B27: AVON | C27: 1 | D27: 1 | F27: 0
A28: 19 | B28: AYER | C28: 0 | D28: 1 | F28: 0
A29: 20 | B29: BARNSTABLE | C29: 1 | D29: 1 | F29: 0
A30: 21 | B30: BARRE | C30: 0 | D30: 1 | F30: 0
A31: 22 | B31: BECKET | C31: 0 | D31: 1 | F31: 0
A32: 23 | B32: BEDFORD | C32: 1 | D32: 1.08 | F32: 0
A33: 24 | B33: BELCHERTOWN | C33: 1 | D33: 1 | F33: 0
A34: 25 | B34: BELLINGHAM | C34: 1 | D34: 1 | F34: 0
A35: 26 | B35: BELMONT | C35: 1 | D35: 1.036 | F35: 0
A36: 27 | B36: BERKLEY | C36: 1 | D36: 1 | F36: 0
A37: 28 | B37: BERLIN | C37: 1 | D37: 1.023 | F37: 0
A38: 29 | B38: BERNARDSTON | C38: 0 | D38: 1 | F38: 0
A39: 30 | B39: BEVERLY | C39: 1 | D39: 1 | F39: 0
A40: 31 | B40: BILLERICA | C40: 1 | D40: 1.011 | F40: 0
A41: 32 | B41: BLACKSTONE | C41: 0 | D41: 1 | F41: 1
A42: 33 | B42: BLANDFORD | C42: 0 | D42: 1 | F42: 0
A43: 34 | B43: BOLTON | C43: 0 | D43: 1.042 | F43: 0
A44: 35 | B44: BOSTON | C44: 1 | D44: 1.077 | F44: 0
A45: 36 | B45: BOURNE | C45: 1 | D45: 1 | F45: 0
A46: 37 | B46: BOXBOROUGH | C46: 0 | D46: 1.122 | F46: 0
A47: 38 | B47: BOXFORD | C47: 1 | D47: 1.04 | F47: 0
A48: 39 | B48: BOYLSTON | C48: 1 | D48: 1 | F48: 0
A49: 40 | B49: BRAINTREE | C49: 1 | D49: 1.039 | F49: 0
A50: 41 | B50: BREWSTER | C50: 1 | D50: 1 | F50: 0
A51: 42 | B51: BRIDGEWATER | C51: 0 | D51: 1 | F51: 1
A52: 43 | B52: BRIMFIELD | C52: 1 | D52: 1 | F52: 0
A53: 44 | B53: BROCKTON | C53: 1 | D53: 1 | F53: 0
A54: 45 | B54: BROOKFIELD | C54: 1 | D54: 1 | F54: 0
A55: 46 | B55: BROOKLINE | C55: 1 | D55: 1.055 | F55: 0
A56: 47 | B56: BUCKLAND | C56: 0 | D56: 1 | F56: 0
A57: 48 | B57: BURLINGTON | C57: 1 | D57: 1.078 | F57: 0
A58: 49 | B58: CAMBRIDGE | C58: 1 | D58: 1.093 | F58: 1
A59: 50 | B59: CANTON | C59: 1 | D59: 1.058 | F59: 0
A60: 51 | B60: CARLISLE | C60: 1 | D60: 1.048 | F60: 0
A61: 52 | B61: CARVER | C61: 1 | D61: 1.024 | F61: 0
A62: 53 | B62: CHARLEMONT | C62: 0 | D62: 1 | F62: 0
A63: 54 | B63: CHARLTON | C63: 0 | D63: 1 | F63: 0
A64: 55 | B64: CHATHAM | C64: 0 | D64: 1 | F64: 0
A65: 56 | B65: CHELMSFORD | C65: 1 | D65: 1.009 | F65: 0
A66: 57 | B66: CHELSEA | C66: 1 | D66: 1.038 | F66: 1
A67: 58 | B67: CHESHIRE | C67: 0 | D67: 1 | F67: 0
A68: 59 | B68: CHESTER | C68: 0 | D68: 1 | F68: 0
A69: 60 | B69: CHESTERFIELD | C69: 0 | D69: 1 | F69: 0
A70: 61 | B70: CHICOPEE | C70: 1 | D70: 1 | F70: 0
A71: 62 | B71: CHILMARK | C71: 0 | D71: 1 | F71: 0
A72: 63 | B72: CLARKSBURG | C72: 1 | D72: 1 | F72: 0
A73: 64 | B73: CLINTON | C73: 1 | D73: 1 | F73: 1
A74: 65 | B74: COHASSET | C74: 1 | D74: 1.024 | F74: 0
A75: 66 | B75: COLRAIN | C75: 0 | D75: 1 | F75: 0
A76: 67 | B76: CONCORD | C76: 1 | D76: 1.055 | F76: 0
A77: 68 | B77: CONWAY | C77: 1 | D77: 1 | F77: 0
A78: 69 | B78: CUMMINGTON | C78: 0 | D78: 1 | F78: 0
A79: 70 | B79: DALTON | C79: 0 | D79: 1 | F79: 0
A80: 71 | B80: DANVERS | C80: 1 | D80: 1 | F80: 0
A81: 72 | B81: DARTMOUTH | C81: 1 | D81: 1 | F81: 0
A82: 73 | B82: DEDHAM | C82: 1 | D82: 1.034 | F82: 0
A83: 74 | B83: DEERFIELD | C83: 1 | D83: 1 | F83: 0
A84: 75 | B84: DENNIS | C84: 0 | D84: 1 | F84: 0
A85: 76 | B85: DIGHTON | C85: 0 | D85: 1 | F85: 0
A86: 77 | B86: DOUGLAS | C86: 1 | D86: 1 | F86: 0
A87: 78 | B87: DOVER | C87: 1 | D87: 1.048 | F87: 0
A88: 79 | B88: DRACUT | C88: 1 | D88: 1 | F88: 0
A89: 80 | B89: DUDLEY | C89: 0 | D89: 1 | F89: 0
A90: 81 | B90: DUNSTABLE | C90: 0 | D90: 1 | F90: 0
A91: 82 | B91: DUXBURY | C91: 1 | D91: 1.035 | F91: 0
A92: 83 | B92: EAST BRIDGEWATER | C92: 1 | D92: 1 | F92: 0
A93: 84 | B93: EAST BROOKFIELD | C93: 0 | D93: 1 | F93: 0
A94: 85 | B94: EASTHAM | C94: 1 | D94: 1 | F94: 0
A95: 86 | B95: EASTHAMPTON | C95: 1 | D95: 1 | F95: 0
A96: 87 | B96: EAST LONGMEADOW | C96: 1 | D96: 1 | F96: 0
A97: 88 | B97: EASTON | C97: 1 | D97: 1 | F97: 0
A98: 89 | B98: EDGARTOWN | C98: 1 | D98: 1 | F98: 0
A99: 90 | B99: EGREMONT | C99: 0 | D99: 1 | F99: 0
A100: 91 | B100: ERVING | C100: 1 | D100: 1 | F100: 0
A101: 92 | B101: ESSEX | C101: 0 | D101: 1.031 | F101: 0
A102: 93 | B102: EVERETT | C102: 1 | D102: 1.042 | F102: 1
A103: 94 | B103: FAIRHAVEN | C103: 1 | D103: 1 | F103: 0
A104: 95 | B104: FALL RIVER | C104: 1 | D104: 1 | F104: 0
A105: 96 | B105: FALMOUTH | C105: 1 | D105: 1 | F105: 0
A106: 97 | B106: FITCHBURG | C106: 1 | D106: 1 | F106: 0
A107: 98 | B107: FLORIDA | C107: 1 | D107: 1 | F107: 0
A108: 99 | B108: FOXBOROUGH | C108: 1 | D108: 1.05 | F108: 0
A109: 100 | B109: FRAMINGHAM | C109: 1 | D109: 1.054 | F109: 1
A110: 101 | B110: FRANKLIN | C110: 1 | D110: 1.044 | F110: 0
A111: 102 | B111: FREETOWN | C111: 0 | D111: 1 | F111: 0
A112: 103 | B112: GARDNER | C112: 1 | D112: 1 | F112: 0
A113: 104 | B113: AQUINNAH | C113: 0 | D113: 1 | F113: 0
A114: 105 | B114: GEORGETOWN | C114: 1 | D114: 1 | F114: 0
A115: 106 | B115: GILL | C115: 0 | D115: 1 | F115: 0
A116: 107 | B116: GLOUCESTER | C116: 1 | D116: 1.039 | F116: 0
A117: 108 | B117: GOSHEN | C117: 0 | D117: 1 | F117: 0
A118: 109 | B118: GOSNOLD | C118: 0 | D118: 1 | F118: 0
A119: 110 | B119: GRAFTON | C119: 1 | D119: 1 | F119: 0
A120: 111 | B120: GRANBY | C120: 1 | D120: 1 | F120: 0
A121: 112 | B121: GRANVILLE | C121: 0 | D121: 1 | F121: 0
A122: 113 | B122: GREAT BARRINGTON | C122: 0 | D122: 1 | F122: 0
A123: 114 | B123: GREENFIELD | C123: 1 | D123: 1 | F123: 0
A124: 115 | B124: GROTON | C124: 0 | D124: 1 | F124: 0
A125: 116 | B125: GROVELAND | C125: 0 | D125: 1 | F125: 0
A126: 117 | B126: HADLEY | C126: 1 | D126: 1 | F126: 0
A127: 118 | B127: HALIFAX | C127: 1 | D127: 1.021 | F127: 0
A128: 119 | B128: HAMILTON | C128: 0 | D128: 1.033 | F128: 0
A129: 120 | B129: HAMPDEN | C129: 0 | D129: 1 | F129: 0
A130: 121 | B130: HANCOCK | C130: 1 | D130: 1 | F130: 0
A131: 122 | B131: HANOVER | C131: 1 | D131: 1.029 | F131: 0
A132: 123 | B132: HANSON | C132: 0 | D132: 1 | F132: 0
A133: 124 | B133: HARDWICK | C133: 0 | D133: 1 | F133: 0
A134: 125 | B134: HARVARD | C134: 1 | D134: 1.01 | F134: 0
A135: 126 | B135: HARWICH | C135: 0 | D135: 1 | F135: 0
A136: 127 | B136: HATFIELD | C136: 1 | D136: 1 | F136: 0
A137: 128 | B137: HAVERHILL | C137: 1 | D137: 1 | F137: 0
A138: 129 | B138: HAWLEY | C138: 0 | D138: 1 | F138: 0
A139: 130 | B139: HEATH | C139: 0 | D139: 1 | F139: 0
A140: 131 | B140: HINGHAM | C140: 1 | D140: 1.037 | F140: 0
A141: 132 | B141: HINSDALE | C141: 0 | D141: 1 | F141: 0
A142: 133 | B142: HOLBROOK | C142: 1 | D142: 1.036 | F142: 1
A143: 134 | B143: HOLDEN | C143: 0 | D143: 1 | F143: 1
A144: 135 | B144: HOLLAND | C144: 1 | D144: 1 | F144: 0
A145: 136 | B145: HOLLISTON | C145: 1 | D145: 1.046 | F145: 0
A146: 137 | B146: HOLYOKE | C146: 1 | D146: 1 | F146: 0
A147: 138 | B147: HOPEDALE | C147: 1 | D147: 1.032 | F147: 0
A148: 139 | B148: HOPKINTON | C148: 1 | D148: 1.086 | F148: 0
A149: 140 | B149: HUBBARDSTON | C149: 0 | D149: 1 | F149: 0
A150: 141 | B150: HUDSON | C150: 1 | D150: 1.042 | F150: 0
A151: 142 | B151: HULL | C151: 1 | D151: 1.024 | F151: 0
A152: 143 | B152: HUNTINGTON | C152: 0 | D152: 1 | F152: 0
A153: 144 | B153: IPSWICH | C153: 1 | D153: 1.048 | F153: 0
A154: 145 | B154: KINGSTON | C154: 1 | D154: 1.024 | F154: 0
A155: 146 | B155: LAKEVILLE | C155: 0 | D155: 1 | F155: 0
A156: 147 | B156: LANCASTER | C156: 0 | D156: 1 | F156: 1
A157: 148 | B157: LANESBOROUGH | C157: 1 | D157: 1 | F157: 0
A158: 149 | B158: LAWRENCE | C158: 1 | D158: 1 | F158: 0
A159: 150 | B159: LEE | C159: 1 | D159: 1 | F159: 0
A160: 151 | B160: LEICESTER | C160: 1 | D160: 1 | F160: 0
A161: 152 | B161: LENOX | C161: 1 | D161: 1 | F161: 0
A162: 153 | B162: LEOMINSTER | C162: 1 | D162: 1 | F162: 0
A163: 154 | B163: LEVERETT | C163: 1 | D163: 1 | F163: 0
A164: 155 | B164: LEXINGTON | C164: 1 | D164: 1.091 | F164: 0
A165: 156 | B165: LEYDEN | C165: 0 | D165: 1 | F165: 0
A166: 157 | B166: LINCOLN | C166: 1 | D166: 1.053 | F166: 0
A167: 158 | B167: LITTLETON | C167: 1 | D167: 1.027 | F167: 0
A168: 159 | B168: LONGMEADOW | C168: 1 | D168: 1 | F168: 0
A169: 160 | B169: LOWELL | C169: 1 | D169: 1 | F169: 0
A170: 161 | B170: LUDLOW | C170: 1 | D170: 1 | F170: 0
A171: 162 | B171: LUNENBURG | C171: 1 | D171: 1 | F171: 0
A172: 163 | B172: LYNN | C172: 1 | D172: 1 | F172: 1
A173: 164 | B173: LYNNFIELD | C173: 1 | D173: 1.034 | F173: 0
A174: 165 | B174: MALDEN | C174: 1 | D174: 1.034 | F174: 0
A175: 166 | B175: MANCHESTER | C175: 0 | D175: 1.037 | F175: 0
A176: 167 | B176: MANSFIELD | C176: 1 | D176: 1.069 | F176: 0
A177: 168 | B177: MARBLEHEAD | C177: 1 | D177: 1 | F177: 0
A178: 169 | B178: MARION | C178: 1 | D178: 1 | F178: 0
A179: 170 | B179: MARLBOROUGH | C179: 1 | D179: 1.065 | F179: 1
A180: 171 | B180: MARSHFIELD | C180: 1 | D180: 1.027 | F180: 0
A181: 172 | B181: MASHPEE | C181: 1 | D181: 1 | F181: 0
A182: 173 | B182: MATTAPOISETT | C182: 1 | D182: 1 | F182: 0
A183: 174 | B183: MAYNARD | C183: 1 | D183: 1.061 | F183: 1
A184: 175 | B184: MEDFIELD | C184: 1 | D184: 1.033 | F184: 0
A185: 176 | B185: MEDFORD | C185: 1 | D185: 1.042 | F185: 0
A186: 177 | B186: MEDWAY | C186: 1 | D186: 1.033 | F186: 0
A187: 178 | B187: MELROSE | C187: 1 | D187: 1.032 | F187: 0
A188: 179 | B188: MENDON | C188: 0 | D188: 1.019 | F188: 0
A189: 180 | B189: MERRIMAC | C189: 0 | D189: 1 | F189: 0
A190: 181 | B190: METHUEN | C190: 1 | D190: 1 | F190: 1
A191: 182 | B191: MIDDLEBOROUGH | C191: 1 | D191: 1 | F191: 0
A192: 183 | B192: MIDDLEFIELD | C192: 0 | D192: 1 | F192: 0
A193: 184 | B193: MIDDLETON | C193: 1 | D193: 1.038 | F193: 0
A194: 185 | B194: MILFORD | C194: 1 | D194: 1.048 | F194: 0
A195: 186 | B195: MILLBURY | C195: 1 | D195: 1 | F195: 0
A196: 187 | B196: MILLIS | C196: 1 | D196: 1.024 | F196: 0
A197: 188 | B197: MILLVILLE | C197: 0 | D197: 1 | F197: 1
A198: 189 | B198: MILTON | C198: 1 | D198: 1.036 | F198: 0
A199: 190 | B199: MONROE | C199: 0 | D199: 1 | F199: 0
A200: 191 | B200: MONSON | C200: 1 | D200: 1 | F200: 0
A201: 192 | B201: MONTAGUE | C201: 0 | D201: 1 | F201: 0
A202: 193 | B202: MONTEREY | C202: 0 | D202: 1 | F202: 0
... 249 more rows

Sheet fnd enro explain (hidden)
A1: Massachusetts Department of Education
A2: Office of School Finance
A3: FOUNDATION ENROLLMENT | M3: 2016-08-17
A5: Foundation enrollment is the total headcount of pupils in grades PK - 12. Enrollment is broken into two categories,
A6: regular education pupils or English language learners (ELL). Pupils are further divided into program groups: pre-
A7: kindergarten; half-time kindergarten; full-time kindergarten; elementary, grades 1 to 5; middle school, grades 6
A8: through 8; or high school, grades 9 through 12.
A10: Foundation enrollment considers PK and K2 to be half day programs. The PK and K2 rates are essentially half the cost
A11: of KF. The headcount is divided by two, rounded to the nearest whole number, then folded into the total enrollment.
A12: PK enrollment is not included in the SPED FTE increment.
A14: FY15 marks the first year all PK enrollment was included. In prior years PK enrollment included only SPED and
A15: role model enrollment.
A17: Foundation enrollment does not use actual special education enrollment. The SPED increment FTE is
A18: determined by formula. The formula determines SPED FTE to be 3.75% of grade K - 12 enrollment.
A20: Prior to FY17 October SIMS was the sole source for foundation enrollment. In FY16 six (6) charter schools
A21: did not use SIMS to report their their low income enrollment. For these districts, prior year low income
A22: percentages were used to project their low income foundation enrollment. The October SIMS was used for the remaining
A23: schools.
A25: In FY17 DESE transistioned to the ECODIS low income model. ECODIS low income is sourced from the
A26: Department of Health and Human Services. Low income status is given to pupils enrolled in one or more
A27: public assistence program, specifically SNAP, TANF, Medicaid, and DCF foster care. This model is NOT
A28: what is represented herein. The low income foundation enrollment in this file is derived using cohort
A29: percentages from previous fiscal years.

Sheet fnd enro (hidden)
S1: Source: 17 - Q2 fnd enro fy16pct
A6: FOUNDATION ENROLLMENT | S6: SIMS OCTOBER 1 DATA
C7: Regular Education | I7: Sped | K7: LEP | O7: Low Income | Q7: TOTAL | U7: Regular Education | AA7: LEP | AD7: Voke | AE7: Low Income | AK7: Cha | AL7: Loc | AM7: Sending
A8: chalocsend | B8: charter school | C8: PK | D8: K2 | E8: K | F8: G1-5 | G8: G6-8 | H8: G9-12 | I8: In | J8: Tuit | K8: PK | L8: K2 | M8: GKF-12 | N8: Voke | O8: G1-8 | P8: Rest | Q8: Enro | S8: chalocsend | T8: charter school | U8: PK | V8: K2 | W8: K | X8: G1-5 | Y8: G6-8 | Z8: G9-12 | AA8: PK | AB8: K2 | AC8: GKF-12 | AD8: All | AE8: G1-8 | AF8: PK | AG8: K2 | AH8: KF | AI8: G9-12 | AK8: LEA | AL8: LEA | AM8: LEA
A10: =S10 -> 409201201 | B10: =T10 -> ALMA DEL MAR | C10: =ROUND(U10,0) -> 0 | D10: 0 | E10: 27 | F10: 191 | G10: 40 | H10: 0 | I10: =ROUND(0.0375*(SUM(E10:H10)+ROUND(D10*0.5,4)+ROUND(L10*0.5,4)+M10),4)+ROUND((0.0475)*N10,4) -> 10.65 | K10: =ROUND(AA10,0) -> 0 | L10: =ROUND(AB10,0) -> 0 | M10: =ROUND(AC10,0) -> 26 | N10: =ROUND(AD10,0) -> 0 | O10: =ROUND(AE10,0) -> 193 | P10: =ROUND((AF10+AG10)/2,0)+ROUND(AH10+AI10,0) -> 31 | Q10: =SUM(E10:H10)+M10+N10+ROUND(C10*0.5,0)+ROUND(D10*0.5,0)+ROUND(K10*0.5,0)+ROUND(L10*0.5,0) -> 284 | S10: 409201201 | T10: ALMA DEL MAR | U10: 0 | V10: 0 | W10: 27 | X10: 191 | Y10: 40 | Z10: 0 | AA10: 0 | AB10: 0 | AC10: 26 | AD10: 0 | AE10: 193 | AF10: 0 | AG10: 0 | AH10: 31 | AI10: 0 | AK10: 409 | AL10: 201 | AM10: 201
A11: =S11 -> 410035035 | B11: =T11 -> EXCEL ACADEMY | C11: =ROUND(U11,0) -> 0 | D11: =ROUND(V11,0) -> 0 | E11: =ROUND(W11,0) -> 0 | F11: =ROUND(X11,0) -> 42 | G11: =ROUND(Y11,0) -> 192 | H11: =ROUND(Z11,0) -> 36 | I11: =ROUND(0.0375*(SUM(E11:H11)+ROUND(D11*0.5,4)+ROUND(L11*0.5,4)+M11),4)+ROUND((0.0475)*N11,4) -> 12.3375 | K11: =ROUND(AA11,0) -> 0 | L11: =ROUND(AB11,0) -> 0 | M11: =ROUND(AC11,0) -> 59 | N11: =ROUND(AD11,0) -> 0 | O11: =ROUND(AE11,0) -> 227 | P11: =ROUND((AF11+AG11)/2,0)+ROUND(AH11+AI11,0) -> 33 | Q11: =SUM(E11:H11)+M11+N11+ROUND(C11*0.5,0)+ROUND(D11*0.5,0)+ROUND(K11*0.5,0)+ROUND(L11*0.5,0) -> 329 | S11: 410035035 | T11: EXCEL ACADEMY | U11: 0 | V11: 0 | W11: 0 | X11: 42 | Y11: 192 | Z11: 36 | AA11: 0 | AB11: 0 | AC11: 59 | AD11: 0 | AE11: 227 | AF11: 0 | AG11: 0 | AH11: 0 | AI11: 33 | AK11: 410 | AL11: 35 | AM11: 35
A12: 410035044 | B12: EXCEL ACADEMY | C12: 0 | D12: 0 | E12: 0 | F12: 0 | G12: 0 | H12: 1 | I12: 0.0375 | K12: 0 | L12: 0 | M12: 0 | N12: 0 | O12: 0 | P12: 1 | Q12: 1 | S12: 410035044 | T12: EXCEL ACADEMY | U12: 0 | V12: 0 | W12: 0 | X12: 0 | Y12: 0 | Z12: 1 | AA12: 0 | AB12: 0 | AC12: 0 | AD12: 0 | AE12: 0 | AF12: 0 | AG12: 0 | AH12: 0 | AI12: 1 | AK12: 410 | AL12: 35 | AM12: 44
A13: 410035057 | B13: EXCEL ACADEMY | C13: 0 | D13: 0 | E13: 0 | F13: 35 | G13: 77 | H13: 59 | I13: 7.5 | K13: 0 | L13: 0 | M13: 29 | N13: 0 | O13: 104 | P13: 48 | Q13: 200 | S13: 410035057 | T13: EXCEL ACADEMY | U13: 0 | V13: 0 | W13: 0 | X13: 35 | Y13: 77 | Z13: 59 | AA13: 0 | AB13: 0 | AC13: 29 | AD13: 0 | AE13: 104 | AF13: 0 | AG13: 0 | AH13: 0 | AI13: 48 | AK13: 410 | AL13: 35 | AM13: 57
A14: 410035093 | B14: EXCEL ACADEMY | C14: 0 | D14: 0 | E14: 0 | F14: 0 | G14: 3 | H14: 2 | I14: 0.1875 | K14: 0 | L14: 0 | M14: 0 | N14: 0 | O14: 3 | P14: 2 | Q14: 5 | S14: 410035093 | T14: EXCEL ACADEMY | U14: 0 | V14: 0 | W14: 0 | X14: 0 | Y14: 3 | Z14: 2 | AA14: 0 | AB14: 0 | AC14: 0 | AD14: 0 | AE14: 3 | AF14: 0 | AG14: 0 | AH14: 0 | AI14: 2 | AK14: 410 | AL14: 35 | AM14: 93
A15: 410035155 | B15: EXCEL ACADEMY | C15: 0 | D15: 0 | E15: 0 | F15: 0 | G15: 0 | H15: 1 | I15: 0.0375 | K15: 0 | L15: 0 | M15: 0 | N15: 0 | O15: 0 | P15: 1 | Q15: 1 | S15: 410035155 | T15: EXCEL ACADEMY | U15: 0 | V15: 0 | W15: 0 | X15: 0 | Y15: 0 | Z15: 1 | AA15: 0 | AB15: 0 | AC15: 0 | AD15: 0 | AE15: 0 | AF15: 0 | AG15: 0 | AH15: 0 | AI15: 1 | AK15: 410 | AL15: 35 | AM15: 155
A16: 410035160 | B16: EXCEL ACADEMY | C16: 0 | D16: 0 | E16: 0 | F16: 0 | G16: 0 | H16: 1 | I16: 0.0375 | K16: 0 | L16: 0 | M16: 0 | N16: 0 | O16: 0 | P16: 1 | Q16: 1 | S16: 410035160 | T16: EXCEL ACADEMY | U16: 0 | V16: 0 | W16: 0 | X16: 0 | Y16: 0 | Z16: 1 | AA16: 0 | AB16: 0 | AC16: 0 | AD16: 0 | AE16: 0 | AF16: 0 | AG16: 0 | AH16: 0 | AI16: 1 | AK16: 410 | AL16: 35 | AM16: 160
A17: 410035163 | B17: EXCEL ACADEMY | C17: 0 | D17: 0 | E17: 0 | F17: 0 | G17: 3 | H17: 1 | I17: 0.1875 | K17: 0 | L17: 0 | M17: 1 | N17: 0 | O17: 2 | P17: 1 | Q17: 5 | S17: 410035163 | T17: EXCEL ACADEMY | U17: 0 | V17: 0 | W17: 0 | X17: 0 | Y17: 3 | Z17: 1 | AA17: 0 | AB17: 0 | AC17: 1 | AD17: 0 | AE17: 2 | AF17: 0 | AG17: 0 | AH17: 0 | AI17: 1 | AK17: 410 | AL17: 35 | AM17: 163
A18: 410035248 | B18: EXCEL ACADEMY | C18: 0 | D18: 0 | E18: 0 | F18: 2 | G18: 6 | H18: 4 | I18: 0.525 | K18: 0 | L18: 0 | M18: 2 | N18: 0 | O18: 7 | P18: 3 | Q18: 14 | S18: 410035248 | T18: EXCEL ACADEMY | U18: 0 | V18: 0 | W18: 0 | X18: 2 | Y18: 6 | Z18: 4 | AA18: 0 | AB18: 0 | AC18: 2 | AD18: 0 | AE18: 7 | AF18: 0 | AG18: 0 | AH18: 0 | AI18: 3 | AK18: 410 | AL18: 35 | AM18: 248
A19: 410035308 | B19: EXCEL ACADEMY | C19: 0 | D19: 0 | E19: 0 | F19: 0 | G19: 0 | H19: 1 | I19: 0.0375 | K19: 0 | L19: 0 | M19: 0 | N19: 0 | O19: 0 | P19: 1 | Q19: 1 | S19: 410035308 | T19: EXCEL ACADEMY | U19: 0 | V19: 0 | W19: 0 | X19: 0 | Y19: 0 | Z19: 1 | AA19: 0 | AB19: 0 | AC19: 0 | AD19: 0 | AE19: 0 | AF19: 0 | AG19: 0 | AH19: 0 | AI19: 1 | AK19: 410 | AL19: 35 | AM19: 308
A20: 410035346 | B20: EXCEL ACADEMY | C20: 0 | D20: 0 | E20: 0 | F20: 0 | G20: 5 | H20: 1 | I20: 0.225 | K20: 0 | L20: 0 | M20: 0 | N20: 0 | O20: 2 | P20: 1 | Q20: 6 | S20: 410035346 | T20: EXCEL ACADEMY | U20: 0 | V20: 0 | W20: 0 | X20: 0 | Y20: 5 | Z20: 1 | AA20: 0 | AB20: 0 | AC20: 0 | AD20: 0 | AE20: 2 | AF20: 0 | AG20: 0 | AH20: 0 | AI20: 1 | AK20: 410 | AL20: 35 | AM20: 346
A21: 410057035 | B21: EXCEL ACADEMY | C21: 0 | D21: 0 | E21: 0 | F21: 0 | G21: 4 | H21: 0 | I21: 0.1875 | K21: 0 | L21: 0 | M21: 1 | N21: 0 | O21: 1 | P21: 0 | Q21: 5 | S21: 410057035 | T21: EXCEL ACADEMY | U21: 0 | V21: 0 | W21: 0 | X21: 0 | Y21: 4 | Z21: 0 | AA21: 0 | AB21: 0 | AC21: 1 | AD21: 0 | AE21: 1 | AF21: 0 | AG21: 0 | AH21: 0 | AI21: 0 | AK21: 410 | AL21: 57 | AM21: 35
A22: 410057057 | B22: EXCEL ACADEMY | C22: 0 | D22: 0 | E22: 0 | F22: 44 | G22: 151 | H22: 0 | I22: 8.0625 | K22: 0 | L22: 0 | M22: 20 | N22: 0 | O22: 179 | P22: 0 | Q22: 215 | S22: 410057057 | T22: EXCEL ACADEMY | U22: 0 | V22: 0 | W22: 0 | X22: 44 | Y22: 151 | Z22: 0 | AA22: 0 | AB22: 0 | AC22: 20 | AD22: 0 | AE22: 179 | AF22: 0 | AG22: 0 | AH22: 0 | AI22: 0 | AK22: 410 | AL22: 57 | AM22: 57
A23: 410057248 | B23: EXCEL ACADEMY | C23: 0 | D23: 0 | E23: 0 | F23: 0 | G23: 2 | H23: 0 | I23: 0.075 | K23: 0 | L23: 0 | M23: 0 | N23: 0 | O23: 2 | P23: 0 | Q23: 2 | S23: 410057248 | T23: EXCEL ACADEMY | U23: 0 | V23: 0 | W23: 0 | X23: 0 | Y23: 2 | Z23: 0 | AA23: 0 | AB23: 0 | AC23: 0 | AD23: 0 | AE23: 2 | AF23: 0 | AG23: 0 | AH23: 0 | AI23: 0 | AK23: 410 | AL23: 57 | AM23: 248
A24: 412035035 | B24: ACADEMY OF THE PACIFIC RIM | C24: 0 | D24: 0 | E24: 0 | F24: 60 | G24: 199 | H24: 204 | I24: 18.675 | K24: 0 | L24: 0 | M24: 35 | N24: 0 | O24: 172 | P24: 108 | Q24: 498 | S24: 412035035 | T24: ACADEMY OF THE PACIFIC RIM | U24: 0 | V24: 0 | W24: 0 | X24: 60 | Y24: 199 | Z24: 204 | AA24: 0 | AB24: 0 | AC24: 35 | AD24: 0 | AE24: 172 | AF24: 0 | AG24: 0 | AH24: 0 | AI24: 108 | AK24: 412 | AL24: 35 | AM24: 35
A25: 412035044 | B25: ACADEMY OF THE PACIFIC RIM | C25: 0 | D25: 0 | E25: 0 | F25: 1 | G25: 1 | H25: 1 | I25: 0.1125 | K25: 0 | L25: 0 | M25: 0 | N25: 0 | O25: 2 | P25: 0 | Q25: 3 | S25: 412035044 | T25: ACADEMY OF THE PACIFIC RIM | U25: 0 | V25: 0 | W25: 0 | X25: 1 | Y25: 1 | Z25: 1 | AA25: 0 | AB25: 0 | AC25: 0 | AD25: 0 | AE25: 2 | AF25: 0 | AG25: 0 | AH25: 0 | AI25: 0 | AK25: 412 | AL25: 35 | AM25: 44
A26: 412035189 | B26: ACADEMY OF THE PACIFIC RIM | C26: 0 | D26: 0 | E26: 0 | F26: 0 | G26: 1 | H26: 1 | I26: 0.075 | K26: 0 | L26: 0 | M26: 0 | N26: 0 | O26: 0 | P26: 1 | Q26: 2 | S26: 412035189 | T26: ACADEMY OF THE PACIFIC RIM | U26: 0 | V26: 0 | W26: 0 | X26: 0 | Y26: 1 | Z26: 1 | AA26: 0 | AB26: 0 | AC26: 0 | AD26: 0 | AE26: 0 | AF26: 0 | AG26: 0 | AH26: 0 | AI26: 1 | AK26: 412 | AL26: 35 | AM26: 189
A27: 412035220 | B27: ACADEMY OF THE PACIFIC RIM | C27: 0 | D27: 0 | E27: 0 | F27: 0 | G27: 0 | H27: 3 | I27: 0.1125 | K27: 0 | L27: 0 | M27: 0 | N27: 0 | O27: 0 | P27: 3 | Q27: 3 | S27: 412035220 | T27: ACADEMY OF THE PACIFIC RIM | U27: 0 | V27: 0 | W27: 0 | X27: 0 | Y27: 0 | Z27: 3 | AA27: 0 | AB27: 0 | AC27: 0 | AD27: 0 | AE27: 0 | AF27: 0 | AG27: 0 | AH27: 0 | AI27: 3 | AK27: 412 | AL27: 35 | AM27: 220
A28: 412035244 | B28: ACADEMY OF THE PACIFIC RIM | C28: 0 | D28: 0 | E28: 0 | F28: 0 | G28: 4 | H28: 7 | I28: 0.4125 | K28: 0 | L28: 0 | M28: 0 | N28: 0 | O28: 3 | P28: 5 | Q28: 11 | S28: 412035244 | T28: ACADEMY OF THE PACIFIC RIM | U28: 0 | V28: 0 | W28: 0 | X28: 0 | Y28: 4 | Z28: 7 | AA28: 0 | AB28: 0 | AC28: 0 | AD28: 0 | AE28: 3 | AF28: 0 | AG28: 0 | AH28: 0 | AI28: 5 | AK28: 412 | AL28: 35 | AM28: 244
A29: 412035285 | B29: ACADEMY OF THE PACIFIC RIM | C29: 0 | D29: 0 | E29: 0 | F29: 1 | G29: 0 | H29: 1 | I29: 0.075 | K29: 0 | L29: 0 | M29: 0 | N29: 0 | O29: 1 | P29: 1 | Q29: 2 | S29: 412035285 | T29: ACADEMY OF THE PACIFIC RIM | U29: 0 | V29: 0 | W29: 0 | X29: 1 | Y29: 0 | Z29: 1 | AA29: 0 | AB29: 0 | AC29: 0 | AD29: 0 | AE29: 1 | AF29: 0 | AG29: 0 | AH29: 0 | AI29: 1 | AK29: 412 | AL29: 35 | AM29: 285
A30: 412035293 | B30: ACADEMY OF THE PACIFIC RIM | C30: 0 | D30: 0 | E30: 0 | F30: 0 | G30: 0 | H30: 1 | I30: 0.0375 | K30: 0 | L30: 0 | M30: 0 | N30: 0 | O30: 0 | P30: 1 | Q30: 1 | S30: 412035293 | T30: ACADEMY OF THE PACIFIC RIM | U30: 0 | V30: 0 | W30: 0 | X30: 0 | Y30: 0 | Z30: 1 | AA30: 0 | AB30: 0 | AC30: 0 | AD30: 0 | AE30: 0 | AF30: 0 | AG30: 0 | AH30: 0 | AI30: 1 | AK30: 412 | AL30: 35 | AM30: 293
A31: 412035314 | B31: ACADEMY OF THE PACIFIC RIM | C31: 0 | D31: 0 | E31: 0 | F31: 0 | G31: 1 | H31: 0 | I31: 0.0375 | K31: 0 | L31: 0 | M31: 0 | N31: 0 | O31: 1 | P31: 0 | Q31: 1 | S31: 412035314 | T31: ACADEMY OF THE PACIFIC RIM | U31: 0 | V31: 0 | W31: 0 | X31: 0 | Y31: 1 | Z31: 0 | AA31: 0 | AB31: 0 | AC31: 0 | AD31: 0 | AE31: 1 | AF31: 0 | AG31: 0 | AH31: 0 | AI31: 0 | AK31: 412 | AL31: 35 | AM31: 314
A32: 412035336 | B32: ACADEMY OF THE PACIFIC RIM | C32: 0 | D32: 0 | E32: 0 | F32: 0 | G32: 1 | H32: 2 | I32: 0.1125 | K32: 0 | L32: 0 | M32: 0 | N32: 0 | O32: 0 | P32: 0 | Q32: 3 | S32: 412035336 | T32: ACADEMY OF THE PACIFIC RIM | U32: 0 | V32: 0 | W32: 0 | X32: 0 | Y32: 1 | Z32: 2 | AA32: 0 | AB32: 0 | AC32: 0 | AD32: 0 | AE32: 0 | AF32: 0 | AG32: 0 | AH32: 0 | AI32: 0 | AK32: 412 | AL32: 35 | AM32: 336
A33: 413114024 | B33: FOUR RIVERS | C33: 0 | D33: 0 | E33: 0 | F33: 0 | G33: 1 | H33: 0 | I33: 0.0375 | K33: 0 | L33: 0 | M33: 0 | N33: 0 | O33: 0 | P33: 0 | Q33: 1 | S33: 413114024 | T33: FOUR RIVERS | U33: 0 | V33: 0 | W33: 0 | X33: 0 | Y33: 1 | Z33: 0 | AA33: 0 | AB33: 0 | AC33: 0 | AD33: 0 | AE33: 0 | AF33: 0 | AG33: 0 | AH33: 0 | AI33: 0 | AK33: 413 | AL33: 114 | AM33: 24
A34: 413114083 | B34: FOUR RIVERS | C34: 0 | D34: 0 | E34: 0 | F34: 0 | G34: 1 | H34: 0 | I34: 0.0375 | K34: 0 | L34: 0 | M34: 0 | N34: 0 | O34: 0 | P34: 0 | Q34: 1 | S34: 413114083 | T34: FOUR RIVERS | U34: 0 | V34: 0 | W34: 0 | X34: 0 | Y34: 1 | Z34: 0 | AA34: 0 | AB34: 0 | AC34: 0 | AD34: 0 | AE34: 0 | AF34: 0 | AG34: 0 | AH34: 0 | AI34: 0 | AK34: 413 | AL34: 114 | AM34: 83
A35: 413114091 | B35: FOUR RIVERS | C35: 0 | D35: 0 | E35: 0 | F35: 0 | G35: 1 | H35: 8 | I35: 0.3375 | K35: 0 | L35: 0 | M35: 0 | N35: 0 | O35: 0 | P35: 0 | Q35: 9 | S35: 413114091 | T35: FOUR RIVERS | U35: 0 | V35: 0 | W35: 0 | X35: 0 | Y35: 1 | Z35: 8 | AA35: 0 | AB35: 0 | AC35: 0 | AD35: 0 | AE35: 0 | AF35: 0 | AG35: 0 | AH35: 0 | AI35: 0 | AK35: 413 | AL35: 114 | AM35: 91
A36: 413114114 | B36: FOUR RIVERS | C36: 0 | D36: 0 | E36: 0 | F36: 0 | G36: 19 | H36: 43 | I36: 2.325 | K36: 0 | L36: 0 | M36: 0 | N36: 0 | O36: 4 | P36: 18 | Q36: 62 | S36: 413114114 | T36: FOUR RIVERS | U36: 0 | V36: 0 | W36: 0 | X36: 0 | Y36: 19 | Z36: 43 | AA36: 0 | AB36: 0 | AC36: 0 | AD36: 0 | AE36: 4 | AF36: 0 | AG36: 0 | AH36: 0 | AI36: 18 | AK36: 413 | AL36: 114 | AM36: 114
A37: 413114117 | B37: FOUR RIVERS | C37: 0 | D37: 0 | E37: 0 | F37: 0 | G37: 0 | H37: 1 | I37: 0.0375 | K37: 0 | L37: 0 | M37: 0 | N37: 0 | O37: 0 | P37: 1 | Q37: 1 | S37: 413114117 | T37: FOUR RIVERS | U37: 0 | V37: 0 | W37: 0 | X37: 0 | Y37: 0 | Z37: 1 | AA37: 0 | AB37: 0 | AC37: 0 | AD37: 0 | AE37: 0 | AF37: 0 | AG37: 0 | AH37: 0 | AI37: 1 | AK37: 413 | AL37: 114 | AM37: 117
A38: 413114210 | B38: FOUR RIVERS | C38: 0 | D38: 0 | E38: 0 | F38: 0 | G38: 0 | H38: 1 | I38: 0.0375 | K38: 0 | L38: 0 | M38: 0 | N38: 0 | O38: 0 | P38: 1 | Q38: 1 | S38: 413114210 | T38: FOUR RIVERS | U38: 0 | V38: 0 | W38: 0 | X38: 0 | Y38: 0 | Z38: 1 | AA38: 0 | AB38: 0 | AC38: 0 | AD38: 0 | AE38: 0 | AF38: 0 | AG38: 0 | AH38: 0 | AI38: 1 | AK38: 413 | AL38: 114 | AM38: 210
A39: 413114253 | B39: FOUR RIVERS | C39: 0 | D39: 0 | E39: 0 | F39: 0 | G39: 1 | H39: 1 | I39: 0.075 | K39: 0 | L39: 0 | M39: 0 | N39: 0 | O39: 0 | P39: 0 | Q39: 2 | S39: 413114253 | T39: FOUR RIVERS | U39: 0 | V39: 0 | W39: 0 | X39: 0 | Y39: 1 | Z39: 1 | AA39: 0 | AB39: 0 | AC39: 0 | AD39: 0 | AE39: 0 | AF39: 0 | AG39: 0 | AH39: 0 | AI39: 0 | AK39: 413 | AL39: 114 | AM39: 253
A40: 413114605 | B40: FOUR RIVERS | C40: 0 | D40: 0 | E40: 0 | F40: 0 | G40: 1 | H40: 1 | I40: 0.075 | K40: 0 | L40: 0 | M40: 0 | N40: 0 | O40: 0 | P40: 1 | Q40: 2 | S40: 413114605 | T40: FOUR RIVERS | U40: 0 | V40: 0 | W40: 0 | X40: 0 | Y40: 1 | Z40: 1 | AA40: 0 | AB40: 0 | AC40: 0 | AD40: 0 | AE40: 0 | AF40: 0 | AG40: 0 | AH40: 0 | AI40: 1 | AK40: 413 | AL40: 114 | AM40: 605
A41: 413114670 | B41: FOUR RIVERS | C41: 0 | D41: 0 | E41: 0 | F41: 0 | G41: 8 | H41: 11 | I41: 0.7125 | K41: 0 | L41: 0 | M41: 0 | N41: 0 | O41: 3 | P41: 3 | Q41: 19 | S41: 413114670 | T41: FOUR RIVERS | U41: 0 | V41: 0 | W41: 0 | X41: 0 | Y41: 8 | Z41: 11 | AA41: 0 | AB41: 0 | AC41: 0 | AD41: 0 | AE41: 3 | AF41: 0 | AG41: 0 | AH41: 0 | AI41: 3 | AK41: 413 | AL41: 114 | AM41: 670
A42: 413114674 | B42: FOUR RIVERS | C42: 0 | D42: 0 | E42: 0 | F42: 0 | G42: 10 | H42: 29 | I42: 1.4625 | K42: 0 | L42: 0 | M42: 0 | N42: 0 | O42: 3 | P42: 5 | Q42: 39 | S42: 413114674 | T42: FOUR RIVERS | U42: 0 | V42: 0 | W42: 0 | X42: 0 | Y42: 10 | Z42: 29 | AA42: 0 | AB42: 0 | AC42: 0 | AD42: 0 | AE42: 3 | AF42: 0 | AG42: 0 | AH42: 0 | AI42: 5 | AK42: 413 | AL42: 114 | AM42: 674
A43: 413114683 | B43: FOUR RIVERS | C43: 0 | D43: 0 | E43: 0 | F43: 0 | G43: 0 | H43: 3 | I43: 0.1125 | K43: 0 | L43: 0 | M43: 0 | N43: 0 | O43: 0 | P43: 0 | Q43: 3 | S43: 413114683 | T43: FOUR RIVERS | U43: 0 | V43: 0 | W43: 0 | X43: 0 | Y43: 0 | Z43: 3 | AA43: 0 | AB43: 0 | AC43: 0 | AD43: 0 | AE43: 0 | AF43: 0 | AG43: 0 | AH43: 0 | AI43: 0 | AK43: 413 | AL43: 114 | AM43: 683
A44: 413114717 | B44: FOUR RIVERS | C44: 0 | D44: 0 | E44: 0 | F44: 0 | G44: 19 | H44: 29 | I44: 1.8 | K44: 0 | L44: 0 | M44: 0 | N44: 0 | O44: 7 | P44: 10 | Q44: 48 | S44: 413114717 | T44: FOUR RIVERS | U44: 0 | V44: 0 | W44: 0 | X44: 0 | Y44: 19 | Z44: 29 | AA44: 0 | AB44: 0 | AC44: 0 | AD44: 0 | AE44: 7 | AF44: 0 | AG44: 0 | AH44: 0 | AI44: 10 | AK44: 413 | AL44: 114 | AM44: 717
A45: 413114750 | B45: FOUR RIVERS | C45: 0 | D45: 0 | E45: 0 | F45: 0 | G45: 5 | H45: 9 | I45: 0.525 | K45: 0 | L45: 0 | M45: 0 | N45: 0 | O45: 1 | P45: 3 | Q45: 14 | S45: 413114750 | T45: FOUR RIVERS | U45: 0 | V45: 0 | W45: 0 | X45: 0 | Y45: 5 | Z45: 9 | AA45: 0 | AB45: 0 | AC45: 0 | AD45: 0 | AE45: 1 | AF45: 0 | AG45: 0 | AH45: 0 | AI45: 3 | AK45: 413 | AL45: 114 | AM45: 750
A46: 413114755 | B46: FOUR RIVERS | C46: 0 | D46: 0 | E46: 0 | F46: 0 | G46: 7 | H46: 8 | I46: 0.5625 | K46: 0 | L46: 0 | M46: 0 | N46: 0 | O46: 1 | P46: 3 | Q46: 15 | S46: 413114755 | T46: FOUR RIVERS | U46: 0 | V46: 0 | W46: 0 | X46: 0 | Y46: 7 | Z46: 8 | AA46: 0 | AB46: 0 | AC46: 0 | AD46: 0 | AE46: 1 | AF46: 0 | AG46: 0 | AH46: 0 | AI46: 3 | AK46: 413 | AL46: 114 | AM46: 755
A47: 414603063 | B47: BERKSHIRE ARTS AND TECHNOLOGY | C47: 0 | D47: 0 | E47: 0 | F47: 0 | G47: 1 | H47: 2 | I47: 0.1125 | K47: 0 | L47: 0 | M47: 0 | N47: 0 | O47: 0 | P47: 2 | Q47: 3 | S47: 414603063 | T47: BERKSHIRE ARTS AND TECHNOLOGY | U47: 0 | V47: 0 | W47: 0 | X47: 0 | Y47: 1 | Z47: 2 | AA47: 0 | AB47: 0 | AC47: 0 | AD47: 0 | AE47: 0 | AF47: 0 | AG47: 0 | AH47: 0 | AI47: 2 | AK47: 414 | AL47: 603 | AM47: 63
A48: 414603098 | B48: BERKSHIRE ARTS AND TECHNOLOGY | C48: 0 | D48: 0 | E48: 0 | F48: 0 | G48: 2 | H48: 1 | I48: 0.1125 | K48: 0 | L48: 0 | M48: 0 | N48: 0 | O48: 0 | P48: 0 | Q48: 3 | S48: 414603098 | T48: BERKSHIRE ARTS AND TECHNOLOGY | U48: 0 | V48: 0 | W48: 0 | X48: 0 | Y48: 2 | Z48: 1 | AA48: 0 | AB48: 0 | AC48: 0 | AD48: 0 | AE48: 0 | AF48: 0 | AG48: 0 | AH48: 0 | AI48: 0 | AK48: 414 | AL48: 603 | AM48: 98
A49: 414603148 | B49: BERKSHIRE ARTS AND TECHNOLOGY | C49: 0 | D49: 0 | E49: 0 | F49: 0 | G49: 1 | H49: 0 | I49: 0.0375 | K49: 0 | L49: 0 | M49: 0 | N49: 0 | O49: 1 | P49: 0 | Q49: 1 | S49: 414603148 | T49: BERKSHIRE ARTS AND TECHNOLOGY | U49: 0 | V49: 0 | W49: 0 | X49: 0 | Y49: 1 | Z49: 0 | AA49: 0 | AB49: 0 | AC49: 0 | AD49: 0 | AE49: 1 | AF49: 0 | AG49: 0 | AH49: 0 | AI49: 0 | AK49: 414 | AL49: 603 | AM49: 148
A50: 414603150 | B50: BERKSHIRE ARTS AND TECHNOLOGY | C50: 0 | D50: 0 | E50: 0 | F50: 0 | G50: 0 | H50: 1 | I50: 0.0375 | K50: 0 | L50: 0 | M50: 0 | N50: 0 | O50: 0 | P50: 1 | Q50: 1 | S50: 414603150 | T50: BERKSHIRE ARTS AND TECHNOLOGY | U50: 0 | V50: 0 | W50: 0 | X50: 0 | Y50: 0 | Z50: 1 | AA50: 0 | AB50: 0 | AC50: 0 | AD50: 0 | AE50: 0 | AF50: 0 | AG50: 0 | AH50: 0 | AI50: 1 | AK50: 414 | AL50: 603 | AM50: 150
A51: 414603152 | B51: BERKSHIRE ARTS AND TECHNOLOGY | C51: 0 | D51: 0 | E51: 0 | F51: 0 | G51: 2 | H51: 0 | I51: 0.075 | K51: 0 | L51: 0 | M51: 0 | N51: 0 | O51: 0 | P51: 0 | Q51: 2 | S51: 414603152 | T51: BERKSHIRE ARTS AND TECHNOLOGY | U51: 0 | V51: 0 | W51: 0 | X51: 0 | Y51: 2 | Z51: 0 | AA51: 0 | AB51: 0 | AC51: 0 | AD51: 0 | AE51: 0 | AF51: 0 | AG51: 0 | AH51: 0 | AI51: 0 | AK51: 414 | AL51: 603 | AM51: 152
A52: 414603209 | B52: BERKSHIRE ARTS AND TECHNOLOGY | C52: 0 | D52: 0 | E52: 0 | F52: 0 | G52: 32 | H52: 23 | I52: 2.0625 | K52: 0 | L52: 0 | M52: 0 | N52: 0 | O52: 22 | P52: 16 | Q52: 55 | S52: 414603209 | T52: BERKSHIRE ARTS AND TECHNOLOGY | U52: 0 | V52: 0 | W52: 0 | X52: 0 | Y52: 32 | Z52: 23 | AA52: 0 | AB52: 0 | AC52: 0 | AD52: 0 | AE52: 22 | AF52: 0 | AG52: 0 | AH52: 0 | AI52: 16 | AK52: 414 | AL52: 603 | AM52: 209
A53: 414603236 | B53: BERKSHIRE ARTS AND TECHNOLOGY | C53: 0 | D53: 0 | E53: 0 | F53: 0 | G53: 103 | H53: 70 | I53: 6.7125 | K53: 0 | L53: 0 | M53: 6 | N53: 0 | O53: 71 | P53: 25 | Q53: 179 | S53: 414603236 | T53: BERKSHIRE ARTS AND TECHNOLOGY | U53: 0 | V53: 0 | W53: 0 | X53: 0 | Y53: 103 | Z53: 70 | AA53: 0 | AB53: 0 | AC53: 6 | AD53: 0 | AE53: 71 | AF53: 0 | AG53: 0 | AH53: 0 | AI53: 25 | AK53: 414 | AL53: 603 | AM53: 236
A54: 414603263 | B54: BERKSHIRE ARTS AND TECHNOLOGY | C54: 0 | D54: 0 | E54: 0 | F54: 0 | G54: 1 | H54: 2 | I54: 0.1125 | K54: 0 | L54: 0 | M54: 0 | N54: 0 | O54: 0 | P54: 1 | Q54: 3 | S54: 414603263 | T54: BERKSHIRE ARTS AND TECHNOLOGY | U54: 0 | V54: 0 | W54: 0 | X54: 0 | Y54: 1 | Z54: 2 | AA54: 0 | AB54: 0 | AC54: 0 | AD54: 0 | AE54: 0 | AF54: 0 | AG54: 0 | AH54: 0 | AI54: 1 | AK54: 414 | AL54: 603 | AM54: 263
A55: 414603349 | B55: BERKSHIRE ARTS AND TECHNOLOGY | C55: 0 | D55: 0 | E55: 0 | F55: 0 | G55: 0 | H55: 1 | I55: 0.0375 | K55: 0 | L55: 0 | M55: 0 | N55: 0 | O55: 0 | P55: 0 | Q55: 1 | S55: 414603349 | T55: BERKSHIRE ARTS AND TECHNOLOGY | U55: 0 | V55: 0 | W55: 0 | X55: 0 | Y55: 0 | Z55: 1 | AA55: 0 | AB55: 0 | AC55: 0 | AD55: 0 | AE55: 0 | AF55: 0 | AG55: 0 | AH55: 0 | AI55: 0 | AK55: 414 | AL55: 603 | AM55: 349
A56: 414603603 | B56: BERKSHIRE ARTS AND TECHNOLOGY | C56: 0 | D56: 0 | E56: 0 | F56: 0 | G56: 42 | H56: 30 | I56: 2.7 | K56: 0 | L56: 0 | M56: 0 | N56: 0 | O56: 25 | P56: 19 | Q56: 72 | S56: 414603603 | T56: BERKSHIRE ARTS AND TECHNOLOGY | U56: 0 | V56: 0 | W56: 0 | X56: 0 | Y56: 42 | Z56: 30 | AA56: 0 | AB56: 0 | AC56: 0 | AD56: 0 | AE56: 25 | AF56: 0 | AG56: 0 | AH56: 0 | AI56: 19 | AK56: 414 | AL56: 603 | AM56: 603
A57: 414603618 | B57: BERKSHIRE ARTS AND TECHNOLOGY | C57: 0 | D57: 0 | E57: 0 | F57: 0 | G57: 1 | H57: 0 | I57: 0.0375 | K57: 0 | L57: 0 | M57: 0 | N57: 0 | O57: 1 | P57: 0 | Q57: 1 | S57: 414603618 | T57: BERKSHIRE ARTS AND TECHNOLOGY | U57: 0 | V57: 0 | W57: 0 | X57: 0 | Y57: 1 | Z57: 0 | AA57: 0 | AB57: 0 | AC57: 0 | AD57: 0 | AE57: 1 | AF57: 0 | AG57: 0 | AH57: 0 | AI57: 0 | AK57: 414 | AL57: 603 | AM57: 618
A58: 414603635 | B58: BERKSHIRE ARTS AND TECHNOLOGY | C58: 0 | D58: 0 | E58: 0 | F58: 0 | G58: 11 | H58: 2 | I58: 0.4875 | K58: 0 | L58: 0 | M58: 0 | N58: 0 | O58: 3 | P58: 0 | Q58: 13 | S58: 414603635 | T58: BERKSHIRE ARTS AND TECHNOLOGY | U58: 0 | V58: 0 | W58: 0 | X58: 0 | Y58: 11 | Z58: 2 | AA58: 0 | AB58: 0 | AC58: 0 | AD58: 0 | AE58: 3 | AF58: 0 | AG58: 0 | AH58: 0 | AI58: 0 | AK58: 414 | AL58: 603 | AM58: 635
A59: 414603715 | B59: BERKSHIRE ARTS AND TECHNOLOGY | C59: 0 | D59: 0 | E59: 0 | F59: 0 | G59: 9 | H59: 10 | I59: 0.7125 | K59: 0 | L59: 0 | M59: 0 | N59: 0 | O59: 3 | P59: 3 | Q59: 19 | S59: 414603715 | T59: BERKSHIRE ARTS AND TECHNOLOGY | U59: 0 | V59: 0 | W59: 0 | X59: 0 | Y59: 9 | Z59: 10 | AA59: 0 | AB59: 0 | AC59: 0 | AD59: 0 | AE59: 3 | AF59: 0 | AG59: 0 | AH59: 0 | AI59: 3 | AK59: 414 | AL59: 603 | AM59: 715
A60: 416035035 | B60: BOSTON PREPARATORY | C60: 0 | D60: 0 | E60: 0 | F60: 0 | G60: 157 | H60: 209 | I60: 15.225 | K60: 0 | L60: 0 | M60: 40 | N60: 0 | O60: 140 | P60: 149 | Q60: 406 | S60: 416035035 | T60: BOSTON PREPARATORY | U60: 0 | V60: 0 | W60: 0 | X60: 0 | Y60: 157 | Z60: 209 | AA60: 0 | AB60: 0 | AC60: 40 | AD60: 0 | AE60: 140 | AF60: 0 | AG60: 0 | AH60: 0 | AI60: 149 | AK60: 416 | AL60: 35 | AM60: 35
A61: 416035044 | B61: BOSTON PREPARATORY | C61: 0 | D61: 0 | E61: 0 | F61: 0 | G61: 0 | H61: 1 | I61: 0.0375 | K61: 0 | L61: 0 | M61: 0 | N61: 0 | O61: 0 | P61: 1 | Q61: 1 | S61: 416035044 | T61: BOSTON PREPARATORY | U61: 0 | V61: 0 | W61: 0 | X61: 0 | Y61: 0 | Z61: 1 | AA61: 0 | AB61: 0 | AC61: 0 | AD61: 0 | AE61: 0 | AF61: 0 | AG61: 0 | AH61: 0 | AI61: 1 | AK61: 416 | AL61: 35 | AM61: 44
A62: 416035073 | B62: BOSTON PREPARATORY | C62: 0 | D62: 0 | E62: 0 | F62: 0 | G62: 0 | H62: 1 | I62: 0.0375 | K62: 0 | L62: 0 | M62: 0 | N62: 0 | O62: 0 | P62: 1 | Q62: 1 | S62: 416035073 | T62: BOSTON PREPARATORY | U62: 0 | V62: 0 | W62: 0 | X62: 0 | Y62: 0 | Z62: 1 | AA62: 0 | AB62: 0 | AC62: 0 | AD62: 0 | AE62: 0 | AF62: 0 | AG62: 0 | AH62: 0 | AI62: 1 | AK62: 416 | AL62: 35 | AM62: 73
A63: 416035189 | B63: BOSTON PREPARATORY | C63: 0 | D63: 0 | E63: 0 | F63: 0 | G63: 1 | H63: 0 | I63: 0.0375 | K63: 0 | L63: 0 | M63: 0 | N63: 0 | O63: 1 | P63: 0 | Q63: 1 | S63: 416035189 | T63: BOSTON PREPARATORY | U63: 0 | V63: 0 | W63: 0 | X63: 0 | Y63: 1 | Z63: 0 | AA63: 0 | AB63: 0 | AC63: 0 | AD63: 0 | AE63: 1 | AF63: 0 | AG63: 0 | AH63: 0 | AI63: 0 | AK63: 416 | AL63: 35 | AM63: 189
A64: 416035244 | B64: BOSTON PREPARATORY | C64: 0 | D64: 0 | E64: 0 | F64: 0 | G64: 0 | H64: 3 | I64: 0.1125 | K64: 0 | L64: 0 | M64: 0 | N64: 0 | O64: 0 | P64: 2 | Q64: 3 | S64: 416035244 | T64: BOSTON PREPARATORY | U64: 0 | V64: 0 | W64: 0 | X64: 0 | Y64: 0 | Z64: 3 | AA64: 0 | AB64: 0 | AC64: 0 | AD64: 0 | AE64: 0 | AF64: 0 | AG64: 0 | AH64: 0 | AI64: 2 | AK64: 416 | AL64: 35 | AM64: 244
A65: 416035285 | B65: BOSTON PREPARATORY | C65: 0 | D65: 0 | E65: 0 | F65: 0 | G65: 1 | H65: 2 | I65: 0.1125 | K65: 0 | L65: 0 | M65: 0 | N65: 0 | O65: 1 | P65: 1 | Q65: 3 | S65: 416035285 | T65: BOSTON PREPARATORY | U65: 0 | V65: 0 | W65: 0 | X65: 0 | Y65: 1 | Z65: 2 | AA65: 0 | AB65: 0 | AC65: 0 | AD65: 0 | AE65: 1 | AF65: 0 | AG65: 0 | AH65: 0 | AI65: 1 | AK65: 416 | AL65: 35 | AM65: 285
A66: 417035035 | B66: BRIDGE BOSTON | C66: 13 | D66: 0 | E66: 22 | F66: 103 | G66: 0 | H66: 0 | I66: 6.7875 | K66: 24 | L66: 0 | M66: 56 | N66: 0 | O66: 116 | P66: 44 | Q66: 200 | S66: 417035035 | T66: BRIDGE BOSTON | U66: 13 | V66: 0 | W66: 22 | X66: 103 | Y66: 0 | Z66: 0 | AA66: 24 | AB66: 0 | AC66: 56 | AD66: 0 | AE66: 116 | AF66: 30 | AG66: 0 | AH66: 29 | AI66: 0 | AK66: 417 | AL66: 35 | AM66: 35
A67: 417035244 | B67: BRIDGE BOSTON | C67: 0 | D67: 0 | E67: 0 | F67: 0 | G67: 0 | H67: 0 | I67: 0.0375 | K67: 0 | L67: 0 | M67: 1 | N67: 0 | O67: 0 | P67: 0 | Q67: 1 | S67: 417035244 | T67: BRIDGE BOSTON | U67: 0 | V67: 0 | W67: 0 | X67: 0 | Y67: 0 | Z67: 0 | AA67: 0 | AB67: 0 | AC67: 1 | AD67: 0 | AE67: 0 | AF67: 0 | AG67: 0 | AH67: 0 | AI67: 0 | AK67: 417 | AL67: 35 | AM67: 244
A68: 417035274 | B68: BRIDGE BOSTON | C68: 1 | D68: 0 | E68: 0 | F68: 1 | G68: 0 | H68: 0 | I68: 0.0375 | K68: 0 | L68: 0 | M68: 0 | N68: 0 | O68: 1 | P68: 0 | Q68: 2 | S68: 417035274 | T68: BRIDGE BOSTON | U68: 1 | V68: 0 | W68: 0 | X68: 1 | Y68: 0 | Z68: 0 | AA68: 0 | AB68: 0 | AC68: 0 | AD68: 0 | AE68: 1 | AF68: 0 | AG68: 0 | AH68: 0 | AI68: 0 | AK68: 417 | AL68: 35 | AM68: 274
A69: 417035293 | B69: BRIDGE BOSTON | C69: 0 | D69: 0 | E69: 0 | F69: 0 | G69: 0 | H69: 0 | I69: 0 | K69: 1 | L69: 0 | M69: 0 | N69: 0 | O69: 0 | P69: 1 | Q69: 1 | S69: 417035293 | T69: BRIDGE BOSTON | U69: 0 | V69: 0 | W69: 0 | X69: 0 | Y69: 0 | Z69: 0 | AA69: 1 | AB69: 0 | AC69: 0 | AD69: 0 | AE69: 0 | AF69: 1 | AG69: 0 | AH69: 0 | AI69: 0 | AK69: 417 | AL69: 35 | AM69: 293
A70: 418100014 | B70: CHRISTA MCAULIFFE | C70: 0 | D70: 0 | E70: 0 | F70: 0 | G70: 39 | H70: 0 | I70: 1.4625 | K70: 0 | L70: 0 | M70: 0 | N70: 0 | O70: 4 | P70: 0 | Q70: 39 | S70: 418100014 | T70: CHRISTA MCAULIFFE | U70: 0 | V70: 0 | W70: 0 | X70: 0 | Y70: 39 | Z70: 0 | AA70: 0 | AB70: 0 | AC70: 0 | AD70: 0 | AE70: 4 | AF70: 0 | AG70: 0 | AH70: 0 | AI70: 0 | AK70: 418 | AL70: 100 | AM70: 14
A71: 418100035 | B71: CHRISTA MCAULIFFE | C71: 0 | D71: 0 | E71: 0 | F71: 0 | G71: 1 | H71: 0 | I71: 0.0375 | K71: 0 | L71: 0 | M71: 0 | N71: 0 | O71: 0 | P71: 0 | Q71: 1 | S71: 418100035 | T71: CHRISTA MCAULIFFE | U71: 0 | V71: 0 | W71: 0 | X71: 0 | Y71: 1 | Z71: 0 | AA71: 0 | AB71: 0 | AC71: 0 | AD71: 0 | AE71: 0 | AF71: 0 | AG71: 0 | AH71: 0 | AI71: 0 | AK71: 418 | AL71: 100 | AM71: 35
A72: 418100093 | B72: CHRISTA MCAULIFFE | C72: 0 | D72: 0 | E72: 0 | F72: 0 | G72: 1 | H72: 0 | I72: 0.0375 | K72: 0 | L72: 0 | M72: 0 | N72: 0 | O72: 0 | P72: 0 | Q72: 1 | S72: 418100093 | T72: CHRISTA MCAULIFFE | U72: 0 | V72: 0 | W72: 0 | X72: 0 | Y72: 1 | Z72: 0 | AA72: 0 | AB72: 0 | AC72: 0 | AD72: 0 | AE72: 0 | AF72: 0 | AG72: 0 | AH72: 0 | AI72: 0 | AK72: 418 | AL72: 100 | AM72: 93
A73: 418100100 | B73: CHRISTA MCAULIFFE | C73: 0 | D73: 0 | E73: 0 | F73: 0 | G73: 276 | H73: 0 | I73: 10.8375 | K73: 0 | L73: 0 | M73: 13 | N73: 0 | O73: 78 | P73: 0 | Q73: 289 | S73: 418100100 | T73: CHRISTA MCAULIFFE | U73: 0 | V73: 0 | W73: 0 | X73: 0 | Y73: 276 | Z73: 0 | AA73: 0 | AB73: 0 | AC73: 13 | AD73: 0 | AE73: 78 | AF73: 0 | AG73: 0 | AH73: 0 | AI73: 0 | AK73: 418 | AL73: 100 | AM73: 100
A74: 418100136 | B74: CHRISTA MCAULIFFE | C74: 0 | D74: 0 | E74: 0 | F74: 0 | G74: 9 | H74: 0 | I74: 0.3375 | K74: 0 | L74: 0 | M74: 0 | N74: 0 | O74: 0 | P74: 0 | Q74: 9 | S74: 418100136 | T74: CHRISTA MCAULIFFE | U74: 0 | V74: 0 | W74: 0 | X74: 0 | Y74: 9 | Z74: 0 | AA74: 0 | AB74: 0 | AC74: 0 | AD74: 0 | AE74: 0 | AF74: 0 | AG74: 0 | AH74: 0 | AI74: 0 | AK74: 418 | AL74: 100 | AM74: 136
A75: =S75 -> 418100139 | B75: =T75 -> CHRISTA MCAULIFFE | C75: =ROUND(U75,0) -> 0 | D75: =ROUND(V75,0) -> 0 | E75: =ROUND(W75,0) -> 0 | F75: =ROUND(X75,0) -> 0 | G75: =ROUND(Y75,0) -> 9 | H75: =ROUND(Z75,0) -> 0 | I75: =ROUND(0.0375*(SUM(E75:H75)+ROUND(D75*0.5,4)+ROUND(L75*0.5,4)+M75),4)+ROUND((0.0475)*N75,4) -> 0.3375 | K75: =ROUND(AA75,0) -> 0 | L75: =ROUND(AB75,0) -> 0 | M75: =ROUND(AC75,0) -> 0 | N75: =ROUND(AD75,0) -> 0 | O75: =ROUND(AE75,0) -> 0 | P75: =ROUND((AF75+AG75)/2,0)+ROUND(AH75+AI75,0) -> 0 | Q75: =SUM(E75:H75)+M75+N75+ROUND(C75*0.5,0)+ROUND(D75*0.5,0)+ROUND(K75*0.5,0)+ROUND(L75*0.5,0) -> 9 | S75: 418100139 | T75: CHRISTA MCAULIFFE | U75: 0 | V75: 0 | W75: 0 | X75: 0 | Y75: 9 | Z75: 0 | AA75: 0 | AB75: 0 | AC75: 0 | AD75: 0 | AE75: 0 | AF75: 0 | AG75: 0 | AH75: 0 | AI75: 0 | AK75: 418 | AL75: 100 | AM75: 139
A76: 418100170 | B76: CHRISTA MCAULIFFE | C76: 0 | D76: 0 | E76: 0 | F76: 0 | G76: 7 | H76: 0 | I76: 0.3 | K76: 0 | L76: 0 | M76: 1 | N76: 0 | O76: 1 | P76: 0 | Q76: 8 | S76: 418100170 | T76: CHRISTA MCAULIFFE | U76: 0 | V76: 0 | W76: 0 | X76: 0 | Y76: 7 | Z76: 0 | AA76: 0 | AB76: 0 | AC76: 1 | AD76: 0 | AE76: 1 | AF76: 0 | AG76: 0 | AH76: 0 | AI76: 0 | AK76: 418 | AL76: 100 | AM76: 170
A77: 418100174 | B77: CHRISTA MCAULIFFE | C77: 0 | D77: 0 | E77: 0 | F77: 0 | G77: 1 | H77: 0 | I77: 0.0375 | K77: 0 | L77: 0 | M77: 0 | N77: 0 | O77: 0 | P77: 0 | Q77: 1 | S77: 418100174 | T77: CHRISTA MCAULIFFE | U77: 0 | V77: 0 | W77: 0 | X77: 0 | Y77: 1 | Z77: 0 | AA77: 0 | AB77: 0 | AC77: 0 | AD77: 0 | AE77: 0 | AF77: 0 | AG77: 0 | AH77: 0 | AI77: 0 | AK77: 418 | AL77: 100 | AM77: 174
A78: 418100175 | B78: CHRISTA MCAULIFFE | C78: 0 | D78: 0 | E78: 0 | F78: 0 | G78: 1 | H78: 0 | I78: 0.0375 | K78: 0 | L78: 0 | M78: 0 | N78: 0 | O78: 0 | P78: 0 | Q78: 1 | S78: 418100175 | T78: CHRISTA MCAULIFFE | U78: 0 | V78: 0 | W78: 0 | X78: 0 | Y78: 1 | Z78: 0 | AA78: 0 | AB78: 0 | AC78: 0 | AD78: 0 | AE78: 0 | AF78: 0 | AG78: 0 | AH78: 0 | AI78: 0 | AK78: 418 | AL78: 100 | AM78: 175
A79: 418100185 | B79: CHRISTA MCAULIFFE | C79: 0 | D79: 0 | E79: 0 | F79: 0 | G79: 3 | H79: 0 | I79: 0.1125 | K79: 0 | L79: 0 | M79: 0 | N79: 0 | O79: 0 | P79: 0 | Q79: 3 | S79: 418100185 | T79: CHRISTA MCAULIFFE | U79: 0 | V79: 0 | W79: 0 | X79: 0 | Y79: 3 | Z79: 0 | AA79: 0 | AB79: 0 | AC79: 0 | AD79: 0 | AE79: 0 | AF79: 0 | AG79: 0 | AH79: 0 | AI79: 0 | AK79: 418 | AL79: 100 | AM79: 185
A80: 418100198 | B80: CHRISTA MCAULIFFE | C80: 0 | D80: 0 | E80: 0 | F80: 0 | G80: 29 | H80: 0 | I80: 1.0875 | K80: 0 | L80: 0 | M80: 0 | N80: 0 | O80: 2 | P80: 0 | Q80: 29 | S80: 418100198 | T80: CHRISTA MCAULIFFE | U80: 0 | V80: 0 | W80: 0 | X80: 0 | Y80: 29 | Z80: 0 | AA80: 0 | AB80: 0 | AC80: 0 | AD80: 0 | AE80: 2 | AF80: 0 | AG80: 0 | AH80: 0 | AI80: 0 | AK80: 418 | AL80: 100 | AM80: 198
A81: 418100213 | B81: CHRISTA MCAULIFFE | C81: 0 | D81: 0 | E81: 0 | F81: 0 | G81: 1 | H81: 0 | I81: 0.0375 | K81: 0 | L81: 0 | M81: 0 | N81: 0 | O81: 0 | P81: 0 | Q81: 1 | S81: 418100213 | T81: CHRISTA MCAULIFFE | U81: 0 | V81: 0 | W81: 0 | X81: 0 | Y81: 1 | Z81: 0 | AA81: 0 | AB81: 0 | AC81: 0 | AD81: 0 | AE81: 0 | AF81: 0 | AG81: 0 | AH81: 0 | AI81: 0 | AK81: 418 | AL81: 100 | AM81: 213
A82: 418100276 | B82: CHRISTA MCAULIFFE | C82: 0 | D82: 0 | E82: 0 | F82: 0 | G82: 1 | H82: 0 | I82: 0.0375 | K82: 0 | L82: 0 | M82: 0 | N82: 0 | O82: 0 | P82: 0 | Q82: 1 | S82: 418100276 | T82: CHRISTA MCAULIFFE | U82: 0 | V82: 0 | W82: 0 | X82: 0 | Y82: 1 | Z82: 0 | AA82: 0 | AB82: 0 | AC82: 0 | AD82: 0 | AE82: 0 | AF82: 0 | AG82: 0 | AH82: 0 | AI82: 0 | AK82: 418 | AL82: 100 | AM82: 276
A83: 418100288 | B83: CHRISTA MCAULIFFE | C83: 0 | D83: 0 | E83: 0 | F83: 0 | G83: 3 | H83: 0 | I83: 0.1125 | K83: 0 | L83: 0 | M83: 0 | N83: 0 | O83: 0 | P83: 0 | Q83: 3 | S83: 418100288 | T83: CHRISTA MCAULIFFE | U83: 0 | V83: 0 | W83: 0 | X83: 0 | Y83: 3 | Z83: 0 | AA83: 0 | AB83: 0 | AC83: 0 | AD83: 0 | AE83: 0 | AF83: 0 | AG83: 0 | AH83: 0 | AI83: 0 | AK83: 418 | AL83: 100 | AM83: 288
A84: 418100304 | B84: CHRISTA MCAULIFFE | C84: 0 | D84: 0 | E84: 0 | F84: 0 | G84: 1 | H84: 0 | I84: 0.0375 | K84: 0 | L84: 0 | M84: 0 | N84: 0 | O84: 0 | P84: 0 | Q84: 1 | S84: 418100304 | T84: CHRISTA MCAULIFFE | U84: 0 | V84: 0 | W84: 0 | X84: 0 | Y84: 1 | Z84: 0 | AA84: 0 | AB84: 0 | AC84: 0 | AD84: 0 | AE84: 0 | AF84: 0 | AG84: 0 | AH84: 0 | AI84: 0 | AK84: 418 | AL84: 100 | AM84: 304
A85: 418100315 | B85: CHRISTA MCAULIFFE | C85: 0 | D85: 0 | E85: 0 | F85: 0 | G85: 1 | H85: 0 | I85: 0.0375 | K85: 0 | L85: 0 | M85: 0 | N85: 0 | O85: 0 | P85: 0 | Q85: 1 | S85: 418100315 | T85: CHRISTA MCAULIFFE | U85: 0 | V85: 0 | W85: 0 | X85: 0 | Y85: 1 | Z85: 0 | AA85: 0 | AB85: 0 | AC85: 0 | AD85: 0 | AE85: 0 | AF85: 0 | AG85: 0 | AH85: 0 | AI85: 0 | AK85: 418 | AL85: 100 | AM85: 315
A86: 418100321 | B86: CHRISTA MCAULIFFE | C86: 0 | D86: 0 | E86: 0 | F86: 0 | G86: 1 | H86: 0 | I86: 0.0375 | K86: 0 | L86: 0 | M86: 0 | N86: 0 | O86: 0 | P86: 0 | Q86: 1 | S86: 418100321 | T86: CHRISTA MCAULIFFE | U86: 0 | V86: 0 | W86: 0 | X86: 0 | Y86: 1 | Z86: 0 | AA86: 0 | AB86: 0 | AC86: 0 | AD86: 0 | AE86: 0 | AF86: 0 | AG86: 0 | AH86: 0 | AI86: 0 | AK86: 418 | AL86: 100 | AM86: 321
A87: 418100655 | B87: CHRISTA MCAULIFFE | C87: 0 | D87: 0 | E87: 0 | F87: 0 | G87: 1 | H87: 0 | I87: 0.0375 | K87: 0 | L87: 0 | M87: 0 | N87: 0 | O87: 0 | P87: 0 | Q87: 1 | S87: 418100655 | T87: CHRISTA MCAULIFFE | U87: 0 | V87: 0 | W87: 0 | X87: 0 | Y87: 1 | Z87: 0 | AA87: 0 | AB87: 0 | AC87: 0 | AD87: 0 | AE87: 0 | AF87: 0 | AG87: 0 | AH87: 0 | AI87: 0 | AK87: 418 | AL87: 100 | AM87: 655
A88: 418100710 | B88: CHRISTA MCAULIFFE | C88: 0 | D88: 0 | E88: 0 | F88: 0 | G88: 3 | H88: 0 | I88: 0.1125 | K88: 0 | L88: 0 | M88: 0 | N88: 0 | O88: 0 | P88: 0 | Q88: 3 | S88: 418100710 | T88: CHRISTA MCAULIFFE | U88: 0 | V88: 0 | W88: 0 | X88: 0 | Y88: 3 | Z88: 0 | AA88: 0 | AB88: 0 | AC88: 0 | AD88: 0 | AE88: 0 | AF88: 0 | AG88: 0 | AH88: 0 | AI88: 0 | AK88: 418 | AL88: 100 | AM88: 710
A89: 419035035 | B89: HELEN Y. DAVIS LEADERSHIP ACADEMY | C89: 0 | D89: 0 | E89: 0 | F89: 0 | G89: 171 | H89: 0 | I89: 7.5375 | K89: 0 | L89: 0 | M89: 30 | N89: 0 | O89: 152 | P89: 0 | Q89: 201 | S89: 419035035 | T89: HELEN Y. DAVIS LEADERSHIP ACADEMY | U89: 0 | V89: 0 | W89: 0 | X89: 0 | Y89: 171 | Z89: 0 | AA89: 0 | AB89: 0 | AC89: 30 | AD89: 0 | AE89: 152 | AF89: 0 | AG89: 0 | AH89: 0 | AI89: 0 | AK89: 419 | AL89: 35 | AM89: 35
A90: 419035044 | B90: HELEN Y. DAVIS LEADERSHIP ACADEMY | C90: 0 | D90: 0 | E90: 0 | F90: 0 | G90: 5 | H90: 0 | I90: 0.1875 | K90: 0 | L90: 0 | M90: 0 | N90: 0 | O90: 5 | P90: 0 | Q90: 5 | S90: 419035044 | T90: HELEN Y. DAVIS LEADERSHIP ACADEMY | U90: 0 | V90: 0 | W90: 0 | X90: 0 | Y90: 5 | Z90: 0 | AA90: 0 | AB90: 0 | AC90: 0 | AD90: 0 | AE90: 5 | AF90: 0 | AG90: 0 | AH90: 0 | AI90: 0 | AK90: 419 | AL90: 35 | AM90: 44
A91: 419035049 | B91: HELEN Y. DAVIS LEADERSHIP ACADEMY | C91: 0 | D91: 0 | E91: 0 | F91: 0 | G91: 4 | H91: 0 | I91: 0.15 | K91: 0 | L91: 0 | M91: 0 | N91: 0 | O91: 4 | P91: 0 | Q91: 4 | S91: 419035049 | T91: HELEN Y. DAVIS LEADERSHIP ACADEMY | U91: 0 | V91: 0 | W91: 0 | X91: 0 | Y91: 4 | Z91: 0 | AA91: 0 | AB91: 0 | AC91: 0 | AD91: 0 | AE91: 4 | AF91: 0 | AG91: 0 | AH91: 0 | AI91: 0 | AK91: 419 | AL91: 35 | AM91: 49
A92: 419035133 | B92: HELEN Y. DAVIS LEADERSHIP ACADEMY | C92: 0 | D92: 0 | E92: 0 | F92: 0 | G92: 1 | H92: 0 | I92: 0.0375 | K92: 0 | L92: 0 | M92: 0 | N92: 0 | O92: 1 | P92: 0 | Q92: 1 | S92: 419035133 | T92: HELEN Y. DAVIS LEADERSHIP ACADEMY | U92: 0 | V92: 0 | W92: 0 | X92: 0 | Y92: 1 | Z92: 0 | AA92: 0 | AB92: 0 | AC92: 0 | AD92: 0 | AE92: 1 | AF92: 0 | AG92: 0 | AH92: 0 | AI92: 0 | AK92: 419 | AL92: 35 | AM92: 133
A93: 419035165 | B93: HELEN Y. DAVIS LEADERSHIP ACADEMY | C93: 0 | D93: 0 | E93: 0 | F93: 0 | G93: 1 | H93: 0 | I93: 0.0375 | K93: 0 | L93: 0 | M93: 0 | N93: 0 | O93: 1 | P93: 0 | Q93: 1 | S93: 419035165 | T93: HELEN Y. DAVIS LEADERSHIP ACADEMY | U93: 0 | V93: 0 | W93: 0 | X93: 0 | Y93: 1 | Z93: 0 | AA93: 0 | AB93: 0 | AC93: 0 | AD93: 0 | AE93: 1 | AF93: 0 | AG93: 0 | AH93: 0 | AI93: 0 | AK93: 419 | AL93: 35 | AM93: 165
A94: 419035244 | B94: HELEN Y. DAVIS LEADERSHIP ACADEMY | C94: 0 | D94: 0 | E94: 0 | F94: 0 | G94: 4 | H94: 0 | I94: 0.1875 | K94: 0 | L94: 0 | M94: 1 | N94: 0 | O94: 3 | P94: 0 | Q94: 5 | S94: 419035244 | T94: HELEN Y. DAVIS LEADERSHIP ACADEMY | U94: 0 | V94: 0 | W94: 0 | X94: 0 | Y94: 4 | Z94: 0 | AA94: 0 | AB94: 0 | AC94: 1 | AD94: 0 | AE94: 3 | AF94: 0 | AG94: 0 | AH94: 0 | AI94: 0 | AK94: 419 | AL94: 35 | AM94: 244
A95: 420049010 | B95: BENJAMIN BANNEKER | C95: 0 | D95: 0 | E95: 0 | F95: 3 | G95: 0 | H95: 0 | I95: 0.1125 | K95: 0 | L95: 0 | M95: 0 | N95: 0 | O95: 3 | P95: 0 | Q95: 3 | S95: 420049010 | T95: BENJAMIN BANNEKER | U95: 0 | V95: 0 | W95: 0 | X95: 3 | Y95: 0 | Z95: 0 | AA95: 0 | AB95: 0 | AC95: 0 | AD95: 0 | AE95: 3 | AF95: 0 | AG95: 0 | AH95: 0 | AI95: 0 | AK95: 420 | AL95: 49 | AM95: 10
A96: 420049023 | B96: BENJAMIN BANNEKER | C96: 0 | D96: 0 | E96: 0 | F96: 2 | G96: 0 | H96: 0 | I96: 0.075 | K96: 0 | L96: 0 | M96: 0 | N96: 0 | O96: 0 | P96: 0 | Q96: 2 | S96: 420049023 | T96: BENJAMIN BANNEKER | U96: 0 | V96: 0 | W96: 0 | X96: 2 | Y96: 0 | Z96: 0 | AA96: 0 | AB96: 0 | AC96: 0 | AD96: 0 | AE96: 0 | AF96: 0 | AG96: 0 | AH96: 0 | AI96: 0 | AK96: 420 | AL96: 49 | AM96: 23
A97: 420049026 | B97: BENJAMIN BANNEKER | C97: 0 | D97: 0 | E97: 0 | F97: 2 | G97: 0 | H97: 0 | I97: 0.075 | K97: 0 | L97: 0 | M97: 0 | N97: 0 | O97: 2 | P97: 0 | Q97: 2 | S97: 420049026 | T97: BENJAMIN BANNEKER | U97: 0 | V97: 0 | W97: 0 | X97: 2 | Y97: 0 | Z97: 0 | AA97: 0 | AB97: 0 | AC97: 0 | AD97: 0 | AE97: 2 | AF97: 0 | AG97: 0 | AH97: 0 | AI97: 0 | AK97: 420 | AL97: 49 | AM97: 26
A98: 420049031 | B98: BENJAMIN BANNEKER | C98: 0 | D98: 0 | E98: 0 | F98: 1 | G98: 0 | H98: 0 | I98: 0.0375 | K98: 0 | L98: 0 | M98: 0 | N98: 0 | O98: 0 | P98: 0 | Q98: 1 | S98: 420049031 | T98: BENJAMIN BANNEKER | U98: 0 | V98: 0 | W98: 0 | X98: 1 | Y98: 0 | Z98: 0 | AA98: 0 | AB98: 0 | AC98: 0 | AD98: 0 | AE98: 0 | AF98: 0 | AG98: 0 | AH98: 0 | AI98: 0 | AK98: 420 | AL98: 49 | AM98: 31
A99: 420049035 | B99: BENJAMIN BANNEKER | C99: 0 | D99: 0 | E99: 10 | F99: 81 | G99: 12 | H99: 0 | I99: 3.9375 | K99: 0 | L99: 0 | M99: 2 | N99: 0 | O99: 68 | P99: 6 | Q99: 105 | S99: 420049035 | T99: BENJAMIN BANNEKER | U99: 0 | V99: 0 | W99: 10 | X99: 81 | Y99: 12 | Z99: 0 | AA99: 0 | AB99: 0 | AC99: 2 | AD99: 0 | AE99: 68 | AF99: 0 | AG99: 0 | AH99: 6 | AI99: 0 | AK99: 420 | AL99: 49 | AM99: 35
A100: 420049044 | B100: BENJAMIN BANNEKER | C100: 0 | D100: 0 | E100: 1 | F100: 1 | G100: 0 | H100: 0 | I100: 0.075 | K100: 0 | L100: 0 | M100: 0 | N100: 0 | O100: 1 | P100: 0 | Q100: 2 | S100: 420049044 | T100: BENJAMIN BANNEKER | U100: 0 | V100: 0 | W100: 1 | X100: 1 | Y100: 0 | Z100: 0 | AA100: 0 | AB100: 0 | AC100: 0 | AD100: 0 | AE100: 1 | AF100: 0 | AG100: 0 | AH100: 0 | AI100: 0 | AK100: 420 | AL100: 49 | AM100: 44
A101: 420049049 | B101: BENJAMIN BANNEKER | C101: 0 | D101: 0 | E101: 37 | F101: 82 | G101: 12 | H101: 0 | I101: 5.2125 | K101: 0 | L101: 0 | M101: 8 | N101: 0 | O101: 70 | P101: 26 | Q101: 139 | S101: 420049049 | T101: BENJAMIN BANNEKER | U101: 0 | V101: 0 | W101: 37 | X101: 82 | Y101: 12 | Z101: 0 | AA101: 0 | AB101: 0 | AC101: 8 | AD101: 0 | AE101: 70 | AF101: 0 | AG101: 0 | AH101: 26 | AI101: 0 | AK101: 420 | AL101: 49 | AM101: 49
A102: 420049057 | B102: BENJAMIN BANNEKER | C102: 0 | D102: 0 | E102: 1 | F102: 2 | G102: 0 | H102: 0 | I102: 0.1875 | K102: 0 | L102: 0 | M102: 2 | N102: 0 | O102: 1 | P102: 0 | Q102: 5 | S102: 420049057 | T102: BENJAMIN BANNEKER | U102: 0 | V102: 0 | W102: 1 | X102: 2 | Y102: 0 | Z102: 0 | AA102: 0 | AB102: 0 | AC102: 2 | AD102: 0 | AE102: 1 | AF102: 0 | AG102: 0 | AH102: 0 | AI102: 0 | AK102: 420 | AL102: 49 | AM102: 57
A103: 420049093 | B103: BENJAMIN BANNEKER | C103: 0 | D103: 0 | E103: 8 | F103: 26 | G103: 3 | H103: 0 | I103: 1.4625 | K103: 0 | L103: 0 | M103: 2 | N103: 0 | O103: 25 | P103: 5 | Q103: 39 | S103: 420049093 | T103: BENJAMIN BANNEKER | U103: 0 | V103: 0 | W103: 8 | X103: 26 | Y103: 3 | Z103: 0 | AA103: 0 | AB103: 0 | AC103: 2 | AD103: 0 | AE103: 25 | AF103: 0 | AG103: 0 | AH103: 5 | AI103: 0 | AK103: 420 | AL103: 49 | AM103: 93
A104: 420049149 | B104: BENJAMIN BANNEKER | C104: 0 | D104: 0 | E104: 0 | F104: 1 | G104: 0 | H104: 0 | I104: 0.0375 | K104: 0 | L104: 0 | M104: 0 | N104: 0 | O104: 0 | P104: 0 | Q104: 1 | S104: 420049149 | T104: BENJAMIN BANNEKER | U104: 0 | V104: 0 | W104: 0 | X104: 1 | Y104: 0 | Z104: 0 | AA104: 0 | AB104: 0 | AC104: 0 | AD104: 0 | AE104: 0 | AF104: 0 | AG104: 0 | AH104: 0 | AI104: 0 | AK104: 420 | AL104: 49 | AM104: 149
A105: 420049163 | B105: BENJAMIN BANNEKER | C105: 0 | D105: 0 | E105: 0 | F105: 4 | G105: 1 | H105: 0 | I105: 0.1875 | K105: 0 | L105: 0 | M105: 0 | N105: 0 | O105: 2 | P105: 0 | Q105: 5 | S105: 420049163 | T105: BENJAMIN BANNEKER | U105: 0 | V105: 0 | W105: 0 | X105: 4 | Y105: 1 | Z105: 0 | AA105: 0 | AB105: 0 | AC105: 0 | AD105: 0 | AE105: 2 | AF105: 0 | AG105: 0 | AH105: 0 | AI105: 0 | AK105: 420 | AL105: 49 | AM105: 163
A106: 420049165 | B106: BENJAMIN BANNEKER | C106: 0 | D106: 0 | E106: 2 | F106: 4 | G106: 1 | H106: 0 | I106: 0.2625 | K106: 0 | L106: 0 | M106: 0 | N106: 0 | O106: 5 | P106: 0 | Q106: 7 | S106: 420049165 | T106: BENJAMIN BANNEKER | U106: 0 | V106: 0 | W106: 2 | X106: 4 | Y106: 1 | Z106: 0 | AA106: 0 | AB106: 0 | AC106: 0 | AD106: 0 | AE106: 5 | AF106: 0 | AG106: 0 | AH106: 0 | AI106: 0 | AK106: 420 | AL106: 49 | AM106: 165
A107: 420049176 | B107: BENJAMIN BANNEKER | C107: 0 | D107: 0 | E107: 5 | F107: 6 | G107: 3 | H107: 0 | I107: 0.525 | K107: 0 | L107: 0 | M107: 0 | N107: 0 | O107: 5 | P107: 1 | Q107: 14 | S107: 420049176 | T107: BENJAMIN BANNEKER | U107: 0 | V107: 0 | W107: 5 | X107: 6 | Y107: 3 | Z107: 0 | AA107: 0 | AB107: 0 | AC107: 0 | AD107: 0 | AE107: 5 | AF107: 0 | AG107: 0 | AH107: 1 | AI107: 0 | AK107: 420 | AL107: 49 | AM107: 176
A108: 420049181 | B108: BENJAMIN BANNEKER | C108: 0 | D108: 0 | E108: 0 | F108: 1 | G108: 0 | H108: 0 | I108: 0.0375 | K108: 0 | L108: 0 | M108: 0 | N108: 0 | O108: 0 | P108: 0 | Q108: 1 | S108: 420049181 | T108: BENJAMIN BANNEKER | U108: 0 | V108: 0 | W108: 0 | X108: 1 | Y108: 0 | Z108: 0 | AA108: 0 | AB108: 0 | AC108: 0 | AD108: 0 | AE108: 0 | AF108: 0 | AG108: 0 | AH108: 0 | AI108: 0 | AK108: 420 | AL108: 49 | AM108: 181
A109: 420049243 | B109: BENJAMIN BANNEKER | C109: 0 | D109: 0 | E109: 0 | F109: 2 | G109: 0 | H109: 0 | I109: 0.075 | K109: 0 | L109: 0 | M109: 0 | N109: 0 | O109: 0 | P109: 0 | Q109: 2 | S109: 420049243 | T109: BENJAMIN BANNEKER | U109: 0 | V109: 0 | W109: 0 | X109: 2 | Y109: 0 | Z109: 0 | AA109: 0 | AB109: 0 | AC109: 0 | AD109: 0 | AE109: 0 | AF109: 0 | AG109: 0 | AH109: 0 | AI109: 0 | AK109: 420 | AL109: 49 | AM109: 243
A110: 420049244 | B110: BENJAMIN BANNEKER | C110: 0 | D110: 0 | E110: 2 | F110: 3 | G110: 0 | H110: 0 | I110: 0.1875 | K110: 0 | L110: 0 | M110: 0 | N110: 0 | O110: 0 | P110: 0 | Q110: 5 | S110: 420049244 | T110: BENJAMIN BANNEKER | U110: 0 | V110: 0 | W110: 2 | X110: 3 | Y110: 0 | Z110: 0 | AA110: 0 | AB110: 0 | AC110: 0 | AD110: 0 | AE110: 0 | AF110: 0 | AG110: 0 | AH110: 0 | AI110: 0 | AK110: 420 | AL110: 49 | AM110: 244
A111: 420049248 | B111: BENJAMIN BANNEKER | C111: 0 | D111: 0 | E111: 1 | F111: 2 | G111: 1 | H111: 0 | I111: 0.15 | K111: 0 | L111: 0 | M111: 0 | N111: 0 | O111: 0 | P111: 0 | Q111: 4 | S111: 420049248 | T111: BENJAMIN BANNEKER | U111: 0 | V111: 0 | W111: 1 | X111: 2 | Y111: 1 | Z111: 0 | AA111: 0 | AB111: 0 | AC111: 0 | AD111: 0 | AE111: 0 | AF111: 0 | AG111: 0 | AH111: 0 | AI111: 0 | AK111: 420 | AL111: 49 | AM111: 248
A112: 420049262 | B112: BENJAMIN BANNEKER | C112: 0 | D112: 0 | E112: 0 | F112: 1 | G112: 0 | H112: 0 | I112: 0.0375 | K112: 0 | L112: 0 | M112: 0 | N112: 0 | O112: 1 | P112: 0 | Q112: 1 | S112: 420049262 | T112: BENJAMIN BANNEKER | U112: 0 | V112: 0 | W112: 0 | X112: 1 | Y112: 0 | Z112: 0 | AA112: 0 | AB112: 0 | AC112: 0 | AD112: 0 | AE112: 1 | AF112: 0 | AG112: 0 | AH112: 0 | AI112: 0 | AK112: 420 | AL112: 49 | AM112: 262
A113: 420049274 | B113: BENJAMIN BANNEKER | C113: 0 | D113: 0 | E113: 0 | F113: 1 | G113: 2 | H113: 0 | I113: 0.15 | K113: 0 | L113: 0 | M113: 1 | N113: 0 | O113: 3 | P113: 0 | Q113: 4 | S113: 420049274 | T113: BENJAMIN BANNEKER | U113: 0 | V113: 0 | W113: 0 | X113: 1 | Y113: 2 | Z113: 0 | AA113: 0 | AB113: 0 | AC113: 1 | AD113: 0 | AE113: 3 | AF113: 0 | AG113: 0 | AH113: 0 | AI113: 0 | AK113: 420 | AL113: 49 | AM113: 274
A114: 420049308 | B114: BENJAMIN BANNEKER | C114: 0 | D114: 0 | E114: 0 | F114: 4 | G114: 0 | H114: 0 | I114: 0.15 | K114: 0 | L114: 0 | M114: 0 | N114: 0 | O114: 4 | P114: 0 | Q114: 4 | S114: 420049308 | T114: BENJAMIN BANNEKER | U114: 0 | V114: 0 | W114: 0 | X114: 4 | Y114: 0 | Z114: 0 | AA114: 0 | AB114: 0 | AC114: 0 | AD114: 0 | AE114: 4 | AF114: 0 | AG114: 0 | AH114: 0 | AI114: 0 | AK114: 420 | AL114: 49 | AM114: 308
A115: 420049347 | B115: BENJAMIN BANNEKER | C115: 0 | D115: 0 | E115: 1 | F115: 0 | G115: 0 | H115: 0 | I115: 0.0375 | K115: 0 | L115: 0 | M115: 0 | N115: 0 | O115: 0 | P115: 1 | Q115: 1 | S115: 420049347 | T115: BENJAMIN BANNEKER | U115: 0 | V115: 0 | W115: 1 | X115: 0 | Y115: 0 | Z115: 0 | AA115: 0 | AB115: 0 | AC115: 0 | AD115: 0 | AE115: 0 | AF115: 0 | AG115: 0 | AH115: 1 | AI115: 0 | AK115: 420 | AL115: 49 | AM115: 347
A116: 420049616 | B116: BENJAMIN BANNEKER | C116: 0 | D116: 0 | E116: 0 | F116: 2 | G116: 0 | H116: 0 | I116: 0.075 | K116: 0 | L116: 0 | M116: 0 | N116: 0 | O116: 1 | P116: 0 | Q116: 2 | S116: 420049616 | T116: BENJAMIN BANNEKER | U116: 0 | V116: 0 | W116: 0 | X116: 2 | Y116: 0 | Z116: 0 | AA116: 0 | AB116: 0 | AC116: 0 | AD116: 0 | AE116: 1 | AF116: 0 | AG116: 0 | AH116: 0 | AI116: 0 | AK116: 420 | AL116: 49 | AM116: 616
A117: 426149009 | B117: COMMUNITY DAY - GATEWAY | C117: 0 | D117: 0 | E117: 0 | F117: 1 | G117: 0 | H117: 0 | I117: 0.075 | K117: 0 | L117: 0 | M117: 1 | N117: 0 | O117: 0 | P117: 0 | Q117: 2 | S117: 426149009 | T117: COMMUNITY DAY - GATEWAY | U117: 0 | V117: 0 | W117: 0 | X117: 1 | Y117: 0 | Z117: 0 | AA117: 0 | AB117: 0 | AC117: 1 | AD117: 0 | AE117: 0 | AF117: 0 | AG117: 0 | AH117: 0 | AI117: 0 | AK117: 426 | AL117: 149 | AM117: 9
A118: 426149056 | B118: COMMUNITY DAY - GATEWAY | C118: 0 | D118: 0 | E118: 0 | F118: 0 | G118: 0 | H118: 0 | I118: 0 | K118: 1 | L118: 0 | M118: 0 | N118: 0 | O118: 0 | P118: 1 | Q118: 1 | S118: 426149056 | T118: COMMUNITY DAY - GATEWAY | U118: 0 | V118: 0 | W118: 0 | X118: 0 | Y118: 0 | Z118: 0 | AA118: 1 | AB118: 0 | AC118: 0 | AD118: 0 | AE118: 0 | AF118: 1 | AG118: 0 | AH118: 0 | AI118: 0 | AK118: 426 | AL118: 149 | AM118: 56
A119: 426149079 | B119: COMMUNITY DAY - GATEWAY | C119: 0 | D119: 0 | E119: 0 | F119: 1 | G119: 0 | H119: 0 | I119: 0.0375 | K119: 0 | L119: 0 | M119: 0 | N119: 0 | O119: 0 | P119: 0 | Q119: 1 | S119: 426149079 | T119: COMMUNITY DAY - GATEWAY | U119: 0 | V119: 0 | W119: 0 | X119: 1 | Y119: 0 | Z119: 0 | AA119: 0 | AB119: 0 | AC119: 0 | AD119: 0 | AE119: 0 | AF119: 0 | AG119: 0 | AH119: 0 | AI119: 0 | AK119: 426 | AL119: 149 | AM119: 79
A120: 426149149 | B120: COMMUNITY DAY - GATEWAY | C120: 18 | D120: 0 | E120: 22 | F120: 39 | G120: 0 | H120: 0 | I120: 7.05 | K120: 21 | L120: 0 | M120: 127 | N120: 0 | O120: 130 | P120: 49 | Q120: 208 | S120: 426149149 | T120: COMMUNITY DAY - GATEWAY | U120: 18 | V120: 0 | W120: 22 | X120: 39 | Y120: 0 | Z120: 0 | AA120: 21 | AB120: 0 | AC120: 127 | AD120: 0 | AE120: 130 | AF120: 31 | AG120: 0 | AH120: 33 | AI120: 0 | AK120: 426 | AL120: 149 | AM120: 149
A121: 426149181 | B121: COMMUNITY DAY - GATEWAY | C121: 1 | D121: 0 | E121: 1 | F121: 3 | G121: 0 | H121: 0 | I121: 0.2625 | K121: 1 | L121: 0 | M121: 3 | N121: 0 | O121: 5 | P121: 2 | Q121: 9 | S121: 426149181 | T121: COMMUNITY DAY - GATEWAY | U121: 1 | V121: 0 | W121: 1 | X121: 3 | Y121: 0 | Z121: 0 | AA121: 1 | AB121: 0 | AC121: 3 | AD121: 0 | AE121: 5 | AF121: 2 | AG121: 0 | AH121: 1 | AI121: 0 | AK121: 426 | AL121: 149 | AM121: 181
A122: 428035035 | B122: BROOKE | C122: 0 | D122: 0 | E122: 137 | F122: 772 | G122: 323 | H122: 0 | I122: 48.45 | K122: 0 | L122: 0 | M122: 60 | N122: 0 | O122: 863 | P122: 71 | Q122: 1292 | S122: 428035035 | T122: BROOKE | U122: 0 | V122: 0 | W122: 137 | X122: 772 | Y122: 323 | Z122: 0 | AA122: 0 | AB122: 0 | AC122: 60 | AD122: 0 | AE122: 863 | AF122: 0 | AG122: 0 | AH122: 71 | AI122: 0 | AK122: 428 | AL122: 35 | AM122: 35
A123: 428035040 | B123: BROOKE | C123: 0 | D123: 0 | E123: 0 | F123: 1 | G123: 0 | H123: 0 | I123: 0.0375 | K123: 0 | L123: 0 | M123: 0 | N123: 0 | O123: 1 | P123: 0 | Q123: 1 | S123: 428035040 | T123: BROOKE | U123: 0 | V123: 0 | W123: 0 | X123: 1 | Y123: 0 | Z123: 0 | AA123: 0 | AB123: 0 | AC123: 0 | AD123: 0 | AE123: 1 | AF123: 0 | AG123: 0 | AH123: 0 | AI123: 0 | AK123: 428 | AL123: 35 | AM123: 40
A124: 428035044 | B124: BROOKE | C124: 0 | D124: 0 | E124: 0 | F124: 6 | G124: 0 | H124: 0 | I124: 0.225 | K124: 0 | L124: 0 | M124: 0 | N124: 0 | O124: 1 | P124: 0 | Q124: 6 | S124: 428035044 | T124: BROOKE | U124: 0 | V124: 0 | W124: 0 | X124: 6 | Y124: 0 | Z124: 0 | AA124: 0 | AB124: 0 | AC124: 0 | AD124: 0 | AE124: 1 | AF124: 0 | AG124: 0 | AH124: 0 | AI124: 0 | AK124: 428 | AL124: 35 | AM124: 44
A125: 428035050 | B125: BROOKE | C125: 0 | D125: 0 | E125: 0 | F125: 1 | G125: 0 | H125: 0 | I125: 0.0375 | K125: 0 | L125: 0 | M125: 0 | N125: 0 | O125: 1 | P125: 0 | Q125: 1 | S125: 428035050 | T125: BROOKE | U125: 0 | V125: 0 | W125: 0 | X125: 1 | Y125: 0 | Z125: 0 | AA125: 0 | AB125: 0 | AC125: 0 | AD125: 0 | AE125: 1 | AF125: 0 | AG125: 0 | AH125: 0 | AI125: 0 | AK125: 428 | AL125: 35 | AM125: 50
A126: 428035057 | B126: BROOKE | C126: 0 | D126: 0 | E126: 9 | F126: 75 | G126: 34 | H126: 0 | I126: 5.3625 | K126: 0 | L126: 0 | M126: 25 | N126: 0 | O126: 84 | P126: 12 | Q126: 143 | S126: 428035057 | T126: BROOKE | U126: 0 | V126: 0 | W126: 9 | X126: 75 | Y126: 34 | Z126: 0 | AA126: 0 | AB126: 0 | AC126: 25 | AD126: 0 | AE126: 84 | AF126: 0 | AG126: 0 | AH126: 12 | AI126: 0 | AK126: 428 | AL126: 35 | AM126: 57
A127: 428035073 | B127: BROOKE | C127: 0 | D127: 0 | E127: 0 | F127: 3 | G127: 1 | H127: 0 | I127: 0.15 | K127: 0 | L127: 0 | M127: 0 | N127: 0 | O127: 3 | P127: 0 | Q127: 4 | S127: 428035073 | T127: BROOKE | U127: 0 | V127: 0 | W127: 0 | X127: 3 | Y127: 1 | Z127: 0 | AA127: 0 | AB127: 0 | AC127: 0 | AD127: 0 | AE127: 3 | AF127: 0 | AG127: 0 | AH127: 0 | AI127: 0 | AK127: 428 | AL127: 35 | AM127: 73
A128: 428035093 | B128: BROOKE | C128: 0 | D128: 0 | E128: 1 | F128: 2 | G128: 1 | H128: 0 | I128: 0.15 | K128: 0 | L128: 0 | M128: 0 | N128: 0 | O128: 2 | P128: 1 | Q128: 4 | S128: 428035093 | T128: BROOKE | U128: 0 | V128: 0 | W128: 1 | X128: 2 | Y128: 1 | Z128: 0 | AA128: 0 | AB128: 0 | AC128: 0 | AD128: 0 | AE128: 2 | AF128: 0 | AG128: 0 | AH128: 1 | AI128: 0 | AK128: 428 | AL128: 35 | AM128: 93
A129: 428035163 | B129: BROOKE | C129: 0 | D129: 0 | E129: 0 | F129: 2 | G129: 1 | H129: 0 | I129: 0.15 | K129: 0 | L129: 0 | M129: 1 | N129: 0 | O129: 4 | P129: 0 | Q129: 4 | S129: 428035163 | T129: BROOKE | U129: 0 | V129: 0 | W129: 0 | X129: 2 | Y129: 1 | Z129: 0 | AA129: 0 | AB129: 0 | AC129: 1 | AD129: 0 | AE129: 4 | AF129: 0 | AG129: 0 | AH129: 0 | AI129: 0 | AK129: 428 | AL129: 35 | AM129: 163
A130: 428035189 | B130: BROOKE | C130: 0 | D130: 0 | E130: 0 | F130: 1 | G130: 1 | H130: 0 | I130: 0.075 | K130: 0 | L130: 0 | M130: 0 | N130: 0 | O130: 1 | P130: 0 | Q130: 2 | S130: 428035189 | T130: BROOKE | U130: 0 | V130: 0 | W130: 0 | X130: 1 | Y130: 1 | Z130: 0 | AA130: 0 | AB130: 0 | AC130: 0 | AD130: 0 | AE130: 1 | AF130: 0 | AG130: 0 | AH130: 0 | AI130: 0 | AK130: 428 | AL130: 35 | AM130: 189
A131: 428035220 | B131: BROOKE | C131: 0 | D131: 0 | E131: 0 | F131: 3 | G131: 1 | H131: 0 | I131: 0.15 | K131: 0 | L131: 0 | M131: 0 | N131: 0 | O131: 4 | P131: 0 | Q131: 4 | S131: 428035220 | T131: BROOKE | U131: 0 | V131: 0 | W131: 0 | X131: 3 | Y131: 1 | Z131: 0 | AA131: 0 | AB131: 0 | AC131: 0 | AD131: 0 | AE131: 4 | AF131: 0 | AG131: 0 | AH131: 0 | AI131: 0 | AK131: 428 | AL131: 35 | AM131: 220
A132: 428035243 | B132: BROOKE | C132: 0 | D132: 0 | E132: 2 | F132: 2 | G132: 2 | H132: 0 | I132: 0.225 | K132: 0 | L132: 0 | M132: 0 | N132: 0 | O132: 4 | P132: 0 | Q132: 6 | S132: 428035243 | T132: BROOKE | U132: 0 | V132: 0 | W132: 2 | X132: 2 | Y132: 2 | Z132: 0 | AA132: 0 | AB132: 0 | AC132: 0 | AD132: 0 | AE132: 4 | AF132: 0 | AG132: 0 | AH132: 0 | AI132: 0 | AK132: 428 | AL132: 35 | AM132: 243
A133: 428035244 | B133: BROOKE | C133: 0 | D133: 0 | E133: 0 | F133: 7 | G133: 5 | H133: 0 | I133: 0.45 | K133: 0 | L133: 0 | M133: 0 | N133: 0 | O133: 8 | P133: 0 | Q133: 12 | S133: 428035244 | T133: BROOKE | U133: 0 | V133: 0 | W133: 0 | X133: 7 | Y133: 5 | Z133: 0 | AA133: 0 | AB133: 0 | AC133: 0 | AD133: 0 | AE133: 8 | AF133: 0 | AG133: 0 | AH133: 0 | AI133: 0 | AK133: 428 | AL133: 35 | AM133: 244
A134: 428035248 | B134: BROOKE | C134: 0 | D134: 0 | E134: 0 | F134: 6 | G134: 1 | H134: 0 | I134: 0.4125 | K134: 0 | L134: 0 | M134: 4 | N134: 0 | O134: 7 | P134: 0 | Q134: 11 | S134: 428035248 | T134: BROOKE | U134: 0 | V134: 0 | W134: 0 | X134: 6 | Y134: 1 | Z134: 0 | AA134: 0 | AB134: 0 | AC134: 4 | AD134: 0 | AE134: 7 | AF134: 0 | AG134: 0 | AH134: 0 | AI134: 0 | AK134: 428 | AL134: 35 | AM134: 248
A135: 428035285 | B135: BROOKE | C135: 0 | D135: 0 | E135: 0 | F135: 2 | G135: 1 | H135: 0 | I135: 0.1125 | K135: 0 | L135: 0 | M135: 0 | N135: 0 | O135: 3 | P135: 0 | Q135: 3 | S135: 428035285 | T135: BROOKE | U135: 0 | V135: 0 | W135: 0 | X135: 2 | Y135: 1 | Z135: 0 | AA135: 0 | AB135: 0 | AC135: 0 | AD135: 0 | AE135: 3 | AF135: 0 | AG135: 0 | AH135: 0 | AI135: 0 | AK135: 428 | AL135: 35 | AM135: 285
A136: 428035308 | B136: BROOKE | C136: 0 | D136: 0 | E136: 0 | F136: 0 | G136: 0 | H136: 0 | I136: 0.0375 | K136: 0 | L136: 0 | M136: 1 | N136: 0 | O136: 1 | P136: 0 | Q136: 1 | S136: 428035308 | T136: BROOKE | U136: 0 | V136: 0 | W136: 0 | X136: 0 | Y136: 0 | Z136: 0 | AA136: 0 | AB136: 0 | AC136: 1 | AD136: 0 | AE136: 1 | AF136: 0 | AG136: 0 | AH136: 0 | AI136: 0 | AK136: 428 | AL136: 35 | AM136: 308
A137: 428035346 | B137: BROOKE | C137: 0 | D137: 0 | E137: 0 | F137: 2 | G137: 0 | H137: 0 | I137: 0.075 | K137: 0 | L137: 0 | M137: 0 | N137: 0 | O137: 1 | P137: 0 | Q137: 2 | S137: 428035346 | T137: BROOKE | U137: 0 | V137: 0 | W137: 0 | X137: 2 | Y137: 0 | Z137: 0 | AA137: 0 | AB137: 0 | AC137: 0 | AD137: 0 | AE137: 1 | AF137: 0 | AG137: 0 | AH137: 0 | AI137: 0 | AK137: 428 | AL137: 35 | AM137: 346
A138: 428035625 | B138: BROOKE | C138: 0 | D138: 0 | E138: 0 | F138: 1 | G138: 0 | H138: 0 | I138: 0.0375 | K138: 0 | L138: 0 | M138: 0 | N138: 0 | O138: 1 | P138: 0 | Q138: 1 | S138: 428035625 | T138: BROOKE | U138: 0 | V138: 0 | W138: 0 | X138: 1 | Y138: 0 | Z138: 0 | AA138: 0 | AB138: 0 | AC138: 0 | AD138: 0 | AE138: 1 | AF138: 0 | AG138: 0 | AH138: 0 | AI138: 0 | AK138: 428 | AL138: 35 | AM138: 625
A139: =S139 -> 428035650 | B139: =T139 -> BROOKE | C139: =ROUND(U139,0) -> 0 | D139: =ROUND(V139,0) -> 0 | E139: =ROUND(W139,0) -> 0 | F139: =ROUND(X139,0) -> 1 | G139: =ROUND(Y139,0) -> 0 | H139: =ROUND(Z139,0) -> 0 | I139: =ROUND(0.0375*(SUM(E139:H139)+ROUND(D139*0.5,4)+ROUND(L139*0.5,4)+M139),4)+ROUND((0.0475)*N139,4) -> 0.0375 | K139: =ROUND(AA139,0) -> 0 | L139: =ROUND(AB139,0) -> 0 | M139: =ROUND(AC139,0) -> 0 | N139: =ROUND(AD139,0) -> 0 | O139: =ROUND(AE139,0) -> 1 | P139: =ROUND((AF139+AG139)/2,0)+ROUND(AH139+AI139,0) -> 0 | Q139: =SUM(E139:H139)+M139+N139+ROUND(C139*0.5,0)+ROUND(D139*0.5,0)+ROUND(K139*0.5,0)+ROUND(L139*0.5,0) -> 1 | S139: 428035650 | T139: BROOKE | U139: 0 | V139: 0 | W139: 0 | X139: 1 | Y139: 0 | Z139: 0 | AA139: 0 | AB139: 0 | AC139: 0 | AD139: 0 | AE139: 1 | AF139: 0 | AG139: 0 | AH139: 0 | AI139: 0 | AK139: 428 | AL139: 35 | AM139: 650
A140: 429163030 | B140: KIPP ACADEMY LYNN | C140: 0 | D140: 0 | E140: 0 | F140: 1 | G140: 3 | H140: 2 | I140: 0.225 | K140: 0 | L140: 0 | M140: 0 | N140: 0 | O140: 4 | P140: 2 | Q140: 6 | S140: 429163030 | T140: KIPP ACADEMY LYNN | U140: 0 | V140: 0 | W140: 0 | X140: 1 | Y140: 3 | Z140: 2 | AA140: 0 | AB140: 0 | AC140: 0 | AD140: 0 | AE140: 4 | AF140: 0 | AG140: 0 | AH140: 0 | AI140: 2 | AK140: 429 | AL140: 163 | AM140: 30
A141: 429163057 | B141: KIPP ACADEMY LYNN | C141: 0 | D141: 0 | E141: 0 | F141: 0 | G141: 0 | H141: 1 | I141: 0.075 | K141: 0 | L141: 0 | M141: 1 | N141: 0 | O141: 1 | P141: 1 | Q141: 2 | S141: 429163057 | T141: KIPP ACADEMY LYNN | U141: 0 | V141: 0 | W141: 0 | X141: 0 | Y141: 0 | Z141: 1 | AA141: 0 | AB141: 0 | AC141: 1 | AD141: 0 | AE141: 1 | AF141: 0 | AG141: 0 | AH141: 0 | AI141: 1 | AK141: 429 | AL141: 163 | AM141: 57
A142: 429163163 | B142: KIPP ACADEMY LYNN | C142: 0 | D142: 0 | E142: 95 | F142: 25 | G142: 280 | H142: 359 | I142: 37.5375 | K142: 0 | L142: 0 | M142: 242 | N142: 0 | O142: 393 | P142: 444 | Q142: 1001 | S142: 429163163 | T142: KIPP ACADEMY LYNN | U142: 0 | V142: 0 | W142: 95 | X142: 25 | Y142: 280 | Z142: 359 | AA142: 0 | AB142: 0 | AC142: 242 | AD142: 0 | AE142: 393 | AF142: 0 | AG142: 0 | AH142: 102 | AI142: 342 | AK142: 429 | AL142: 163 | AM142: 163
A143: 429163164 | B143: KIPP ACADEMY LYNN | C143: 0 | D143: 0 | E143: 0 | F143: 0 | G143: 0 | H143: 1 | I143: 0.075 | K143: 0 | L143: 0 | M143: 1 | N143: 0 | O143: 1 | P143: 1 | Q143: 2 | S143: 429163164 | T143: KIPP ACADEMY LYNN | U143: 0 | V143: 0 | W143: 0 | X143: 0 | Y143: 0 | Z143: 1 | AA143: 0 | AB143: 0 | AC143: 1 | AD143: 0 | AE143: 1 | AF143: 0 | AG143: 0 | AH143: 0 | AI143: 1 | AK143: 429 | AL143: 163 | AM143: 164
A144: 429163168 | B144: KIPP ACADEMY LYNN | C144: 0 | D144: 0 | E144: 0 | F144: 0 | G144: 1 | H144: 1 | I144: 0.075 | K144: 0 | L144: 0 | M144: 0 | N144: 0 | O144: 0 | P144: 0 | Q144: 2 | S144: 429163168 | T144: KIPP ACADEMY LYNN | U144: 0 | V144: 0 | W144: 0 | X144: 0 | Y144: 1 | Z144: 1 | AA144: 0 | AB144: 0 | AC144: 0 | AD144: 0 | AE144: 0 | AF144: 0 | AG144: 0 | AH144: 0 | AI144: 0 | AK144: 429 | AL144: 163 | AM144: 168
A145: 429163176 | B145: KIPP ACADEMY LYNN | C145: 0 | D145: 0 | E145: 0 | F145: 0 | G145: 0 | H145: 1 | I145: 0.0375 | K145: 0 | L145: 0 | M145: 0 | N145: 0 | O145: 0 | P145: 1 | Q145: 1 | S145: 429163176 | T145: KIPP ACADEMY LYNN | U145: 0 | V145: 0 | W145: 0 | X145: 0 | Y145: 0 | Z145: 1 | AA145: 0 | AB145: 0 | AC145: 0 | AD145: 0 | AE145: 0 | AF145: 0 | AG145: 0 | AH145: 0 | AI145: 1 | AK145: 429 | AL145: 163 | AM145: 176
A146: 429163229 | B146: KIPP ACADEMY LYNN | C146: 0 | D146: 0 | E146: 0 | F146: 0 | G146: 0 | H146: 5 | I146: 0.1875 | K146: 0 | L146: 0 | M146: 0 | N146: 0 | O146: 0 | P146: 4 | Q146: 5 | S146: 429163229 | T146: KIPP ACADEMY LYNN | U146: 0 | V146: 0 | W146: 0 | X146: 0 | Y146: 0 | Z146: 5 | AA146: 0 | AB146: 0 | AC146: 0 | AD146: 0 | AE146: 0 | AF146: 0 | AG146: 0 | AH146: 0 | AI146: 4 | AK146: 429 | AL146: 163 | AM146: 229
A147: 429163248 | B147: KIPP ACADEMY LYNN | C147: 0 | D147: 0 | E147: 0 | F147: 0 | G147: 0 | H147: 1 | I147: 0.0375 | K147: 0 | L147: 0 | M147: 0 | N147: 0 | O147: 0 | P147: 1 | Q147: 1 | S147: 429163248 | T147: KIPP ACADEMY LYNN | U147: 0 | V147: 0 | W147: 0 | X147: 0 | Y147: 0 | Z147: 1 | AA147: 0 | AB147: 0 | AC147: 0 | AD147: 0 | AE147: 0 | AF147: 0 | AG147: 0 | AH147: 0 | AI147: 1 | AK147: 429 | AL147: 163 | AM147: 248
A148: 429163258 | B148: KIPP ACADEMY LYNN | C148: 0 | D148: 0 | E148: 0 | F148: 0 | G148: 1 | H148: 6 | I148: 0.3375 | K148: 0 | L148: 0 | M148: 2 | N148: 0 | O148: 2 | P148: 5 | Q148: 9 | S148: 429163258 | T148: KIPP ACADEMY LYNN | U148: 0 | V148: 0 | W148: 0 | X148: 0 | Y148: 1 | Z148: 6 | AA148: 0 | AB148: 0 | AC148: 2 | AD148: 0 | AE148: 2 | AF148: 0 | AG148: 0 | AH148: 0 | AI148: 5 | AK148: 429 | AL148: 163 | AM148: 258
A149: 429163262 | B149: KIPP ACADEMY LYNN | C149: 0 | D149: 0 | E149: 0 | F149: 0 | G149: 1 | H149: 2 | I149: 0.15 | K149: 0 | L149: 0 | M149: 1 | N149: 0 | O149: 2 | P149: 2 | Q149: 4 | S149: 429163262 | T149: KIPP ACADEMY LYNN | U149: 0 | V149: 0 | W149: 0 | X149: 0 | Y149: 1 | Z149: 2 | AA149: 0 | AB149: 0 | AC149: 1 | AD149: 0 | AE149: 2 | AF149: 0 | AG149: 0 | AH149: 0 | AI149: 2 | AK149: 429 | AL149: 163 | AM149: 262
A150: 429163291 | B150: KIPP ACADEMY LYNN | C150: 0 | D150: 0 | E150: 0 | F150: 0 | G150: 1 | H150: 3 | I150: 0.15 | K150: 0 | L150: 0 | M150: 0 | N150: 0 | O150: 0 | P150: 0 | Q150: 4 | S150: 429163291 | T150: KIPP ACADEMY LYNN | U150: 0 | V150: 0 | W150: 0 | X150: 0 | Y150: 1 | Z150: 3 | AA150: 0 | AB150: 0 | AC150: 0 | AD150: 0 | AE150: 0 | AF150: 0 | AG150: 0 | AH150: 0 | AI150: 0 | AK150: 429 | AL150: 163 | AM150: 291
A151: 430170009 | B151: ADVANCED MATH AND SCIENCE ACADEMY | C151: 0 | D151: 0 | E151: 0 | F151: 0 | G151: 1 | H151: 0 | I151: 0.0375 | K151: 0 | L151: 0 | M151: 0 | N151: 0 | O151: 0 | P151: 0 | Q151: 1 | S151: 430170009 | T151: ADVANCED MATH AND SCIENCE ACADEMY | U151: 0 | V151: 0 | W151: 0 | X151: 0 | Y151: 1 | Z151: 0 | AA151: 0 | AB151: 0 | AC151: 0 | AD151: 0 | AE151: 0 | AF151: 0 | AG151: 0 | AH151: 0 | AI151: 0 | AK151: 430 | AL151: 170 | AM151: 9
A152: 430170014 | B152: ADVANCED MATH AND SCIENCE ACADEMY | C152: 0 | D152: 0 | E152: 0 | F152: 0 | G152: 8 | H152: 23 | I152: 1.1625 | K152: 0 | L152: 0 | M152: 0 | N152: 0 | O152: 0 | P152: 2 | Q152: 31 | S152: 430170014 | T152: ADVANCED MATH AND SCIENCE ACADEMY | U152: 0 | V152: 0 | W152: 0 | X152: 0 | Y152: 8 | Z152: 23 | AA152: 0 | AB152: 0 | AC152: 0 | AD152: 0 | AE152: 0 | AF152: 0 | AG152: 0 | AH152: 0 | AI152: 2 | AK152: 430 | AL152: 170 | AM152: 14
A153: 430170017 | B153: ADVANCED MATH AND SCIENCE ACADEMY | C153: 0 | D153: 0 | E153: 0 | F153: 0 | G153: 0 | H153: 1 | I153: 0.0375 | K153: 0 | L153: 0 | M153: 0 | N153: 0 | O153: 0 | P153: 0 | Q153: 1 | S153: 430170017 | T153: ADVANCED MATH AND SCIENCE ACADEMY | U153: 0 | V153: 0 | W153: 0 | X153: 0 | Y153: 0 | Z153: 1 | AA153: 0 | AB153: 0 | AC153: 0 | AD153: 0 | AE153: 0 | AF153: 0 | AG153: 0 | AH153: 0 | AI153: 0 | AK153: 430 | AL153: 170 | AM153: 17
A154: 430170031 | B154: ADVANCED MATH AND SCIENCE ACADEMY | C154: 0 | D154: 0 | E154: 0 | F154: 0 | G154: 0 | H154: 2 | I154: 0.075 | K154: 0 | L154: 0 | M154: 0 | N154: 0 | O154: 0 | P154: 0 | Q154: 2 | S154: 430170031 | T154: ADVANCED MATH AND SCIENCE ACADEMY | U154: 0 | V154: 0 | W154: 0 | X154: 0 | Y154: 0 | Z154: 2 | AA154: 0 | AB154: 0 | AC154: 0 | AD154: 0 | AE154: 0 | AF154: 0 | AG154: 0 | AH154: 0 | AI154: 0 | AK154: 430 | AL154: 170 | AM154: 31
A155: 430170056 | B155: ADVANCED MATH AND SCIENCE ACADEMY | C155: 0 | D155: 0 | E155: 0 | F155: 0 | G155: 0 | H155: 1 | I155: 0.0375 | K155: 0 | L155: 0 | M155: 0 | N155: 0 | O155: 0 | P155: 0 | Q155: 1 | S155: 430170056 | T155: ADVANCED MATH AND SCIENCE ACADEMY | U155: 0 | V155: 0 | W155: 0 | X155: 0 | Y155: 0 | Z155: 1 | AA155: 0 | AB155: 0 | AC155: 0 | AD155: 0 | AE155: 0 | AF155: 0 | AG155: 0 | AH155: 0 | AI155: 0 | AK155: 430 | AL155: 170 | AM155: 56
A156: 430170064 | B156: ADVANCED MATH AND SCIENCE ACADEMY | C156: 0 | D156: 0 | E156: 0 | F156: 0 | G156: 26 | H156: 20 | I156: 1.725 | K156: 0 | L156: 0 | M156: 0 | N156: 0 | O156: 0 | P156: 0 | Q156: 46 | S156: 430170064 | T156: ADVANCED MATH AND SCIENCE ACADEMY | U156: 0 | V156: 0 | W156: 0 | X156: 0 | Y156: 26 | Z156: 20 | AA156: 0 | AB156: 0 | AC156: 0 | AD156: 0 | AE156: 0 | AF156: 0 | AG156: 0 | AH156: 0 | AI156: 0 | AK156: 430 | AL156: 170 | AM156: 64
A157: 430170100 | B157: ADVANCED MATH AND SCIENCE ACADEMY | C157: 0 | D157: 0 | E157: 0 | F157: 0 | G157: 8 | H157: 33 | I157: 1.5375 | K157: 0 | L157: 0 | M157: 0 | N157: 0 | O157: 1 | P157: 5 | Q157: 41 | S157: 430170100 | T157: ADVANCED MATH AND SCIENCE ACADEMY | U157: 0 | V157: 0 | W157: 0 | X157: 0 | Y157: 8 | Z157: 33 | AA157: 0 | AB157: 0 | AC157: 0 | AD157: 0 | AE157: 1 | AF157: 0 | AG157: 0 | AH157: 0 | AI157: 5 | AK157: 430 | AL157: 170 | AM157: 100
A158: 430170101 | B158: ADVANCED MATH AND SCIENCE ACADEMY | C158: 0 | D158: 0 | E158: 0 | F158: 0 | G158: 1 | H158: 0 | I158: 0.0375 | K158: 0 | L158: 0 | M158: 0 | N158: 0 | O158: 0 | P158: 0 | Q158: 1 | S158: 430170101 | T158: ADVANCED MATH AND SCIENCE ACADEMY | U158: 0 | V158: 0 | W158: 0 | X158: 0 | Y158: 1 | Z158: 0 | AA158: 0 | AB158: 0 | AC158: 0 | AD158: 0 | AE158: 0 | AF158: 0 | AG158: 0 | AH158: 0 | AI158: 0 | AK158: 430 | AL158: 170 | AM158: 101
A159: 430170110 | B159: ADVANCED MATH AND SCIENCE ACADEMY | C159: 0 | D159: 0 | E159: 0 | F159: 0 | G159: 14 | H159: 28 | I159: 1.575 | K159: 0 | L159: 0 | M159: 0 | N159: 0 | O159: 1 | P159: 0 | Q159: 42 | S159: 430170110 | T159: ADVANCED MATH AND SCIENCE ACADEMY | U159: 0 | V159: 0 | W159: 0 | X159: 0 | Y159: 14 | Z159: 28 | AA159: 0 | AB159: 0 | AC159: 0 | AD159: 0 | AE159: 1 | AF159: 0 | AG159: 0 | AH159: 0 | AI159: 0 | AK159: 430 | AL159: 170 | AM159: 110
A160: 430170125 | B160: ADVANCED MATH AND SCIENCE ACADEMY | C160: 0 | D160: 0 | E160: 0 | F160: 0 | G160: 0 | H160: 3 | I160: 0.1125 | K160: 0 | L160: 0 | M160: 0 | N160: 0 | O160: 0 | P160: 0 | Q160: 3 | S160: 430170125 | T160: ADVANCED MATH AND SCIENCE ACADEMY | U160: 0 | V160: 0 | W160: 0 | X160: 0 | Y160: 0 | Z160: 3 | AA160: 0 | AB160: 0 | AC160: 0 | AD160: 0 | AE160: 0 | AF160: 0 | AG160: 0 | AH160: 0 | AI160: 0 | AK160: 430 | AL160: 170 | AM160: 125
A161: 430170136 | B161: ADVANCED MATH AND SCIENCE ACADEMY | C161: 0 | D161: 0 | E161: 0 | F161: 0 | G161: 0 | H161: 2 | I161: 0.075 | K161: 0 | L161: 0 | M161: 0 | N161: 0 | O161: 0 | P161: 0 | Q161: 2 | S161: 430170136 | T161: ADVANCED MATH AND SCIENCE ACADEMY | U161: 0 | V161: 0 | W161: 0 | X161: 0 | Y161: 0 | Z161: 2 | AA161: 0 | AB161: 0 | AC161: 0 | AD161: 0 | AE161: 0 | AF161: 0 | AG161: 0 | AH161: 0 | AI161: 0 | AK161: 430 | AL161: 170 | AM161: 136
A162: 430170138 | B162: ADVANCED MATH AND SCIENCE ACADEMY | C162: 0 | D162: 0 | E162: 0 | F162: 0 | G162: 0 | H162: 1 | I162: 0.0375 | K162: 0 | L162: 0 | M162: 0 | N162: 0 | O162: 0 | P162: 0 | Q162: 1 | S162: 430170138 | T162: ADVANCED MATH AND SCIENCE ACADEMY | U162: 0 | V162: 0 | W162: 0 | X162: 0 | Y162: 0 | Z162: 1 | AA162: 0 | AB162: 0 | AC162: 0 | AD162: 0 | AE162: 0 | AF162: 0 | AG162: 0 | AH162: 0 | AI162: 0 | AK162: 430 | AL162: 170 | AM162: 138
A163: 430170139 | B163: ADVANCED MATH AND SCIENCE ACADEMY | C163: 0 | D163: 0 | E163: 0 | F163: 0 | G163: 5 | H163: 8 | I163: 0.4875 | K163: 0 | L163: 0 | M163: 0 | N163: 0 | O163: 0 | P163: 0 | Q163: 13 | S163: 430170139 | T163: ADVANCED MATH AND SCIENCE ACADEMY | U163: 0 | V163: 0 | W163: 0 | X163: 0 | Y163: 5 | Z163: 8 | AA163: 0 | AB163: 0 | AC163: 0 | AD163: 0 | AE163: 0 | AF163: 0 | AG163: 0 | AH163: 0 | AI163: 0 | AK163: 430 | AL163: 170 | AM163: 139
A164: 430170141 | B164: ADVANCED MATH AND SCIENCE ACADEMY | C164: 0 | D164: 0 | E164: 0 | F164: 0 | G164: 39 | H164: 44 | I164: 3.15 | K164: 0 | L164: 0 | M164: 1 | N164: 0 | O164: 3 | P164: 4 | Q164: 84 | S164: 430170141 | T164: ADVANCED MATH AND SCIENCE ACADEMY | U164: 0 | V164: 0 | W164: 0 | X164: 0 | Y164: 39 | Z164: 44 | AA164: 0 | AB164: 0 | AC164: 1 | AD164: 0 | AE164: 3 | AF164: 0 | AG164: 0 | AH164: 0 | AI164: 4 | AK164: 430 | AL164: 170 | AM164: 141
A165: 430170153 | B165: ADVANCED MATH AND SCIENCE ACADEMY | C165: 0 | D165: 0 | E165: 0 | F165: 0 | G165: 0 | H165: 1 | I165: 0.0375 | K165: 0 | L165: 0 | M165: 0 | N165: 0 | O165: 0 | P165: 0 | Q165: 1 | S165: 430170153 | T165: ADVANCED MATH AND SCIENCE ACADEMY | U165: 0 | V165: 0 | W165: 0 | X165: 0 | Y165: 0 | Z165: 1 | AA165: 0 | AB165: 0 | AC165: 0 | AD165: 0 | AE165: 0 | AF165: 0 | AG165: 0 | AH165: 0 | AI165: 0 | AK165: 430 | AL165: 170 | AM165: 153
A166: 430170158 | B166: ADVANCED MATH AND SCIENCE ACADEMY | C166: 0 | D166: 0 | E166: 0 | F166: 0 | G166: 2 | H166: 3 | I166: 0.1875 | K166: 0 | L166: 0 | M166: 0 | N166: 0 | O166: 0 | P166: 0 | Q166: 5 | S166: 430170158 | T166: ADVANCED MATH AND SCIENCE ACADEMY | U166: 0 | V166: 0 | W166: 0 | X166: 0 | Y166: 2 | Z166: 3 | AA166: 0 | AB166: 0 | AC166: 0 | AD166: 0 | AE166: 0 | AF166: 0 | AG166: 0 | AH166: 0 | AI166: 0 | AK166: 430 | AL166: 170 | AM166: 158
A167: 430170170 | B167: ADVANCED MATH AND SCIENCE ACADEMY | C167: 0 | D167: 0 | E167: 0 | F167: 0 | G167: 261 | H167: 213 | I167: 17.775 | K167: 0 | L167: 0 | M167: 0 | N167: 0 | O167: 16 | P167: 9 | Q167: 474 | S167: 430170170 | T167: ADVANCED MATH AND SCIENCE ACADEMY | U167: 0 | V167: 0 | W167: 0 | X167: 0 | Y167: 261 | Z167: 213 | AA167: 0 | AB167: 0 | AC167: 0 | AD167: 0 | AE167: 16 | AF167: 0 | AG167: 0 | AH167: 0 | AI167: 9 | AK167: 430 | AL167: 170 | AM167: 170
A168: 430170174 | B168: ADVANCED MATH AND SCIENCE ACADEMY | C168: 0 | D168: 0 | E168: 0 | F168: 0 | G168: 17 | H168: 5 | I168: 0.825 | K168: 0 | L168: 0 | M168: 0 | N168: 0 | O168: 2 | P168: 0 | Q168: 22 | S168: 430170174 | T168: ADVANCED MATH AND SCIENCE ACADEMY | U168: 0 | V168: 0 | W168: 0 | X168: 0 | Y168: 17 | Z168: 5 | AA168: 0 | AB168: 0 | AC168: 0 | AD168: 0 | AE168: 2 | AF168: 0 | AG168: 0 | AH168: 0 | AI168: 0 | AK168: 430 | AL168: 170 | AM168: 174
A169: 430170177 | B169: ADVANCED MATH AND SCIENCE ACADEMY | C169: 0 | D169: 0 | E169: 0 | F169: 0 | G169: 2 | H169: 3 | I169: 0.1875 | K169: 0 | L169: 0 | M169: 0 | N169: 0 | O169: 0 | P169: 0 | Q169: 5 | S169: 430170177 | T169: ADVANCED MATH AND SCIENCE ACADEMY | U169: 0 | V169: 0 | W169: 0 | X169: 0 | Y169: 2 | Z169: 3 | AA169: 0 | AB169: 0 | AC169: 0 | AD169: 0 | AE169: 0 | AF169: 0 | AG169: 0 | AH169: 0 | AI169: 0 | AK169: 430 | AL169: 170 | AM169: 177
A170: 430170198 | B170: ADVANCED MATH AND SCIENCE ACADEMY | C170: 0 | D170: 0 | E170: 0 | F170: 0 | G170: 1 | H170: 6 | I170: 0.2625 | K170: 0 | L170: 0 | M170: 0 | N170: 0 | O170: 0 | P170: 0 | Q170: 7 | S170: 430170198 | T170: ADVANCED MATH AND SCIENCE ACADEMY | U170: 0 | V170: 0 | W170: 0 | X170: 0 | Y170: 1 | Z170: 6 | AA170: 0 | AB170: 0 | AC170: 0 | AD170: 0 | AE170: 0 | AF170: 0 | AG170: 0 | AH170: 0 | AI170: 0 | AK170: 430 | AL170: 170 | AM170: 198
A171: 430170207 | B171: ADVANCED MATH AND SCIENCE ACADEMY | C171: 0 | D171: 0 | E171: 0 | F171: 0 | G171: 0 | H171: 2 | I171: 0.075 | K171: 0 | L171: 0 | M171: 0 | N171: 0 | O171: 0 | P171: 0 | Q171: 2 | S171: 430170207 | T171: ADVANCED MATH AND SCIENCE ACADEMY | U171: 0 | V171: 0 | W171: 0 | X171: 0 | Y171: 0 | Z171: 2 | AA171: 0 | AB171: 0 | AC171: 0 | AD171: 0 | AE171: 0 | AF171: 0 | AG171: 0 | AH171: 0 | AI171: 0 | AK171: 430 | AL171: 170 | AM171: 207
A172: 430170213 | B172: ADVANCED MATH AND SCIENCE ACADEMY | C172: 0 | D172: 0 | E172: 0 | F172: 0 | G172: 4 | H172: 0 | I172: 0.15 | K172: 0 | L172: 0 | M172: 0 | N172: 0 | O172: 0 | P172: 0 | Q172: 4 | S172: 430170213 | T172: ADVANCED MATH AND SCIENCE ACADEMY | U172: 0 | V172: 0 | W172: 0 | X172: 0 | Y172: 4 | Z172: 0 | AA172: 0 | AB172: 0 | AC172: 0 | AD172: 0 | AE172: 0 | AF172: 0 | AG172: 0 | AH172: 0 | AI172: 0 | AK172: 430 | AL172: 170 | AM172: 213
A173: 430170271 | B173: ADVANCED MATH AND SCIENCE ACADEMY | C173: 0 | D173: 0 | E173: 0 | F173: 0 | G173: 15 | H173: 48 | I173: 2.3625 | K173: 0 | L173: 0 | M173: 0 | N173: 0 | O173: 1 | P173: 1 | Q173: 63 | S173: 430170271 | T173: ADVANCED MATH AND SCIENCE ACADEMY | U173: 0 | V173: 0 | W173: 0 | X173: 0 | Y173: 15 | Z173: 48 | AA173: 0 | AB173: 0 | AC173: 0 | AD173: 0 | AE173: 1 | AF173: 0 | AG173: 0 | AH173: 0 | AI173: 1 | AK173: 430 | AL173: 170 | AM173: 271
A174: 430170304 | B174: ADVANCED MATH AND SCIENCE ACADEMY | C174: 0 | D174: 0 | E174: 0 | F174: 0 | G174: 0 | H174: 1 | I174: 0.0375 | K174: 0 | L174: 0 | M174: 0 | N174: 0 | O174: 0 | P174: 0 | Q174: 1 | S174: 430170304 | T174: ADVANCED MATH AND SCIENCE ACADEMY | U174: 0 | V174: 0 | W174: 0 | X174: 0 | Y174: 0 | Z174: 1 | AA174: 0 | AB174: 0 | AC174: 0 | AD174: 0 | AE174: 0 | AF174: 0 | AG174: 0 | AH174: 0 | AI174: 0 | AK174: 430 | AL174: 170 | AM174: 304
A175: 430170308 | B175: ADVANCED MATH AND SCIENCE ACADEMY | C175: 0 | D175: 0 | E175: 0 | F175: 0 | G175: 1 | H175: 2 | I175: 0.1125 | K175: 0 | L175: 0 | M175: 0 | N175: 0 | O175: 0 | P175: 0 | Q175: 3 | S175: 430170308 | T175: ADVANCED MATH AND SCIENCE ACADEMY | U175: 0 | V175: 0 | W175: 0 | X175: 0 | Y175: 1 | Z175: 2 | AA175: 0 | AB175: 0 | AC175: 0 | AD175: 0 | AE175: 0 | AF175: 0 | AG175: 0 | AH175: 0 | AI175: 0 | AK175: 430 | AL175: 170 | AM175: 308
A176: 430170314 | B176: ADVANCED MATH AND SCIENCE ACADEMY | C176: 0 | D176: 0 | E176: 0 | F176: 0 | G176: 1 | H176: 1 | I176: 0.075 | K176: 0 | L176: 0 | M176: 0 | N176: 0 | O176: 0 | P176: 0 | Q176: 2 | S176: 430170314 | T176: ADVANCED MATH AND SCIENCE ACADEMY | U176: 0 | V176: 0 | W176: 0 | X176: 0 | Y176: 1 | Z176: 1 | AA176: 0 | AB176: 0 | AC176: 0 | AD176: 0 | AE176: 0 | AF176: 0 | AG176: 0 | AH176: 0 | AI176: 0 | AK176: 430 | AL176: 170 | AM176: 314
A177: 430170317 | B177: ADVANCED MATH AND SCIENCE ACADEMY | C177: 0 | D177: 0 | E177: 0 | F177: 0 | G177: 0 | H177: 1 | I177: 0.0375 | K177: 0 | L177: 0 | M177: 0 | N177: 0 | O177: 0 | P177: 0 | Q177: 1 | S177: 430170317 | T177: ADVANCED MATH AND SCIENCE ACADEMY | U177: 0 | V177: 0 | W177: 0 | X177: 0 | Y177: 0 | Z177: 1 | AA177: 0 | AB177: 0 | AC177: 0 | AD177: 0 | AE177: 0 | AF177: 0 | AG177: 0 | AH177: 0 | AI177: 0 | AK177: 430 | AL177: 170 | AM177: 317
A178: 430170321 | B178: ADVANCED MATH AND SCIENCE ACADEMY | C178: 0 | D178: 0 | E178: 0 | F178: 0 | G178: 2 | H178: 3 | I178: 0.1875 | K178: 0 | L178: 0 | M178: 0 | N178: 0 | O178: 0 | P178: 0 | Q178: 5 | S178: 430170321 | T178: ADVANCED MATH AND SCIENCE ACADEMY | U178: 0 | V178: 0 | W178: 0 | X178: 0 | Y178: 2 | Z178: 3 | AA178: 0 | AB178: 0 | AC178: 0 | AD178: 0 | AE178: 0 | AF178: 0 | AG178: 0 | AH178: 0 | AI178: 0 | AK178: 430 | AL178: 170 | AM178: 321
A179: 430170322 | B179: ADVANCED MATH AND SCIENCE ACADEMY | C179: 0 | D179: 0 | E179: 0 | F179: 0 | G179: 7 | H179: 8 | I179: 0.5625 | K179: 0 | L179: 0 | M179: 0 | N179: 0 | O179: 0 | P179: 0 | Q179: 15 | S179: 430170322 | T179: ADVANCED MATH AND SCIENCE ACADEMY | U179: 0 | V179: 0 | W179: 0 | X179: 0 | Y179: 7 | Z179: 8 | AA179: 0 | AB179: 0 | AC179: 0 | AD179: 0 | AE179: 0 | AF179: 0 | AG179: 0 | AH179: 0 | AI179: 0 | AK179: 430 | AL179: 170 | AM179: 322
A180: 430170326 | B180: ADVANCED MATH AND SCIENCE ACADEMY | C180: 0 | D180: 0 | E180: 0 | F180: 0 | G180: 1 | H180: 2 | I180: 0.1125 | K180: 0 | L180: 0 | M180: 0 | N180: 0 | O180: 0 | P180: 0 | Q180: 3 | S180: 430170326 | T180: ADVANCED MATH AND SCIENCE ACADEMY | U180: 0 | V180: 0 | W180: 0 | X180: 0 | Y180: 1 | Z180: 2 | AA180: 0 | AB180: 0 | AC180: 0 | AD180: 0 | AE180: 0 | AF180: 0 | AG180: 0 | AH180: 0 | AI180: 0 | AK180: 430 | AL180: 170 | AM180: 326
A181: 430170348 | B181: ADVANCED MATH AND SCIENCE ACADEMY | C181: 0 | D181: 0 | E181: 0 | F181: 0 | G181: 7 | H181: 31 | I181: 1.425 | K181: 0 | L181: 0 | M181: 0 | N181: 0 | O181: 1 | P181: 5 | Q181: 38 | S181: 430170348 | T181: ADVANCED MATH AND SCIENCE ACADEMY | U181: 0 | V181: 0 | W181: 0 | X181: 0 | Y181: 7 | Z181: 31 | AA181: 0 | AB181: 0 | AC181: 0 | AD181: 0 | AE181: 1 | AF181: 0 | AG181: 0 | AH181: 0 | AI181: 5 | AK181: 430 | AL181: 170 | AM181: 348
A182: 430170616 | B182: ADVANCED MATH AND SCIENCE ACADEMY | C182: 0 | D182: 0 | E182: 0 | F182: 0 | G182: 0 | H182: 3 | I182: 0.1125 | K182: 0 | L182: 0 | M182: 0 | N182: 0 | O182: 0 | P182: 0 | Q182: 3 | S182: 430170616 | T182: ADVANCED MATH AND SCIENCE ACADEMY | U182: 0 | V182: 0 | W182: 0 | X182: 0 | Y182: 0 | Z182: 3 | AA182: 0 | AB182: 0 | AC182: 0 | AD182: 0 | AE182: 0 | AF182: 0 | AG182: 0 | AH182: 0 | AI182: 0 | AK182: 430 | AL182: 170 | AM182: 616
A183: 430170620 | B183: ADVANCED MATH AND SCIENCE ACADEMY | C183: 0 | D183: 0 | E183: 0 | F183: 0 | G183: 1 | H183: 15 | I183: 0.6 | K183: 0 | L183: 0 | M183: 0 | N183: 0 | O183: 0 | P183: 0 | Q183: 16 | S183: 430170620 | T183: ADVANCED MATH AND SCIENCE ACADEMY | U183: 0 | V183: 0 | W183: 0 | X183: 0 | Y183: 1 | Z183: 15 | AA183: 0 | AB183: 0 | AC183: 0 | AD183: 0 | AE183: 0 | AF183: 0 | AG183: 0 | AH183: 0 | AI183: 0 | AK183: 430 | AL183: 170 | AM183: 620
A184: 430170695 | B184: ADVANCED MATH AND SCIENCE ACADEMY | C184: 0 | D184: 0 | E184: 0 | F184: 0 | G184: 0 | H184: 1 | I184: 0.0375 | K184: 0 | L184: 0 | M184: 0 | N184: 0 | O184: 0 | P184: 0 | Q184: 1 | S184: 430170695 | T184: ADVANCED MATH AND SCIENCE ACADEMY | U184: 0 | V184: 0 | W184: 0 | X184: 0 | Y184: 0 | Z184: 1 | AA184: 0 | AB184: 0 | AC184: 0 | AD184: 0 | AE184: 0 | AF184: 0 | AG184: 0 | AH184: 0 | AI184: 0 | AK184: 430 | AL184: 170 | AM184: 695
A185: 430170710 | B185: ADVANCED MATH AND SCIENCE ACADEMY | C185: 0 | D185: 0 | E185: 0 | F185: 0 | G185: 2 | H185: 8 | I185: 0.375 | K185: 0 | L185: 0 | M185: 0 | N185: 0 | O185: 0 | P185: 0 | Q185: 10 | S185: 430170710 | T185: ADVANCED MATH AND SCIENCE ACADEMY | U185: 0 | V185: 0 | W185: 0 | X185: 0 | Y185: 2 | Z185: 8 | AA185: 0 | AB185: 0 | AC185: 0 | AD185: 0 | AE185: 0 | AF185: 0 | AG185: 0 | AH185: 0 | AI185: 0 | AK185: 430 | AL185: 170 | AM185: 710
A186: 430170725 | B186: ADVANCED MATH AND SCIENCE ACADEMY | C186: 0 | D186: 0 | E186: 0 | F186: 0 | G186: 0 | H186: 7 | I186: 0.2625 | K186: 0 | L186: 0 | M186: 0 | N186: 0 | O186: 0 | P186: 0 | Q186: 7 | S186: 430170725 | T186: ADVANCED MATH AND SCIENCE ACADEMY | U186: 0 | V186: 0 | W186: 0 | X186: 0 | Y186: 0 | Z186: 7 | AA186: 0 | AB186: 0 | AC186: 0 | AD186: 0 | AE186: 0 | AF186: 0 | AG186: 0 | AH186: 0 | AI186: 0 | AK186: 430 | AL186: 170 | AM186: 725
A187: 430170730 | B187: ADVANCED MATH AND SCIENCE ACADEMY | C187: 0 | D187: 0 | E187: 0 | F187: 0 | G187: 0 | H187: 27 | I187: 1.0125 | K187: 0 | L187: 0 | M187: 0 | N187: 0 | O187: 0 | P187: 0 | Q187: 27 | S187: 430170730 | T187: ADVANCED MATH AND SCIENCE ACADEMY | U187: 0 | V187: 0 | W187: 0 | X187: 0 | Y187: 0 | Z187: 27 | AA187: 0 | AB187: 0 | AC187: 0 | AD187: 0 | AE187: 0 | AF187: 0 | AG187: 0 | AH187: 0 | AI187: 0 | AK187: 430 | AL187: 170 | AM187: 730
A188: 430170735 | B188: ADVANCED MATH AND SCIENCE ACADEMY | C188: 0 | D188: 0 | E188: 0 | F188: 0 | G188: 1 | H188: 2 | I188: 0.1125 | K188: 0 | L188: 0 | M188: 0 | N188: 0 | O188: 0 | P188: 0 | Q188: 3 | S188: 430170735 | T188: ADVANCED MATH AND SCIENCE ACADEMY | U188: 0 | V188: 0 | W188: 0 | X188: 0 | Y188: 1 | Z188: 2 | AA188: 0 | AB188: 0 | AC188: 0 | AD188: 0 | AE188: 0 | AF188: 0 | AG188: 0 | AH188: 0 | AI188: 0 | AK188: 430 | AL188: 170 | AM188: 735
A189: 430170775 | B189: ADVANCED MATH AND SCIENCE ACADEMY | C189: 0 | D189: 0 | E189: 0 | F189: 0 | G189: 0 | H189: 2 | I189: 0.075 | K189: 0 | L189: 0 | M189: 0 | N189: 0 | O189: 0 | P189: 0 | Q189: 2 | S189: 430170775 | T189: ADVANCED MATH AND SCIENCE ACADEMY | U189: 0 | V189: 0 | W189: 0 | X189: 0 | Y189: 0 | Z189: 2 | AA189: 0 | AB189: 0 | AC189: 0 | AD189: 0 | AE189: 0 | AF189: 0 | AG189: 0 | AH189: 0 | AI189: 0 | AK189: 430 | AL189: 170 | AM189: 775
A190: 431149128 | B190: COMMUNITY DAY - R. KINGMAN WEBSTER | C190: 0 | D190: 0 | E190: 0 | F190: 1 | G190: 0 | H190: 0 | I190: 0.0375 | K190: 0 | L190: 0 | M190: 0 | N190: 0 | O190: 1 | P190: 0 | Q190: 1 | S190: 431149128 | T190: COMMUNITY DAY - R. KINGMAN WEBSTER | U190: 0 | V190: 0 | W190: 0 | X190: 1 | Y190: 0 | Z190: 0 | AA190: 0 | AB190: 0 | AC190: 0 | AD190: 0 | AE190: 1 | AF190: 0 | AG190: 0 | AH190: 0 | AI190: 0 | AK190: 431 | AL190: 149 | AM190: 128
A191: 431149149 | B191: COMMUNITY DAY - R. KINGMAN WEBSTER | C191: 39 | D191: 0 | E191: 21 | F191: 72 | G191: 0 | H191: 0 | I191: 7.1625 | K191: 2 | L191: 0 | M191: 98 | N191: 0 | O191: 117 | P191: 47 | Q191: 212 | S191: 431149149 | T191: COMMUNITY DAY - R. KINGMAN WEBSTER | U191: 39 | V191: 0 | W191: 21 | X191: 72 | Y191: 0 | Z191: 0 | AA191: 2 | AB191: 0 | AC191: 98 | AD191: 0 | AE191: 117 | AF191: 30 | AG191: 0 | AH191: 32 | AI191: 0 | AK191: 431 | AL191: 149 | AM191: 149
A192: 431149181 | B192: COMMUNITY DAY - R. KINGMAN WEBSTER | C192: 1 | D192: 0 | E192: 3 | F192: 2 | G192: 0 | H192: 0 | I192: 0.225 | K192: 0 | L192: 0 | M192: 1 | N192: 0 | O192: 0 | P192: 2 | Q192: 7 | S192: 431149181 | T192: COMMUNITY DAY - R. KINGMAN WEBSTER | U192: 1 | V192: 0 | W192: 3 | X192: 2 | Y192: 0 | Z192: 0 | AA192: 0 | AB192: 0 | AC192: 1 | AD192: 0 | AE192: 0 | AF192: 0 | AG192: 0 | AH192: 2 | AI192: 0 | AK192: 431 | AL192: 149 | AM192: 181
A193: 432712020 | B193: CAPE COD LIGHTHOUSE | C193: 0 | D193: 0 | E193: 0 | F193: 0 | G193: 63 | H193: 0 | I193: 2.3625 | K193: 0 | L193: 0 | M193: 0 | N193: 0 | O193: 8 | P193: 0 | Q193: 63 | S193: 432712020 | T193: CAPE COD LIGHTHOUSE | U193: 0 | V193: 0 | W193: 0 | X193: 0 | Y193: 63 | Z193: 0 | AA193: 0 | AB193: 0 | AC193: 0 | AD193: 0 | AE193: 8 | AF193: 0 | AG193: 0 | AH193: 0 | AI193: 0 | AK193: 432 | AL193: 712 | AM193: 20
A194: 432712172 | B194: CAPE COD LIGHTHOUSE | C194: 0 | D194: 0 | E194: 0 | F194: 0 | G194: 1 | H194: 0 | I194: 0.0375 | K194: 0 | L194: 0 | M194: 0 | N194: 0 | O194: 0 | P194: 0 | Q194: 1 | S194: 432712172 | T194: CAPE COD LIGHTHOUSE | U194: 0 | V194: 0 | W194: 0 | X194: 0 | Y194: 1 | Z194: 0 | AA194: 0 | AB194: 0 | AC194: 0 | AD194: 0 | AE194: 0 | AF194: 0 | AG194: 0 | AH194: 0 | AI194: 0 | AK194: 432 | AL194: 712 | AM194: 172
A195: 432712261 | B195: CAPE COD LIGHTHOUSE | C195: 0 | D195: 0 | E195: 0 | F195: 0 | G195: 12 | H195: 0 | I195: 0.45 | K195: 0 | L195: 0 | M195: 0 | N195: 0 | O195: 3 | P195: 0 | Q195: 12 | S195: 432712261 | T195: CAPE COD LIGHTHOUSE | U195: 0 | V195: 0 | W195: 0 | X195: 0 | Y195: 12 | Z195: 0 | AA195: 0 | AB195: 0 | AC195: 0 | AD195: 0 | AE195: 3 | AF195: 0 | AG195: 0 | AH195: 0 | AI195: 0 | AK195: 432 | AL195: 712 | AM195: 261
A196: 432712300 | B196: CAPE COD LIGHTHOUSE | C196: 0 | D196: 0 | E196: 0 | F196: 0 | G196: 4 | H196: 0 | I196: 0.15 | K196: 0 | L196: 0 | M196: 0 | N196: 0 | O196: 2 | P196: 0 | Q196: 4 | S196: 432712300 | T196: CAPE COD LIGHTHOUSE | U196: 0 | V196: 0 | W196: 0 | X196: 0 | Y196: 4 | Z196: 0 | AA196: 0 | AB196: 0 | AC196: 0 | AD196: 0 | AE196: 2 | AF196: 0 | AG196: 0 | AH196: 0 | AI196: 0 | AK196: 432 | AL196: 712 | AM196: 300
A197: 432712645 | B197: CAPE COD LIGHTHOUSE | C197: 0 | D197: 0 | E197: 0 | F197: 0 | G197: 53 | H197: 0 | I197: 1.9875 | K197: 0 | L197: 0 | M197: 0 | N197: 0 | O197: 5 | P197: 0 | Q197: 53 | S197: 432712645 | T197: CAPE COD LIGHTHOUSE | U197: 0 | V197: 0 | W197: 0 | X197: 0 | Y197: 53 | Z197: 0 | AA197: 0 | AB197: 0 | AC197: 0 | AD197: 0 | AE197: 5 | AF197: 0 | AG197: 0 | AH197: 0 | AI197: 0 | AK197: 432 | AL197: 712 | AM197: 645
A198: 432712660 | B198: CAPE COD LIGHTHOUSE | C198: 0 | D198: 0 | E198: 0 | F198: 0 | G198: 63 | H198: 0 | I198: 2.4 | K198: 0 | L198: 0 | M198: 1 | N198: 0 | O198: 17 | P198: 0 | Q198: 64 | S198: 432712660 | T198: CAPE COD LIGHTHOUSE | U198: 0 | V198: 0 | W198: 0 | X198: 0 | Y198: 63 | Z198: 0 | AA198: 0 | AB198: 0 | AC198: 1 | AD198: 0 | AE198: 17 | AF198: 0 | AG198: 0 | AH198: 0 | AI198: 0 | AK198: 432 | AL198: 712 | AM198: 660
A199: 432712712 | B199: CAPE COD LIGHTHOUSE | C199: 0 | D199: 0 | E199: 0 | F199: 0 | G199: 43 | H199: 0 | I199: 1.6125 | K199: 0 | L199: 0 | M199: 0 | N199: 0 | O199: 11 | P199: 0 | Q199: 43 | S199: 432712712 | T199: CAPE COD LIGHTHOUSE | U199: 0 | V199: 0 | W199: 0 | X199: 0 | Y199: 43 | Z199: 0 | AA199: 0 | AB199: 0 | AC199: 0 | AD199: 0 | AE199: 11 | AF199: 0 | AG199: 0 | AH199: 0 | AI199: 0 | AK199: 432 | AL199: 712 | AM199: 712
A200: 435301009 | B200: INNOVATION ACADEMY | C200: 0 | D200: 0 | E200: 0 | F200: 0 | G200: 0 | H200: 1 | I200: 0.0375 | K200: 0 | L200: 0 | M200: 0 | N200: 0 | O200: 0 | P200: 0 | Q200: 1 | S200: 435301009 | T200: INNOVATION ACADEMY | U200: 0 | V200: 0 | W200: 0 | X200: 0 | Y200: 0 | Z200: 1 | AA200: 0 | AB200: 0 | AC200: 0 | AD200: 0 | AE200: 0 | AF200: 0 | AG200: 0 | AH200: 0 | AI200: 0 | AK200: 435 | AL200: 301 | AM200: 9
A201: 435301031 | B201: INNOVATION ACADEMY | C201: 0 | D201: 0 | E201: 0 | F201: 18 | G201: 61 | H201: 91 | I201: 6.375 | K201: 0 | L201: 0 | M201: 0 | N201: 0 | O201: 7 | P201: 8 | Q201: 170 | S201: 435301031 | T201: INNOVATION ACADEMY | U201: 0 | V201: 0 | W201: 0 | X201: 18 | Y201: 61 | Z201: 91 | AA201: 0 | AB201: 0 | AC201: 0 | AD201: 0 | AE201: 7 | AF201: 0 | AG201: 0 | AH201: 0 | AI201: 8 | AK201: 435 | AL201: 301 | AM201: 31
A202: 435301056 | B202: INNOVATION ACADEMY | C202: 0 | D202: 0 | E202: 0 | F202: 9 | G202: 46 | H202: 57 | I202: 4.2 | K202: 0 | L202: 0 | M202: 0 | N202: 0 | O202: 1 | P202: 5 | Q202: 112 | S202: 435301056 | T202: INNOVATION ACADEMY | U202: 0 | V202: 0 | W202: 0 | X202: 9 | Y202: 46 | Z202: 57 | AA202: 0 | AB202: 0 | AC202: 0 | AD202: 0 | AE202: 1 | AF202: 0 | AG202: 0 | AH202: 0 | AI202: 5 | AK202: 435 | AL202: 301 | AM202: 56
A203: =S203 -> 435301079 | B203: =T203 -> INNOVATION ACADEMY | C203: =ROUND(U203,0) -> 0 | D203: =ROUND(V203,0) -> 0 | E203: =ROUND(W203,0) -> 0 | F203: =ROUND(X203,0) -> 26 | G203: =ROUND(Y203,0) -> 47 | H203: =ROUND(Z203,0) -> 45 | I203: =ROUND(0.0375*(SUM(E203:H203)+ROUND(D203*0.5,4)+ROUND(L203*0.5,4)+M203),4)+ROUND((0.0475)*N203,4) -> 4.5375 | K203: =ROUND(AA203,0) -> 0 | L203: =ROUND(AB203,0) -> 0 | M203: =ROUND(AC203,0) -> 3 | N203: =ROUND(AD203,0) -> 0 | O203: =ROUND(AE203,0) -> 5 | P203: =ROUND((AF203+AG203)/2,0)+ROUND(AH203+AI203,0) -> 9 | Q203: =SUM(E203:H203)+M203+N203+ROUND(C203*0.5,0)+ROUND(D203*0.5,0)+ROUND(K203*0.5,0)+ROUND(L203*0.5,0) -> 121 | S203: 435301079 | T203: INNOVATION ACADEMY | U203: 0 | V203: 0 | W203: 0 | X203: 26 | Y203: 47 | Z203: 45 | AA203: 0 | AB203: 0 | AC203: 3 | AD203: 0 | AE203: 5 | AF203: 0 | AG203: 0 | AH203: 0 | AI203: 9 | AK203: 435 | AL203: 301 | AM203: 79
A204: 435301125 | B204: INNOVATION ACADEMY | C204: 0 | D204: 0 | E204: 0 | F204: 0 | G204: 0 | H204: 1 | I204: 0.0375 | K204: 0 | L204: 0 | M204: 0 | N204: 0 | O204: 0 | P204: 0 | Q204: 1 | S204: 435301125 | T204: INNOVATION ACADEMY | U204: 0 | V204: 0 | W204: 0 | X204: 0 | Y204: 0 | Z204: 1 | AA204: 0 | AB204: 0 | AC204: 0 | AD204: 0 | AE204: 0 | AF204: 0 | AG204: 0 | AH204: 0 | AI204: 0 | AK204: 435 | AL204: 301 | AM204: 125
A205: 435301149 | B205: INNOVATION ACADEMY | C205: 0 | D205: 0 | E205: 0 | F205: 0 | G205: 0 | H205: 1 | I205: 0.0375 | K205: 0 | L205: 0 | M205: 0 | N205: 0 | O205: 0 | P205: 0 | Q205: 1 | S205: 435301149 | T205: INNOVATION ACADEMY | U205: 0 | V205: 0 | W205: 0 | X205: 0 | Y205: 0 | Z205: 1 | AA205: 0 | AB205: 0 | AC205: 0 | AD205: 0 | AE205: 0 | AF205: 0 | AG205: 0 | AH205: 0 | AI205: 0 | AK205: 435 | AL205: 301 | AM205: 149
... 570 more rows

Sheet fnd base rates (hidden)
A2: FY16 Base Rates
H3: Instruction- | I3: Guid- | K3: Opera- | L3: Employee | N3: Total
E4: Classroom | F4: Other | G4: Profess- | H4: al Materials, | I4: ance & | K4: tions & | L4: Benefits | N4: Opera-
C5: Admini- | D5: Instructional | E5: & Specialist | F5: Teaching | G5: ional Dev- | H5: Equipment & | I5: Psycho- | J5: Pupil | K5: Maint- | L5: & Fixed | M5: Sped | N5: ting Exp-
A6: Foundation Subsets | C6: stration | D6: Leadership | E6: Teachers | F6: Services | G6: elopment | H6: Technology | I6: logical | J6: Services | K6: enance | L6: Charges | M6: Tuition | N6: enditures
A8: 1 | B8: Pre-School | C8: 182.41 | D8: 329.44 | E8: 1510.58 | F8: 387.42 | G8: 59.74 | H8: 218.64 | I8: 109.9 | J8: 43.72 | K8: 419.47 | L8: 378.11 | M8: 0 | N8: 3639.43
A9: 2 | B9: Kindergarten-Half | C9: 182.41 | D9: 329.44 | E9: 1510.58 | F9: 387.42 | G9: 59.74 | H9: 218.64 | I9: 109.9 | J9: 43.72 | K9: 419.47 | L9: 378.11 | M9: 0 | N9: 3639.43
A10: 3 | B10: Kindergarten-Full | C10: 364.8 | D10: 658.87 | E10: 3021.16 | F10: 774.86 | G10: 119.54 | H10: 437.27 | I10: 219.84 | J10: 87.46 | K10: 838.94 | L10: 756.18 | M10: 0 | N10: 7278.92
A11: 4 | B11: Elementary | C11: 364.8 | D11: 658.87 | E11: 3021.12 | F11: 774.86 | G11: 119.56 | H11: 437.27 | I11: 219.84 | J11: 131.19 | K11: 838.94 | L11: 756.23 | M11: 0 | N11: 7322.68
A12: 5 | B12: Junior/Middle | C12: 364.8 | D12: 658.87 | E12: 2658.6 | F12: 557.78 | G12: 129.61 | H12: 437.27 | I12: 292.63 | J12: 214.28 | K12: 909.52 | L12: 719.02 | M12: 0 | N12: 6942.38
A13: 6 | B13: High School | C13: 364.8 | D13: 658.87 | E13: 3909.69 | F13: 464.36 | G13: 125.67 | H13: 699.64 | I13: 366.83 | J13: 494.12 | K13: 881.87 | L13: 690.79 | M13: 0 | N13: 8656.64
A14: 7 | B14: Special Ed-In School | C14: 2517.8 | D14: 0 | E14: 8308.11 | F14: 7757.17 | G14: 400.78 | H14: 349.82 | I14: 0 | J14: 0 | K14: 2812.51 | L14: 3186.23 | M14: 0 | N14: 25332.42
A15: 8 | B15: Special Ed-Tuitioned Out | C15: 2517.8 | D15: 0 | E15: 0 | F15: 38.46 | G15: 0 | H15: 0 | I15: 0 | J15: 0 | K15: 0 | L15: 0 | M15: 23905.21 | N15: 26461.47
A16: 9 | B16: Limited English PK | C16: 182.42 | D16: 329.44 | E16: 2274.98 | F16: 309.79 | G16: 80.93 | H16: 218.64 | I16: 146.3 | J16: 65.58 | K16: 567.89 | L16: 475.65 | M16: 0 | N16: 4651.62
A17: 10 | B17: Limited English K Half Time | C17: 182.42 | D17: 329.44 | E17: 2274.98 | F17: 309.79 | G17: 80.93 | H17: 218.64 | I17: 146.3 | J17: 65.58 | K17: 567.89 | L17: 475.65 | M17: 0 | N17: 4651.62
A18: 11 | B18: Limited English Full Time | C18: 364.8 | D18: 658.87 | E18: 4549.95 | F18: 619.58 | G18: 161.83 | H18: 437.27 | I18: 292.63 | J18: 131.19 | K18: 1135.73 | L18: 951.3 | M18: 0 | N18: 9303.15
A19: 12 | B19: Vocational | C19: 364.8 | D19: 658.87 | E19: 6646.51 | F19: 464.36 | G19: 207.77 | H19: 1224.35 | I19: 366.83 | J19: 494.12 | K19: 1650.45 | L19: 1121.9 | M19: 0 | N19: 13199.96
A20: 13 | B20: Low Income Elem | C20: 0 | D20: 0 | E20: 2718.08 | F20: 0 | G20: 59.82 | H20: 0 | I20: 0 | J20: 0 | K20: 419.79 | L20: 275.91 | M20: 0 | N20: 3473.6
A21: 14 | B21: Low Income Secondary | C21: 0 | D21: 0 | E21: 2053.44 | F21: 0 | G21: 59.82 | H21: 0 | I21: 0 | J21: 0 | K21: 419.79 | L21: 275.91 | M21: 0 | N21: 2808.96
B26: Inflation Adjustment
B27: FY16 inflation index | D27: 1
B28: FY16 inflation | D28: -0.0022
B29: FY17 adjustment | D29: =D27+D28 -> 0.9978
A33: FY17 Foundation Budget Rates
H34: Instruction- | I34: Guid- | K34: Opera- | L34: Employee | N34: Total
E35: Classroom | F35: Other | G35: Profess- | H35: al Materials, | I35: ance & | K35: tions & | L35: Benefits | N35: Opera-
C36: Admini- | D36: Instructional | E36: & Specialist | F36: Teaching | G36: ional Dev- | H36: Equipment & | I36: Psycho- | J36: Pupil | K36: Maint- | L36: & Fixed | M36: Sped | N36: ting Exp-
A37: Adjusted Foundation Budget | C37: stration | D37: Leadership | E37: Teachers | F37: Services | G37: elopment | H37: Technology | I37: logical | J37: Services | K37: enance | L37: Charges | M37: Tuition | N37: enditures
A39: 1 | B39: Pre-School | C39: =IF(C8>0,ROUND(C8*inflat,2),0) -> 182.01 | D39: 328.72 | E39: 1507.26 | F39: 386.57 | G39: =IF(G8>0,ROUND(G8*inflat,2),0) -> 59.61 | H39: =IF(H8>0,ROUND(H8*inflat,2),0) -> 218.16 | I39: 109.66 | J39: =IF(J8>0,ROUND(J8*inflat,2),0) -> 43.62 | K39: 418.55 | L39: =IF(L8>0,ROUND(L8*inflat,2),0) -> 377.28 | M39: 0 | N39: =SUM(C39:M39) -> 3631.44
A40: 2 | B40: Kindergarten-Half | C40: 182.01 | D40: 328.72 | E40: 1507.26 | F40: 386.57 | G40: 59.61 | H40: 218.16 | I40: 109.66 | J40: 43.62 | K40: 418.55 | L40: 377.28 | M40: 0 | N40: =SUM(C40:M40) -> 3631.44
A41: 3 | B41: Kindergarten-Full | C41: 364 | D41: 657.42 | E41: 3014.51 | F41: 773.16 | G41: 119.28 | H41: 436.31 | I41: 219.36 | J41: 87.27 | K41: 837.09 | L41: 754.52 | M41: 0 | N41: 7262.92
A42: 4 | B42: Elementary | C42: 364 | D42: 657.42 | E42: 3014.47 | F42: 773.16 | G42: 119.3 | H42: 436.31 | I42: 219.36 | J42: 130.9 | K42: 837.09 | L42: 754.57 | M42: 0 | N42: 7306.58
A43: 5 | B43: Junior/Middle | C43: 364 | D43: 657.42 | E43: 2652.75 | F43: 556.55 | G43: 129.32 | H43: 436.31 | I43: 291.99 | J43: 213.81 | K43: 907.52 | L43: 717.44 | M43: 0 | N43: 6927.11
A44: 6 | B44: High School | C44: =IF(C13>0,ROUND(C13*inflat,2),0) -> 364 | D44: 657.42 | E44: 3901.09 | F44: 463.34 | G44: 125.39 | H44: 698.1 | I44: 366.02 | J44: 493.03 | K44: 879.93 | L44: 689.27 | M44: 0 | N44: =SUM(C44:M44) -> 8637.59
A45: 7 | B45: Special Ed-In School | C45: =IF(C14>0,ROUND(C14*inflat,2),0) -> 2512.26 | D45: 0 | E45: 8289.83 | F45: 7740.1 | G45: 399.9 | H45: 349.05 | I45: 0 | J45: 0 | K45: 2806.32 | L45: 3179.22 | M45: 0 | N45: 25276.68
A46: 8 | B46: Special Ed-Tuitioned Out | C46: =IF(C15>0,ROUND(C15*inflat,2),0) -> 2512.26 | D46: 0 | E46: 0 | F46: 38.38 | G46: 0 | H46: 0 | I46: 0 | J46: 0 | K46: 0 | L46: 0 | M46: 23852.62 | N46: 26403.26
A47: 9 | B47: Limited English PK | C47: =IF(C16>0,ROUND(C16*inflat,2),0) -> 182.02 | D47: 328.72 | E47: 2269.98 | F47: 309.11 | G47: 80.75 | H47: 218.16 | I47: 145.98 | J47: 65.44 | K47: 566.64 | L47: 474.6 | M47: 0 | N47: 4641.4
A48: 10 | B48: Limited English K Half Time | C48: =IF(C17>0,ROUND(C17*inflat,2),0) -> 182.02 | D48: 328.72 | E48: 2269.98 | F48: 309.11 | G48: 80.75 | H48: 218.16 | I48: 145.98 | J48: 65.44 | K48: 566.64 | L48: 474.6 | M48: 0 | N48: 4641.4
A49: 11 | B49: Limited English Full Time | C49: =IF(C18>0,ROUND(C18*inflat,2),0) -> 364 | D49: 657.42 | E49: 4539.94 | F49: 618.22 | G49: 161.47 | H49: 436.31 | I49: 291.99 | J49: 130.9 | K49: 1133.23 | L49: 949.21 | M49: 0 | N49: 9282.69
A50: 12 | B50: Vocational | C50: 364 | D50: 657.42 | E50: 6631.89 | F50: 463.34 | G50: 207.31 | H50: 1221.66 | I50: 366.02 | J50: 493.03 | K50: 1646.82 | L50: 1119.43 | M50: 0 | N50: 13170.92
A51: 13 | B51: Low Income Elem | C51: 0 | D51: 0 | E51: =IF(E20>0,ROUND(E20*inflat,2),0) -> 2712.1 | F51: 0 | G51: 59.69 | H51: 0 | I51: 0 | J51: 0 | K51: =IF(K20>0,ROUND(K20*inflat,2),0) -> 418.87 | L51: 275.3 | M51: 0 | N51: 3465.96
A52: 14 | B52: Low Income Secondary | C52: 0 | D52: 0 | E52: =IF(E21>0,ROUND(E21*inflat,2),0) -> 2048.92 | F52: 0 | G52: 59.69 | H52: 0 | I52: 0 | J52: 0 | K52: =IF(K21>0,ROUND(K21*inflat,2),0) -> 418.87 | L52: 275.3 | M52: 0 | N52: 2802.78

Sheet pre fnd budg (hidden)
A1: 1 | B1: 2 | C1: 3 | D1: 4 | E1: 5 | F1: 6 | G1: 7 | H1: 8 | I1: 9 | J1: 10 | K1: 11 | L1: 12 | M1: 13 | N1: 14 | O1: 15 | P1: 16 | Q1: 17 | R1: 18 | S1: 19 | T1: 20 | U1: 21 | V1: 22 | W1: 23 | X1: 24 | Y1: 25 | Z1: 26 | AA1: 27 | AB1: 28 | AC1: 29 | AD1: 30 | AE1: 31 | AF1: 32 | AG1: 33 | AH1: 34 | AI1: 35 | AJ1: 36 | AK1: 37 | AL1: 38 | AM1: 39 | AN1: 40 | AO1: 41 | AP1: 42 | AQ1: 43
A3: Insert chalocsend & school name from the FND ENRO sheet
M5: LEP | P5: Low | R5: WAF | Y5: Instruction- | Z5: Guid- | AB5: Opera- | AC5: Employee
I6: Assumed | J6: Assumed | M6: KF | O6: Low | P6: Income | Q6: Total | R6: Adjusted | V6: Classroom | W6: Other | X6: Profess- | Y6: al Materials, | Z6: ance & | AB6: tions & | AC6: Benefits | AE6: Found- | AK6: wage
G7: Junior | H7: High | I7: Special Ed | J7: Special Ed | K7: LEP | L7: LEP | M7: thru | O7: Income | P7: K & | Q7: Found | R7: for Low | T7: Admini- | U7: Instructional | V7: & Specialist | W7: Teaching | X7: ional Dev- | Y7: Equipment & | Z7: Psycho- | AA7: Pupil | AB7: Maint- | AC7: & Fixed | AD7: Sped | AE7: ation | AH7: Cha | AI7: Loc | AJ7: Sending | AK7: fct check
A8: chalocsend | B8: Charter | C8: PK | D8: KP | E8: KF | F8: Elem | G8: Middle | H8: School | I8: In School | J8: Tuitioned | K8: PK | L8: KP | M8: G12 | N8: Voke | O8: Elem & Jr | P8: Sr | Q8: Enro | R8: Income | T8: stration | U8: Leadership | V8: Teachers | W8: Services | X8: elopment | Y8: Technology | Z8: logical | AA8: Services | AB8: enance | AC8: Charges | AD8: Tuition | AE8: Budget | AG8: chalocsend | AH8: LEA | AI8: LEA | AJ8: LEA | AK8: 1=good | AL8: enro | AM8: fnd budget | AN8: rate | AO8: diff | AP8: rate check
AQ9: x
A10: 409201201 | B10: ALMA DEL MAR | C10: ='fnd enro'!C10 -> 0 | D10: ='fnd enro'!D10 -> 0 | E10: ='fnd enro'!E10 -> 27 | F10: ='fnd enro'!F10 -> 191 | G10: ='fnd enro'!G10 -> 40 | H10: ='fnd enro'!H10 -> 0 | I10: ='fnd enro'!I10 -> 10.65 | J10: ='fnd enro'!J10 -> 0 | K10: ='fnd enro'!K10 -> 0 | L10: ='fnd enro'!L10 -> 0 | M10: ='fnd enro'!M10 -> 26 | N10: ='fnd enro'!N10 -> 0 | O10: ='fnd enro'!O10 -> 193 | P10: ='fnd enro'!P10 -> 31 | Q10: ='fnd enro'!Q10 -> 284 | R10: =VLOOKUP(A10,charterinfo_b,6) -> 1 | T10: =(($C10*'fnd base rates'!C$39) +($D10*'fnd base rates'!C$40) +($E10*'fnd base rates'!C$41) +($F10*'fnd base rates'!C$42) +($G10*'fnd base rates'!C$43) +($H10*'fnd base rates'!C$44) +($I10*'fnd base rates'!C$45) +($J10*'fnd base rates'!C$46) +($K10*'fnd base rates'!C$47) +($L10*'fnd base rates'!C$48) +($M10*'fnd base rates'!C$49) +($N10*'fnd base rates'!C$50) +($O10*'fnd base rates'!C$51) +($P10*'fnd base rates'!C$52)) *$R10 -> 130131.569 | U10: =(($C10*'fnd base rates'!D$39) +($D10*'fnd base rates'!D$40) +($E10*'fnd base rates'!D$41) +($F10*'fnd base rates'!D$42) +($G10*'fnd base rates'!D$43) +($H10*'fnd base rates'!D$44) +($I10*'fnd base rates'!D$45) +($J10*'fnd base rates'!D$46) +($K10*'fnd base rates'!D$47) +($L10*'fnd base rates'!D$48) +($M10*'fnd base rates'!D$49) +($N10*'fnd base rates'!D$50) +($O10*'fnd base rates'!D$51) +($P10*'fnd base rates'!D$52)) *$R10 -> 186707.28 | V10: =(($C10*'fnd base rates'!E$39) +($D10*'fnd base rates'!E$40) +($E10*'fnd base rates'!E$41) +($F10*'fnd base rates'!E$42) +($G10*'fnd base rates'!E$43) +($H10*'fnd base rates'!E$44) +($I10*'fnd base rates'!E$45) +($J10*'fnd base rates'!E$46) +($K10*'fnd base rates'!E$47) +($L10*'fnd base rates'!E$48) +($M10*'fnd base rates'!E$49) +($N10*'fnd base rates'!E$50) +($O10*'fnd base rates'!E$51) +($P10*'fnd base rates'!E$52)) *$R10 -> 1556542.489 | W10: =(($C10*'fnd base rates'!F$39) +($D10*'fnd base rates'!F$40) +($E10*'fnd base rates'!F$41) +($F10*'fnd base rates'!F$42) +($G10*'fnd base rates'!F$43) +($H10*'fnd base rates'!F$44) +($I10*'fnd base rates'!F$45) +($J10*'fnd base rates'!F$46) +($K10*'fnd base rates'!F$47) +($L10*'fnd base rates'!F$48) +($M10*'fnd base rates'!F$49) +($N10*'fnd base rates'!F$50) +($O10*'fnd base rates'!F$51) +($P10*'fnd base rates'!F$52)) *$R10 -> 289316.665 | X10: =(($C10*'fnd base rates'!G$39) +($D10*'fnd base rates'!G$40) +($E10*'fnd base rates'!G$41) +($F10*'fnd base rates'!G$42) +($G10*'fnd base rates'!G$43) +($H10*'fnd base rates'!G$44) +($I10*'fnd base rates'!G$45) +($J10*'fnd base rates'!G$46) +($K10*'fnd base rates'!G$47) +($L10*'fnd base rates'!G$48) +($M10*'fnd base rates'!G$49) +($N10*'fnd base rates'!G$50) +($O10*'fnd base rates'!G$51) +($P10*'fnd base rates'!G$52)) *$R10 -> 53007.375 | Y10: =(($C10*'fnd base rates'!H$39) +($D10*'fnd base rates'!H$40) +($E10*'fnd base rates'!H$41) +($F10*'fnd base rates'!H$42) +($G10*'fnd base rates'!H$43) +($H10*'fnd base rates'!H$44) +($I10*'fnd base rates'!H$45) +($J10*'fnd base rates'!H$46) +($K10*'fnd base rates'!H$47) +($L10*'fnd base rates'!H$48) +($M10*'fnd base rates'!H$49) +($N10*'fnd base rates'!H$50) +($O10*'fnd base rates'!H$51) +($P10*'fnd base rates'!H$52)) -> 127629.4225 | Z10: =(($C10*'fnd base rates'!I$39) +($D10*'fnd base rates'!I$40) +($E10*'fnd base rates'!I$41) +($F10*'fnd base rates'!I$42) +($G10*'fnd base rates'!I$43) +($H10*'fnd base rates'!I$44) +($I10*'fnd base rates'!I$45) +($J10*'fnd base rates'!I$46) +($K10*'fnd base rates'!I$47) +($L10*'fnd base rates'!I$48) +($M10*'fnd base rates'!I$49) +($N10*'fnd base rates'!I$50) +($O10*'fnd base rates'!I$51) +($P10*'fnd base rates'!I$52)) *$R10 -> 67091.82 | AA10: =(($C10*'fnd base rates'!J$39) +($D10*'fnd base rates'!J$40) +($E10*'fnd base rates'!J$41) +($F10*'fnd base rates'!J$42) +($G10*'fnd base rates'!J$43) +($H10*'fnd base rates'!J$44) +($I10*'fnd base rates'!J$45) +($J10*'fnd base rates'!J$46) +($K10*'fnd base rates'!J$47) +($L10*'fnd base rates'!J$48) +($M10*'fnd base rates'!J$49) +($N10*'fnd base rates'!J$50) +($O10*'fnd base rates'!J$51) +($P10*'fnd base rates'!J$52)) *$R10 -> 39313.99 | AB10: =(($C10*'fnd base rates'!K$39) +($D10*'fnd base rates'!K$40) +($E10*'fnd base rates'!K$41) +($F10*'fnd base rates'!K$42) +($G10*'fnd base rates'!K$43) +($H10*'fnd base rates'!K$44) +($I10*'fnd base rates'!K$45) +($J10*'fnd base rates'!K$46) +($K10*'fnd base rates'!K$47) +($L10*'fnd base rates'!K$48) +($M10*'fnd base rates'!K$49) +($N10*'fnd base rates'!K$50) +($O10*'fnd base rates'!K$51) +($P10*'fnd base rates'!K$52)) *$R10 -> 371964.588 | AC10: =(($C10*'fnd base rates'!L$39) +($D10*'fnd base rates'!L$40) +($E10*'fnd base rates'!L$41) +($F10*'fnd base rates'!L$42) +($G10*'fnd base rates'!L$43) +($H10*'fnd base rates'!L$44) +($I10*'fnd base rates'!L$45) +($J10*'fnd base rates'!L$46) +($K10*'fnd base rates'!L$47) +($L10*'fnd base rates'!L$48) +($M10*'fnd base rates'!L$49) +($N10*'fnd base rates'!L$50) +($O10*'fnd base rates'!L$51) +($P10*'fnd base rates'!L$52)) -> 313397.863 | AD10: =(($C10*'fnd base rates'!M$39) +($D10*'fnd base rates'!M$40) +($E10*'fnd base rates'!M$41) +($F10*'fnd base rates'!M$42) +($G10*'fnd base rates'!M$43) +($H10*'fnd base rates'!M$44) +($I10*'fnd base rates'!M$45) +($J10*'fnd base rates'!M$46) +($K10*'fnd base rates'!M$47) +($L10*'fnd base rates'!M$48) +($M10*'fnd base rates'!M$49) +($N10*'fnd base rates'!M$50) +($O10*'fnd base rates'!M$51) +($P10*'fnd base rates'!M$52)) -> 0 | AE10: =SUM(T10:AD10) -> 3135103.062 | AG10: =A10 -> 409201201 | AH10: =IF($A10<499999999,MID($A10,1,3),MID($A10,1,4)) -> 409 | AI10: =IF($A10<499999999,MID($A10,4,3),MID($A10,5,3)) -> 201 | AJ10: =IF($A10<499999999,MID($A10,7,3),MID($A10,8,3)) -> 201 | AK10: =IF(VLOOKUP(VALUE(IF(AG10<499999999,MID(AG10,4,3),MID(AG10,5,3))),distinfo,4)=R10,1,0) -> 1 | AL10: =enro -> 284 | AM10: =AE10 -> 3135103.062 | AN10: =IF(OR(AE10=0,AL10=0),0,ROUND(AM10/AL10,0)) -> 11039 | AO10: =AN10-AP10 -> 0 | AP10: 11039
A11: 410035035 | B11: EXCEL ACADEMY | C11: ='fnd enro'!C11 -> 0 | D11: ='fnd enro'!D11 -> 0 | E11: ='fnd enro'!E11 -> 0 | F11: ='fnd enro'!F11 -> 42 | G11: ='fnd enro'!G11 -> 192 | H11: ='fnd enro'!H11 -> 36 | I11: ='fnd enro'!I11 -> 12.3375 | J11: ='fnd enro'!J11 -> 0 | K11: ='fnd enro'!K11 -> 0 | L11: ='fnd enro'!L11 -> 0 | M11: ='fnd enro'!M11 -> 59 | N11: ='fnd enro'!N11 -> 0 | O11: ='fnd enro'!O11 -> 227 | P11: ='fnd enro'!P11 -> 33 | Q11: ='fnd enro'!Q11 -> 329 | R11: 1.077 | T11: =(($C11*'fnd base rates'!C$39) +($D11*'fnd base rates'!C$40) +($E11*'fnd base rates'!C$41) +($F11*'fnd base rates'!C$42) +($G11*'fnd base rates'!C$43) +($H11*'fnd base rates'!C$44) +($I11*'fnd base rates'!C$45) +($J11*'fnd base rates'!C$46) +($K11*'fnd base rates'!C$47) +($L11*'fnd base rates'!C$48) +($M11*'fnd base rates'!C$49) +($N11*'fnd base rates'!C$50) +($O11*'fnd base rates'!C$51) +($P11*'fnd base rates'!C$52)) *$R11 -> 162358.8353 | U11: =(($C11*'fnd base rates'!D$39) +($D11*'fnd base rates'!D$40) +($E11*'fnd base rates'!D$41) +($F11*'fnd base rates'!D$42) +($G11*'fnd base rates'!D$43) +($H11*'fnd base rates'!D$44) +($I11*'fnd base rates'!D$45) +($J11*'fnd base rates'!D$46) +($K11*'fnd base rates'!D$47) +($L11*'fnd base rates'!D$48) +($M11*'fnd base rates'!D$49) +($N11*'fnd base rates'!D$50) +($O11*'fnd base rates'!D$51) +($P11*'fnd base rates'!D$52)) *$R11 -> 232945.6009 | V11: =(($C11*'fnd base rates'!E$39) +($D11*'fnd base rates'!E$40) +($E11*'fnd base rates'!E$41) +($F11*'fnd base rates'!E$42) +($G11*'fnd base rates'!E$43) +($H11*'fnd base rates'!E$44) +($I11*'fnd base rates'!E$45) +($J11*'fnd base rates'!E$46) +($K11*'fnd base rates'!E$47) +($L11*'fnd base rates'!E$48) +($M11*'fnd base rates'!E$49) +($N11*'fnd base rates'!E$50) +($O11*'fnd base rates'!E$51) +($P11*'fnd base rates'!E$52)) *$R11 -> 1970660.435 | W11: =(($C11*'fnd base rates'!F$39) +($D11*'fnd base rates'!F$40) +($E11*'fnd base rates'!F$41) +($F11*'fnd base rates'!F$42) +($G11*'fnd base rates'!F$43) +($H11*'fnd base rates'!F$44) +($I11*'fnd base rates'!F$45) +($J11*'fnd base rates'!F$46) +($K11*'fnd base rates'!F$47) +($L11*'fnd base rates'!F$48) +($M11*'fnd base rates'!F$49) +($N11*'fnd base rates'!F$50) +($O11*'fnd base rates'!F$51) +($P11*'fnd base rates'!F$52)) *$R11 -> 310153.4086 | X11: =(($C11*'fnd base rates'!G$39) +($D11*'fnd base rates'!G$40) +($E11*'fnd base rates'!G$41) +($F11*'fnd base rates'!G$42) +($G11*'fnd base rates'!G$43) +($H11*'fnd base rates'!G$44) +($I11*'fnd base rates'!G$45) +($J11*'fnd base rates'!G$46) +($K11*'fnd base rates'!G$47) +($L11*'fnd base rates'!G$48) +($M11*'fnd base rates'!G$49) +($N11*'fnd base rates'!G$50) +($O11*'fnd base rates'!G$51) +($P11*'fnd base rates'!G$52)) *$R11 -> 69287.69242 | Y11: =(($C11*'fnd base rates'!H$39) +($D11*'fnd base rates'!H$40) +($E11*'fnd base rates'!H$41) +($F11*'fnd base rates'!H$42) +($G11*'fnd base rates'!H$43) +($H11*'fnd base rates'!H$44) +($I11*'fnd base rates'!H$45) +($J11*'fnd base rates'!H$46) +($K11*'fnd base rates'!H$47) +($L11*'fnd base rates'!H$48) +($M11*'fnd base rates'!H$49) +($N11*'fnd base rates'!H$50) +($O11*'fnd base rates'!H$51) +($P11*'fnd base rates'!H$52)) -> 157276.8344 | Z11: =(($C11*'fnd base rates'!I$39) +($D11*'fnd base rates'!I$40) +($E11*'fnd base rates'!I$41) +($F11*'fnd base rates'!I$42) +($G11*'fnd base rates'!I$43) +($H11*'fnd base rates'!I$44) +($I11*'fnd base rates'!I$45) +($J11*'fnd base rates'!I$46) +($K11*'fnd base rates'!I$47) +($L11*'fnd base rates'!I$48) +($M11*'fnd base rates'!I$49) +($N11*'fnd base rates'!I$50) +($O11*'fnd base rates'!I$51) +($P11*'fnd base rates'!I$52)) *$R11 -> 103046.6384 | AA11: =(($C11*'fnd base rates'!J$39) +($D11*'fnd base rates'!J$40) +($E11*'fnd base rates'!J$41) +($F11*'fnd base rates'!J$42) +($G11*'fnd base rates'!J$43) +($H11*'fnd base rates'!J$44) +($I11*'fnd base rates'!J$45) +($J11*'fnd base rates'!J$46) +($K11*'fnd base rates'!J$47) +($L11*'fnd base rates'!J$48) +($M11*'fnd base rates'!J$49) +($N11*'fnd base rates'!J$50) +($O11*'fnd base rates'!J$51) +($P11*'fnd base rates'!J$52)) *$R11 -> 77567.1555 | AB11: =(($C11*'fnd base rates'!K$39) +($D11*'fnd base rates'!K$40) +($E11*'fnd base rates'!K$41) +($F11*'fnd base rates'!K$42) +($G11*'fnd base rates'!K$43) +($H11*'fnd base rates'!K$44) +($I11*'fnd base rates'!K$45) +($J11*'fnd base rates'!K$46) +($K11*'fnd base rates'!K$47) +($L11*'fnd base rates'!K$48) +($M11*'fnd base rates'!K$49) +($N11*'fnd base rates'!K$50) +($O11*'fnd base rates'!K$51) +($P11*'fnd base rates'!K$52)) *$R11 -> 486231.9439 | AC11: =(($C11*'fnd base rates'!L$39) +($D11*'fnd base rates'!L$40) +($E11*'fnd base rates'!L$41) +($F11*'fnd base rates'!L$42) +($G11*'fnd base rates'!L$43) +($H11*'fnd base rates'!L$44) +($I11*'fnd base rates'!L$45) +($J11*'fnd base rates'!L$46) +($K11*'fnd base rates'!L$47) +($L11*'fnd base rates'!L$48) +($M11*'fnd base rates'!L$49) +($N11*'fnd base rates'!L$50) +($O11*'fnd base rates'!L$51) +($P11*'fnd base rates'!L$52)) -> 361059.1568 | AD11: =(($C11*'fnd base rates'!M$39) +($D11*'fnd base rates'!M$40) +($E11*'fnd base rates'!M$41) +($F11*'fnd base rates'!M$42) +($G11*'fnd base rates'!M$43) +($H11*'fnd base rates'!M$44) +($I11*'fnd base rates'!M$45) +($J11*'fnd base rates'!M$46) +($K11*'fnd base rates'!M$47) +($L11*'fnd base rates'!M$48) +($M11*'fnd base rates'!M$49) +($N11*'fnd base rates'!M$50) +($O11*'fnd base rates'!M$51) +($P11*'fnd base rates'!M$52)) -> 0 | AE11: =SUM(T11:AD11) -> 3930587.701 | AG11: =A11 -> 410035035 | AH11: =IF($A11<499999999,MID($A11,1,3),MID($A11,1,4)) -> 410 | AI11: =IF($A11<499999999,MID($A11,4,3),MID($A11,5,3)) -> 035 | AJ11: =IF($A11<499999999,MID($A11,7,3),MID($A11,8,3)) -> 035 | AK11: =IF(VLOOKUP(VALUE(IF(AG11<499999999,MID(AG11,4,3),MID(AG11,5,3))),distinfo,4)=R11,1,0) -> 1 | AL11: 329 | AM11: =AE11 -> 3930587.701 | AN11: =IF(OR(AE11=0,AL11=0),0,ROUND(AM11/AL11,0)) -> 11947 | AO11: =AN11-AP11 -> 0 | AP11: 11947
A12: 410035044 | B12: EXCEL ACADEMY | C12: ='fnd enro'!C12 -> 0 | D12: ='fnd enro'!D12 -> 0 | E12: ='fnd enro'!E12 -> 0 | F12: ='fnd enro'!F12 -> 0 | G12: ='fnd enro'!G12 -> 0 | H12: ='fnd enro'!H12 -> 1 | I12: ='fnd enro'!I12 -> 0.0375 | J12: ='fnd enro'!J12 -> 0 | K12: ='fnd enro'!K12 -> 0 | L12: ='fnd enro'!L12 -> 0 | M12: ='fnd enro'!M12 -> 0 | N12: ='fnd enro'!N12 -> 0 | O12: ='fnd enro'!O12 -> 0 | P12: ='fnd enro'!P12 -> 1 | Q12: ='fnd enro'!Q12 -> 1 | R12: 1.077 | T12: =(($C12*'fnd base rates'!C$39) +($D12*'fnd base rates'!C$40) +($E12*'fnd base rates'!C$41) +($F12*'fnd base rates'!C$42) +($G12*'fnd base rates'!C$43) +($H12*'fnd base rates'!C$44) +($I12*'fnd base rates'!C$45) +($J12*'fnd base rates'!C$46) +($K12*'fnd base rates'!C$47) +($L12*'fnd base rates'!C$48) +($M12*'fnd base rates'!C$49) +($N12*'fnd base rates'!C$50) +($O12*'fnd base rates'!C$51) +($P12*'fnd base rates'!C$52)) *$R12 -> 493.4919007 | U12: =(($C12*'fnd base rates'!D$39) +($D12*'fnd base rates'!D$40) +($E12*'fnd base rates'!D$41) +($F12*'fnd base rates'!D$42) +($G12*'fnd base rates'!D$43) +($H12*'fnd base rates'!D$44) +($I12*'fnd base rates'!D$45) +($J12*'fnd base rates'!D$46) +($K12*'fnd base rates'!D$47) +($L12*'fnd base rates'!D$48) +($M12*'fnd base rates'!D$49) +($N12*'fnd base rates'!D$50) +($O12*'fnd base rates'!D$51) +($P12*'fnd base rates'!D$52)) *$R12 -> 708.04134 | V12: =(($C12*'fnd base rates'!E$39) +($D12*'fnd base rates'!E$40) +($E12*'fnd base rates'!E$41) +($F12*'fnd base rates'!E$42) +($G12*'fnd base rates'!E$43) +($H12*'fnd base rates'!E$44) +($I12*'fnd base rates'!E$45) +($J12*'fnd base rates'!E$46) +($K12*'fnd base rates'!E$47) +($L12*'fnd base rates'!E$48) +($M12*'fnd base rates'!E$49) +($N12*'fnd base rates'!E$50) +($O12*'fnd base rates'!E$51) +($P12*'fnd base rates'!E$52)) *$R12 -> 6742.966279 | W12: =(($C12*'fnd base rates'!F$39) +($D12*'fnd base rates'!F$40) +($E12*'fnd base rates'!F$41) +($F12*'fnd base rates'!F$42) +($G12*'fnd base rates'!F$43) +($H12*'fnd base rates'!F$44) +($I12*'fnd base rates'!F$45) +($J12*'fnd base rates'!F$46) +($K12*'fnd base rates'!F$47) +($L12*'fnd base rates'!F$48) +($M12*'fnd base rates'!F$49) +($N12*'fnd base rates'!F$50) +($O12*'fnd base rates'!F$51) +($P12*'fnd base rates'!F$52)) *$R12 -> 811.6204687 | X12: =(($C12*'fnd base rates'!G$39) +($D12*'fnd base rates'!G$40) +($E12*'fnd base rates'!G$41) +($F12*'fnd base rates'!G$42) +($G12*'fnd base rates'!G$43) +($H12*'fnd base rates'!G$44) +($I12*'fnd base rates'!G$45) +($J12*'fnd base rates'!G$46) +($K12*'fnd base rates'!G$47) +($L12*'fnd base rates'!G$48) +($M12*'fnd base rates'!G$49) +($N12*'fnd base rates'!G$50) +($O12*'fnd base rates'!G$51) +($P12*'fnd base rates'!G$52)) *$R12 -> 215.4821212 | Y12: =(($C12*'fnd base rates'!H$39) +($D12*'fnd base rates'!H$40) +($E12*'fnd base rates'!H$41) +($F12*'fnd base rates'!H$42) +($G12*'fnd base rates'!H$43) +($H12*'fnd base rates'!H$44) +($I12*'fnd base rates'!H$45) +($J12*'fnd base rates'!H$46) +($K12*'fnd base rates'!H$47) +($L12*'fnd base rates'!H$48) +($M12*'fnd base rates'!H$49) +($N12*'fnd base rates'!H$50) +($O12*'fnd base rates'!H$51) +($P12*'fnd base rates'!H$52)) -> 711.189375 | Z12: =(($C12*'fnd base rates'!I$39) +($D12*'fnd base rates'!I$40) +($E12*'fnd base rates'!I$41) +($F12*'fnd base rates'!I$42) +($G12*'fnd base rates'!I$43) +($H12*'fnd base rates'!I$44) +($I12*'fnd base rates'!I$45) +($J12*'fnd base rates'!I$46) +($K12*'fnd base rates'!I$47) +($L12*'fnd base rates'!I$48) +($M12*'fnd base rates'!I$49) +($N12*'fnd base rates'!I$50) +($O12*'fnd base rates'!I$51) +($P12*'fnd base rates'!I$52)) *$R12 -> 394.20354 | AA12: =(($C12*'fnd base rates'!J$39) +($D12*'fnd base rates'!J$40) +($E12*'fnd base rates'!J$41) +($F12*'fnd base rates'!J$42) +($G12*'fnd base rates'!J$43) +($H12*'fnd base rates'!J$44) +($I12*'fnd base rates'!J$45) +($J12*'fnd base rates'!J$46) +($K12*'fnd base rates'!J$47) +($L12*'fnd base rates'!J$48) +($M12*'fnd base rates'!J$49) +($N12*'fnd base rates'!J$50) +($O12*'fnd base rates'!J$51) +($P12*'fnd base rates'!J$52)) *$R12 -> 530.99331 | AB12: =(($C12*'fnd base rates'!K$39) +($D12*'fnd base rates'!K$40) +($E12*'fnd base rates'!K$41) +($F12*'fnd base rates'!K$42) +($G12*'fnd base rates'!K$43) +($H12*'fnd base rates'!K$44) +($I12*'fnd base rates'!K$45) +($J12*'fnd base rates'!K$46) +($K12*'fnd base rates'!K$47) +($L12*'fnd base rates'!K$48) +($M12*'fnd base rates'!K$49) +($N12*'fnd base rates'!K$50) +($O12*'fnd base rates'!K$51) +($P12*'fnd base rates'!K$52)) *$R12 -> 1512.147849 | AC12: =(($C12*'fnd base rates'!L$39) +($D12*'fnd base rates'!L$40) +($E12*'fnd base rates'!L$41) +($F12*'fnd base rates'!L$42) +($G12*'fnd base rates'!L$43) +($H12*'fnd base rates'!L$44) +($I12*'fnd base rates'!L$45) +($J12*'fnd base rates'!L$46) +($K12*'fnd base rates'!L$47) +($L12*'fnd base rates'!L$48) +($M12*'fnd base rates'!L$49) +($N12*'fnd base rates'!L$50) +($O12*'fnd base rates'!L$51) +($P12*'fnd base rates'!L$52)) -> 1083.79075 | AD12: =(($C12*'fnd base rates'!M$39) +($D12*'fnd base rates'!M$40) +($E12*'fnd base rates'!M$41) +($F12*'fnd base rates'!M$42) +($G12*'fnd base rates'!M$43) +($H12*'fnd base rates'!M$44) +($I12*'fnd base rates'!M$45) +($J12*'fnd base rates'!M$46) +($K12*'fnd base rates'!M$47) +($L12*'fnd base rates'!M$48) +($M12*'fnd base rates'!M$49) +($N12*'fnd base rates'!M$50) +($O12*'fnd base rates'!M$51) +($P12*'fnd base rates'!M$52)) -> 0 | AE12: 13203.92693 | AG12: 410035044 | AH12: 410 | AI12: 035 | AJ12: 044 | AK12: 1 | AL12: 1 | AM12: 13203.92693 | AN12: 13204 | AO12: 0 | AP12: 13204
A13: 410035057 | B13: EXCEL ACADEMY | C13: ='fnd enro'!C13 -> 0 | D13: ='fnd enro'!D13 -> 0 | E13: ='fnd enro'!E13 -> 0 | F13: ='fnd enro'!F13 -> 35 | G13: ='fnd enro'!G13 -> 77 | H13: ='fnd enro'!H13 -> 59 | I13: ='fnd enro'!I13 -> 7.5 | J13: ='fnd enro'!J13 -> 0 | K13: ='fnd enro'!K13 -> 0 | L13: ='fnd enro'!L13 -> 0 | M13: ='fnd enro'!M13 -> 29 | N13: ='fnd enro'!N13 -> 0 | O13: ='fnd enro'!O13 -> 104 | P13: ='fnd enro'!P13 -> 48 | Q13: ='fnd enro'!Q13 -> 200 | R13: 1.077 | T13: =(($C13*'fnd base rates'!C$39) +($D13*'fnd base rates'!C$40) +($E13*'fnd base rates'!C$41) +($F13*'fnd base rates'!C$42) +($G13*'fnd base rates'!C$43) +($H13*'fnd base rates'!C$44) +($I13*'fnd base rates'!C$45) +($J13*'fnd base rates'!C$46) +($K13*'fnd base rates'!C$47) +($L13*'fnd base rates'!C$48) +($M13*'fnd base rates'!C$49) +($N13*'fnd base rates'!C$50) +($O13*'fnd base rates'!C$51) +($P13*'fnd base rates'!C$52)) *$R13 -> 98698.38015 | U13: =(($C13*'fnd base rates'!D$39) +($D13*'fnd base rates'!D$40) +($E13*'fnd base rates'!D$41) +($F13*'fnd base rates'!D$42) +($G13*'fnd base rates'!D$43) +($H13*'fnd base rates'!D$44) +($I13*'fnd base rates'!D$45) +($J13*'fnd base rates'!D$46) +($K13*'fnd base rates'!D$47) +($L13*'fnd base rates'!D$48) +($M13*'fnd base rates'!D$49) +($N13*'fnd base rates'!D$50) +($O13*'fnd base rates'!D$51) +($P13*'fnd base rates'!D$52)) *$R13 -> 141608.268 | V13: =(($C13*'fnd base rates'!E$39) +($D13*'fnd base rates'!E$40) +($E13*'fnd base rates'!E$41) +($F13*'fnd base rates'!E$42) +($G13*'fnd base rates'!E$43) +($H13*'fnd base rates'!E$44) +($I13*'fnd base rates'!E$45) +($J13*'fnd base rates'!E$46) +($K13*'fnd base rates'!E$47) +($L13*'fnd base rates'!E$48) +($M13*'fnd base rates'!E$49) +($N13*'fnd base rates'!E$50) +($O13*'fnd base rates'!E$51) +($P13*'fnd base rates'!E$52)) *$R13 -> 1199962.226 | W13: =(($C13*'fnd base rates'!F$39) +($D13*'fnd base rates'!F$40) +($E13*'fnd base rates'!F$41) +($F13*'fnd base rates'!F$42) +($G13*'fnd base rates'!F$43) +($H13*'fnd base rates'!F$44) +($I13*'fnd base rates'!F$45) +($J13*'fnd base rates'!F$46) +($K13*'fnd base rates'!F$47) +($L13*'fnd base rates'!F$48) +($M13*'fnd base rates'!F$49) +($N13*'fnd base rates'!F$50) +($O13*'fnd base rates'!F$51) +($P13*'fnd base rates'!F$52)) *$R13 -> 186569.9378 | X13: =(($C13*'fnd base rates'!G$39) +($D13*'fnd base rates'!G$40) +($E13*'fnd base rates'!G$41) +($F13*'fnd base rates'!G$42) +($G13*'fnd base rates'!G$43) +($H13*'fnd base rates'!G$44) +($I13*'fnd base rates'!G$45) +($J13*'fnd base rates'!G$46) +($K13*'fnd base rates'!G$47) +($L13*'fnd base rates'!G$48) +($M13*'fnd base rates'!G$49) +($N13*'fnd base rates'!G$50) +($O13*'fnd base rates'!G$51) +($P13*'fnd base rates'!G$52)) *$R13 -> 41233.92507 | Y13: =(($C13*'fnd base rates'!H$39) +($D13*'fnd base rates'!H$40) +($E13*'fnd base rates'!H$41) +($F13*'fnd base rates'!H$42) +($G13*'fnd base rates'!H$43) +($H13*'fnd base rates'!H$44) +($I13*'fnd base rates'!H$45) +($J13*'fnd base rates'!H$46) +($K13*'fnd base rates'!H$47) +($L13*'fnd base rates'!H$48) +($M13*'fnd base rates'!H$49) +($N13*'fnd base rates'!H$50) +($O13*'fnd base rates'!H$51) +($P13*'fnd base rates'!H$52)) -> 105325.485 | Z13: =(($C13*'fnd base rates'!I$39) +($D13*'fnd base rates'!I$40) +($E13*'fnd base rates'!I$41) +($F13*'fnd base rates'!I$42) +($G13*'fnd base rates'!I$43) +($H13*'fnd base rates'!I$44) +($I13*'fnd base rates'!I$45) +($J13*'fnd base rates'!I$46) +($K13*'fnd base rates'!I$47) +($L13*'fnd base rates'!I$48) +($M13*'fnd base rates'!I$49) +($N13*'fnd base rates'!I$50) +($O13*'fnd base rates'!I$51) +($P13*'fnd base rates'!I$52)) *$R13 -> 64860.94644 | AA13: =(($C13*'fnd base rates'!J$39) +($D13*'fnd base rates'!J$40) +($E13*'fnd base rates'!J$41) +($F13*'fnd base rates'!J$42) +($G13*'fnd base rates'!J$43) +($H13*'fnd base rates'!J$44) +($I13*'fnd base rates'!J$45) +($J13*'fnd base rates'!J$46) +($K13*'fnd base rates'!J$47) +($L13*'fnd base rates'!J$48) +($M13*'fnd base rates'!J$49) +($N13*'fnd base rates'!J$50) +($O13*'fnd base rates'!J$51) +($P13*'fnd base rates'!J$52)) *$R13 -> 58082.32998 | AB13: =(($C13*'fnd base rates'!K$39) +($D13*'fnd base rates'!K$40) +($E13*'fnd base rates'!K$41) +($F13*'fnd base rates'!K$42) +($G13*'fnd base rates'!K$43) +($H13*'fnd base rates'!K$44) +($I13*'fnd base rates'!K$45) +($J13*'fnd base rates'!K$46) +($K13*'fnd base rates'!K$47) +($L13*'fnd base rates'!K$48) +($M13*'fnd base rates'!K$49) +($N13*'fnd base rates'!K$50) +($O13*'fnd base rates'!K$51) +($P13*'fnd base rates'!K$52)) *$R13 -> 289360.1425 | AC13: =(($C13*'fnd base rates'!L$39) +($D13*'fnd base rates'!L$40) +($E13*'fnd base rates'!L$41) +($F13*'fnd base rates'!L$42) +($G13*'fnd base rates'!L$43) +($H13*'fnd base rates'!L$44) +($I13*'fnd base rates'!L$45) +($J13*'fnd base rates'!L$46) +($K13*'fnd base rates'!L$47) +($L13*'fnd base rates'!L$48) +($M13*'fnd base rates'!L$49) +($N13*'fnd base rates'!L$50) +($O13*'fnd base rates'!L$51) +($P13*'fnd base rates'!L$52)) -> 215536.6 | AD13: =(($C13*'fnd base rates'!M$39) +($D13*'fnd base rates'!M$40) +($E13*'fnd base rates'!M$41) +($F13*'fnd base rates'!M$42) +($G13*'fnd base rates'!M$43) +($H13*'fnd base rates'!M$44) +($I13*'fnd base rates'!M$45) +($J13*'fnd base rates'!M$46) +($K13*'fnd base rates'!M$47) +($L13*'fnd base rates'!M$48) +($M13*'fnd base rates'!M$49) +($N13*'fnd base rates'!M$50) +($O13*'fnd base rates'!M$51) +($P13*'fnd base rates'!M$52)) -> 0 | AE13: 2401238.241 | AG13: 410035057 | AH13: 410 | AI13: 035 | AJ13: 057 | AK13: 1 | AL13: 200 | AM13: 2401238.241 | AN13: 12006 | AO13: 0 | AP13: 12006
A14: 410035093 | B14: EXCEL ACADEMY | C14: ='fnd enro'!C14 -> 0 | D14: ='fnd enro'!D14 -> 0 | E14: ='fnd enro'!E14 -> 0 | F14: ='fnd enro'!F14 -> 0 | G14: ='fnd enro'!G14 -> 3 | H14: ='fnd enro'!H14 -> 2 | I14: ='fnd enro'!I14 -> 0.1875 | J14: ='fnd enro'!J14 -> 0 | K14: ='fnd enro'!K14 -> 0 | L14: ='fnd enro'!L14 -> 0 | M14: ='fnd enro'!M14 -> 0 | N14: ='fnd enro'!N14 -> 0 | O14: ='fnd enro'!O14 -> 3 | P14: ='fnd enro'!P14 -> 2 | Q14: ='fnd enro'!Q14 -> 5 | R14: 1.077 | T14: =(($C14*'fnd base rates'!C$39) +($D14*'fnd base rates'!C$40) +($E14*'fnd base rates'!C$41) +($F14*'fnd base rates'!C$42) +($G14*'fnd base rates'!C$43) +($H14*'fnd base rates'!C$44) +($I14*'fnd base rates'!C$45) +($J14*'fnd base rates'!C$46) +($K14*'fnd base rates'!C$47) +($L14*'fnd base rates'!C$48) +($M14*'fnd base rates'!C$49) +($N14*'fnd base rates'!C$50) +($O14*'fnd base rates'!C$51) +($P14*'fnd base rates'!C$52)) *$R14 -> 2467.459504 | U14: =(($C14*'fnd base rates'!D$39) +($D14*'fnd base rates'!D$40) +($E14*'fnd base rates'!D$41) +($F14*'fnd base rates'!D$42) +($G14*'fnd base rates'!D$43) +($H14*'fnd base rates'!D$44) +($I14*'fnd base rates'!D$45) +($J14*'fnd base rates'!D$46) +($K14*'fnd base rates'!D$47) +($L14*'fnd base rates'!D$48) +($M14*'fnd base rates'!D$49) +($N14*'fnd base rates'!D$50) +($O14*'fnd base rates'!D$51) +($P14*'fnd base rates'!D$52)) *$R14 -> 3540.2067 | V14: =(($C14*'fnd base rates'!E$39) +($D14*'fnd base rates'!E$40) +($E14*'fnd base rates'!E$41) +($F14*'fnd base rates'!E$42) +($G14*'fnd base rates'!E$43) +($H14*'fnd base rates'!E$44) +($I14*'fnd base rates'!E$45) +($J14*'fnd base rates'!E$46) +($K14*'fnd base rates'!E$47) +($L14*'fnd base rates'!E$48) +($M14*'fnd base rates'!E$49) +($N14*'fnd base rates'!E$50) +($O14*'fnd base rates'!E$51) +($P14*'fnd base rates'!E$52)) *$R14 -> 31824.17944 | W14: =(($C14*'fnd base rates'!F$39) +($D14*'fnd base rates'!F$40) +($E14*'fnd base rates'!F$41) +($F14*'fnd base rates'!F$42) +($G14*'fnd base rates'!F$43) +($H14*'fnd base rates'!F$44) +($I14*'fnd base rates'!F$45) +($J14*'fnd base rates'!F$46) +($K14*'fnd base rates'!F$47) +($L14*'fnd base rates'!F$48) +($M14*'fnd base rates'!F$49) +($N14*'fnd base rates'!F$50) +($O14*'fnd base rates'!F$51) +($P14*'fnd base rates'!F$52)) *$R14 -> 4359.263854 | X14: =(($C14*'fnd base rates'!G$39) +($D14*'fnd base rates'!G$40) +($E14*'fnd base rates'!G$41) +($F14*'fnd base rates'!G$42) +($G14*'fnd base rates'!G$43) +($H14*'fnd base rates'!G$44) +($I14*'fnd base rates'!G$45) +($J14*'fnd base rates'!G$46) +($K14*'fnd base rates'!G$47) +($L14*'fnd base rates'!G$48) +($M14*'fnd base rates'!G$49) +($N14*'fnd base rates'!G$50) +($O14*'fnd base rates'!G$51) +($P14*'fnd base rates'!G$52)) *$R14 -> 1090.108436 | Y14: =(($C14*'fnd base rates'!H$39) +($D14*'fnd base rates'!H$40) +($E14*'fnd base rates'!H$41) +($F14*'fnd base rates'!H$42) +($G14*'fnd base rates'!H$43) +($H14*'fnd base rates'!H$44) +($I14*'fnd base rates'!H$45) +($J14*'fnd base rates'!H$46) +($K14*'fnd base rates'!H$47) +($L14*'fnd base rates'!H$48) +($M14*'fnd base rates'!H$49) +($N14*'fnd base rates'!H$50) +($O14*'fnd base rates'!H$51) +($P14*'fnd base rates'!H$52)) -> 2770.576875 | Z14: =(($C14*'fnd base rates'!I$39) +($D14*'fnd base rates'!I$40) +($E14*'fnd base rates'!I$41) +($F14*'fnd base rates'!I$42) +($G14*'fnd base rates'!I$43) +($H14*'fnd base rates'!I$44) +($I14*'fnd base rates'!I$45) +($J14*'fnd base rates'!I$46) +($K14*'fnd base rates'!I$47) +($L14*'fnd base rates'!I$48) +($M14*'fnd base rates'!I$49) +($N14*'fnd base rates'!I$50) +($O14*'fnd base rates'!I$51) +($P14*'fnd base rates'!I$52)) *$R14 -> 1731.82677 | AA14: =(($C14*'fnd base rates'!J$39) +($D14*'fnd base rates'!J$40) +($E14*'fnd base rates'!J$41) +($F14*'fnd base rates'!J$42) +($G14*'fnd base rates'!J$43) +($H14*'fnd base rates'!J$44) +($I14*'fnd base rates'!J$45) +($J14*'fnd base rates'!J$46) +($K14*'fnd base rates'!J$47) +($L14*'fnd base rates'!J$48) +($M14*'fnd base rates'!J$49) +($N14*'fnd base rates'!J$50) +($O14*'fnd base rates'!J$51) +($P14*'fnd base rates'!J$52)) *$R14 -> 1752.80673 | AB14: =(($C14*'fnd base rates'!K$39) +($D14*'fnd base rates'!K$40) +($E14*'fnd base rates'!K$41) +($F14*'fnd base rates'!K$42) +($G14*'fnd base rates'!K$43) +($H14*'fnd base rates'!K$44) +($I14*'fnd base rates'!K$45) +($J14*'fnd base rates'!K$46) +($K14*'fnd base rates'!K$47) +($L14*'fnd base rates'!K$48) +($M14*'fnd base rates'!K$49) +($N14*'fnd base rates'!K$50) +($O14*'fnd base rates'!K$51) +($P14*'fnd base rates'!K$52)) *$R14 -> 7649.882535 | AC14: =(($C14*'fnd base rates'!L$39) +($D14*'fnd base rates'!L$40) +($E14*'fnd base rates'!L$41) +($F14*'fnd base rates'!L$42) +($G14*'fnd base rates'!L$43) +($H14*'fnd base rates'!L$44) +($I14*'fnd base rates'!L$45) +($J14*'fnd base rates'!L$46) +($K14*'fnd base rates'!L$47) +($L14*'fnd base rates'!L$48) +($M14*'fnd base rates'!L$49) +($N14*'fnd base rates'!L$50) +($O14*'fnd base rates'!L$51) +($P14*'fnd base rates'!L$52)) -> 5503.46375 | AD14: =(($C14*'fnd base rates'!M$39) +($D14*'fnd base rates'!M$40) +($E14*'fnd base rates'!M$41) +($F14*'fnd base rates'!M$42) +($G14*'fnd base rates'!M$43) +($H14*'fnd base rates'!M$44) +($I14*'fnd base rates'!M$45) +($J14*'fnd base rates'!M$46) +($K14*'fnd base rates'!M$47) +($L14*'fnd base rates'!M$48) +($M14*'fnd base rates'!M$49) +($N14*'fnd base rates'!M$50) +($O14*'fnd base rates'!M$51) +($P14*'fnd base rates'!M$52)) -> 0 | AE14: 62689.77459 | AG14: 410035093 | AH14: 410 | AI14: 035 | AJ14: 093 | AK14: 1 | AL14: 5 | AM14: 62689.77459 | AN14: 12538 | AO14: 0 | AP14: 12538
A15: 410035155 | B15: EXCEL ACADEMY | C15: ='fnd enro'!C15 -> 0 | D15: ='fnd enro'!D15 -> 0 | E15: ='fnd enro'!E15 -> 0 | F15: ='fnd enro'!F15 -> 0 | G15: ='fnd enro'!G15 -> 0 | H15: ='fnd enro'!H15 -> 1 | I15: ='fnd enro'!I15 -> 0.0375 | J15: ='fnd enro'!J15 -> 0 | K15: ='fnd enro'!K15 -> 0 | L15: ='fnd enro'!L15 -> 0 | M15: ='fnd enro'!M15 -> 0 | N15: ='fnd enro'!N15 -> 0 | O15: ='fnd enro'!O15 -> 0 | P15: ='fnd enro'!P15 -> 1 | Q15: ='fnd enro'!Q15 -> 1 | R15: 1.077 | T15: =(($C15*'fnd base rates'!C$39) +($D15*'fnd base rates'!C$40) +($E15*'fnd base rates'!C$41) +($F15*'fnd base rates'!C$42) +($G15*'fnd base rates'!C$43) +($H15*'fnd base rates'!C$44) +($I15*'fnd base rates'!C$45) +($J15*'fnd base rates'!C$46) +($K15*'fnd base rates'!C$47) +($L15*'fnd base rates'!C$48) +($M15*'fnd base rates'!C$49) +($N15*'fnd base rates'!C$50) +($O15*'fnd base rates'!C$51) +($P15*'fnd base rates'!C$52)) *$R15 -> 493.4919007 | U15: =(($C15*'fnd base rates'!D$39) +($D15*'fnd base rates'!D$40) +($E15*'fnd base rates'!D$41) +($F15*'fnd base rates'!D$42) +($G15*'fnd base rates'!D$43) +($H15*'fnd base rates'!D$44) +($I15*'fnd base rates'!D$45) +($J15*'fnd base rates'!D$46) +($K15*'fnd base rates'!D$47) +($L15*'fnd base rates'!D$48) +($M15*'fnd base rates'!D$49) +($N15*'fnd base rates'!D$50) +($O15*'fnd base rates'!D$51) +($P15*'fnd base rates'!D$52)) *$R15 -> 708.04134 | V15: =(($C15*'fnd base rates'!E$39) +($D15*'fnd base rates'!E$40) +($E15*'fnd base rates'!E$41) +($F15*'fnd base rates'!E$42) +($G15*'fnd base rates'!E$43) +($H15*'fnd base rates'!E$44) +($I15*'fnd base rates'!E$45) +($J15*'fnd base rates'!E$46) +($K15*'fnd base rates'!E$47) +($L15*'fnd base rates'!E$48) +($M15*'fnd base rates'!E$49) +($N15*'fnd base rates'!E$50) +($O15*'fnd base rates'!E$51) +($P15*'fnd base rates'!E$52)) *$R15 -> 6742.966279 | W15: =(($C15*'fnd base rates'!F$39) +($D15*'fnd base rates'!F$40) +($E15*'fnd base rates'!F$41) +($F15*'fnd base rates'!F$42) +($G15*'fnd base rates'!F$43) +($H15*'fnd base rates'!F$44) +($I15*'fnd base rates'!F$45) +($J15*'fnd base rates'!F$46) +($K15*'fnd base rates'!F$47) +($L15*'fnd base rates'!F$48) +($M15*'fnd base rates'!F$49) +($N15*'fnd base rates'!F$50) +($O15*'fnd base rates'!F$51) +($P15*'fnd base rates'!F$52)) *$R15 -> 811.6204687 | X15: =(($C15*'fnd base rates'!G$39) +($D15*'fnd base rates'!G$40) +($E15*'fnd base rates'!G$41) +($F15*'fnd base rates'!G$42) +($G15*'fnd base rates'!G$43) +($H15*'fnd base rates'!G$44) +($I15*'fnd base rates'!G$45) +($J15*'fnd base rates'!G$46) +($K15*'fnd base rates'!G$47) +($L15*'fnd base rates'!G$48) +($M15*'fnd base rates'!G$49) +($N15*'fnd base rates'!G$50) +($O15*'fnd base rates'!G$51) +($P15*'fnd base rates'!G$52)) *$R15 -> 215.4821212 | Y15: =(($C15*'fnd base rates'!H$39) +($D15*'fnd base rates'!H$40) +($E15*'fnd base rates'!H$41) +($F15*'fnd base rates'!H$42) +($G15*'fnd base rates'!H$43) +($H15*'fnd base rates'!H$44) +($I15*'fnd base rates'!H$45) +($J15*'fnd base rates'!H$46) +($K15*'fnd base rates'!H$47) +($L15*'fnd base rates'!H$48) +($M15*'fnd base rates'!H$49) +($N15*'fnd base rates'!H$50) +($O15*'fnd base rates'!H$51) +($P15*'fnd base rates'!H$52)) -> 711.189375 | Z15: =(($C15*'fnd base rates'!I$39) +($D15*'fnd base rates'!I$40) +($E15*'fnd base rates'!I$41) +($F15*'fnd base rates'!I$42) +($G15*'fnd base rates'!I$43) +($H15*'fnd base rates'!I$44) +($I15*'fnd base rates'!I$45) +($J15*'fnd base rates'!I$46) +($K15*'fnd base rates'!I$47) +($L15*'fnd base rates'!I$48) +($M15*'fnd base rates'!I$49) +($N15*'fnd base rates'!I$50) +($O15*'fnd base rates'!I$51) +($P15*'fnd base rates'!I$52)) *$R15 -> 394.20354 | AA15: =(($C15*'fnd base rates'!J$39) +($D15*'fnd base rates'!J$40) +($E15*'fnd base rates'!J$41) +($F15*'fnd base rates'!J$42) +($G15*'fnd base rates'!J$43) +($H15*'fnd base rates'!J$44) +($I15*'fnd base rates'!J$45) +($J15*'fnd base rates'!J$46) +($K15*'fnd base rates'!J$47) +($L15*'fnd base rates'!J$48) +($M15*'fnd base rates'!J$49) +($N15*'fnd base rates'!J$50) +($O15*'fnd base rates'!J$51) +($P15*'fnd base rates'!J$52)) *$R15 -> 530.99331 | AB15: =(($C15*'fnd base rates'!K$39) +($D15*'fnd base rates'!K$40) +($E15*'fnd base rates'!K$41) +($F15*'fnd base rates'!K$42) +($G15*'fnd base rates'!K$43) +($H15*'fnd base rates'!K$44) +($I15*'fnd base rates'!K$45) +($J15*'fnd base rates'!K$46) +($K15*'fnd base rates'!K$47) +($L15*'fnd base rates'!K$48) +($M15*'fnd base rates'!K$49) +($N15*'fnd base rates'!K$50) +($O15*'fnd base rates'!K$51) +($P15*'fnd base rates'!K$52)) *$R15 -> 1512.147849 | AC15: =(($C15*'fnd base rates'!L$39) +($D15*'fnd base rates'!L$40) +($E15*'fnd base rates'!L$41) +($F15*'fnd base rates'!L$42) +($G15*'fnd base rates'!L$43) +($H15*'fnd base rates'!L$44) +($I15*'fnd base rates'!L$45) +($J15*'fnd base rates'!L$46) +($K15*'fnd base rates'!L$47) +($L15*'fnd base rates'!L$48) +($M15*'fnd base rates'!L$49) +($N15*'fnd base rates'!L$50) +($O15*'fnd base rates'!L$51) +($P15*'fnd base rates'!L$52)) -> 1083.79075 | AD15: =(($C15*'fnd base rates'!M$39) +($D15*'fnd base rates'!M$40) +($E15*'fnd base rates'!M$41) +($F15*'fnd base rates'!M$42) +($G15*'fnd base rates'!M$43) +($H15*'fnd base rates'!M$44) +($I15*'fnd base rates'!M$45) +($J15*'fnd base rates'!M$46) +($K15*'fnd base rates'!M$47) +($L15*'fnd base rates'!M$48) +($M15*'fnd base rates'!M$49) +($N15*'fnd base rates'!M$50) +($O15*'fnd base rates'!M$51) +($P15*'fnd base rates'!M$52)) -> 0 | AE15: 13203.92693 | AG15: 410035155 | AH15: 410 | AI15: 035 | AJ15: 155 | AK15: 1 | AL15: 1 | AM15: 13203.92693 | AN15: 13204 | AO15: 0 | AP15: 13204
A16: 410035160 | B16: EXCEL ACADEMY | C16: ='fnd enro'!C16 -> 0 | D16: ='fnd enro'!D16 -> 0 | E16: ='fnd enro'!E16 -> 0 | F16: ='fnd enro'!F16 -> 0 | G16: ='fnd enro'!G16 -> 0 | H16: ='fnd enro'!H16 -> 1 | I16: ='fnd enro'!I16 -> 0.0375 | J16: ='fnd enro'!J16 -> 0 | K16: ='fnd enro'!K16 -> 0 | L16: ='fnd enro'!L16 -> 0 | M16: ='fnd enro'!M16 -> 0 | N16: ='fnd enro'!N16 -> 0 | O16: ='fnd enro'!O16 -> 0 | P16: ='fnd enro'!P16 -> 1 | Q16: ='fnd enro'!Q16 -> 1 | R16: 1.077 | T16: =(($C16*'fnd base rates'!C$39) +($D16*'fnd base rates'!C$40) +($E16*'fnd base rates'!C$41) +($F16*'fnd base rates'!C$42) +($G16*'fnd base rates'!C$43) +($H16*'fnd base rates'!C$44) +($I16*'fnd base rates'!C$45) +($J16*'fnd base rates'!C$46) +($K16*'fnd base rates'!C$47) +($L16*'fnd base rates'!C$48) +($M16*'fnd base rates'!C$49) +($N16*'fnd base rates'!C$50) +($O16*'fnd base rates'!C$51) +($P16*'fnd base rates'!C$52)) *$R16 -> 493.4919007 | U16: =(($C16*'fnd base rates'!D$39) +($D16*'fnd base rates'!D$40) +($E16*'fnd base rates'!D$41) +($F16*'fnd base rates'!D$42) +($G16*'fnd base rates'!D$43) +($H16*'fnd base rates'!D$44) +($I16*'fnd base rates'!D$45) +($J16*'fnd base rates'!D$46) +($K16*'fnd base rates'!D$47) +($L16*'fnd base rates'!D$48) +($M16*'fnd base rates'!D$49) +($N16*'fnd base rates'!D$50) +($O16*'fnd base rates'!D$51) +($P16*'fnd base rates'!D$52)) *$R16 -> 708.04134 | V16: =(($C16*'fnd base rates'!E$39) +($D16*'fnd base rates'!E$40) +($E16*'fnd base rates'!E$41) +($F16*'fnd base rates'!E$42) +($G16*'fnd base rates'!E$43) +($H16*'fnd base rates'!E$44) +($I16*'fnd base rates'!E$45) +($J16*'fnd base rates'!E$46) +($K16*'fnd base rates'!E$47) +($L16*'fnd base rates'!E$48) +($M16*'fnd base rates'!E$49) +($N16*'fnd base rates'!E$50) +($O16*'fnd base rates'!E$51) +($P16*'fnd base rates'!E$52)) *$R16 -> 6742.966279 | W16: =(($C16*'fnd base rates'!F$39) +($D16*'fnd base rates'!F$40) +($E16*'fnd base rates'!F$41) +($F16*'fnd base rates'!F$42) +($G16*'fnd base rates'!F$43) +($H16*'fnd base rates'!F$44) +($I16*'fnd base rates'!F$45) +($J16*'fnd base rates'!F$46) +($K16*'fnd base rates'!F$47) +($L16*'fnd base rates'!F$48) +($M16*'fnd base rates'!F$49) +($N16*'fnd base rates'!F$50) +($O16*'fnd base rates'!F$51) +($P16*'fnd base rates'!F$52)) *$R16 -> 811.6204687 | X16: =(($C16*'fnd base rates'!G$39) +($D16*'fnd base rates'!G$40) +($E16*'fnd base rates'!G$41) +($F16*'fnd base rates'!G$42) +($G16*'fnd base rates'!G$43) +($H16*'fnd base rates'!G$44) +($I16*'fnd base rates'!G$45) +($J16*'fnd base rates'!G$46) +($K16*'fnd base rates'!G$47) +($L16*'fnd base rates'!G$48) +($M16*'fnd base rates'!G$49) +($N16*'fnd base rates'!G$50) +($O16*'fnd base rates'!G$51) +($P16*'fnd base rates'!G$52)) *$R16 -> 215.4821212 | Y16: =(($C16*'fnd base rates'!H$39) +($D16*'fnd base rates'!H$40) +($E16*'fnd base rates'!H$41) +($F16*'fnd base rates'!H$42) +($G16*'fnd base rates'!H$43) +($H16*'fnd base rates'!H$44) +($I16*'fnd base rates'!H$45) +($J16*'fnd base rates'!H$46) +($K16*'fnd base rates'!H$47) +($L16*'fnd base rates'!H$48) +($M16*'fnd base rates'!H$49) +($N16*'fnd base rates'!H$50) +($O16*'fnd base rates'!H$51) +($P16*'fnd base rates'!H$52)) -> 711.189375 | Z16: =(($C16*'fnd base rates'!I$39) +($D16*'fnd base rates'!I$40) +($E16*'fnd base rates'!I$41) +($F16*'fnd base rates'!I$42) +($G16*'fnd base rates'!I$43) +($H16*'fnd base rates'!I$44) +($I16*'fnd base rates'!I$45) +($J16*'fnd base rates'!I$46) +($K16*'fnd base rates'!I$47) +($L16*'fnd base rates'!I$48) +($M16*'fnd base rates'!I$49) +($N16*'fnd base rates'!I$50) +($O16*'fnd base rates'!I$51) +($P16*'fnd base rates'!I$52)) *$R16 -> 394.20354 | AA16: =(($C16*'fnd base rates'!J$39) +($D16*'fnd base rates'!J$40) +($E16*'fnd base rates'!J$41) +($F16*'fnd base rates'!J$42) +($G16*'fnd base rates'!J$43) +($H16*'fnd base rates'!J$44) +($I16*'fnd base rates'!J$45) +($J16*'fnd base rates'!J$46) +($K16*'fnd base rates'!J$47) +($L16*'fnd base rates'!J$48) +($M16*'fnd base rates'!J$49) +($N16*'fnd base rates'!J$50) +($O16*'fnd base rates'!J$51) +($P16*'fnd base rates'!J$52)) *$R16 -> 530.99331 | AB16: =(($C16*'fnd base rates'!K$39) +($D16*'fnd base rates'!K$40) +($E16*'fnd base rates'!K$41) +($F16*'fnd base rates'!K$42) +($G16*'fnd base rates'!K$43) +($H16*'fnd base rates'!K$44) +($I16*'fnd base rates'!K$45) +($J16*'fnd base rates'!K$46) +($K16*'fnd base rates'!K$47) +($L16*'fnd base rates'!K$48) +($M16*'fnd base rates'!K$49) +($N16*'fnd base rates'!K$50) +($O16*'fnd base rates'!K$51) +($P16*'fnd base rates'!K$52)) *$R16 -> 1512.147849 | AC16: =(($C16*'fnd base rates'!L$39) +($D16*'fnd base rates'!L$40) +($E16*'fnd base rates'!L$41) +($F16*'fnd base rates'!L$42) +($G16*'fnd base rates'!L$43) +($H16*'fnd base rates'!L$44) +($I16*'fnd base rates'!L$45) +($J16*'fnd base rates'!L$46) +($K16*'fnd base rates'!L$47) +($L16*'fnd base rates'!L$48) +($M16*'fnd base rates'!L$49) +($N16*'fnd base rates'!L$50) +($O16*'fnd base rates'!L$51) +($P16*'fnd base rates'!L$52)) -> 1083.79075 | AD16: =(($C16*'fnd base rates'!M$39) +($D16*'fnd base rates'!M$40) +($E16*'fnd base rates'!M$41) +($F16*'fnd base rates'!M$42) +($G16*'fnd base rates'!M$43) +($H16*'fnd base rates'!M$44) +($I16*'fnd base rates'!M$45) +($J16*'fnd base rates'!M$46) +($K16*'fnd base rates'!M$47) +($L16*'fnd base rates'!M$48) +($M16*'fnd base rates'!M$49) +($N16*'fnd base rates'!M$50) +($O16*'fnd base rates'!M$51) +($P16*'fnd base rates'!M$52)) -> 0 | AE16: 13203.92693 | AG16: 410035160 | AH16: 410 | AI16: 035 | AJ16: 160 | AK16: 1 | AL16: 1 | AM16: 13203.92693 | AN16: 13204 | AO16: 0 | AP16: 13204
A17: 410035163 | B17: EXCEL ACADEMY | C17: ='fnd enro'!C17 -> 0 | D17: ='fnd enro'!D17 -> 0 | E17: ='fnd enro'!E17 -> 0 | F17: ='fnd enro'!F17 -> 0 | G17: ='fnd enro'!G17 -> 3 | H17: ='fnd enro'!H17 -> 1 | I17: ='fnd enro'!I17 -> 0.1875 | J17: ='fnd enro'!J17 -> 0 | K17: ='fnd enro'!K17 -> 0 | L17: ='fnd enro'!L17 -> 0 | M17: ='fnd enro'!M17 -> 1 | N17: ='fnd enro'!N17 -> 0 | O17: ='fnd enro'!O17 -> 2 | P17: ='fnd enro'!P17 -> 1 | Q17: ='fnd enro'!Q17 -> 5 | R17: 1.077 | T17: =(($C17*'fnd base rates'!C$39) +($D17*'fnd base rates'!C$40) +($E17*'fnd base rates'!C$41) +($F17*'fnd base rates'!C$42) +($G17*'fnd base rates'!C$43) +($H17*'fnd base rates'!C$44) +($I17*'fnd base rates'!C$45) +($J17*'fnd base rates'!C$46) +($K17*'fnd base rates'!C$47) +($L17*'fnd base rates'!C$48) +($M17*'fnd base rates'!C$49) +($N17*'fnd base rates'!C$50) +($O17*'fnd base rates'!C$51) +($P17*'fnd base rates'!C$52)) *$R17 -> 2467.459504 | U17: =(($C17*'fnd base rates'!D$39) +($D17*'fnd base rates'!D$40) +($E17*'fnd base rates'!D$41) +($F17*'fnd base rates'!D$42) +($G17*'fnd base rates'!D$43) +($H17*'fnd base rates'!D$44) +($I17*'fnd base rates'!D$45) +($J17*'fnd base rates'!D$46) +($K17*'fnd base rates'!D$47) +($L17*'fnd base rates'!D$48) +($M17*'fnd base rates'!D$49) +($N17*'fnd base rates'!D$50) +($O17*'fnd base rates'!D$51) +($P17*'fnd base rates'!D$52)) *$R17 -> 3540.2067 | V17: =(($C17*'fnd base rates'!E$39) +($D17*'fnd base rates'!E$40) +($E17*'fnd base rates'!E$41) +($F17*'fnd base rates'!E$42) +($G17*'fnd base rates'!E$43) +($H17*'fnd base rates'!E$44) +($I17*'fnd base rates'!E$45) +($J17*'fnd base rates'!E$46) +($K17*'fnd base rates'!E$47) +($L17*'fnd base rates'!E$48) +($M17*'fnd base rates'!E$49) +($N17*'fnd base rates'!E$50) +($O17*'fnd base rates'!E$51) +($P17*'fnd base rates'!E$52)) *$R17 -> 27384.60235 | W17: =(($C17*'fnd base rates'!F$39) +($D17*'fnd base rates'!F$40) +($E17*'fnd base rates'!F$41) +($F17*'fnd base rates'!F$42) +($G17*'fnd base rates'!F$43) +($H17*'fnd base rates'!F$44) +($I17*'fnd base rates'!F$45) +($J17*'fnd base rates'!F$46) +($K17*'fnd base rates'!F$47) +($L17*'fnd base rates'!F$48) +($M17*'fnd base rates'!F$49) +($N17*'fnd base rates'!F$50) +($O17*'fnd base rates'!F$51) +($P17*'fnd base rates'!F$52)) *$R17 -> 4526.069614 | X17: =(($C17*'fnd base rates'!G$39) +($D17*'fnd base rates'!G$40) +($E17*'fnd base rates'!G$41) +($F17*'fnd base rates'!G$42) +($G17*'fnd base rates'!G$43) +($H17*'fnd base rates'!G$44) +($I17*'fnd base rates'!G$45) +($J17*'fnd base rates'!G$46) +($K17*'fnd base rates'!G$47) +($L17*'fnd base rates'!G$48) +($M17*'fnd base rates'!G$49) +($N17*'fnd base rates'!G$50) +($O17*'fnd base rates'!G$51) +($P17*'fnd base rates'!G$52)) *$R17 -> 1000.394336 | Y17: =(($C17*'fnd base rates'!H$39) +($D17*'fnd base rates'!H$40) +($E17*'fnd base rates'!H$41) +($F17*'fnd base rates'!H$42) +($G17*'fnd base rates'!H$43) +($H17*'fnd base rates'!H$44) +($I17*'fnd base rates'!H$45) +($J17*'fnd base rates'!H$46) +($K17*'fnd base rates'!H$47) +($L17*'fnd base rates'!H$48) +($M17*'fnd base rates'!H$49) +($N17*'fnd base rates'!H$50) +($O17*'fnd base rates'!H$51) +($P17*'fnd base rates'!H$52)) -> 2508.786875 | Z17: =(($C17*'fnd base rates'!I$39) +($D17*'fnd base rates'!I$40) +($E17*'fnd base rates'!I$41) +($F17*'fnd base rates'!I$42) +($G17*'fnd base rates'!I$43) +($H17*'fnd base rates'!I$44) +($I17*'fnd base rates'!I$45) +($J17*'fnd base rates'!I$46) +($K17*'fnd base rates'!I$47) +($L17*'fnd base rates'!I$48) +($M17*'fnd base rates'!I$49) +($N17*'fnd base rates'!I$50) +($O17*'fnd base rates'!I$51) +($P17*'fnd base rates'!I$52)) *$R17 -> 1652.09646 | AA17: =(($C17*'fnd base rates'!J$39) +($D17*'fnd base rates'!J$40) +($E17*'fnd base rates'!J$41) +($F17*'fnd base rates'!J$42) +($G17*'fnd base rates'!J$43) +($H17*'fnd base rates'!J$44) +($I17*'fnd base rates'!J$45) +($J17*'fnd base rates'!J$46) +($K17*'fnd base rates'!J$47) +($L17*'fnd base rates'!J$48) +($M17*'fnd base rates'!J$49) +($N17*'fnd base rates'!J$50) +($O17*'fnd base rates'!J$51) +($P17*'fnd base rates'!J$52)) *$R17 -> 1362.79272 | AB17: =(($C17*'fnd base rates'!K$39) +($D17*'fnd base rates'!K$40) +($E17*'fnd base rates'!K$41) +($F17*'fnd base rates'!K$42) +($G17*'fnd base rates'!K$43) +($H17*'fnd base rates'!K$44) +($I17*'fnd base rates'!K$45) +($J17*'fnd base rates'!K$46) +($K17*'fnd base rates'!K$47) +($L17*'fnd base rates'!K$48) +($M17*'fnd base rates'!K$49) +($N17*'fnd base rates'!K$50) +($O17*'fnd base rates'!K$51) +($P17*'fnd base rates'!K$52)) *$R17 -> 7020.440655 | AC17: =(($C17*'fnd base rates'!L$39) +($D17*'fnd base rates'!L$40) +($E17*'fnd base rates'!L$41) +($F17*'fnd base rates'!L$42) +($G17*'fnd base rates'!L$43) +($H17*'fnd base rates'!L$44) +($I17*'fnd base rates'!L$45) +($J17*'fnd base rates'!L$46) +($K17*'fnd base rates'!L$47) +($L17*'fnd base rates'!L$48) +($M17*'fnd base rates'!L$49) +($N17*'fnd base rates'!L$50) +($O17*'fnd base rates'!L$51) +($P17*'fnd base rates'!L$52)) -> 5212.80375 | AD17: =(($C17*'fnd base rates'!M$39) +($D17*'fnd base rates'!M$40) +($E17*'fnd base rates'!M$41) +($F17*'fnd base rates'!M$42) +($G17*'fnd base rates'!M$43) +($H17*'fnd base rates'!M$44) +($I17*'fnd base rates'!M$45) +($J17*'fnd base rates'!M$46) +($K17*'fnd base rates'!M$47) +($L17*'fnd base rates'!M$48) +($M17*'fnd base rates'!M$49) +($N17*'fnd base rates'!M$50) +($O17*'fnd base rates'!M$51) +($P17*'fnd base rates'!M$52)) -> 0 | AE17: 56675.65296 | AG17: 410035163 | AH17: 410 | AI17: 035 | AJ17: 163 | AK17: 1 | AL17: 5 | AM17: 56675.65296 | AN17: 11335 | AO17: 0 | AP17: 11335
A18: 410035248 | B18: EXCEL ACADEMY | C18: ='fnd enro'!C18 -> 0 | D18: ='fnd enro'!D18 -> 0 | E18: ='fnd enro'!E18 -> 0 | F18: ='fnd enro'!F18 -> 2 | G18: ='fnd enro'!G18 -> 6 | H18: ='fnd enro'!H18 -> 4 | I18: ='fnd enro'!I18 -> 0.525 | J18: ='fnd enro'!J18 -> 0 | K18: ='fnd enro'!K18 -> 0 | L18: ='fnd enro'!L18 -> 0 | M18: ='fnd enro'!M18 -> 2 | N18: ='fnd enro'!N18 -> 0 | O18: ='fnd enro'!O18 -> 7 | P18: ='fnd enro'!P18 -> 3 | Q18: ='fnd enro'!Q18 -> 14 | R18: 1.077 | T18: =(($C18*'fnd base rates'!C$39) +($D18*'fnd base rates'!C$40) +($E18*'fnd base rates'!C$41) +($F18*'fnd base rates'!C$42) +($G18*'fnd base rates'!C$43) +($H18*'fnd base rates'!C$44) +($I18*'fnd base rates'!C$45) +($J18*'fnd base rates'!C$46) +($K18*'fnd base rates'!C$47) +($L18*'fnd base rates'!C$48) +($M18*'fnd base rates'!C$49) +($N18*'fnd base rates'!C$50) +($O18*'fnd base rates'!C$51) +($P18*'fnd base rates'!C$52)) *$R18 -> 6908.88661 | U18: =(($C18*'fnd base rates'!D$39) +($D18*'fnd base rates'!D$40) +($E18*'fnd base rates'!D$41) +($F18*'fnd base rates'!D$42) +($G18*'fnd base rates'!D$43) +($H18*'fnd base rates'!D$44) +($I18*'fnd base rates'!D$45) +($J18*'fnd base rates'!D$46) +($K18*'fnd base rates'!D$47) +($L18*'fnd base rates'!D$48) +($M18*'fnd base rates'!D$49) +($N18*'fnd base rates'!D$50) +($O18*'fnd base rates'!D$51) +($P18*'fnd base rates'!D$52)) *$R18 -> 9912.57876 | V18: =(($C18*'fnd base rates'!E$39) +($D18*'fnd base rates'!E$40) +($E18*'fnd base rates'!E$41) +($F18*'fnd base rates'!E$42) +($G18*'fnd base rates'!E$43) +($H18*'fnd base rates'!E$44) +($I18*'fnd base rates'!E$45) +($J18*'fnd base rates'!E$46) +($K18*'fnd base rates'!E$47) +($L18*'fnd base rates'!E$48) +($M18*'fnd base rates'!E$49) +($N18*'fnd base rates'!E$50) +($O18*'fnd base rates'!E$51) +($P18*'fnd base rates'!E$52)) *$R18 -> 81974.02491 | W18: =(($C18*'fnd base rates'!F$39) +($D18*'fnd base rates'!F$40) +($E18*'fnd base rates'!F$41) +($F18*'fnd base rates'!F$42) +($G18*'fnd base rates'!F$43) +($H18*'fnd base rates'!F$44) +($I18*'fnd base rates'!F$45) +($J18*'fnd base rates'!F$46) +($K18*'fnd base rates'!F$47) +($L18*'fnd base rates'!F$48) +($M18*'fnd base rates'!F$49) +($N18*'fnd base rates'!F$50) +($O18*'fnd base rates'!F$51) +($P18*'fnd base rates'!F$52)) *$R18 -> 12965.97338 | X18: =(($C18*'fnd base rates'!G$39) +($D18*'fnd base rates'!G$40) +($E18*'fnd base rates'!G$41) +($F18*'fnd base rates'!G$42) +($G18*'fnd base rates'!G$43) +($H18*'fnd base rates'!G$44) +($I18*'fnd base rates'!G$45) +($J18*'fnd base rates'!G$46) +($K18*'fnd base rates'!G$47) +($L18*'fnd base rates'!G$48) +($M18*'fnd base rates'!G$49) +($N18*'fnd base rates'!G$50) +($O18*'fnd base rates'!G$51) +($P18*'fnd base rates'!G$52)) *$R18 -> 2849.599297 | Y18: =(($C18*'fnd base rates'!H$39) +($D18*'fnd base rates'!H$40) +($E18*'fnd base rates'!H$41) +($F18*'fnd base rates'!H$42) +($G18*'fnd base rates'!H$43) +($H18*'fnd base rates'!H$44) +($I18*'fnd base rates'!H$45) +($J18*'fnd base rates'!H$46) +($K18*'fnd base rates'!H$47) +($L18*'fnd base rates'!H$48) +($M18*'fnd base rates'!H$49) +($N18*'fnd base rates'!H$50) +($O18*'fnd base rates'!H$51) +($P18*'fnd base rates'!H$52)) -> 7338.75125 | Z18: =(($C18*'fnd base rates'!I$39) +($D18*'fnd base rates'!I$40) +($E18*'fnd base rates'!I$41) +($F18*'fnd base rates'!I$42) +($G18*'fnd base rates'!I$43) +($H18*'fnd base rates'!I$44) +($I18*'fnd base rates'!I$45) +($J18*'fnd base rates'!I$46) +($K18*'fnd base rates'!I$47) +($L18*'fnd base rates'!I$48) +($M18*'fnd base rates'!I$49) +($N18*'fnd base rates'!I$50) +($O18*'fnd base rates'!I$51) +($P18*'fnd base rates'!I$52)) *$R18 -> 4565.10144 | AA18: =(($C18*'fnd base rates'!J$39) +($D18*'fnd base rates'!J$40) +($E18*'fnd base rates'!J$41) +($F18*'fnd base rates'!J$42) +($G18*'fnd base rates'!J$43) +($H18*'fnd base rates'!J$44) +($I18*'fnd base rates'!J$45) +($J18*'fnd base rates'!J$46) +($K18*'fnd base rates'!J$47) +($L18*'fnd base rates'!J$48) +($M18*'fnd base rates'!J$49) +($N18*'fnd base rates'!J$50) +($O18*'fnd base rates'!J$51) +($P18*'fnd base rates'!J$52)) *$R18 -> 4069.53066 | AB18: =(($C18*'fnd base rates'!K$39) +($D18*'fnd base rates'!K$40) +($E18*'fnd base rates'!K$41) +($F18*'fnd base rates'!K$42) +($G18*'fnd base rates'!K$43) +($H18*'fnd base rates'!K$44) +($I18*'fnd base rates'!K$45) +($J18*'fnd base rates'!K$46) +($K18*'fnd base rates'!K$47) +($L18*'fnd base rates'!K$48) +($M18*'fnd base rates'!K$49) +($N18*'fnd base rates'!K$50) +($O18*'fnd base rates'!K$51) +($P18*'fnd base rates'!K$52)) *$R18 -> 19997.19535 | AC18: =(($C18*'fnd base rates'!L$39) +($D18*'fnd base rates'!L$40) +($E18*'fnd base rates'!L$41) +($F18*'fnd base rates'!L$42) +($G18*'fnd base rates'!L$43) +($H18*'fnd base rates'!L$44) +($I18*'fnd base rates'!L$45) +($J18*'fnd base rates'!L$46) +($K18*'fnd base rates'!L$47) +($L18*'fnd base rates'!L$48) +($M18*'fnd base rates'!L$49) +($N18*'fnd base rates'!L$50) +($O18*'fnd base rates'!L$51) +($P18*'fnd base rates'!L$52)) -> 14891.3705 | AD18: =(($C18*'fnd base rates'!M$39) +($D18*'fnd base rates'!M$40) +($E18*'fnd base rates'!M$41) +($F18*'fnd base rates'!M$42) +($G18*'fnd base rates'!M$43) +($H18*'fnd base rates'!M$44) +($I18*'fnd base rates'!M$45) +($J18*'fnd base rates'!M$46) +($K18*'fnd base rates'!M$47) +($L18*'fnd base rates'!M$48) +($M18*'fnd base rates'!M$49) +($N18*'fnd base rates'!M$50) +($O18*'fnd base rates'!M$51) +($P18*'fnd base rates'!M$52)) -> 0 | AE18: 165473.0122 | AG18: 410035248 | AH18: 410 | AI18: 035 | AJ18: 248 | AK18: 1 | AL18: 14 | AM18: 165473.0122 | AN18: 11820 | AO18: 0 | AP18: 11820
A19: 410035308 | B19: EXCEL ACADEMY | C19: ='fnd enro'!C19 -> 0 | D19: ='fnd enro'!D19 -> 0 | E19: ='fnd enro'!E19 -> 0 | F19: ='fnd enro'!F19 -> 0 | G19: ='fnd enro'!G19 -> 0 | H19: ='fnd enro'!H19 -> 1 | I19: ='fnd enro'!I19 -> 0.0375 | J19: ='fnd enro'!J19 -> 0 | K19: ='fnd enro'!K19 -> 0 | L19: ='fnd enro'!L19 -> 0 | M19: ='fnd enro'!M19 -> 0 | N19: ='fnd enro'!N19 -> 0 | O19: ='fnd enro'!O19 -> 0 | P19: ='fnd enro'!P19 -> 1 | Q19: ='fnd enro'!Q19 -> 1 | R19: 1.077 | T19: =(($C19*'fnd base rates'!C$39) +($D19*'fnd base rates'!C$40) +($E19*'fnd base rates'!C$41) +($F19*'fnd base rates'!C$42) +($G19*'fnd base rates'!C$43) +($H19*'fnd base rates'!C$44) +($I19*'fnd base rates'!C$45) +($J19*'fnd base rates'!C$46) +($K19*'fnd base rates'!C$47) +($L19*'fnd base rates'!C$48) +($M19*'fnd base rates'!C$49) +($N19*'fnd base rates'!C$50) +($O19*'fnd base rates'!C$51) +($P19*'fnd base rates'!C$52)) *$R19 -> 493.4919007 | U19: =(($C19*'fnd base rates'!D$39) +($D19*'fnd base rates'!D$40) +($E19*'fnd base rates'!D$41) +($F19*'fnd base rates'!D$42) +($G19*'fnd base rates'!D$43) +($H19*'fnd base rates'!D$44) +($I19*'fnd base rates'!D$45) +($J19*'fnd base rates'!D$46) +($K19*'fnd base rates'!D$47) +($L19*'fnd base rates'!D$48) +($M19*'fnd base rates'!D$49) +($N19*'fnd base rates'!D$50) +($O19*'fnd base rates'!D$51) +($P19*'fnd base rates'!D$52)) *$R19 -> 708.04134 | V19: =(($C19*'fnd base rates'!E$39) +($D19*'fnd base rates'!E$40) +($E19*'fnd base rates'!E$41) +($F19*'fnd base rates'!E$42) +($G19*'fnd base rates'!E$43) +($H19*'fnd base rates'!E$44) +($I19*'fnd base rates'!E$45) +($J19*'fnd base rates'!E$46) +($K19*'fnd base rates'!E$47) +($L19*'fnd base rates'!E$48) +($M19*'fnd base rates'!E$49) +($N19*'fnd base rates'!E$50) +($O19*'fnd base rates'!E$51) +($P19*'fnd base rates'!E$52)) *$R19 -> 6742.966279 | W19: =(($C19*'fnd base rates'!F$39) +($D19*'fnd base rates'!F$40) +($E19*'fnd base rates'!F$41) +($F19*'fnd base rates'!F$42) +($G19*'fnd base rates'!F$43) +($H19*'fnd base rates'!F$44) +($I19*'fnd base rates'!F$45) +($J19*'fnd base rates'!F$46) +($K19*'fnd base rates'!F$47) +($L19*'fnd base rates'!F$48) +($M19*'fnd base rates'!F$49) +($N19*'fnd base rates'!F$50) +($O19*'fnd base rates'!F$51) +($P19*'fnd base rates'!F$52)) *$R19 -> 811.6204687 | X19: =(($C19*'fnd base rates'!G$39) +($D19*'fnd base rates'!G$40) +($E19*'fnd base rates'!G$41) +($F19*'fnd base rates'!G$42) +($G19*'fnd base rates'!G$43) +($H19*'fnd base rates'!G$44) +($I19*'fnd base rates'!G$45) +($J19*'fnd base rates'!G$46) +($K19*'fnd base rates'!G$47) +($L19*'fnd base rates'!G$48) +($M19*'fnd base rates'!G$49) +($N19*'fnd base rates'!G$50) +($O19*'fnd base rates'!G$51) +($P19*'fnd base rates'!G$52)) *$R19 -> 215.4821212 | Y19: =(($C19*'fnd base rates'!H$39) +($D19*'fnd base rates'!H$40) +($E19*'fnd base rates'!H$41) +($F19*'fnd base rates'!H$42) +($G19*'fnd base rates'!H$43) +($H19*'fnd base rates'!H$44) +($I19*'fnd base rates'!H$45) +($J19*'fnd base rates'!H$46) +($K19*'fnd base rates'!H$47) +($L19*'fnd base rates'!H$48) +($M19*'fnd base rates'!H$49) +($N19*'fnd base rates'!H$50) +($O19*'fnd base rates'!H$51) +($P19*'fnd base rates'!H$52)) -> 711.189375 | Z19: =(($C19*'fnd base rates'!I$39) +($D19*'fnd base rates'!I$40) +($E19*'fnd base rates'!I$41) +($F19*'fnd base rates'!I$42) +($G19*'fnd base rates'!I$43) +($H19*'fnd base rates'!I$44) +($I19*'fnd base rates'!I$45) +($J19*'fnd base rates'!I$46) +($K19*'fnd base rates'!I$47) +($L19*'fnd base rates'!I$48) +($M19*'fnd base rates'!I$49) +($N19*'fnd base rates'!I$50) +($O19*'fnd base rates'!I$51) +($P19*'fnd base rates'!I$52)) *$R19 -> 394.20354 | AA19: =(($C19*'fnd base rates'!J$39) +($D19*'fnd base rates'!J$40) +($E19*'fnd base rates'!J$41) +($F19*'fnd base rates'!J$42) +($G19*'fnd base rates'!J$43) +($H19*'fnd base rates'!J$44) +($I19*'fnd base rates'!J$45) +($J19*'fnd base rates'!J$46) +($K19*'fnd base rates'!J$47) +($L19*'fnd base rates'!J$48) +($M19*'fnd base rates'!J$49) +($N19*'fnd base rates'!J$50) +($O19*'fnd base rates'!J$51) +($P19*'fnd base rates'!J$52)) *$R19 -> 530.99331 | AB19: =(($C19*'fnd base rates'!K$39) +($D19*'fnd base rates'!K$40) +($E19*'fnd base rates'!K$41) +($F19*'fnd base rates'!K$42) +($G19*'fnd base rates'!K$43) +($H19*'fnd base rates'!K$44) +($I19*'fnd base rates'!K$45) +($J19*'fnd base rates'!K$46) +($K19*'fnd base rates'!K$47) +($L19*'fnd base rates'!K$48) +($M19*'fnd base rates'!K$49) +($N19*'fnd base rates'!K$50) +($O19*'fnd base rates'!K$51) +($P19*'fnd base rates'!K$52)) *$R19 -> 1512.147849 | AC19: =(($C19*'fnd base rates'!L$39) +($D19*'fnd base rates'!L$40) +($E19*'fnd base rates'!L$41) +($F19*'fnd base rates'!L$42) +($G19*'fnd base rates'!L$43) +($H19*'fnd base rates'!L$44) +($I19*'fnd base rates'!L$45) +($J19*'fnd base rates'!L$46) +($K19*'fnd base rates'!L$47) +($L19*'fnd base rates'!L$48) +($M19*'fnd base rates'!L$49) +($N19*'fnd base rates'!L$50) +($O19*'fnd base rates'!L$51) +($P19*'fnd base rates'!L$52)) -> 1083.79075 | AD19: =(($C19*'fnd base rates'!M$39) +($D19*'fnd base rates'!M$40) +($E19*'fnd base rates'!M$41) +($F19*'fnd base rates'!M$42) +($G19*'fnd base rates'!M$43) +($H19*'fnd base rates'!M$44) +($I19*'fnd base rates'!M$45) +($J19*'fnd base rates'!M$46) +($K19*'fnd base rates'!M$47) +($L19*'fnd base rates'!M$48) +($M19*'fnd base rates'!M$49) +($N19*'fnd base rates'!M$50) +($O19*'fnd base rates'!M$51) +($P19*'fnd base rates'!M$52)) -> 0 | AE19: 13203.92693 | AG19: 410035308 | AH19: 410 | AI19: 035 | AJ19: 308 | AK19: 1 | AL19: 1 | AM19: 13203.92693 | AN19: 13204 | AO19: 0 | AP19: 13204
A20: 410035346 | B20: EXCEL ACADEMY | C20: ='fnd enro'!C20 -> 0 | D20: ='fnd enro'!D20 -> 0 | E20: ='fnd enro'!E20 -> 0 | F20: ='fnd enro'!F20 -> 0 | G20: ='fnd enro'!G20 -> 5 | H20: ='fnd enro'!H20 -> 1 | I20: ='fnd enro'!I20 -> 0.225 | J20: ='fnd enro'!J20 -> 0 | K20: ='fnd enro'!K20 -> 0 | L20: ='fnd enro'!L20 -> 0 | M20: ='fnd enro'!M20 -> 0 | N20: ='fnd enro'!N20 -> 0 | O20: ='fnd enro'!O20 -> 2 | P20: ='fnd enro'!P20 -> 1 | Q20: ='fnd enro'!Q20 -> 6 | R20: 1.077 | T20: =(($C20*'fnd base rates'!C$39) +($D20*'fnd base rates'!C$40) +($E20*'fnd base rates'!C$41) +($F20*'fnd base rates'!C$42) +($G20*'fnd base rates'!C$43) +($H20*'fnd base rates'!C$44) +($I20*'fnd base rates'!C$45) +($J20*'fnd base rates'!C$46) +($K20*'fnd base rates'!C$47) +($L20*'fnd base rates'!C$48) +($M20*'fnd base rates'!C$49) +($N20*'fnd base rates'!C$50) +($O20*'fnd base rates'!C$51) +($P20*'fnd base rates'!C$52)) *$R20 -> 2960.951404 | U20: =(($C20*'fnd base rates'!D$39) +($D20*'fnd base rates'!D$40) +($E20*'fnd base rates'!D$41) +($F20*'fnd base rates'!D$42) +($G20*'fnd base rates'!D$43) +($H20*'fnd base rates'!D$44) +($I20*'fnd base rates'!D$45) +($J20*'fnd base rates'!D$46) +($K20*'fnd base rates'!D$47) +($L20*'fnd base rates'!D$48) +($M20*'fnd base rates'!D$49) +($N20*'fnd base rates'!D$50) +($O20*'fnd base rates'!D$51) +($P20*'fnd base rates'!D$52)) *$R20 -> 4248.24804 | V20: =(($C20*'fnd base rates'!E$39) +($D20*'fnd base rates'!E$40) +($E20*'fnd base rates'!E$41) +($F20*'fnd base rates'!E$42) +($G20*'fnd base rates'!E$43) +($H20*'fnd base rates'!E$44) +($I20*'fnd base rates'!E$45) +($J20*'fnd base rates'!E$46) +($K20*'fnd base rates'!E$47) +($L20*'fnd base rates'!E$48) +($M20*'fnd base rates'!E$49) +($N20*'fnd base rates'!E$50) +($O20*'fnd base rates'!E$51) +($P20*'fnd base rates'!E$52)) *$R20 -> 28543.91597 | W20: =(($C20*'fnd base rates'!F$39) +($D20*'fnd base rates'!F$40) +($E20*'fnd base rates'!F$41) +($F20*'fnd base rates'!F$42) +($G20*'fnd base rates'!F$43) +($H20*'fnd base rates'!F$44) +($I20*'fnd base rates'!F$45) +($J20*'fnd base rates'!F$46) +($K20*'fnd base rates'!F$47) +($L20*'fnd base rates'!F$48) +($M20*'fnd base rates'!F$49) +($N20*'fnd base rates'!F$50) +($O20*'fnd base rates'!F$51) +($P20*'fnd base rates'!F$52)) *$R20 -> 5371.658662 | X20: =(($C20*'fnd base rates'!G$39) +($D20*'fnd base rates'!G$40) +($E20*'fnd base rates'!G$41) +($F20*'fnd base rates'!G$42) +($G20*'fnd base rates'!G$43) +($H20*'fnd base rates'!G$44) +($I20*'fnd base rates'!G$45) +($J20*'fnd base rates'!G$46) +($K20*'fnd base rates'!G$47) +($L20*'fnd base rates'!G$48) +($M20*'fnd base rates'!G$49) +($N20*'fnd base rates'!G$50) +($O20*'fnd base rates'!G$51) +($P20*'fnd base rates'!G$52)) *$R20 -> 1121.197387 | Y20: =(($C20*'fnd base rates'!H$39) +($D20*'fnd base rates'!H$40) +($E20*'fnd base rates'!H$41) +($F20*'fnd base rates'!H$42) +($G20*'fnd base rates'!H$43) +($H20*'fnd base rates'!H$44) +($I20*'fnd base rates'!H$45) +($J20*'fnd base rates'!H$46) +($K20*'fnd base rates'!H$47) +($L20*'fnd base rates'!H$48) +($M20*'fnd base rates'!H$49) +($N20*'fnd base rates'!H$50) +($O20*'fnd base rates'!H$51) +($P20*'fnd base rates'!H$52)) -> 2958.18625 | Z20: =(($C20*'fnd base rates'!I$39) +($D20*'fnd base rates'!I$40) +($E20*'fnd base rates'!I$41) +($F20*'fnd base rates'!I$42) +($G20*'fnd base rates'!I$43) +($H20*'fnd base rates'!I$44) +($I20*'fnd base rates'!I$45) +($J20*'fnd base rates'!I$46) +($K20*'fnd base rates'!I$47) +($L20*'fnd base rates'!I$48) +($M20*'fnd base rates'!I$49) +($N20*'fnd base rates'!I$50) +($O20*'fnd base rates'!I$51) +($P20*'fnd base rates'!I$52)) *$R20 -> 1966.56969 | AA20: =(($C20*'fnd base rates'!J$39) +($D20*'fnd base rates'!J$40) +($E20*'fnd base rates'!J$41) +($F20*'fnd base rates'!J$42) +($G20*'fnd base rates'!J$43) +($H20*'fnd base rates'!J$44) +($I20*'fnd base rates'!J$45) +($J20*'fnd base rates'!J$46) +($K20*'fnd base rates'!J$47) +($L20*'fnd base rates'!J$48) +($M20*'fnd base rates'!J$49) +($N20*'fnd base rates'!J$50) +($O20*'fnd base rates'!J$51) +($P20*'fnd base rates'!J$52)) *$R20 -> 1682.36016 | AB20: =(($C20*'fnd base rates'!K$39) +($D20*'fnd base rates'!K$40) +($E20*'fnd base rates'!K$41) +($F20*'fnd base rates'!K$42) +($G20*'fnd base rates'!K$43) +($H20*'fnd base rates'!K$44) +($I20*'fnd base rates'!K$45) +($J20*'fnd base rates'!K$46) +($K20*'fnd base rates'!K$47) +($L20*'fnd base rates'!K$48) +($M20*'fnd base rates'!K$49) +($N20*'fnd base rates'!K$50) +($O20*'fnd base rates'!K$51) +($P20*'fnd base rates'!K$52)) *$R20 -> 7868.090274 | AC20: =(($C20*'fnd base rates'!L$39) +($D20*'fnd base rates'!L$40) +($E20*'fnd base rates'!L$41) +($F20*'fnd base rates'!L$42) +($G20*'fnd base rates'!L$43) +($H20*'fnd base rates'!L$44) +($I20*'fnd base rates'!L$45) +($J20*'fnd base rates'!L$46) +($K20*'fnd base rates'!L$47) +($L20*'fnd base rates'!L$48) +($M20*'fnd base rates'!L$49) +($N20*'fnd base rates'!L$50) +($O20*'fnd base rates'!L$51) +($P20*'fnd base rates'!L$52)) -> 5817.6945 | AD20: =(($C20*'fnd base rates'!M$39) +($D20*'fnd base rates'!M$40) +($E20*'fnd base rates'!M$41) +($F20*'fnd base rates'!M$42) +($G20*'fnd base rates'!M$43) +($H20*'fnd base rates'!M$44) +($I20*'fnd base rates'!M$45) +($J20*'fnd base rates'!M$46) +($K20*'fnd base rates'!M$47) +($L20*'fnd base rates'!M$48) +($M20*'fnd base rates'!M$49) +($N20*'fnd base rates'!M$50) +($O20*'fnd base rates'!M$51) +($P20*'fnd base rates'!M$52)) -> 0 | AE20: 62538.87234 | AG20: 410035346 | AH20: 410 | AI20: 035 | AJ20: 346 | AK20: 1 | AL20: 6 | AM20: 62538.87234 | AN20: 10423 | AO20: 0 | AP20: 10423
A21: 410057035 | B21: EXCEL ACADEMY | C21: ='fnd enro'!C21 -> 0 | D21: ='fnd enro'!D21 -> 0 | E21: ='fnd enro'!E21 -> 0 | F21: ='fnd enro'!F21 -> 0 | G21: ='fnd enro'!G21 -> 4 | H21: ='fnd enro'!H21 -> 0 | I21: ='fnd enro'!I21 -> 0.1875 | J21: ='fnd enro'!J21 -> 0 | K21: ='fnd enro'!K21 -> 0 | L21: ='fnd enro'!L21 -> 0 | M21: ='fnd enro'!M21 -> 1 | N21: ='fnd enro'!N21 -> 0 | O21: ='fnd enro'!O21 -> 1 | P21: ='fnd enro'!P21 -> 0 | Q21: ='fnd enro'!Q21 -> 5 | R21: 1.038 | T21: =(($C21*'fnd base rates'!C$39) +($D21*'fnd base rates'!C$40) +($E21*'fnd base rates'!C$41) +($F21*'fnd base rates'!C$42) +($G21*'fnd base rates'!C$43) +($H21*'fnd base rates'!C$44) +($I21*'fnd base rates'!C$45) +($J21*'fnd base rates'!C$46) +($K21*'fnd base rates'!C$47) +($L21*'fnd base rates'!C$48) +($M21*'fnd base rates'!C$49) +($N21*'fnd base rates'!C$50) +($O21*'fnd base rates'!C$51) +($P21*'fnd base rates'!C$52)) *$R21 -> 2378.108602 | U21: =(($C21*'fnd base rates'!D$39) +($D21*'fnd base rates'!D$40) +($E21*'fnd base rates'!D$41) +($F21*'fnd base rates'!D$42) +($G21*'fnd base rates'!D$43) +($H21*'fnd base rates'!D$44) +($I21*'fnd base rates'!D$45) +($J21*'fnd base rates'!D$46) +($K21*'fnd base rates'!D$47) +($L21*'fnd base rates'!D$48) +($M21*'fnd base rates'!D$49) +($N21*'fnd base rates'!D$50) +($O21*'fnd base rates'!D$51) +($P21*'fnd base rates'!D$52)) *$R21 -> 3412.0098 | V21: =(($C21*'fnd base rates'!E$39) +($D21*'fnd base rates'!E$40) +($E21*'fnd base rates'!E$41) +($F21*'fnd base rates'!E$42) +($G21*'fnd base rates'!E$43) +($H21*'fnd base rates'!E$44) +($I21*'fnd base rates'!E$45) +($J21*'fnd base rates'!E$46) +($K21*'fnd base rates'!E$47) +($L21*'fnd base rates'!E$48) +($M21*'fnd base rates'!E$49) +($N21*'fnd base rates'!E$50) +($O21*'fnd base rates'!E$51) +($P21*'fnd base rates'!E$52)) *$R21 -> 20155.24368 | W21: =(($C21*'fnd base rates'!F$39) +($D21*'fnd base rates'!F$40) +($E21*'fnd base rates'!F$41) +($F21*'fnd base rates'!F$42) +($G21*'fnd base rates'!F$43) +($H21*'fnd base rates'!F$44) +($I21*'fnd base rates'!F$45) +($J21*'fnd base rates'!F$46) +($K21*'fnd base rates'!F$47) +($L21*'fnd base rates'!F$48) +($M21*'fnd base rates'!F$49) +($N21*'fnd base rates'!F$50) +($O21*'fnd base rates'!F$51) +($P21*'fnd base rates'!F$52)) *$R21 -> 4458.924923 | X21: =(($C21*'fnd base rates'!G$39) +($D21*'fnd base rates'!G$40) +($E21*'fnd base rates'!G$41) +($F21*'fnd base rates'!G$42) +($G21*'fnd base rates'!G$43) +($H21*'fnd base rates'!G$44) +($I21*'fnd base rates'!G$45) +($J21*'fnd base rates'!G$46) +($K21*'fnd base rates'!G$47) +($L21*'fnd base rates'!G$48) +($M21*'fnd base rates'!G$49) +($N21*'fnd base rates'!G$50) +($O21*'fnd base rates'!G$51) +($P21*'fnd base rates'!G$52)) *$R21 -> 844.3312575 | Y21: =(($C21*'fnd base rates'!H$39) +($D21*'fnd base rates'!H$40) +($E21*'fnd base rates'!H$41) +($F21*'fnd base rates'!H$42) +($G21*'fnd base rates'!H$43) +($H21*'fnd base rates'!H$44) +($I21*'fnd base rates'!H$45) +($J21*'fnd base rates'!H$46) +($K21*'fnd base rates'!H$47) +($L21*'fnd base rates'!H$48) +($M21*'fnd base rates'!H$49) +($N21*'fnd base rates'!H$50) +($O21*'fnd base rates'!H$51) +($P21*'fnd base rates'!H$52)) -> 2246.996875 | Z21: =(($C21*'fnd base rates'!I$39) +($D21*'fnd base rates'!I$40) +($E21*'fnd base rates'!I$41) +($F21*'fnd base rates'!I$42) +($G21*'fnd base rates'!I$43) +($H21*'fnd base rates'!I$44) +($I21*'fnd base rates'!I$45) +($J21*'fnd base rates'!I$46) +($K21*'fnd base rates'!I$47) +($L21*'fnd base rates'!I$48) +($M21*'fnd base rates'!I$49) +($N21*'fnd base rates'!I$50) +($O21*'fnd base rates'!I$51) +($P21*'fnd base rates'!I$52)) *$R21 -> 1515.4281 | AA21: =(($C21*'fnd base rates'!J$39) +($D21*'fnd base rates'!J$40) +($E21*'fnd base rates'!J$41) +($F21*'fnd base rates'!J$42) +($G21*'fnd base rates'!J$43) +($H21*'fnd base rates'!J$44) +($I21*'fnd base rates'!J$45) +($J21*'fnd base rates'!J$46) +($K21*'fnd base rates'!J$47) +($L21*'fnd base rates'!J$48) +($M21*'fnd base rates'!J$49) +($N21*'fnd base rates'!J$50) +($O21*'fnd base rates'!J$51) +($P21*'fnd base rates'!J$52)) *$R21 -> 1023.61332 | AB21: =(($C21*'fnd base rates'!K$39) +($D21*'fnd base rates'!K$40) +($E21*'fnd base rates'!K$41) +($F21*'fnd base rates'!K$42) +($G21*'fnd base rates'!K$43) +($H21*'fnd base rates'!K$44) +($I21*'fnd base rates'!K$45) +($J21*'fnd base rates'!K$46) +($K21*'fnd base rates'!K$47) +($L21*'fnd base rates'!K$48) +($M21*'fnd base rates'!K$49) +($N21*'fnd base rates'!K$50) +($O21*'fnd base rates'!K$51) +($P21*'fnd base rates'!K$52)) *$R21 -> 5925.28287 | AC21: =(($C21*'fnd base rates'!L$39) +($D21*'fnd base rates'!L$40) +($E21*'fnd base rates'!L$41) +($F21*'fnd base rates'!L$42) +($G21*'fnd base rates'!L$43) +($H21*'fnd base rates'!L$44) +($I21*'fnd base rates'!L$45) +($J21*'fnd base rates'!L$46) +($K21*'fnd base rates'!L$47) +($L21*'fnd base rates'!L$48) +($M21*'fnd base rates'!L$49) +($N21*'fnd base rates'!L$50) +($O21*'fnd base rates'!L$51) +($P21*'fnd base rates'!L$52)) -> 4690.37375 | AD21: =(($C21*'fnd base rates'!M$39) +($D21*'fnd base rates'!M$40) +($E21*'fnd base rates'!M$41) +($F21*'fnd base rates'!M$42) +($G21*'fnd base rates'!M$43) +($H21*'fnd base rates'!M$44) +($I21*'fnd base rates'!M$45) +($J21*'fnd base rates'!M$46) +($K21*'fnd base rates'!M$47) +($L21*'fnd base rates'!M$48) +($M21*'fnd base rates'!M$49) +($N21*'fnd base rates'!M$50) +($O21*'fnd base rates'!M$51) +($P21*'fnd base rates'!M$52)) -> 0 | AE21: 46650.31318 | AG21: 410057035 | AH21: 410 | AI21: 057 | AJ21: 035 | AK21: 1 | AL21: 5 | AM21: 46650.31318 | AN21: 9330 | AO21: 0 | AP21: 9330
A22: 410057057 | B22: EXCEL ACADEMY | C22: ='fnd enro'!C22 -> 0 | D22: ='fnd enro'!D22 -> 0 | E22: ='fnd enro'!E22 -> 0 | F22: ='fnd enro'!F22 -> 44 | G22: ='fnd enro'!G22 -> 151 | H22: ='fnd enro'!H22 -> 0 | I22: ='fnd enro'!I22 -> 8.0625 | J22: ='fnd enro'!J22 -> 0 | K22: ='fnd enro'!K22 -> 0 | L22: ='fnd enro'!L22 -> 0 | M22: ='fnd enro'!M22 -> 20 | N22: ='fnd enro'!N22 -> 0 | O22: ='fnd enro'!O22 -> 179 | P22: ='fnd enro'!P22 -> 0 | Q22: ='fnd enro'!Q22 -> 215 | R22: 1.038 | T22: =(($C22*'fnd base rates'!C$39) +($D22*'fnd base rates'!C$40) +($E22*'fnd base rates'!C$41) +($F22*'fnd base rates'!C$42) +($G22*'fnd base rates'!C$43) +($H22*'fnd base rates'!C$44) +($I22*'fnd base rates'!C$45) +($J22*'fnd base rates'!C$46) +($K22*'fnd base rates'!C$47) +($L22*'fnd base rates'!C$48) +($M22*'fnd base rates'!C$49) +($N22*'fnd base rates'!C$50) +($O22*'fnd base rates'!C$51) +($P22*'fnd base rates'!C$52)) *$R22 -> 102258.6699 | U22: =(($C22*'fnd base rates'!D$39) +($D22*'fnd base rates'!D$40) +($E22*'fnd base rates'!D$41) +($F22*'fnd base rates'!D$42) +($G22*'fnd base rates'!D$43) +($H22*'fnd base rates'!D$44) +($I22*'fnd base rates'!D$45) +($J22*'fnd base rates'!D$46) +($K22*'fnd base rates'!D$47) +($L22*'fnd base rates'!D$48) +($M22*'fnd base rates'!D$49) +($N22*'fnd base rates'!D$50) +($O22*'fnd base rates'!D$51) +($P22*'fnd base rates'!D$52)) *$R22 -> 146716.4214 | V22: =(($C22*'fnd base rates'!E$39) +($D22*'fnd base rates'!E$40) +($E22*'fnd base rates'!E$41) +($F22*'fnd base rates'!E$42) +($G22*'fnd base rates'!E$43) +($H22*'fnd base rates'!E$44) +($I22*'fnd base rates'!E$45) +($J22*'fnd base rates'!E$46) +($K22*'fnd base rates'!E$47) +($L22*'fnd base rates'!E$48) +($M22*'fnd base rates'!E$49) +($N22*'fnd base rates'!E$50) +($O22*'fnd base rates'!E$51) +($P22*'fnd base rates'!E$52)) *$R22 -> 1221002.913 | W22: =(($C22*'fnd base rates'!F$39) +($D22*'fnd base rates'!F$40) +($E22*'fnd base rates'!F$41) +($F22*'fnd base rates'!F$42) +($G22*'fnd base rates'!F$43) +($H22*'fnd base rates'!F$44) +($I22*'fnd base rates'!F$45) +($J22*'fnd base rates'!F$46) +($K22*'fnd base rates'!F$47) +($L22*'fnd base rates'!F$48) +($M22*'fnd base rates'!F$49) +($N22*'fnd base rates'!F$50) +($O22*'fnd base rates'!F$51) +($P22*'fnd base rates'!F$52)) *$R22 -> 200154.474 | X22: =(($C22*'fnd base rates'!G$39) +($D22*'fnd base rates'!G$40) +($E22*'fnd base rates'!G$41) +($F22*'fnd base rates'!G$42) +($G22*'fnd base rates'!G$43) +($H22*'fnd base rates'!G$44) +($I22*'fnd base rates'!G$45) +($J22*'fnd base rates'!G$46) +($K22*'fnd base rates'!G$47) +($L22*'fnd base rates'!G$48) +($M22*'fnd base rates'!G$49) +($N22*'fnd base rates'!G$50) +($O22*'fnd base rates'!G$51) +($P22*'fnd base rates'!G$52)) *$R22 -> 43507.37945 | Y22: =(($C22*'fnd base rates'!H$39) +($D22*'fnd base rates'!H$40) +($E22*'fnd base rates'!H$41) +($F22*'fnd base rates'!H$42) +($G22*'fnd base rates'!H$43) +($H22*'fnd base rates'!H$44) +($I22*'fnd base rates'!H$45) +($J22*'fnd base rates'!H$46) +($K22*'fnd base rates'!H$47) +($L22*'fnd base rates'!H$48) +($M22*'fnd base rates'!H$49) +($N22*'fnd base rates'!H$50) +($O22*'fnd base rates'!H$51) +($P22*'fnd base rates'!H$52)) -> 96620.86562 | Z22: =(($C22*'fnd base rates'!I$39) +($D22*'fnd base rates'!I$40) +($E22*'fnd base rates'!I$41) +($F22*'fnd base rates'!I$42) +($G22*'fnd base rates'!I$43) +($H22*'fnd base rates'!I$44) +($I22*'fnd base rates'!I$45) +($J22*'fnd base rates'!I$46) +($K22*'fnd base rates'!I$47) +($L22*'fnd base rates'!I$48) +($M22*'fnd base rates'!I$49) +($N22*'fnd base rates'!I$50) +($O22*'fnd base rates'!I$51) +($P22*'fnd base rates'!I$52)) *$R22 -> 61846.25094 | AA22: =(($C22*'fnd base rates'!J$39) +($D22*'fnd base rates'!J$40) +($E22*'fnd base rates'!J$41) +($F22*'fnd base rates'!J$42) +($G22*'fnd base rates'!J$43) +($H22*'fnd base rates'!J$44) +($I22*'fnd base rates'!J$45) +($J22*'fnd base rates'!J$46) +($K22*'fnd base rates'!J$47) +($L22*'fnd base rates'!J$48) +($M22*'fnd base rates'!J$49) +($N22*'fnd base rates'!J$50) +($O22*'fnd base rates'!J$51) +($P22*'fnd base rates'!J$52)) *$R22 -> 42208.10058 | AB22: =(($C22*'fnd base rates'!K$39) +($D22*'fnd base rates'!K$40) +($E22*'fnd base rates'!K$41) +($F22*'fnd base rates'!K$42) +($G22*'fnd base rates'!K$43) +($H22*'fnd base rates'!K$44) +($I22*'fnd base rates'!K$45) +($J22*'fnd base rates'!K$46) +($K22*'fnd base rates'!K$47) +($L22*'fnd base rates'!K$48) +($M22*'fnd base rates'!K$49) +($N22*'fnd base rates'!K$50) +($O22*'fnd base rates'!K$51) +($P22*'fnd base rates'!K$52)) *$R22 -> 305312.9241 | AC22: =(($C22*'fnd base rates'!L$39) +($D22*'fnd base rates'!L$40) +($E22*'fnd base rates'!L$41) +($F22*'fnd base rates'!L$42) +($G22*'fnd base rates'!L$43) +($H22*'fnd base rates'!L$44) +($I22*'fnd base rates'!L$45) +($J22*'fnd base rates'!L$46) +($K22*'fnd base rates'!L$47) +($L22*'fnd base rates'!L$48) +($M22*'fnd base rates'!L$49) +($N22*'fnd base rates'!L$50) +($O22*'fnd base rates'!L$51) +($P22*'fnd base rates'!L$52)) -> 235429.8813 | AD22: =(($C22*'fnd base rates'!M$39) +($D22*'fnd base rates'!M$40) +($E22*'fnd base rates'!M$41) +($F22*'fnd base rates'!M$42) +($G22*'fnd base rates'!M$43) +($H22*'fnd base rates'!M$44) +($I22*'fnd base rates'!M$45) +($J22*'fnd base rates'!M$46) +($K22*'fnd base rates'!M$47) +($L22*'fnd base rates'!M$48) +($M22*'fnd base rates'!M$49) +($N22*'fnd base rates'!M$50) +($O22*'fnd base rates'!M$51) +($P22*'fnd base rates'!M$52)) -> 0 | AE22: 2455057.88 | AG22: 410057057 | AH22: 410 | AI22: 057 | AJ22: 057 | AK22: 1 | AL22: 215 | AM22: 2455057.88 | AN22: 11419 | AO22: 0 | AP22: 11419
A23: 410057248 | B23: EXCEL ACADEMY | C23: ='fnd enro'!C23 -> 0 | D23: ='fnd enro'!D23 -> 0 | E23: ='fnd enro'!E23 -> 0 | F23: ='fnd enro'!F23 -> 0 | G23: ='fnd enro'!G23 -> 2 | H23: ='fnd enro'!H23 -> 0 | I23: ='fnd enro'!I23 -> 0.075 | J23: ='fnd enro'!J23 -> 0 | K23: ='fnd enro'!K23 -> 0 | L23: ='fnd enro'!L23 -> 0 | M23: ='fnd enro'!M23 -> 0 | N23: ='fnd enro'!N23 -> 0 | O23: ='fnd enro'!O23 -> 2 | P23: ='fnd enro'!P23 -> 0 | Q23: ='fnd enro'!Q23 -> 2 | R23: 1.038 | T23: =(($C23*'fnd base rates'!C$39) +($D23*'fnd base rates'!C$40) +($E23*'fnd base rates'!C$41) +($F23*'fnd base rates'!C$42) +($G23*'fnd base rates'!C$43) +($H23*'fnd base rates'!C$44) +($I23*'fnd base rates'!C$45) +($J23*'fnd base rates'!C$46) +($K23*'fnd base rates'!C$47) +($L23*'fnd base rates'!C$48) +($M23*'fnd base rates'!C$49) +($N23*'fnd base rates'!C$50) +($O23*'fnd base rates'!C$51) +($P23*'fnd base rates'!C$52)) *$R23 -> 951.243441 | U23: =(($C23*'fnd base rates'!D$39) +($D23*'fnd base rates'!D$40) +($E23*'fnd base rates'!D$41) +($F23*'fnd base rates'!D$42) +($G23*'fnd base rates'!D$43) +($H23*'fnd base rates'!D$44) +($I23*'fnd base rates'!D$45) +($J23*'fnd base rates'!D$46) +($K23*'fnd base rates'!D$47) +($L23*'fnd base rates'!D$48) +($M23*'fnd base rates'!D$49) +($N23*'fnd base rates'!D$50) +($O23*'fnd base rates'!D$51) +($P23*'fnd base rates'!D$52)) *$R23 -> 1364.80392 | V23: =(($C23*'fnd base rates'!E$39) +($D23*'fnd base rates'!E$40) +($E23*'fnd base rates'!E$41) +($F23*'fnd base rates'!E$42) +($G23*'fnd base rates'!E$43) +($H23*'fnd base rates'!E$44) +($I23*'fnd base rates'!E$45) +($J23*'fnd base rates'!E$46) +($K23*'fnd base rates'!E$47) +($L23*'fnd base rates'!E$48) +($M23*'fnd base rates'!E$49) +($N23*'fnd base rates'!E$50) +($O23*'fnd base rates'!E$51) +($P23*'fnd base rates'!E$52)) *$R23 -> 11782.79187 | W23: =(($C23*'fnd base rates'!F$39) +($D23*'fnd base rates'!F$40) +($E23*'fnd base rates'!F$41) +($F23*'fnd base rates'!F$42) +($G23*'fnd base rates'!F$43) +($H23*'fnd base rates'!F$44) +($I23*'fnd base rates'!F$45) +($J23*'fnd base rates'!F$46) +($K23*'fnd base rates'!F$47) +($L23*'fnd base rates'!F$48) +($M23*'fnd base rates'!F$49) +($N23*'fnd base rates'!F$50) +($O23*'fnd base rates'!F$51) +($P23*'fnd base rates'!F$52)) *$R23 -> 1757.964585 | X23: =(($C23*'fnd base rates'!G$39) +($D23*'fnd base rates'!G$40) +($E23*'fnd base rates'!G$41) +($F23*'fnd base rates'!G$42) +($G23*'fnd base rates'!G$43) +($H23*'fnd base rates'!G$44) +($I23*'fnd base rates'!G$45) +($J23*'fnd base rates'!G$46) +($K23*'fnd base rates'!G$47) +($L23*'fnd base rates'!G$48) +($M23*'fnd base rates'!G$49) +($N23*'fnd base rates'!G$50) +($O23*'fnd base rates'!G$51) +($P23*'fnd base rates'!G$52)) *$R23 -> 423.516975 | Y23: =(($C23*'fnd base rates'!H$39) +($D23*'fnd base rates'!H$40) +($E23*'fnd base rates'!H$41) +($F23*'fnd base rates'!H$42) +($G23*'fnd base rates'!H$43) +($H23*'fnd base rates'!H$44) +($I23*'fnd base rates'!H$45) +($J23*'fnd base rates'!H$46) +($K23*'fnd base rates'!H$47) +($L23*'fnd base rates'!H$48) +($M23*'fnd base rates'!H$49) +($N23*'fnd base rates'!H$50) +($O23*'fnd base rates'!H$51) +($P23*'fnd base rates'!H$52)) -> 898.79875 | Z23: =(($C23*'fnd base rates'!I$39) +($D23*'fnd base rates'!I$40) +($E23*'fnd base rates'!I$41) +($F23*'fnd base rates'!I$42) +($G23*'fnd base rates'!I$43) +($H23*'fnd base rates'!I$44) +($I23*'fnd base rates'!I$45) +($J23*'fnd base rates'!I$46) +($K23*'fnd base rates'!I$47) +($L23*'fnd base rates'!I$48) +($M23*'fnd base rates'!I$49) +($N23*'fnd base rates'!I$50) +($O23*'fnd base rates'!I$51) +($P23*'fnd base rates'!I$52)) *$R23 -> 606.17124 | AA23: =(($C23*'fnd base rates'!J$39) +($D23*'fnd base rates'!J$40) +($E23*'fnd base rates'!J$41) +($F23*'fnd base rates'!J$42) +($G23*'fnd base rates'!J$43) +($H23*'fnd base rates'!J$44) +($I23*'fnd base rates'!J$45) +($J23*'fnd base rates'!J$46) +($K23*'fnd base rates'!J$47) +($L23*'fnd base rates'!J$48) +($M23*'fnd base rates'!J$49) +($N23*'fnd base rates'!J$50) +($O23*'fnd base rates'!J$51) +($P23*'fnd base rates'!J$52)) *$R23 -> 443.86956 | AB23: =(($C23*'fnd base rates'!K$39) +($D23*'fnd base rates'!K$40) +($E23*'fnd base rates'!K$41) +($F23*'fnd base rates'!K$42) +($G23*'fnd base rates'!K$43) +($H23*'fnd base rates'!K$44) +($I23*'fnd base rates'!K$45) +($J23*'fnd base rates'!K$46) +($K23*'fnd base rates'!K$47) +($L23*'fnd base rates'!K$48) +($M23*'fnd base rates'!K$49) +($N23*'fnd base rates'!K$50) +($O23*'fnd base rates'!K$51) +($P23*'fnd base rates'!K$52)) *$R23 -> 2972.057652 | AC23: =(($C23*'fnd base rates'!L$39) +($D23*'fnd base rates'!L$40) +($E23*'fnd base rates'!L$41) +($F23*'fnd base rates'!L$42) +($G23*'fnd base rates'!L$43) +($H23*'fnd base rates'!L$44) +($I23*'fnd base rates'!L$45) +($J23*'fnd base rates'!L$46) +($K23*'fnd base rates'!L$47) +($L23*'fnd base rates'!L$48) +($M23*'fnd base rates'!L$49) +($N23*'fnd base rates'!L$50) +($O23*'fnd base rates'!L$51) +($P23*'fnd base rates'!L$52)) -> 2223.9215 | AD23: =(($C23*'fnd base rates'!M$39) +($D23*'fnd base rates'!M$40) +($E23*'fnd base rates'!M$41) +($F23*'fnd base rates'!M$42) +($G23*'fnd base rates'!M$43) +($H23*'fnd base rates'!M$44) +($I23*'fnd base rates'!M$45) +($J23*'fnd base rates'!M$46) +($K23*'fnd base rates'!M$47) +($L23*'fnd base rates'!M$48) +($M23*'fnd base rates'!M$49) +($N23*'fnd base rates'!M$50) +($O23*'fnd base rates'!M$51) +($P23*'fnd base rates'!M$52)) -> 0 | AE23: 23425.13949 | AG23: 410057248 | AH23: 410 | AI23: 057 | AJ23: 248 | AK23: 1 | AL23: 2 | AM23: 23425.13949 | AN23: 11713 | AO23: 0 | AP23: 11713
A24: 412035035 | B24: ACADEMY OF THE PACIFIC RIM | C24: ='fnd enro'!C24 -> 0 | D24: ='fnd enro'!D24 -> 0 | E24: ='fnd enro'!E24 -> 0 | F24: ='fnd enro'!F24 -> 60 | G24: ='fnd enro'!G24 -> 199 | H24: ='fnd enro'!H24 -> 204 | I24: ='fnd enro'!I24 -> 18.675 | J24: ='fnd enro'!J24 -> 0 | K24: ='fnd enro'!K24 -> 0 | L24: ='fnd enro'!L24 -> 0 | M24: ='fnd enro'!M24 -> 35 | N24: ='fnd enro'!N24 -> 0 | O24: ='fnd enro'!O24 -> 172 | P24: ='fnd enro'!P24 -> 108 | Q24: ='fnd enro'!Q24 -> 498 | R24: 1.077 | T24: =(($C24*'fnd base rates'!C$39) +($D24*'fnd base rates'!C$40) +($E24*'fnd base rates'!C$41) +($F24*'fnd base rates'!C$42) +($G24*'fnd base rates'!C$43) +($H24*'fnd base rates'!C$44) +($I24*'fnd base rates'!C$45) +($J24*'fnd base rates'!C$46) +($K24*'fnd base rates'!C$47) +($L24*'fnd base rates'!C$48) +($M24*'fnd base rates'!C$49) +($N24*'fnd base rates'!C$50) +($O24*'fnd base rates'!C$51) +($P24*'fnd base rates'!C$52)) *$R24 -> 245758.9666 | U24: =(($C24*'fnd base rates'!D$39) +($D24*'fnd base rates'!D$40) +($E24*'fnd base rates'!D$41) +($F24*'fnd base rates'!D$42) +($G24*'fnd base rates'!D$43) +($H24*'fnd base rates'!D$44) +($I24*'fnd base rates'!D$45) +($J24*'fnd base rates'!D$46) +($K24*'fnd base rates'!D$47) +($L24*'fnd base rates'!D$48) +($M24*'fnd base rates'!D$49) +($N24*'fnd base rates'!D$50) +($O24*'fnd base rates'!D$51) +($P24*'fnd base rates'!D$52)) *$R24 -> 352604.5873 | V24: =(($C24*'fnd base rates'!E$39) +($D24*'fnd base rates'!E$40) +($E24*'fnd base rates'!E$41) +($F24*'fnd base rates'!E$42) +($G24*'fnd base rates'!E$43) +($H24*'fnd base rates'!E$44) +($I24*'fnd base rates'!E$45) +($J24*'fnd base rates'!E$46) +($K24*'fnd base rates'!E$47) +($L24*'fnd base rates'!E$48) +($M24*'fnd base rates'!E$49) +($N24*'fnd base rates'!E$50) +($O24*'fnd base rates'!E$51) +($P24*'fnd base rates'!E$52)) *$R24 -> 2699029.684 | W24: =(($C24*'fnd base rates'!F$39) +($D24*'fnd base rates'!F$40) +($E24*'fnd base rates'!F$41) +($F24*'fnd base rates'!F$42) +($G24*'fnd base rates'!F$43) +($H24*'fnd base rates'!F$44) +($I24*'fnd base rates'!F$45) +($J24*'fnd base rates'!F$46) +($K24*'fnd base rates'!F$47) +($L24*'fnd base rates'!F$48) +($M24*'fnd base rates'!F$49) +($N24*'fnd base rates'!F$50) +($O24*'fnd base rates'!F$51) +($P24*'fnd base rates'!F$52)) *$R24 -> 450022.8103 | X24: =(($C24*'fnd base rates'!G$39) +($D24*'fnd base rates'!G$40) +($E24*'fnd base rates'!G$41) +($F24*'fnd base rates'!G$42) +($G24*'fnd base rates'!G$43) +($H24*'fnd base rates'!G$44) +($I24*'fnd base rates'!G$45) +($J24*'fnd base rates'!G$46) +($K24*'fnd base rates'!G$47) +($L24*'fnd base rates'!G$48) +($M24*'fnd base rates'!G$49) +($N24*'fnd base rates'!G$50) +($O24*'fnd base rates'!G$51) +($P24*'fnd base rates'!G$52)) *$R24 -> 95104.50923 | Y24: =(($C24*'fnd base rates'!H$39) +($D24*'fnd base rates'!H$40) +($E24*'fnd base rates'!H$41) +($F24*'fnd base rates'!H$42) +($G24*'fnd base rates'!H$43) +($H24*'fnd base rates'!H$44) +($I24*'fnd base rates'!H$45) +($J24*'fnd base rates'!H$46) +($K24*'fnd base rates'!H$47) +($L24*'fnd base rates'!H$48) +($M24*'fnd base rates'!H$49) +($N24*'fnd base rates'!H$50) +($O24*'fnd base rates'!H$51) +($P24*'fnd base rates'!H$52)) -> 277206.0488 | Z24: =(($C24*'fnd base rates'!I$39) +($D24*'fnd base rates'!I$40) +($E24*'fnd base rates'!I$41) +($F24*'fnd base rates'!I$42) +($G24*'fnd base rates'!I$43) +($H24*'fnd base rates'!I$44) +($I24*'fnd base rates'!I$45) +($J24*'fnd base rates'!I$46) +($K24*'fnd base rates'!I$47) +($L24*'fnd base rates'!I$48) +($M24*'fnd base rates'!I$49) +($N24*'fnd base rates'!I$50) +($O24*'fnd base rates'!I$51) +($P24*'fnd base rates'!I$52)) *$R24 -> 168179.3012 | AA24: =(($C24*'fnd base rates'!J$39) +($D24*'fnd base rates'!J$40) +($E24*'fnd base rates'!J$41) +($F24*'fnd base rates'!J$42) +($G24*'fnd base rates'!J$43) +($H24*'fnd base rates'!J$44) +($I24*'fnd base rates'!J$45) +($J24*'fnd base rates'!J$46) +($K24*'fnd base rates'!J$47) +($L24*'fnd base rates'!J$48) +($M24*'fnd base rates'!J$49) +($N24*'fnd base rates'!J$50) +($O24*'fnd base rates'!J$51) +($P24*'fnd base rates'!J$52)) *$R24 -> 167540.0694 | AB24: =(($C24*'fnd base rates'!K$39) +($D24*'fnd base rates'!K$40) +($E24*'fnd base rates'!K$41) +($F24*'fnd base rates'!K$42) +($G24*'fnd base rates'!K$43) +($H24*'fnd base rates'!K$44) +($I24*'fnd base rates'!K$45) +($J24*'fnd base rates'!K$46) +($K24*'fnd base rates'!K$47) +($L24*'fnd base rates'!K$48) +($M24*'fnd base rates'!K$49) +($N24*'fnd base rates'!K$50) +($O24*'fnd base rates'!K$51) +($P24*'fnd base rates'!K$52)) *$R24 -> 667397.8113 | AC24: =(($C24*'fnd base rates'!L$39) +($D24*'fnd base rates'!L$40) +($E24*'fnd base rates'!L$41) +($F24*'fnd base rates'!L$42) +($G24*'fnd base rates'!L$43) +($H24*'fnd base rates'!L$44) +($I24*'fnd base rates'!L$45) +($J24*'fnd base rates'!L$46) +($K24*'fnd base rates'!L$47) +($L24*'fnd base rates'!L$48) +($M24*'fnd base rates'!L$49) +($N24*'fnd base rates'!L$50) +($O24*'fnd base rates'!L$51) +($P24*'fnd base rates'!L$52)) -> 498334.1235 | AD24: =(($C24*'fnd base rates'!M$39) +($D24*'fnd base rates'!M$40) +($E24*'fnd base rates'!M$41) +($F24*'fnd base rates'!M$42) +($G24*'fnd base rates'!M$43) +($H24*'fnd base rates'!M$44) +($I24*'fnd base rates'!M$45) +($J24*'fnd base rates'!M$46) +($K24*'fnd base rates'!M$47) +($L24*'fnd base rates'!M$48) +($M24*'fnd base rates'!M$49) +($N24*'fnd base rates'!M$50) +($O24*'fnd base rates'!M$51) +($P24*'fnd base rates'!M$52)) -> 0 | AE24: 5621177.912 | AG24: 412035035 | AH24: 412 | AI24: 035 | AJ24: 035 | AK24: 1 | AL24: 498 | AM24: 5621177.912 | AN24: 11288 | AO24: 0 | AP24: 11288
A25: 412035044 | B25: ACADEMY OF THE PACIFIC RIM | C25: ='fnd enro'!C25 -> 0 | D25: ='fnd enro'!D25 -> 0 | E25: ='fnd enro'!E25 -> 0 | F25: ='fnd enro'!F25 -> 1 | G25: ='fnd enro'!G25 -> 1 | H25: ='fnd enro'!H25 -> 1 | I25: ='fnd enro'!I25 -> 0.1125 | J25: ='fnd enro'!J25 -> 0 | K25: ='fnd enro'!K25 -> 0 | L25: ='fnd enro'!L25 -> 0 | M25: ='fnd enro'!M25 -> 0 | N25: ='fnd enro'!N25 -> 0 | O25: ='fnd enro'!O25 -> 2 | P25: ='fnd enro'!P25 -> 0 | Q25: ='fnd enro'!Q25 -> 3 | R25: 1.077 | T25: =(($C25*'fnd base rates'!C$39) +($D25*'fnd base rates'!C$40) +($E25*'fnd base rates'!C$41) +($F25*'fnd base rates'!C$42) +($G25*'fnd base rates'!C$43) +($H25*'fnd base rates'!C$44) +($I25*'fnd base rates'!C$45) +($J25*'fnd base rates'!C$46) +($K25*'fnd base rates'!C$47) +($L25*'fnd base rates'!C$48) +($M25*'fnd base rates'!C$49) +($N25*'fnd base rates'!C$50) +($O25*'fnd base rates'!C$51) +($P25*'fnd base rates'!C$52)) *$R25 -> 1480.475702 | U25: =(($C25*'fnd base rates'!D$39) +($D25*'fnd base rates'!D$40) +($E25*'fnd base rates'!D$41) +($F25*'fnd base rates'!D$42) +($G25*'fnd base rates'!D$43) +($H25*'fnd base rates'!D$44) +($I25*'fnd base rates'!D$45) +($J25*'fnd base rates'!D$46) +($K25*'fnd base rates'!D$47) +($L25*'fnd base rates'!D$48) +($M25*'fnd base rates'!D$49) +($N25*'fnd base rates'!D$50) +($O25*'fnd base rates'!D$51) +($P25*'fnd base rates'!D$52)) *$R25 -> 2124.12402 | V25: =(($C25*'fnd base rates'!E$39) +($D25*'fnd base rates'!E$40) +($E25*'fnd base rates'!E$41) +($F25*'fnd base rates'!E$42) +($G25*'fnd base rates'!E$43) +($H25*'fnd base rates'!E$44) +($I25*'fnd base rates'!E$45) +($J25*'fnd base rates'!E$46) +($K25*'fnd base rates'!E$47) +($L25*'fnd base rates'!E$48) +($M25*'fnd base rates'!E$49) +($N25*'fnd base rates'!E$50) +($O25*'fnd base rates'!E$51) +($P25*'fnd base rates'!E$52)) *$R25 -> 17151.3498 | W25: =(($C25*'fnd base rates'!F$39) +($D25*'fnd base rates'!F$40) +($E25*'fnd base rates'!F$41) +($F25*'fnd base rates'!F$42) +($G25*'fnd base rates'!F$43) +($H25*'fnd base rates'!F$44) +($I25*'fnd base rates'!F$45) +($J25*'fnd base rates'!F$46) +($K25*'fnd base rates'!F$47) +($L25*'fnd base rates'!F$48) +($M25*'fnd base rates'!F$49) +($N25*'fnd base rates'!F$50) +($O25*'fnd base rates'!F$51) +($P25*'fnd base rates'!F$52)) *$R25 -> 2868.924716 | X25: =(($C25*'fnd base rates'!G$39) +($D25*'fnd base rates'!G$40) +($E25*'fnd base rates'!G$41) +($F25*'fnd base rates'!G$42) +($G25*'fnd base rates'!G$43) +($H25*'fnd base rates'!G$44) +($I25*'fnd base rates'!G$45) +($J25*'fnd base rates'!G$46) +($K25*'fnd base rates'!G$47) +($L25*'fnd base rates'!G$48) +($M25*'fnd base rates'!G$49) +($N25*'fnd base rates'!G$50) +($O25*'fnd base rates'!G$51) +($P25*'fnd base rates'!G$52)) *$R25 -> 579.8339137 | Y25: =(($C25*'fnd base rates'!H$39) +($D25*'fnd base rates'!H$40) +($E25*'fnd base rates'!H$41) +($F25*'fnd base rates'!H$42) +($G25*'fnd base rates'!H$43) +($H25*'fnd base rates'!H$44) +($I25*'fnd base rates'!H$45) +($J25*'fnd base rates'!H$46) +($K25*'fnd base rates'!H$47) +($L25*'fnd base rates'!H$48) +($M25*'fnd base rates'!H$49) +($N25*'fnd base rates'!H$50) +($O25*'fnd base rates'!H$51) +($P25*'fnd base rates'!H$52)) -> 1609.988125 | Z25: =(($C25*'fnd base rates'!I$39) +($D25*'fnd base rates'!I$40) +($E25*'fnd base rates'!I$41) +($F25*'fnd base rates'!I$42) +($G25*'fnd base rates'!I$43) +($H25*'fnd base rates'!I$44) +($I25*'fnd base rates'!I$45) +($J25*'fnd base rates'!I$46) +($K25*'fnd base rates'!I$47) +($L25*'fnd base rates'!I$48) +($M25*'fnd base rates'!I$49) +($N25*'fnd base rates'!I$50) +($O25*'fnd base rates'!I$51) +($P25*'fnd base rates'!I$52)) *$R25 -> 944.92749 | AA25: =(($C25*'fnd base rates'!J$39) +($D25*'fnd base rates'!J$40) +($E25*'fnd base rates'!J$41) +($F25*'fnd base rates'!J$42) +($G25*'fnd base rates'!J$43) +($H25*'fnd base rates'!J$44) +($I25*'fnd base rates'!J$45) +($J25*'fnd base rates'!J$46) +($K25*'fnd base rates'!J$47) +($L25*'fnd base rates'!J$48) +($M25*'fnd base rates'!J$49) +($N25*'fnd base rates'!J$50) +($O25*'fnd base rates'!J$51) +($P25*'fnd base rates'!J$52)) *$R25 -> 902.24598 | AB25: =(($C25*'fnd base rates'!K$39) +($D25*'fnd base rates'!K$40) +($E25*'fnd base rates'!K$41) +($F25*'fnd base rates'!K$42) +($G25*'fnd base rates'!K$43) +($H25*'fnd base rates'!K$44) +($I25*'fnd base rates'!K$45) +($J25*'fnd base rates'!K$46) +($K25*'fnd base rates'!K$47) +($L25*'fnd base rates'!K$48) +($M25*'fnd base rates'!K$49) +($N25*'fnd base rates'!K$50) +($O25*'fnd base rates'!K$51) +($P25*'fnd base rates'!K$52)) *$R25 -> 4068.896307 | AC25: =(($C25*'fnd base rates'!L$39) +($D25*'fnd base rates'!L$40) +($E25*'fnd base rates'!L$41) +($F25*'fnd base rates'!L$42) +($G25*'fnd base rates'!L$43) +($H25*'fnd base rates'!L$44) +($I25*'fnd base rates'!L$45) +($J25*'fnd base rates'!L$46) +($K25*'fnd base rates'!L$47) +($L25*'fnd base rates'!L$48) +($M25*'fnd base rates'!L$49) +($N25*'fnd base rates'!L$50) +($O25*'fnd base rates'!L$51) +($P25*'fnd base rates'!L$52)) -> 3069.54225 | AD25: =(($C25*'fnd base rates'!M$39) +($D25*'fnd base rates'!M$40) +($E25*'fnd base rates'!M$41) +($F25*'fnd base rates'!M$42) +($G25*'fnd base rates'!M$43) +($H25*'fnd base rates'!M$44) +($I25*'fnd base rates'!M$45) +($J25*'fnd base rates'!M$46) +($K25*'fnd base rates'!M$47) +($L25*'fnd base rates'!M$48) +($M25*'fnd base rates'!M$49) +($N25*'fnd base rates'!M$50) +($O25*'fnd base rates'!M$51) +($P25*'fnd base rates'!M$52)) -> 0 | AE25: 34800.3083 | AG25: 412035044 | AH25: 412 | AI25: 035 | AJ25: 044 | AK25: 1 | AL25: 3 | AM25: 34800.3083 | AN25: 11600 | AO25: 0 | AP25: 11600
A26: 412035189 | B26: ACADEMY OF THE PACIFIC RIM | C26: ='fnd enro'!C26 -> 0 | D26: ='fnd enro'!D26 -> 0 | E26: ='fnd enro'!E26 -> 0 | F26: ='fnd enro'!F26 -> 0 | G26: ='fnd enro'!G26 -> 1 | H26: ='fnd enro'!H26 -> 1 | I26: ='fnd enro'!I26 -> 0.075 | J26: ='fnd enro'!J26 -> 0 | K26: ='fnd enro'!K26 -> 0 | L26: ='fnd enro'!L26 -> 0 | M26: ='fnd enro'!M26 -> 0 | N26: ='fnd enro'!N26 -> 0 | O26: ='fnd enro'!O26 -> 0 | P26: ='fnd enro'!P26 -> 1 | Q26: ='fnd enro'!Q26 -> 2 | R26: 1.077 | T26: =(($C26*'fnd base rates'!C$39) +($D26*'fnd base rates'!C$40) +($E26*'fnd base rates'!C$41) +($F26*'fnd base rates'!C$42) +($G26*'fnd base rates'!C$43) +($H26*'fnd base rates'!C$44) +($I26*'fnd base rates'!C$45) +($J26*'fnd base rates'!C$46) +($K26*'fnd base rates'!C$47) +($L26*'fnd base rates'!C$48) +($M26*'fnd base rates'!C$49) +($N26*'fnd base rates'!C$50) +($O26*'fnd base rates'!C$51) +($P26*'fnd base rates'!C$52)) *$R26 -> 986.9838015 | U26: =(($C26*'fnd base rates'!D$39) +($D26*'fnd base rates'!D$40) +($E26*'fnd base rates'!D$41) +($F26*'fnd base rates'!D$42) +($G26*'fnd base rates'!D$43) +($H26*'fnd base rates'!D$44) +($I26*'fnd base rates'!D$45) +($J26*'fnd base rates'!D$46) +($K26*'fnd base rates'!D$47) +($L26*'fnd base rates'!D$48) +($M26*'fnd base rates'!D$49) +($N26*'fnd base rates'!D$50) +($O26*'fnd base rates'!D$51) +($P26*'fnd base rates'!D$52)) *$R26 -> 1416.08268 | V26: =(($C26*'fnd base rates'!E$39) +($D26*'fnd base rates'!E$40) +($E26*'fnd base rates'!E$41) +($F26*'fnd base rates'!E$42) +($G26*'fnd base rates'!E$43) +($H26*'fnd base rates'!E$44) +($I26*'fnd base rates'!E$45) +($J26*'fnd base rates'!E$46) +($K26*'fnd base rates'!E$47) +($L26*'fnd base rates'!E$48) +($M26*'fnd base rates'!E$49) +($N26*'fnd base rates'!E$50) +($O26*'fnd base rates'!E$51) +($P26*'fnd base rates'!E$52)) *$R26 -> 9934.783538 | W26: =(($C26*'fnd base rates'!F$39) +($D26*'fnd base rates'!F$40) +($E26*'fnd base rates'!F$41) +($F26*'fnd base rates'!F$42) +($G26*'fnd base rates'!F$43) +($H26*'fnd base rates'!F$44) +($I26*'fnd base rates'!F$45) +($J26*'fnd base rates'!F$46) +($K26*'fnd base rates'!F$47) +($L26*'fnd base rates'!F$48) +($M26*'fnd base rates'!F$49) +($N26*'fnd base rates'!F$50) +($O26*'fnd base rates'!F$51) +($P26*'fnd base rates'!F$52)) *$R26 -> 1723.628107 | X26: =(($C26*'fnd base rates'!G$39) +($D26*'fnd base rates'!G$40) +($E26*'fnd base rates'!G$41) +($F26*'fnd base rates'!G$42) +($G26*'fnd base rates'!G$43) +($H26*'fnd base rates'!G$44) +($I26*'fnd base rates'!G$45) +($J26*'fnd base rates'!G$46) +($K26*'fnd base rates'!G$47) +($L26*'fnd base rates'!G$48) +($M26*'fnd base rates'!G$49) +($N26*'fnd base rates'!G$50) +($O26*'fnd base rates'!G$51) +($P26*'fnd base rates'!G$52)) *$R26 -> 370.9107225 | Y26: =(($C26*'fnd base rates'!H$39) +($D26*'fnd base rates'!H$40) +($E26*'fnd base rates'!H$41) +($F26*'fnd base rates'!H$42) +($G26*'fnd base rates'!H$43) +($H26*'fnd base rates'!H$44) +($I26*'fnd base rates'!H$45) +($J26*'fnd base rates'!H$46) +($K26*'fnd base rates'!H$47) +($L26*'fnd base rates'!H$48) +($M26*'fnd base rates'!H$49) +($N26*'fnd base rates'!H$50) +($O26*'fnd base rates'!H$51) +($P26*'fnd base rates'!H$52)) -> 1160.58875 | Z26: =(($C26*'fnd base rates'!I$39) +($D26*'fnd base rates'!I$40) +($E26*'fnd base rates'!I$41) +($F26*'fnd base rates'!I$42) +($G26*'fnd base rates'!I$43) +($H26*'fnd base rates'!I$44) +($I26*'fnd base rates'!I$45) +($J26*'fnd base rates'!I$46) +($K26*'fnd base rates'!I$47) +($L26*'fnd base rates'!I$48) +($M26*'fnd base rates'!I$49) +($N26*'fnd base rates'!I$50) +($O26*'fnd base rates'!I$51) +($P26*'fnd base rates'!I$52)) *$R26 -> 708.67677 | AA26: =(($C26*'fnd base rates'!J$39) +($D26*'fnd base rates'!J$40) +($E26*'fnd base rates'!J$41) +($F26*'fnd base rates'!J$42) +($G26*'fnd base rates'!J$43) +($H26*'fnd base rates'!J$44) +($I26*'fnd base rates'!J$45) +($J26*'fnd base rates'!J$46) +($K26*'fnd base rates'!J$47) +($L26*'fnd base rates'!J$48) +($M26*'fnd base rates'!J$49) +($N26*'fnd base rates'!J$50) +($O26*'fnd base rates'!J$51) +($P26*'fnd base rates'!J$52)) *$R26 -> 761.26668 | AB26: =(($C26*'fnd base rates'!K$39) +($D26*'fnd base rates'!K$40) +($E26*'fnd base rates'!K$41) +($F26*'fnd base rates'!K$42) +($G26*'fnd base rates'!K$43) +($H26*'fnd base rates'!K$44) +($I26*'fnd base rates'!K$45) +($J26*'fnd base rates'!K$46) +($K26*'fnd base rates'!K$47) +($L26*'fnd base rates'!K$48) +($M26*'fnd base rates'!K$49) +($N26*'fnd base rates'!K$50) +($O26*'fnd base rates'!K$51) +($P26*'fnd base rates'!K$52)) *$R26 -> 2602.887138 | AC26: =(($C26*'fnd base rates'!L$39) +($D26*'fnd base rates'!L$40) +($E26*'fnd base rates'!L$41) +($F26*'fnd base rates'!L$42) +($G26*'fnd base rates'!L$43) +($H26*'fnd base rates'!L$44) +($I26*'fnd base rates'!L$45) +($J26*'fnd base rates'!L$46) +($K26*'fnd base rates'!L$47) +($L26*'fnd base rates'!L$48) +($M26*'fnd base rates'!L$49) +($N26*'fnd base rates'!L$50) +($O26*'fnd base rates'!L$51) +($P26*'fnd base rates'!L$52)) -> 1920.4515 | AD26: =(($C26*'fnd base rates'!M$39) +($D26*'fnd base rates'!M$40) +($E26*'fnd base rates'!M$41) +($F26*'fnd base rates'!M$42) +($G26*'fnd base rates'!M$43) +($H26*'fnd base rates'!M$44) +($I26*'fnd base rates'!M$45) +($J26*'fnd base rates'!M$46) +($K26*'fnd base rates'!M$47) +($L26*'fnd base rates'!M$48) +($M26*'fnd base rates'!M$49) +($N26*'fnd base rates'!M$50) +($O26*'fnd base rates'!M$51) +($P26*'fnd base rates'!M$52)) -> 0 | AE26: 21586.25969 | AG26: 412035189 | AH26: 412 | AI26: 035 | AJ26: 189 | AK26: 1 | AL26: 2 | AM26: 21586.25969 | AN26: 10793 | AO26: 0 | AP26: 10793
A27: 412035220 | B27: ACADEMY OF THE PACIFIC RIM | C27: ='fnd enro'!C27 -> 0 | D27: ='fnd enro'!D27 -> 0 | E27: ='fnd enro'!E27 -> 0 | F27: ='fnd enro'!F27 -> 0 | G27: ='fnd enro'!G27 -> 0 | H27: ='fnd enro'!H27 -> 3 | I27: ='fnd enro'!I27 -> 0.1125 | J27: ='fnd enro'!J27 -> 0 | K27: ='fnd enro'!K27 -> 0 | L27: ='fnd enro'!L27 -> 0 | M27: ='fnd enro'!M27 -> 0 | N27: ='fnd enro'!N27 -> 0 | O27: ='fnd enro'!O27 -> 0 | P27: ='fnd enro'!P27 -> 3 | Q27: ='fnd enro'!Q27 -> 3 | R27: 1.077 | T27: =(($C27*'fnd base rates'!C$39) +($D27*'fnd base rates'!C$40) +($E27*'fnd base rates'!C$41) +($F27*'fnd base rates'!C$42) +($G27*'fnd base rates'!C$43) +($H27*'fnd base rates'!C$44) +($I27*'fnd base rates'!C$45) +($J27*'fnd base rates'!C$46) +($K27*'fnd base rates'!C$47) +($L27*'fnd base rates'!C$48) +($M27*'fnd base rates'!C$49) +($N27*'fnd base rates'!C$50) +($O27*'fnd base rates'!C$51) +($P27*'fnd base rates'!C$52)) *$R27 -> 1480.475702 | U27: =(($C27*'fnd base rates'!D$39) +($D27*'fnd base rates'!D$40) +($E27*'fnd base rates'!D$41) +($F27*'fnd base rates'!D$42) +($G27*'fnd base rates'!D$43) +($H27*'fnd base rates'!D$44) +($I27*'fnd base rates'!D$45) +($J27*'fnd base rates'!D$46) +($K27*'fnd base rates'!D$47) +($L27*'fnd base rates'!D$48) +($M27*'fnd base rates'!D$49) +($N27*'fnd base rates'!D$50) +($O27*'fnd base rates'!D$51) +($P27*'fnd base rates'!D$52)) *$R27 -> 2124.12402 | V27: =(($C27*'fnd base rates'!E$39) +($D27*'fnd base rates'!E$40) +($E27*'fnd base rates'!E$41) +($F27*'fnd base rates'!E$42) +($G27*'fnd base rates'!E$43) +($H27*'fnd base rates'!E$44) +($I27*'fnd base rates'!E$45) +($J27*'fnd base rates'!E$46) +($K27*'fnd base rates'!E$47) +($L27*'fnd base rates'!E$48) +($M27*'fnd base rates'!E$49) +($N27*'fnd base rates'!E$50) +($O27*'fnd base rates'!E$51) +($P27*'fnd base rates'!E$52)) *$R27 -> 20228.89884 | W27: =(($C27*'fnd base rates'!F$39) +($D27*'fnd base rates'!F$40) +($E27*'fnd base rates'!F$41) +($F27*'fnd base rates'!F$42) +($G27*'fnd base rates'!F$43) +($H27*'fnd base rates'!F$44) +($I27*'fnd base rates'!F$45) +($J27*'fnd base rates'!F$46) +($K27*'fnd base rates'!F$47) +($L27*'fnd base rates'!F$48) +($M27*'fnd base rates'!F$49) +($N27*'fnd base rates'!F$50) +($O27*'fnd base rates'!F$51) +($P27*'fnd base rates'!F$52)) *$R27 -> 2434.861406 | X27: =(($C27*'fnd base rates'!G$39) +($D27*'fnd base rates'!G$40) +($E27*'fnd base rates'!G$41) +($F27*'fnd base rates'!G$42) +($G27*'fnd base rates'!G$43) +($H27*'fnd base rates'!G$44) +($I27*'fnd base rates'!G$45) +($J27*'fnd base rates'!G$46) +($K27*'fnd base rates'!G$47) +($L27*'fnd base rates'!G$48) +($M27*'fnd base rates'!G$49) +($N27*'fnd base rates'!G$50) +($O27*'fnd base rates'!G$51) +($P27*'fnd base rates'!G$52)) *$R27 -> 646.4463637 | Y27: =(($C27*'fnd base rates'!H$39) +($D27*'fnd base rates'!H$40) +($E27*'fnd base rates'!H$41) +($F27*'fnd base rates'!H$42) +($G27*'fnd base rates'!H$43) +($H27*'fnd base rates'!H$44) +($I27*'fnd base rates'!H$45) +($J27*'fnd base rates'!H$46) +($K27*'fnd base rates'!H$47) +($L27*'fnd base rates'!H$48) +($M27*'fnd base rates'!H$49) +($N27*'fnd base rates'!H$50) +($O27*'fnd base rates'!H$51) +($P27*'fnd base rates'!H$52)) -> 2133.568125 | Z27: =(($C27*'fnd base rates'!I$39) +($D27*'fnd base rates'!I$40) +($E27*'fnd base rates'!I$41) +($F27*'fnd base rates'!I$42) +($G27*'fnd base rates'!I$43) +($H27*'fnd base rates'!I$44) +($I27*'fnd base rates'!I$45) +($J27*'fnd base rates'!I$46) +($K27*'fnd base rates'!I$47) +($L27*'fnd base rates'!I$48) +($M27*'fnd base rates'!I$49) +($N27*'fnd base rates'!I$50) +($O27*'fnd base rates'!I$51) +($P27*'fnd base rates'!I$52)) *$R27 -> 1182.61062 | AA27: =(($C27*'fnd base rates'!J$39) +($D27*'fnd base rates'!J$40) +($E27*'fnd base rates'!J$41) +($F27*'fnd base rates'!J$42) +($G27*'fnd base rates'!J$43) +($H27*'fnd base rates'!J$44) +($I27*'fnd base rates'!J$45) +($J27*'fnd base rates'!J$46) +($K27*'fnd base rates'!J$47) +($L27*'fnd base rates'!J$48) +($M27*'fnd base rates'!J$49) +($N27*'fnd base rates'!J$50) +($O27*'fnd base rates'!J$51) +($P27*'fnd base rates'!J$52)) *$R27 -> 1592.97993 | AB27: =(($C27*'fnd base rates'!K$39) +($D27*'fnd base rates'!K$40) +($E27*'fnd base rates'!K$41) +($F27*'fnd base rates'!K$42) +($G27*'fnd base rates'!K$43) +($H27*'fnd base rates'!K$44) +($I27*'fnd base rates'!K$45) +($J27*'fnd base rates'!K$46) +($K27*'fnd base rates'!K$47) +($L27*'fnd base rates'!K$48) +($M27*'fnd base rates'!K$49) +($N27*'fnd base rates'!K$50) +($O27*'fnd base rates'!K$51) +($P27*'fnd base rates'!K$52)) *$R27 -> 4536.443547 | AC27: =(($C27*'fnd base rates'!L$39) +($D27*'fnd base rates'!L$40) +($E27*'fnd base rates'!L$41) +($F27*'fnd base rates'!L$42) +($G27*'fnd base rates'!L$43) +($H27*'fnd base rates'!L$44) +($I27*'fnd base rates'!L$45) +($J27*'fnd base rates'!L$46) +($K27*'fnd base rates'!L$47) +($L27*'fnd base rates'!L$48) +($M27*'fnd base rates'!L$49) +($N27*'fnd base rates'!L$50) +($O27*'fnd base rates'!L$51) +($P27*'fnd base rates'!L$52)) -> 3251.37225 | AD27: =(($C27*'fnd base rates'!M$39) +($D27*'fnd base rates'!M$40) +($E27*'fnd base rates'!M$41) +($F27*'fnd base rates'!M$42) +($G27*'fnd base rates'!M$43) +($H27*'fnd base rates'!M$44) +($I27*'fnd base rates'!M$45) +($J27*'fnd base rates'!M$46) +($K27*'fnd base rates'!M$47) +($L27*'fnd base rates'!M$48) +($M27*'fnd base rates'!M$49) +($N27*'fnd base rates'!M$50) +($O27*'fnd base rates'!M$51) +($P27*'fnd base rates'!M$52)) -> 0 | AE27: 39611.7808 | AG27: 412035220 | AH27: 412 | AI27: 035 | AJ27: 220 | AK27: 1 | AL27: 3 | AM27: 39611.7808 | AN27: 13204 | AO27: 0 | AP27: 13204
A28: 412035244 | B28: ACADEMY OF THE PACIFIC RIM | C28: ='fnd enro'!C28 -> 0 | D28: ='fnd enro'!D28 -> 0 | E28: ='fnd enro'!E28 -> 0 | F28: ='fnd enro'!F28 -> 0 | G28: ='fnd enro'!G28 -> 4 | H28: ='fnd enro'!H28 -> 7 | I28: ='fnd enro'!I28 -> 0.4125 | J28: ='fnd enro'!J28 -> 0 | K28: ='fnd enro'!K28 -> 0 | L28: ='fnd enro'!L28 -> 0 | M28: ='fnd enro'!M28 -> 0 | N28: ='fnd enro'!N28 -> 0 | O28: ='fnd enro'!O28 -> 3 | P28: ='fnd enro'!P28 -> 5 | Q28: ='fnd enro'!Q28 -> 11 | R28: 1.077 | T28: =(($C28*'fnd base rates'!C$39) +($D28*'fnd base rates'!C$40) +($E28*'fnd base rates'!C$41) +($F28*'fnd base rates'!C$42) +($G28*'fnd base rates'!C$43) +($H28*'fnd base rates'!C$44) +($I28*'fnd base rates'!C$45) +($J28*'fnd base rates'!C$46) +($K28*'fnd base rates'!C$47) +($L28*'fnd base rates'!C$48) +($M28*'fnd base rates'!C$49) +($N28*'fnd base rates'!C$50) +($O28*'fnd base rates'!C$51) +($P28*'fnd base rates'!C$52)) *$R28 -> 5428.410908 | U28: =(($C28*'fnd base rates'!D$39) +($D28*'fnd base rates'!D$40) +($E28*'fnd base rates'!D$41) +($F28*'fnd base rates'!D$42) +($G28*'fnd base rates'!D$43) +($H28*'fnd base rates'!D$44) +($I28*'fnd base rates'!D$45) +($J28*'fnd base rates'!D$46) +($K28*'fnd base rates'!D$47) +($L28*'fnd base rates'!D$48) +($M28*'fnd base rates'!D$49) +($N28*'fnd base rates'!D$50) +($O28*'fnd base rates'!D$51) +($P28*'fnd base rates'!D$52)) *$R28 -> 7788.45474 | V28: =(($C28*'fnd base rates'!E$39) +($D28*'fnd base rates'!E$40) +($E28*'fnd base rates'!E$41) +($F28*'fnd base rates'!E$42) +($G28*'fnd base rates'!E$43) +($H28*'fnd base rates'!E$44) +($I28*'fnd base rates'!E$45) +($J28*'fnd base rates'!E$46) +($K28*'fnd base rates'!E$47) +($L28*'fnd base rates'!E$48) +($M28*'fnd base rates'!E$49) +($N28*'fnd base rates'!E$50) +($O28*'fnd base rates'!E$51) +($P28*'fnd base rates'!E$52)) *$R28 -> 64317.45441 | W28: =(($C28*'fnd base rates'!F$39) +($D28*'fnd base rates'!F$40) +($E28*'fnd base rates'!F$41) +($F28*'fnd base rates'!F$42) +($G28*'fnd base rates'!F$43) +($H28*'fnd base rates'!F$44) +($I28*'fnd base rates'!F$45) +($J28*'fnd base rates'!F$46) +($K28*'fnd base rates'!F$47) +($L28*'fnd base rates'!F$48) +($M28*'fnd base rates'!F$49) +($N28*'fnd base rates'!F$50) +($O28*'fnd base rates'!F$51) +($P28*'fnd base rates'!F$52)) *$R28 -> 9329.373836 | X28: =(($C28*'fnd base rates'!G$39) +($D28*'fnd base rates'!G$40) +($E28*'fnd base rates'!G$41) +($F28*'fnd base rates'!G$42) +($G28*'fnd base rates'!G$43) +($H28*'fnd base rates'!G$44) +($I28*'fnd base rates'!G$45) +($J28*'fnd base rates'!G$46) +($K28*'fnd base rates'!G$47) +($L28*'fnd base rates'!G$48) +($M28*'fnd base rates'!G$49) +($N28*'fnd base rates'!G$50) +($O28*'fnd base rates'!G$51) +($P28*'fnd base rates'!G$52)) *$R28 -> 2194.375384 | Y28: =(($C28*'fnd base rates'!H$39) +($D28*'fnd base rates'!H$40) +($E28*'fnd base rates'!H$41) +($F28*'fnd base rates'!H$42) +($G28*'fnd base rates'!H$43) +($H28*'fnd base rates'!H$44) +($I28*'fnd base rates'!H$45) +($J28*'fnd base rates'!H$46) +($K28*'fnd base rates'!H$47) +($L28*'fnd base rates'!H$48) +($M28*'fnd base rates'!H$49) +($N28*'fnd base rates'!H$50) +($O28*'fnd base rates'!H$51) +($P28*'fnd base rates'!H$52)) -> 6775.923125 | Z28: =(($C28*'fnd base rates'!I$39) +($D28*'fnd base rates'!I$40) +($E28*'fnd base rates'!I$41) +($F28*'fnd base rates'!I$42) +($G28*'fnd base rates'!I$43) +($H28*'fnd base rates'!I$44) +($I28*'fnd base rates'!I$45) +($J28*'fnd base rates'!I$46) +($K28*'fnd base rates'!I$47) +($L28*'fnd base rates'!I$48) +($M28*'fnd base rates'!I$49) +($N28*'fnd base rates'!I$50) +($O28*'fnd base rates'!I$51) +($P28*'fnd base rates'!I$52)) *$R28 -> 4017.3177 | AA28: =(($C28*'fnd base rates'!J$39) +($D28*'fnd base rates'!J$40) +($E28*'fnd base rates'!J$41) +($F28*'fnd base rates'!J$42) +($G28*'fnd base rates'!J$43) +($H28*'fnd base rates'!J$44) +($I28*'fnd base rates'!J$45) +($J28*'fnd base rates'!J$46) +($K28*'fnd base rates'!J$47) +($L28*'fnd base rates'!J$48) +($M28*'fnd base rates'!J$49) +($N28*'fnd base rates'!J$50) +($O28*'fnd base rates'!J$51) +($P28*'fnd base rates'!J$52)) *$R28 -> 4638.04665 | AB28: =(($C28*'fnd base rates'!K$39) +($D28*'fnd base rates'!K$40) +($E28*'fnd base rates'!K$41) +($F28*'fnd base rates'!K$42) +($G28*'fnd base rates'!K$43) +($H28*'fnd base rates'!K$44) +($I28*'fnd base rates'!K$45) +($J28*'fnd base rates'!K$46) +($K28*'fnd base rates'!K$47) +($L28*'fnd base rates'!K$48) +($M28*'fnd base rates'!K$49) +($N28*'fnd base rates'!K$50) +($O28*'fnd base rates'!K$51) +($P28*'fnd base rates'!K$52)) *$R28 -> 15399.11509 | AC28: =(($C28*'fnd base rates'!L$39) +($D28*'fnd base rates'!L$40) +($E28*'fnd base rates'!L$41) +($F28*'fnd base rates'!L$42) +($G28*'fnd base rates'!L$43) +($H28*'fnd base rates'!L$44) +($I28*'fnd base rates'!L$45) +($J28*'fnd base rates'!L$46) +($K28*'fnd base rates'!L$47) +($L28*'fnd base rates'!L$48) +($M28*'fnd base rates'!L$49) +($N28*'fnd base rates'!L$50) +($O28*'fnd base rates'!L$51) +($P28*'fnd base rates'!L$52)) -> 11208.47825 | AD28: =(($C28*'fnd base rates'!M$39) +($D28*'fnd base rates'!M$40) +($E28*'fnd base rates'!M$41) +($F28*'fnd base rates'!M$42) +($G28*'fnd base rates'!M$43) +($H28*'fnd base rates'!M$44) +($I28*'fnd base rates'!M$45) +($J28*'fnd base rates'!M$46) +($K28*'fnd base rates'!M$47) +($L28*'fnd base rates'!M$48) +($M28*'fnd base rates'!M$49) +($N28*'fnd base rates'!M$50) +($O28*'fnd base rates'!M$51) +($P28*'fnd base rates'!M$52)) -> 0 | AE28: 131096.9501 | AG28: 412035244 | AH28: 412 | AI28: 035 | AJ28: 244 | AK28: 1 | AL28: 11 | AM28: 131096.9501 | AN28: 11918 | AO28: 0 | AP28: 11918
A29: 412035285 | B29: ACADEMY OF THE PACIFIC RIM | C29: ='fnd enro'!C29 -> 0 | D29: ='fnd enro'!D29 -> 0 | E29: ='fnd enro'!E29 -> 0 | F29: ='fnd enro'!F29 -> 1 | G29: ='fnd enro'!G29 -> 0 | H29: ='fnd enro'!H29 -> 1 | I29: ='fnd enro'!I29 -> 0.075 | J29: ='fnd enro'!J29 -> 0 | K29: ='fnd enro'!K29 -> 0 | L29: ='fnd enro'!L29 -> 0 | M29: ='fnd enro'!M29 -> 0 | N29: ='fnd enro'!N29 -> 0 | O29: ='fnd enro'!O29 -> 1 | P29: ='fnd enro'!P29 -> 1 | Q29: ='fnd enro'!Q29 -> 2 | R29: 1.077 | T29: =(($C29*'fnd base rates'!C$39) +($D29*'fnd base rates'!C$40) +($E29*'fnd base rates'!C$41) +($F29*'fnd base rates'!C$42) +($G29*'fnd base rates'!C$43) +($H29*'fnd base rates'!C$44) +($I29*'fnd base rates'!C$45) +($J29*'fnd base rates'!C$46) +($K29*'fnd base rates'!C$47) +($L29*'fnd base rates'!C$48) +($M29*'fnd base rates'!C$49) +($N29*'fnd base rates'!C$50) +($O29*'fnd base rates'!C$51) +($P29*'fnd base rates'!C$52)) *$R29 -> 986.9838015 | U29: =(($C29*'fnd base rates'!D$39) +($D29*'fnd base rates'!D$40) +($E29*'fnd base rates'!D$41) +($F29*'fnd base rates'!D$42) +($G29*'fnd base rates'!D$43) +($H29*'fnd base rates'!D$44) +($I29*'fnd base rates'!D$45) +($J29*'fnd base rates'!D$46) +($K29*'fnd base rates'!D$47) +($L29*'fnd base rates'!D$48) +($M29*'fnd base rates'!D$49) +($N29*'fnd base rates'!D$50) +($O29*'fnd base rates'!D$51) +($P29*'fnd base rates'!D$52)) *$R29 -> 1416.08268 | V29: =(($C29*'fnd base rates'!E$39) +($D29*'fnd base rates'!E$40) +($E29*'fnd base rates'!E$41) +($F29*'fnd base rates'!E$42) +($G29*'fnd base rates'!E$43) +($H29*'fnd base rates'!E$44) +($I29*'fnd base rates'!E$45) +($J29*'fnd base rates'!E$46) +($K29*'fnd base rates'!E$47) +($L29*'fnd base rates'!E$48) +($M29*'fnd base rates'!E$49) +($N29*'fnd base rates'!E$50) +($O29*'fnd base rates'!E$51) +($P29*'fnd base rates'!E$52)) *$R29 -> 13245.28768 | W29: =(($C29*'fnd base rates'!F$39) +($D29*'fnd base rates'!F$40) +($E29*'fnd base rates'!F$41) +($F29*'fnd base rates'!F$42) +($G29*'fnd base rates'!F$43) +($H29*'fnd base rates'!F$44) +($I29*'fnd base rates'!F$45) +($J29*'fnd base rates'!F$46) +($K29*'fnd base rates'!F$47) +($L29*'fnd base rates'!F$48) +($M29*'fnd base rates'!F$49) +($N29*'fnd base rates'!F$50) +($O29*'fnd base rates'!F$51) +($P29*'fnd base rates'!F$52)) *$R29 -> 1956.917078 | X29: =(($C29*'fnd base rates'!G$39) +($D29*'fnd base rates'!G$40) +($E29*'fnd base rates'!G$41) +($F29*'fnd base rates'!G$42) +($G29*'fnd base rates'!G$43) +($H29*'fnd base rates'!G$44) +($I29*'fnd base rates'!G$45) +($J29*'fnd base rates'!G$46) +($K29*'fnd base rates'!G$47) +($L29*'fnd base rates'!G$48) +($M29*'fnd base rates'!G$49) +($N29*'fnd base rates'!G$50) +($O29*'fnd base rates'!G$51) +($P29*'fnd base rates'!G$52)) *$R29 -> 424.4053125 | Y29: =(($C29*'fnd base rates'!H$39) +($D29*'fnd base rates'!H$40) +($E29*'fnd base rates'!H$41) +($F29*'fnd base rates'!H$42) +($G29*'fnd base rates'!H$43) +($H29*'fnd base rates'!H$44) +($I29*'fnd base rates'!H$45) +($J29*'fnd base rates'!H$46) +($K29*'fnd base rates'!H$47) +($L29*'fnd base rates'!H$48) +($M29*'fnd base rates'!H$49) +($N29*'fnd base rates'!H$50) +($O29*'fnd base rates'!H$51) +($P29*'fnd base rates'!H$52)) -> 1160.58875 | Z29: =(($C29*'fnd base rates'!I$39) +($D29*'fnd base rates'!I$40) +($E29*'fnd base rates'!I$41) +($F29*'fnd base rates'!I$42) +($G29*'fnd base rates'!I$43) +($H29*'fnd base rates'!I$44) +($I29*'fnd base rates'!I$45) +($J29*'fnd base rates'!I$46) +($K29*'fnd base rates'!I$47) +($L29*'fnd base rates'!I$48) +($M29*'fnd base rates'!I$49) +($N29*'fnd base rates'!I$50) +($O29*'fnd base rates'!I$51) +($P29*'fnd base rates'!I$52)) *$R29 -> 630.45426 | AA29: =(($C29*'fnd base rates'!J$39) +($D29*'fnd base rates'!J$40) +($E29*'fnd base rates'!J$41) +($F29*'fnd base rates'!J$42) +($G29*'fnd base rates'!J$43) +($H29*'fnd base rates'!J$44) +($I29*'fnd base rates'!J$45) +($J29*'fnd base rates'!J$46) +($K29*'fnd base rates'!J$47) +($L29*'fnd base rates'!J$48) +($M29*'fnd base rates'!J$49) +($N29*'fnd base rates'!J$50) +($O29*'fnd base rates'!J$51) +($P29*'fnd base rates'!J$52)) *$R29 -> 671.97261 | AB29: =(($C29*'fnd base rates'!K$39) +($D29*'fnd base rates'!K$40) +($E29*'fnd base rates'!K$41) +($F29*'fnd base rates'!K$42) +($G29*'fnd base rates'!K$43) +($H29*'fnd base rates'!K$44) +($I29*'fnd base rates'!K$45) +($J29*'fnd base rates'!K$46) +($K29*'fnd base rates'!K$47) +($L29*'fnd base rates'!K$48) +($M29*'fnd base rates'!K$49) +($N29*'fnd base rates'!K$50) +($O29*'fnd base rates'!K$51) +($P29*'fnd base rates'!K$52)) *$R29 -> 2978.157018 | AC29: =(($C29*'fnd base rates'!L$39) +($D29*'fnd base rates'!L$40) +($E29*'fnd base rates'!L$41) +($F29*'fnd base rates'!L$42) +($G29*'fnd base rates'!L$43) +($H29*'fnd base rates'!L$44) +($I29*'fnd base rates'!L$45) +($J29*'fnd base rates'!L$46) +($K29*'fnd base rates'!L$47) +($L29*'fnd base rates'!L$48) +($M29*'fnd base rates'!L$49) +($N29*'fnd base rates'!L$50) +($O29*'fnd base rates'!L$51) +($P29*'fnd base rates'!L$52)) -> 2232.8815 | AD29: =(($C29*'fnd base rates'!M$39) +($D29*'fnd base rates'!M$40) +($E29*'fnd base rates'!M$41) +($F29*'fnd base rates'!M$42) +($G29*'fnd base rates'!M$43) +($H29*'fnd base rates'!M$44) +($I29*'fnd base rates'!M$45) +($J29*'fnd base rates'!M$46) +($K29*'fnd base rates'!M$47) +($L29*'fnd base rates'!M$48) +($M29*'fnd base rates'!M$49) +($N29*'fnd base rates'!M$50) +($O29*'fnd base rates'!M$51) +($P29*'fnd base rates'!M$52)) -> 0 | AE29: 25703.73069 | AG29: 412035285 | AH29: 412 | AI29: 035 | AJ29: 285 | AK29: 1 | AL29: 2 | AM29: 25703.73069 | AN29: 12852 | AO29: 0 | AP29: 12852
A30: 412035293 | B30: ACADEMY OF THE PACIFIC RIM | C30: ='fnd enro'!C30 -> 0 | D30: ='fnd enro'!D30 -> 0 | E30: ='fnd enro'!E30 -> 0 | F30: ='fnd enro'!F30 -> 0 | G30: ='fnd enro'!G30 -> 0 | H30: ='fnd enro'!H30 -> 1 | I30: ='fnd enro'!I30 -> 0.0375 | J30: ='fnd enro'!J30 -> 0 | K30: ='fnd enro'!K30 -> 0 | L30: ='fnd enro'!L30 -> 0 | M30: ='fnd enro'!M30 -> 0 | N30: ='fnd enro'!N30 -> 0 | O30: ='fnd enro'!O30 -> 0 | P30: ='fnd enro'!P30 -> 1 | Q30: ='fnd enro'!Q30 -> 1 | R30: 1.077 | T30: =(($C30*'fnd base rates'!C$39) +($D30*'fnd base rates'!C$40) +($E30*'fnd base rates'!C$41) +($F30*'fnd base rates'!C$42) +($G30*'fnd base rates'!C$43) +($H30*'fnd base rates'!C$44) +($I30*'fnd base rates'!C$45) +($J30*'fnd base rates'!C$46) +($K30*'fnd base rates'!C$47) +($L30*'fnd base rates'!C$48) +($M30*'fnd base rates'!C$49) +($N30*'fnd base rates'!C$50) +($O30*'fnd base rates'!C$51) +($P30*'fnd base rates'!C$52)) *$R30 -> 493.4919007 | U30: =(($C30*'fnd base rates'!D$39) +($D30*'fnd base rates'!D$40) +($E30*'fnd base rates'!D$41) +($F30*'fnd base rates'!D$42) +($G30*'fnd base rates'!D$43) +($H30*'fnd base rates'!D$44) +($I30*'fnd base rates'!D$45) +($J30*'fnd base rates'!D$46) +($K30*'fnd base rates'!D$47) +($L30*'fnd base rates'!D$48) +($M30*'fnd base rates'!D$49) +($N30*'fnd base rates'!D$50) +($O30*'fnd base rates'!D$51) +($P30*'fnd base rates'!D$52)) *$R30 -> 708.04134 | V30: =(($C30*'fnd base rates'!E$39) +($D30*'fnd base rates'!E$40) +($E30*'fnd base rates'!E$41) +($F30*'fnd base rates'!E$42) +($G30*'fnd base rates'!E$43) +($H30*'fnd base rates'!E$44) +($I30*'fnd base rates'!E$45) +($J30*'fnd base rates'!E$46) +($K30*'fnd base rates'!E$47) +($L30*'fnd base rates'!E$48) +($M30*'fnd base rates'!E$49) +($N30*'fnd base rates'!E$50) +($O30*'fnd base rates'!E$51) +($P30*'fnd base rates'!E$52)) *$R30 -> 6742.966279 | W30: =(($C30*'fnd base rates'!F$39) +($D30*'fnd base rates'!F$40) +($E30*'fnd base rates'!F$41) +($F30*'fnd base rates'!F$42) +($G30*'fnd base rates'!F$43) +($H30*'fnd base rates'!F$44) +($I30*'fnd base rates'!F$45) +($J30*'fnd base rates'!F$46) +($K30*'fnd base rates'!F$47) +($L30*'fnd base rates'!F$48) +($M30*'fnd base rates'!F$49) +($N30*'fnd base rates'!F$50) +($O30*'fnd base rates'!F$51) +($P30*'fnd base rates'!F$52)) *$R30 -> 811.6204687 | X30: =(($C30*'fnd base rates'!G$39) +($D30*'fnd base rates'!G$40) +($E30*'fnd base rates'!G$41) +($F30*'fnd base rates'!G$42) +($G30*'fnd base rates'!G$43) +($H30*'fnd base rates'!G$44) +($I30*'fnd base rates'!G$45) +($J30*'fnd base rates'!G$46) +($K30*'fnd base rates'!G$47) +($L30*'fnd base rates'!G$48) +($M30*'fnd base rates'!G$49) +($N30*'fnd base rates'!G$50) +($O30*'fnd base rates'!G$51) +($P30*'fnd base rates'!G$52)) *$R30 -> 215.4821212 | Y30: =(($C30*'fnd base rates'!H$39) +($D30*'fnd base rates'!H$40) +($E30*'fnd base rates'!H$41) +($F30*'fnd base rates'!H$42) +($G30*'fnd base rates'!H$43) +($H30*'fnd base rates'!H$44) +($I30*'fnd base rates'!H$45) +($J30*'fnd base rates'!H$46) +($K30*'fnd base rates'!H$47) +($L30*'fnd base rates'!H$48) +($M30*'fnd base rates'!H$49) +($N30*'fnd base rates'!H$50) +($O30*'fnd base rates'!H$51) +($P30*'fnd base rates'!H$52)) -> 711.189375 | Z30: =(($C30*'fnd base rates'!I$39) +($D30*'fnd base rates'!I$40) +($E30*'fnd base rates'!I$41) +($F30*'fnd base rates'!I$42) +($G30*'fnd base rates'!I$43) +($H30*'fnd base rates'!I$44) +($I30*'fnd base rates'!I$45) +($J30*'fnd base rates'!I$46) +($K30*'fnd base rates'!I$47) +($L30*'fnd base rates'!I$48) +($M30*'fnd base rates'!I$49) +($N30*'fnd base rates'!I$50) +($O30*'fnd base rates'!I$51) +($P30*'fnd base rates'!I$52)) *$R30 -> 394.20354 | AA30: =(($C30*'fnd base rates'!J$39) +($D30*'fnd base rates'!J$40) +($E30*'fnd base rates'!J$41) +($F30*'fnd base rates'!J$42) +($G30*'fnd base rates'!J$43) +($H30*'fnd base rates'!J$44) +($I30*'fnd base rates'!J$45) +($J30*'fnd base rates'!J$46) +($K30*'fnd base rates'!J$47) +($L30*'fnd base rates'!J$48) +($M30*'fnd base rates'!J$49) +($N30*'fnd base rates'!J$50) +($O30*'fnd base rates'!J$51) +($P30*'fnd base rates'!J$52)) *$R30 -> 530.99331 | AB30: =(($C30*'fnd base rates'!K$39) +($D30*'fnd base rates'!K$40) +($E30*'fnd base rates'!K$41) +($F30*'fnd base rates'!K$42) +($G30*'fnd base rates'!K$43) +($H30*'fnd base rates'!K$44) +($I30*'fnd base rates'!K$45) +($J30*'fnd base rates'!K$46) +($K30*'fnd base rates'!K$47) +($L30*'fnd base rates'!K$48) +($M30*'fnd base rates'!K$49) +($N30*'fnd base rates'!K$50) +($O30*'fnd base rates'!K$51) +($P30*'fnd base rates'!K$52)) *$R30 -> 1512.147849 | AC30: =(($C30*'fnd base rates'!L$39) +($D30*'fnd base rates'!L$40) +($E30*'fnd base rates'!L$41) +($F30*'fnd base rates'!L$42) +($G30*'fnd base rates'!L$43) +($H30*'fnd base rates'!L$44) +($I30*'fnd base rates'!L$45) +($J30*'fnd base rates'!L$46) +($K30*'fnd base rates'!L$47) +($L30*'fnd base rates'!L$48) +($M30*'fnd base rates'!L$49) +($N30*'fnd base rates'!L$50) +($O30*'fnd base rates'!L$51) +($P30*'fnd base rates'!L$52)) -> 1083.79075 | AD30: =(($C30*'fnd base rates'!M$39) +($D30*'fnd base rates'!M$40) +($E30*'fnd base rates'!M$41) +($F30*'fnd base rates'!M$42) +($G30*'fnd base rates'!M$43) +($H30*'fnd base rates'!M$44) +($I30*'fnd base rates'!M$45) +($J30*'fnd base rates'!M$46) +($K30*'fnd base rates'!M$47) +($L30*'fnd base rates'!M$48) +($M30*'fnd base rates'!M$49) +($N30*'fnd base rates'!M$50) +($O30*'fnd base rates'!M$51) +($P30*'fnd base rates'!M$52)) -> 0 | AE30: 13203.92693 | AG30: 412035293 | AH30: 412 | AI30: 035 | AJ30: 293 | AK30: 1 | AL30: 1 | AM30: 13203.92693 | AN30: 13204 | AO30: 0 | AP30: 13204
A31: 412035314 | B31: ACADEMY OF THE PACIFIC RIM | C31: ='fnd enro'!C31 -> 0 | D31: ='fnd enro'!D31 -> 0 | E31: ='fnd enro'!E31 -> 0 | F31: ='fnd enro'!F31 -> 0 | G31: ='fnd enro'!G31 -> 1 | H31: ='fnd enro'!H31 -> 0 | I31: ='fnd enro'!I31 -> 0.0375 | J31: ='fnd enro'!J31 -> 0 | K31: ='fnd enro'!K31 -> 0 | L31: ='fnd enro'!L31 -> 0 | M31: ='fnd enro'!M31 -> 0 | N31: ='fnd enro'!N31 -> 0 | O31: ='fnd enro'!O31 -> 1 | P31: ='fnd enro'!P31 -> 0 | Q31: ='fnd enro'!Q31 -> 1 | R31: 1.077 | T31: =(($C31*'fnd base rates'!C$39) +($D31*'fnd base rates'!C$40) +($E31*'fnd base rates'!C$41) +($F31*'fnd base rates'!C$42) +($G31*'fnd base rates'!C$43) +($H31*'fnd base rates'!C$44) +($I31*'fnd base rates'!C$45) +($J31*'fnd base rates'!C$46) +($K31*'fnd base rates'!C$47) +($L31*'fnd base rates'!C$48) +($M31*'fnd base rates'!C$49) +($N31*'fnd base rates'!C$50) +($O31*'fnd base rates'!C$51) +($P31*'fnd base rates'!C$52)) *$R31 -> 493.4919007 | U31: =(($C31*'fnd base rates'!D$39) +($D31*'fnd base rates'!D$40) +($E31*'fnd base rates'!D$41) +($F31*'fnd base rates'!D$42) +($G31*'fnd base rates'!D$43) +($H31*'fnd base rates'!D$44) +($I31*'fnd base rates'!D$45) +($J31*'fnd base rates'!D$46) +($K31*'fnd base rates'!D$47) +($L31*'fnd base rates'!D$48) +($M31*'fnd base rates'!D$49) +($N31*'fnd base rates'!D$50) +($O31*'fnd base rates'!D$51) +($P31*'fnd base rates'!D$52)) *$R31 -> 708.04134 | V31: =(($C31*'fnd base rates'!E$39) +($D31*'fnd base rates'!E$40) +($E31*'fnd base rates'!E$41) +($F31*'fnd base rates'!E$42) +($G31*'fnd base rates'!E$43) +($H31*'fnd base rates'!E$44) +($I31*'fnd base rates'!E$45) +($J31*'fnd base rates'!E$46) +($K31*'fnd base rates'!E$47) +($L31*'fnd base rates'!E$48) +($M31*'fnd base rates'!E$49) +($N31*'fnd base rates'!E$50) +($O31*'fnd base rates'!E$51) +($P31*'fnd base rates'!E$52)) *$R31 -> 6112.748959 | W31: =(($C31*'fnd base rates'!F$39) +($D31*'fnd base rates'!F$40) +($E31*'fnd base rates'!F$41) +($F31*'fnd base rates'!F$42) +($G31*'fnd base rates'!F$43) +($H31*'fnd base rates'!F$44) +($I31*'fnd base rates'!F$45) +($J31*'fnd base rates'!F$46) +($K31*'fnd base rates'!F$47) +($L31*'fnd base rates'!F$48) +($M31*'fnd base rates'!F$49) +($N31*'fnd base rates'!F$50) +($O31*'fnd base rates'!F$51) +($P31*'fnd base rates'!F$52)) *$R31 -> 912.0076387 | X31: =(($C31*'fnd base rates'!G$39) +($D31*'fnd base rates'!G$40) +($E31*'fnd base rates'!G$41) +($F31*'fnd base rates'!G$42) +($G31*'fnd base rates'!G$43) +($H31*'fnd base rates'!G$44) +($I31*'fnd base rates'!G$45) +($J31*'fnd base rates'!G$46) +($K31*'fnd base rates'!G$47) +($L31*'fnd base rates'!G$48) +($M31*'fnd base rates'!G$49) +($N31*'fnd base rates'!G$50) +($O31*'fnd base rates'!G$51) +($P31*'fnd base rates'!G$52)) *$R31 -> 219.7147312 | Y31: =(($C31*'fnd base rates'!H$39) +($D31*'fnd base rates'!H$40) +($E31*'fnd base rates'!H$41) +($F31*'fnd base rates'!H$42) +($G31*'fnd base rates'!H$43) +($H31*'fnd base rates'!H$44) +($I31*'fnd base rates'!H$45) +($J31*'fnd base rates'!H$46) +($K31*'fnd base rates'!H$47) +($L31*'fnd base rates'!H$48) +($M31*'fnd base rates'!H$49) +($N31*'fnd base rates'!H$50) +($O31*'fnd base rates'!H$51) +($P31*'fnd base rates'!H$52)) -> 449.399375 | Z31: =(($C31*'fnd base rates'!I$39) +($D31*'fnd base rates'!I$40) +($E31*'fnd base rates'!I$41) +($F31*'fnd base rates'!I$42) +($G31*'fnd base rates'!I$43) +($H31*'fnd base rates'!I$44) +($I31*'fnd base rates'!I$45) +($J31*'fnd base rates'!I$46) +($K31*'fnd base rates'!I$47) +($L31*'fnd base rates'!I$48) +($M31*'fnd base rates'!I$49) +($N31*'fnd base rates'!I$50) +($O31*'fnd base rates'!I$51) +($P31*'fnd base rates'!I$52)) *$R31 -> 314.47323 | AA31: =(($C31*'fnd base rates'!J$39) +($D31*'fnd base rates'!J$40) +($E31*'fnd base rates'!J$41) +($F31*'fnd base rates'!J$42) +($G31*'fnd base rates'!J$43) +($H31*'fnd base rates'!J$44) +($I31*'fnd base rates'!J$45) +($J31*'fnd base rates'!J$46) +($K31*'fnd base rates'!J$47) +($L31*'fnd base rates'!J$48) +($M31*'fnd base rates'!J$49) +($N31*'fnd base rates'!J$50) +($O31*'fnd base rates'!J$51) +($P31*'fnd base rates'!J$52)) *$R31 -> 230.27337 | AB31: =(($C31*'fnd base rates'!K$39) +($D31*'fnd base rates'!K$40) +($E31*'fnd base rates'!K$41) +($F31*'fnd base rates'!K$42) +($G31*'fnd base rates'!K$43) +($H31*'fnd base rates'!K$44) +($I31*'fnd base rates'!K$45) +($J31*'fnd base rates'!K$46) +($K31*'fnd base rates'!K$47) +($L31*'fnd base rates'!K$48) +($M31*'fnd base rates'!K$49) +($N31*'fnd base rates'!K$50) +($O31*'fnd base rates'!K$51) +($P31*'fnd base rates'!K$52)) *$R31 -> 1541.862279 | AC31: =(($C31*'fnd base rates'!L$39) +($D31*'fnd base rates'!L$40) +($E31*'fnd base rates'!L$41) +($F31*'fnd base rates'!L$42) +($G31*'fnd base rates'!L$43) +($H31*'fnd base rates'!L$44) +($I31*'fnd base rates'!L$45) +($J31*'fnd base rates'!L$46) +($K31*'fnd base rates'!L$47) +($L31*'fnd base rates'!L$48) +($M31*'fnd base rates'!L$49) +($N31*'fnd base rates'!L$50) +($O31*'fnd base rates'!L$51) +($P31*'fnd base rates'!L$52)) -> 1111.96075 | AD31: =(($C31*'fnd base rates'!M$39) +($D31*'fnd base rates'!M$40) +($E31*'fnd base rates'!M$41) +($F31*'fnd base rates'!M$42) +($G31*'fnd base rates'!M$43) +($H31*'fnd base rates'!M$44) +($I31*'fnd base rates'!M$45) +($J31*'fnd base rates'!M$46) +($K31*'fnd base rates'!M$47) +($L31*'fnd base rates'!M$48) +($M31*'fnd base rates'!M$49) +($N31*'fnd base rates'!M$50) +($O31*'fnd base rates'!M$51) +($P31*'fnd base rates'!M$52)) -> 0 | AE31: 12093.97357 | AG31: 412035314 | AH31: 412 | AI31: 035 | AJ31: 314 | AK31: 1 | AL31: 1 | AM31: 12093.97357 | AN31: 12094 | AO31: 0 | AP31: 12094
A32: 412035336 | B32: ACADEMY OF THE PACIFIC RIM | C32: ='fnd enro'!C32 -> 0 | D32: ='fnd enro'!D32 -> 0 | E32: ='fnd enro'!E32 -> 0 | F32: ='fnd enro'!F32 -> 0 | G32: ='fnd enro'!G32 -> 1 | H32: ='fnd enro'!H32 -> 2 | I32: ='fnd enro'!I32 -> 0.1125 | J32: ='fnd enro'!J32 -> 0 | K32: ='fnd enro'!K32 -> 0 | L32: ='fnd enro'!L32 -> 0 | M32: ='fnd enro'!M32 -> 0 | N32: ='fnd enro'!N32 -> 0 | O32: ='fnd enro'!O32 -> 0 | P32: ='fnd enro'!P32 -> 0 | Q32: ='fnd enro'!Q32 -> 3 | R32: 1.077 | T32: =(($C32*'fnd base rates'!C$39) +($D32*'fnd base rates'!C$40) +($E32*'fnd base rates'!C$41) +($F32*'fnd base rates'!C$42) +($G32*'fnd base rates'!C$43) +($H32*'fnd base rates'!C$44) +($I32*'fnd base rates'!C$45) +($J32*'fnd base rates'!C$46) +($K32*'fnd base rates'!C$47) +($L32*'fnd base rates'!C$48) +($M32*'fnd base rates'!C$49) +($N32*'fnd base rates'!C$50) +($O32*'fnd base rates'!C$51) +($P32*'fnd base rates'!C$52)) *$R32 -> 1480.475702 | U32: =(($C32*'fnd base rates'!D$39) +($D32*'fnd base rates'!D$40) +($E32*'fnd base rates'!D$41) +($F32*'fnd base rates'!D$42) +($G32*'fnd base rates'!D$43) +($H32*'fnd base rates'!D$44) +($I32*'fnd base rates'!D$45) +($J32*'fnd base rates'!D$46) +($K32*'fnd base rates'!D$47) +($L32*'fnd base rates'!D$48) +($M32*'fnd base rates'!D$49) +($N32*'fnd base rates'!D$50) +($O32*'fnd base rates'!D$51) +($P32*'fnd base rates'!D$52)) *$R32 -> 2124.12402 | V32: =(($C32*'fnd base rates'!E$39) +($D32*'fnd base rates'!E$40) +($E32*'fnd base rates'!E$41) +($F32*'fnd base rates'!E$42) +($G32*'fnd base rates'!E$43) +($H32*'fnd base rates'!E$44) +($I32*'fnd base rates'!E$45) +($J32*'fnd base rates'!E$46) +($K32*'fnd base rates'!E$47) +($L32*'fnd base rates'!E$48) +($M32*'fnd base rates'!E$49) +($N32*'fnd base rates'!E$50) +($O32*'fnd base rates'!E$51) +($P32*'fnd base rates'!E$52)) *$R32 -> 12264.37614 | W32: =(($C32*'fnd base rates'!F$39) +($D32*'fnd base rates'!F$40) +($E32*'fnd base rates'!F$41) +($F32*'fnd base rates'!F$42) +($G32*'fnd base rates'!F$43) +($H32*'fnd base rates'!F$44) +($I32*'fnd base rates'!F$45) +($J32*'fnd base rates'!F$46) +($K32*'fnd base rates'!F$47) +($L32*'fnd base rates'!F$48) +($M32*'fnd base rates'!F$49) +($N32*'fnd base rates'!F$50) +($O32*'fnd base rates'!F$51) +($P32*'fnd base rates'!F$52)) *$R32 -> 2535.248576 | X32: =(($C32*'fnd base rates'!G$39) +($D32*'fnd base rates'!G$40) +($E32*'fnd base rates'!G$41) +($F32*'fnd base rates'!G$42) +($G32*'fnd base rates'!G$43) +($H32*'fnd base rates'!G$44) +($I32*'fnd base rates'!G$45) +($J32*'fnd base rates'!G$46) +($K32*'fnd base rates'!G$47) +($L32*'fnd base rates'!G$48) +($M32*'fnd base rates'!G$49) +($N32*'fnd base rates'!G$50) +($O32*'fnd base rates'!G$51) +($P32*'fnd base rates'!G$52)) *$R32 -> 457.8205837 | Y32: =(($C32*'fnd base rates'!H$39) +($D32*'fnd base rates'!H$40) +($E32*'fnd base rates'!H$41) +($F32*'fnd base rates'!H$42) +($G32*'fnd base rates'!H$43) +($H32*'fnd base rates'!H$44) +($I32*'fnd base rates'!H$45) +($J32*'fnd base rates'!H$46) +($K32*'fnd base rates'!H$47) +($L32*'fnd base rates'!H$48) +($M32*'fnd base rates'!H$49) +($N32*'fnd base rates'!H$50) +($O32*'fnd base rates'!H$51) +($P32*'fnd base rates'!H$52)) -> 1871.778125 | Z32: =(($C32*'fnd base rates'!I$39) +($D32*'fnd base rates'!I$40) +($E32*'fnd base rates'!I$41) +($F32*'fnd base rates'!I$42) +($G32*'fnd base rates'!I$43) +($H32*'fnd base rates'!I$44) +($I32*'fnd base rates'!I$45) +($J32*'fnd base rates'!I$46) +($K32*'fnd base rates'!I$47) +($L32*'fnd base rates'!I$48) +($M32*'fnd base rates'!I$49) +($N32*'fnd base rates'!I$50) +($O32*'fnd base rates'!I$51) +($P32*'fnd base rates'!I$52)) *$R32 -> 1102.88031 | AA32: =(($C32*'fnd base rates'!J$39) +($D32*'fnd base rates'!J$40) +($E32*'fnd base rates'!J$41) +($F32*'fnd base rates'!J$42) +($G32*'fnd base rates'!J$43) +($H32*'fnd base rates'!J$44) +($I32*'fnd base rates'!J$45) +($J32*'fnd base rates'!J$46) +($K32*'fnd base rates'!J$47) +($L32*'fnd base rates'!J$48) +($M32*'fnd base rates'!J$49) +($N32*'fnd base rates'!J$50) +($O32*'fnd base rates'!J$51) +($P32*'fnd base rates'!J$52)) *$R32 -> 1292.25999 | AB32: =(($C32*'fnd base rates'!K$39) +($D32*'fnd base rates'!K$40) +($E32*'fnd base rates'!K$41) +($F32*'fnd base rates'!K$42) +($G32*'fnd base rates'!K$43) +($H32*'fnd base rates'!K$44) +($I32*'fnd base rates'!K$45) +($J32*'fnd base rates'!K$46) +($K32*'fnd base rates'!K$47) +($L32*'fnd base rates'!K$48) +($M32*'fnd base rates'!K$49) +($N32*'fnd base rates'!K$50) +($O32*'fnd base rates'!K$51) +($P32*'fnd base rates'!K$52)) *$R32 -> 3212.789007 | AC32: =(($C32*'fnd base rates'!L$39) +($D32*'fnd base rates'!L$40) +($E32*'fnd base rates'!L$41) +($F32*'fnd base rates'!L$42) +($G32*'fnd base rates'!L$43) +($H32*'fnd base rates'!L$44) +($I32*'fnd base rates'!L$45) +($J32*'fnd base rates'!L$46) +($K32*'fnd base rates'!L$47) +($L32*'fnd base rates'!L$48) +($M32*'fnd base rates'!L$49) +($N32*'fnd base rates'!L$50) +($O32*'fnd base rates'!L$51) +($P32*'fnd base rates'!L$52)) -> 2453.64225 | AD32: =(($C32*'fnd base rates'!M$39) +($D32*'fnd base rates'!M$40) +($E32*'fnd base rates'!M$41) +($F32*'fnd base rates'!M$42) +($G32*'fnd base rates'!M$43) +($H32*'fnd base rates'!M$44) +($I32*'fnd base rates'!M$45) +($J32*'fnd base rates'!M$46) +($K32*'fnd base rates'!M$47) +($L32*'fnd base rates'!M$48) +($M32*'fnd base rates'!M$49) +($N32*'fnd base rates'!M$50) +($O32*'fnd base rates'!M$51) +($P32*'fnd base rates'!M$52)) -> 0 | AE32: 28795.3947 | AG32: 412035336 | AH32: 412 | AI32: 035 | AJ32: 336 | AK32: 1 | AL32: 3 | AM32: 28795.3947 | AN32: 9598 | AO32: 0 | AP32: 9598
A33: 413114024 | B33: FOUR RIVERS | C33: ='fnd enro'!C33 -> 0 | D33: ='fnd enro'!D33 -> 0 | E33: ='fnd enro'!E33 -> 0 | F33: ='fnd enro'!F33 -> 0 | G33: ='fnd enro'!G33 -> 1 | H33: ='fnd enro'!H33 -> 0 | I33: ='fnd enro'!I33 -> 0.0375 | J33: ='fnd enro'!J33 -> 0 | K33: ='fnd enro'!K33 -> 0 | L33: ='fnd enro'!L33 -> 0 | M33: ='fnd enro'!M33 -> 0 | N33: ='fnd enro'!N33 -> 0 | O33: ='fnd enro'!O33 -> 0 | P33: ='fnd enro'!P33 -> 0 | Q33: ='fnd enro'!Q33 -> 1 | R33: 1 | T33: =(($C33*'fnd base rates'!C$39) +($D33*'fnd base rates'!C$40) +($E33*'fnd base rates'!C$41) +($F33*'fnd base rates'!C$42) +($G33*'fnd base rates'!C$43) +($H33*'fnd base rates'!C$44) +($I33*'fnd base rates'!C$45) +($J33*'fnd base rates'!C$46) +($K33*'fnd base rates'!C$47) +($L33*'fnd base rates'!C$48) +($M33*'fnd base rates'!C$49) +($N33*'fnd base rates'!C$50) +($O33*'fnd base rates'!C$51) +($P33*'fnd base rates'!C$52)) *$R33 -> 458.20975 | U33: =(($C33*'fnd base rates'!D$39) +($D33*'fnd base rates'!D$40) +($E33*'fnd base rates'!D$41) +($F33*'fnd base rates'!D$42) +($G33*'fnd base rates'!D$43) +($H33*'fnd base rates'!D$44) +($I33*'fnd base rates'!D$45) +($J33*'fnd base rates'!D$46) +($K33*'fnd base rates'!D$47) +($L33*'fnd base rates'!D$48) +($M33*'fnd base rates'!D$49) +($N33*'fnd base rates'!D$50) +($O33*'fnd base rates'!D$51) +($P33*'fnd base rates'!D$52)) *$R33 -> 657.42 | V33: =(($C33*'fnd base rates'!E$39) +($D33*'fnd base rates'!E$40) +($E33*'fnd base rates'!E$41) +($F33*'fnd base rates'!E$42) +($G33*'fnd base rates'!E$43) +($H33*'fnd base rates'!E$44) +($I33*'fnd base rates'!E$45) +($J33*'fnd base rates'!E$46) +($K33*'fnd base rates'!E$47) +($L33*'fnd base rates'!E$48) +($M33*'fnd base rates'!E$49) +($N33*'fnd base rates'!E$50) +($O33*'fnd base rates'!E$51) +($P33*'fnd base rates'!E$52)) *$R33 -> 2963.618625 | W33: =(($C33*'fnd base rates'!F$39) +($D33*'fnd base rates'!F$40) +($E33*'fnd base rates'!F$41) +($F33*'fnd base rates'!F$42) +($G33*'fnd base rates'!F$43) +($H33*'fnd base rates'!F$44) +($I33*'fnd base rates'!F$45) +($J33*'fnd base rates'!F$46) +($K33*'fnd base rates'!F$47) +($L33*'fnd base rates'!F$48) +($M33*'fnd base rates'!F$49) +($N33*'fnd base rates'!F$50) +($O33*'fnd base rates'!F$51) +($P33*'fnd base rates'!F$52)) *$R33 -> 846.80375 | X33: =(($C33*'fnd base rates'!G$39) +($D33*'fnd base rates'!G$40) +($E33*'fnd base rates'!G$41) +($F33*'fnd base rates'!G$42) +($G33*'fnd base rates'!G$43) +($H33*'fnd base rates'!G$44) +($I33*'fnd base rates'!G$45) +($J33*'fnd base rates'!G$46) +($K33*'fnd base rates'!G$47) +($L33*'fnd base rates'!G$48) +($M33*'fnd base rates'!G$49) +($N33*'fnd base rates'!G$50) +($O33*'fnd base rates'!G$51) +($P33*'fnd base rates'!G$52)) *$R33 -> 144.31625 | Y33: =(($C33*'fnd base rates'!H$39) +($D33*'fnd base rates'!H$40) +($E33*'fnd base rates'!H$41) +($F33*'fnd base rates'!H$42) +($G33*'fnd base rates'!H$43) +($H33*'fnd base rates'!H$44) +($I33*'fnd base rates'!H$45) +($J33*'fnd base rates'!H$46) +($K33*'fnd base rates'!H$47) +($L33*'fnd base rates'!H$48) +($M33*'fnd base rates'!H$49) +($N33*'fnd base rates'!H$50) +($O33*'fnd base rates'!H$51) +($P33*'fnd base rates'!H$52)) -> 449.399375 | Z33: =(($C33*'fnd base rates'!I$39) +($D33*'fnd base rates'!I$40) +($E33*'fnd base rates'!I$41) +($F33*'fnd base rates'!I$42) +($G33*'fnd base rates'!I$43) +($H33*'fnd base rates'!I$44) +($I33*'fnd base rates'!I$45) +($J33*'fnd base rates'!I$46) +($K33*'fnd base rates'!I$47) +($L33*'fnd base rates'!I$48) +($M33*'fnd base rates'!I$49) +($N33*'fnd base rates'!I$50) +($O33*'fnd base rates'!I$51) +($P33*'fnd base rates'!I$52)) *$R33 -> 291.99 | AA33: =(($C33*'fnd base rates'!J$39) +($D33*'fnd base rates'!J$40) +($E33*'fnd base rates'!J$41) +($F33*'fnd base rates'!J$42) +($G33*'fnd base rates'!J$43) +($H33*'fnd base rates'!J$44) +($I33*'fnd base rates'!J$45) +($J33*'fnd base rates'!J$46) +($K33*'fnd base rates'!J$47) +($L33*'fnd base rates'!J$48) +($M33*'fnd base rates'!J$49) +($N33*'fnd base rates'!J$50) +($O33*'fnd base rates'!J$51) +($P33*'fnd base rates'!J$52)) *$R33 -> 213.81 | AB33: =(($C33*'fnd base rates'!K$39) +($D33*'fnd base rates'!K$40) +($E33*'fnd base rates'!K$41) +($F33*'fnd base rates'!K$42) +($G33*'fnd base rates'!K$43) +($H33*'fnd base rates'!K$44) +($I33*'fnd base rates'!K$45) +($J33*'fnd base rates'!K$46) +($K33*'fnd base rates'!K$47) +($L33*'fnd base rates'!K$48) +($M33*'fnd base rates'!K$49) +($N33*'fnd base rates'!K$50) +($O33*'fnd base rates'!K$51) +($P33*'fnd base rates'!K$52)) *$R33 -> 1012.757 | AC33: =(($C33*'fnd base rates'!L$39) +($D33*'fnd base rates'!L$40) +($E33*'fnd base rates'!L$41) +($F33*'fnd base rates'!L$42) +($G33*'fnd base rates'!L$43) +($H33*'fnd base rates'!L$44) +($I33*'fnd base rates'!L$45) +($J33*'fnd base rates'!L$46) +($K33*'fnd base rates'!L$47) +($L33*'fnd base rates'!L$48) +($M33*'fnd base rates'!L$49) +($N33*'fnd base rates'!L$50) +($O33*'fnd base rates'!L$51) +($P33*'fnd base rates'!L$52)) -> 836.66075 | AD33: =(($C33*'fnd base rates'!M$39) +($D33*'fnd base rates'!M$40) +($E33*'fnd base rates'!M$41) +($F33*'fnd base rates'!M$42) +($G33*'fnd base rates'!M$43) +($H33*'fnd base rates'!M$44) +($I33*'fnd base rates'!M$45) +($J33*'fnd base rates'!M$46) +($K33*'fnd base rates'!M$47) +($L33*'fnd base rates'!M$48) +($M33*'fnd base rates'!M$49) +($N33*'fnd base rates'!M$50) +($O33*'fnd base rates'!M$51) +($P33*'fnd base rates'!M$52)) -> 0 | AE33: 7874.9855 | AG33: 413114024 | AH33: 413 | AI33: 114 | AJ33: 024 | AK33: 1 | AL33: 1 | AM33: 7874.9855 | AN33: 7875 | AO33: 0 | AP33: 7875
A34: 413114083 | B34: FOUR RIVERS | C34: ='fnd enro'!C34 -> 0 | D34: ='fnd enro'!D34 -> 0 | E34: ='fnd enro'!E34 -> 0 | F34: ='fnd enro'!F34 -> 0 | G34: ='fnd enro'!G34 -> 1 | H34: ='fnd enro'!H34 -> 0 | I34: ='fnd enro'!I34 -> 0.0375 | J34: ='fnd enro'!J34 -> 0 | K34: ='fnd enro'!K34 -> 0 | L34: ='fnd enro'!L34 -> 0 | M34: ='fnd enro'!M34 -> 0 | N34: ='fnd enro'!N34 -> 0 | O34: ='fnd enro'!O34 -> 0 | P34: ='fnd enro'!P34 -> 0 | Q34: ='fnd enro'!Q34 -> 1 | R34: 1 | T34: =(($C34*'fnd base rates'!C$39) +($D34*'fnd base rates'!C$40) +($E34*'fnd base rates'!C$41) +($F34*'fnd base rates'!C$42) +($G34*'fnd base rates'!C$43) +($H34*'fnd base rates'!C$44) +($I34*'fnd base rates'!C$45) +($J34*'fnd base rates'!C$46) +($K34*'fnd base rates'!C$47) +($L34*'fnd base rates'!C$48) +($M34*'fnd base rates'!C$49) +($N34*'fnd base rates'!C$50) +($O34*'fnd base rates'!C$51) +($P34*'fnd base rates'!C$52)) *$R34 -> 458.20975 | U34: =(($C34*'fnd base rates'!D$39) +($D34*'fnd base rates'!D$40) +($E34*'fnd base rates'!D$41) +($F34*'fnd base rates'!D$42) +($G34*'fnd base rates'!D$43) +($H34*'fnd base rates'!D$44) +($I34*'fnd base rates'!D$45) +($J34*'fnd base rates'!D$46) +($K34*'fnd base rates'!D$47) +($L34*'fnd base rates'!D$48) +($M34*'fnd base rates'!D$49) +($N34*'fnd base rates'!D$50) +($O34*'fnd base rates'!D$51) +($P34*'fnd base rates'!D$52)) *$R34 -> 657.42 | V34: =(($C34*'fnd base rates'!E$39) +($D34*'fnd base rates'!E$40) +($E34*'fnd base rates'!E$41) +($F34*'fnd base rates'!E$42) +($G34*'fnd base rates'!E$43) +($H34*'fnd base rates'!E$44) +($I34*'fnd base rates'!E$45) +($J34*'fnd base rates'!E$46) +($K34*'fnd base rates'!E$47) +($L34*'fnd base rates'!E$48) +($M34*'fnd base rates'!E$49) +($N34*'fnd base rates'!E$50) +($O34*'fnd base rates'!E$51) +($P34*'fnd base rates'!E$52)) *$R34 -> 2963.618625 | W34: =(($C34*'fnd base rates'!F$39) +($D34*'fnd base rates'!F$40) +($E34*'fnd base rates'!F$41) +($F34*'fnd base rates'!F$42) +($G34*'fnd base rates'!F$43) +($H34*'fnd base rates'!F$44) +($I34*'fnd base rates'!F$45) +($J34*'fnd base rates'!F$46) +($K34*'fnd base rates'!F$47) +($L34*'fnd base rates'!F$48) +($M34*'fnd base rates'!F$49) +($N34*'fnd base rates'!F$50) +($O34*'fnd base rates'!F$51) +($P34*'fnd base rates'!F$52)) *$R34 -> 846.80375 | X34: =(($C34*'fnd base rates'!G$39) +($D34*'fnd base rates'!G$40) +($E34*'fnd base rates'!G$41) +($F34*'fnd base rates'!G$42) +($G34*'fnd base rates'!G$43) +($H34*'fnd base rates'!G$44) +($I34*'fnd base rates'!G$45) +($J34*'fnd base rates'!G$46) +($K34*'fnd base rates'!G$47) +($L34*'fnd base rates'!G$48) +($M34*'fnd base rates'!G$49) +($N34*'fnd base rates'!G$50) +($O34*'fnd base rates'!G$51) +($P34*'fnd base rates'!G$52)) *$R34 -> 144.31625 | Y34: =(($C34*'fnd base rates'!H$39) +($D34*'fnd base rates'!H$40) +($E34*'fnd base rates'!H$41) +($F34*'fnd base rates'!H$42) +($G34*'fnd base rates'!H$43) +($H34*'fnd base rates'!H$44) +($I34*'fnd base rates'!H$45) +($J34*'fnd base rates'!H$46) +($K34*'fnd base rates'!H$47) +($L34*'fnd base rates'!H$48) +($M34*'fnd base rates'!H$49) +($N34*'fnd base rates'!H$50) +($O34*'fnd base rates'!H$51) +($P34*'fnd base rates'!H$52)) -> 449.399375 | Z34: =(($C34*'fnd base rates'!I$39) +($D34*'fnd base rates'!I$40) +($E34*'fnd base rates'!I$41) +($F34*'fnd base rates'!I$42) +($G34*'fnd base rates'!I$43) +($H34*'fnd base rates'!I$44) +($I34*'fnd base rates'!I$45) +($J34*'fnd base rates'!I$46) +($K34*'fnd base rates'!I$47) +($L34*'fnd base rates'!I$48) +($M34*'fnd base rates'!I$49) +($N34*'fnd base rates'!I$50) +($O34*'fnd base rates'!I$51) +($P34*'fnd base rates'!I$52)) *$R34 -> 291.99 | AA34: =(($C34*'fnd base rates'!J$39) +($D34*'fnd base rates'!J$40) +($E34*'fnd base rates'!J$41) +($F34*'fnd base rates'!J$42) +($G34*'fnd base rates'!J$43) +($H34*'fnd base rates'!J$44) +($I34*'fnd base rates'!J$45) +($J34*'fnd base rates'!J$46) +($K34*'fnd base rates'!J$47) +($L34*'fnd base rates'!J$48) +($M34*'fnd base rates'!J$49) +($N34*'fnd base rates'!J$50) +($O34*'fnd base rates'!J$51) +($P34*'fnd base rates'!J$52)) *$R34 -> 213.81 | AB34: =(($C34*'fnd base rates'!K$39) +($D34*'fnd base rates'!K$40) +($E34*'fnd base rates'!K$41) +($F34*'fnd base rates'!K$42) +($G34*'fnd base rates'!K$43) +($H34*'fnd base rates'!K$44) +($I34*'fnd base rates'!K$45) +($J34*'fnd base rates'!K$46) +($K34*'fnd base rates'!K$47) +($L34*'fnd base rates'!K$48) +($M34*'fnd base rates'!K$49) +($N34*'fnd base rates'!K$50) +($O34*'fnd base rates'!K$51) +($P34*'fnd base rates'!K$52)) *$R34 -> 1012.757 | AC34: =(($C34*'fnd base rates'!L$39) +($D34*'fnd base rates'!L$40) +($E34*'fnd base rates'!L$41) +($F34*'fnd base rates'!L$42) +($G34*'fnd base rates'!L$43) +($H34*'fnd base rates'!L$44) +($I34*'fnd base rates'!L$45) +($J34*'fnd base rates'!L$46) +($K34*'fnd base rates'!L$47) +($L34*'fnd base rates'!L$48) +($M34*'fnd base rates'!L$49) +($N34*'fnd base rates'!L$50) +($O34*'fnd base rates'!L$51) +($P34*'fnd base rates'!L$52)) -> 836.66075 | AD34: =(($C34*'fnd base rates'!M$39) +($D34*'fnd base rates'!M$40) +($E34*'fnd base rates'!M$41) +($F34*'fnd base rates'!M$42) +($G34*'fnd base rates'!M$43) +($H34*'fnd base rates'!M$44) +($I34*'fnd base rates'!M$45) +($J34*'fnd base rates'!M$46) +($K34*'fnd base rates'!M$47) +($L34*'fnd base rates'!M$48) +($M34*'fnd base rates'!M$49) +($N34*'fnd base rates'!M$50) +($O34*'fnd base rates'!M$51) +($P34*'fnd base rates'!M$52)) -> 0 | AE34: 7874.9855 | AG34: 413114083 | AH34: 413 | AI34: 114 | AJ34: 083 | AK34: 1 | AL34: 1 | AM34: 7874.9855 | AN34: 7875 | AO34: 0 | AP34: 7875
A35: 413114091 | B35: FOUR RIVERS | C35: ='fnd enro'!C35 -> 0 | D35: ='fnd enro'!D35 -> 0 | E35: ='fnd enro'!E35 -> 0 | F35: ='fnd enro'!F35 -> 0 | G35: ='fnd enro'!G35 -> 1 | H35: ='fnd enro'!H35 -> 8 | I35: ='fnd enro'!I35 -> 0.3375 | J35: ='fnd enro'!J35 -> 0 | K35: ='fnd enro'!K35 -> 0 | L35: ='fnd enro'!L35 -> 0 | M35: ='fnd enro'!M35 -> 0 | N35: ='fnd enro'!N35 -> 0 | O35: ='fnd enro'!O35 -> 0 | P35: ='fnd enro'!P35 -> 0 | Q35: ='fnd enro'!Q35 -> 9 | R35: 1 | T35: =(($C35*'fnd base rates'!C$39) +($D35*'fnd base rates'!C$40) +($E35*'fnd base rates'!C$41) +($F35*'fnd base rates'!C$42) +($G35*'fnd base rates'!C$43) +($H35*'fnd base rates'!C$44) +($I35*'fnd base rates'!C$45) +($J35*'fnd base rates'!C$46) +($K35*'fnd base rates'!C$47) +($L35*'fnd base rates'!C$48) +($M35*'fnd base rates'!C$49) +($N35*'fnd base rates'!C$50) +($O35*'fnd base rates'!C$51) +($P35*'fnd base rates'!C$52)) *$R35 -> 4123.88775 | U35: =(($C35*'fnd base rates'!D$39) +($D35*'fnd base rates'!D$40) +($E35*'fnd base rates'!D$41) +($F35*'fnd base rates'!D$42) +($G35*'fnd base rates'!D$43) +($H35*'fnd base rates'!D$44) +($I35*'fnd base rates'!D$45) +($J35*'fnd base rates'!D$46) +($K35*'fnd base rates'!D$47) +($L35*'fnd base rates'!D$48) +($M35*'fnd base rates'!D$49) +($N35*'fnd base rates'!D$50) +($O35*'fnd base rates'!D$51) +($P35*'fnd base rates'!D$52)) *$R35 -> 5916.78 | V35: =(($C35*'fnd base rates'!E$39) +($D35*'fnd base rates'!E$40) +($E35*'fnd base rates'!E$41) +($F35*'fnd base rates'!E$42) +($G35*'fnd base rates'!E$43) +($H35*'fnd base rates'!E$44) +($I35*'fnd base rates'!E$45) +($J35*'fnd base rates'!E$46) +($K35*'fnd base rates'!E$47) +($L35*'fnd base rates'!E$48) +($M35*'fnd base rates'!E$49) +($N35*'fnd base rates'!E$50) +($O35*'fnd base rates'!E$51) +($P35*'fnd base rates'!E$52)) *$R35 -> 36659.28763 | W35: =(($C35*'fnd base rates'!F$39) +($D35*'fnd base rates'!F$40) +($E35*'fnd base rates'!F$41) +($F35*'fnd base rates'!F$42) +($G35*'fnd base rates'!F$43) +($H35*'fnd base rates'!F$44) +($I35*'fnd base rates'!F$45) +($J35*'fnd base rates'!F$46) +($K35*'fnd base rates'!F$47) +($L35*'fnd base rates'!F$48) +($M35*'fnd base rates'!F$49) +($N35*'fnd base rates'!F$50) +($O35*'fnd base rates'!F$51) +($P35*'fnd base rates'!F$52)) *$R35 -> 6875.55375 | X35: =(($C35*'fnd base rates'!G$39) +($D35*'fnd base rates'!G$40) +($E35*'fnd base rates'!G$41) +($F35*'fnd base rates'!G$42) +($G35*'fnd base rates'!G$43) +($H35*'fnd base rates'!G$44) +($I35*'fnd base rates'!G$45) +($J35*'fnd base rates'!G$46) +($K35*'fnd base rates'!G$47) +($L35*'fnd base rates'!G$48) +($M35*'fnd base rates'!G$49) +($N35*'fnd base rates'!G$50) +($O35*'fnd base rates'!G$51) +($P35*'fnd base rates'!G$52)) *$R35 -> 1267.40625 | Y35: =(($C35*'fnd base rates'!H$39) +($D35*'fnd base rates'!H$40) +($E35*'fnd base rates'!H$41) +($F35*'fnd base rates'!H$42) +($G35*'fnd base rates'!H$43) +($H35*'fnd base rates'!H$44) +($I35*'fnd base rates'!H$45) +($J35*'fnd base rates'!H$46) +($K35*'fnd base rates'!H$47) +($L35*'fnd base rates'!H$48) +($M35*'fnd base rates'!H$49) +($N35*'fnd base rates'!H$50) +($O35*'fnd base rates'!H$51) +($P35*'fnd base rates'!H$52)) -> 6138.914375 | Z35: =(($C35*'fnd base rates'!I$39) +($D35*'fnd base rates'!I$40) +($E35*'fnd base rates'!I$41) +($F35*'fnd base rates'!I$42) +($G35*'fnd base rates'!I$43) +($H35*'fnd base rates'!I$44) +($I35*'fnd base rates'!I$45) +($J35*'fnd base rates'!I$46) +($K35*'fnd base rates'!I$47) +($L35*'fnd base rates'!I$48) +($M35*'fnd base rates'!I$49) +($N35*'fnd base rates'!I$50) +($O35*'fnd base rates'!I$51) +($P35*'fnd base rates'!I$52)) *$R35 -> 3220.15 | AA35: =(($C35*'fnd base rates'!J$39) +($D35*'fnd base rates'!J$40) +($E35*'fnd base rates'!J$41) +($F35*'fnd base rates'!J$42) +($G35*'fnd base rates'!J$43) +($H35*'fnd base rates'!J$44) +($I35*'fnd base rates'!J$45) +($J35*'fnd base rates'!J$46) +($K35*'fnd base rates'!J$47) +($L35*'fnd base rates'!J$48) +($M35*'fnd base rates'!J$49) +($N35*'fnd base rates'!J$50) +($O35*'fnd base rates'!J$51) +($P35*'fnd base rates'!J$52)) *$R35 -> 4158.05 | AB35: =(($C35*'fnd base rates'!K$39) +($D35*'fnd base rates'!K$40) +($E35*'fnd base rates'!K$41) +($F35*'fnd base rates'!K$42) +($G35*'fnd base rates'!K$43) +($H35*'fnd base rates'!K$44) +($I35*'fnd base rates'!K$45) +($J35*'fnd base rates'!K$46) +($K35*'fnd base rates'!K$47) +($L35*'fnd base rates'!K$48) +($M35*'fnd base rates'!K$49) +($N35*'fnd base rates'!K$50) +($O35*'fnd base rates'!K$51) +($P35*'fnd base rates'!K$52)) *$R35 -> 8894.093 | AC35: =(($C35*'fnd base rates'!L$39) +($D35*'fnd base rates'!L$40) +($E35*'fnd base rates'!L$41) +($F35*'fnd base rates'!L$42) +($G35*'fnd base rates'!L$43) +($H35*'fnd base rates'!L$44) +($I35*'fnd base rates'!L$45) +($J35*'fnd base rates'!L$46) +($K35*'fnd base rates'!L$47) +($L35*'fnd base rates'!L$48) +($M35*'fnd base rates'!L$49) +($N35*'fnd base rates'!L$50) +($O35*'fnd base rates'!L$51) +($P35*'fnd base rates'!L$52)) -> 7304.58675 | AD35: =(($C35*'fnd base rates'!M$39) +($D35*'fnd base rates'!M$40) +($E35*'fnd base rates'!M$41) +($F35*'fnd base rates'!M$42) +($G35*'fnd base rates'!M$43) +($H35*'fnd base rates'!M$44) +($I35*'fnd base rates'!M$45) +($J35*'fnd base rates'!M$46) +($K35*'fnd base rates'!M$47) +($L35*'fnd base rates'!M$48) +($M35*'fnd base rates'!M$49) +($N35*'fnd base rates'!M$50) +($O35*'fnd base rates'!M$51) +($P35*'fnd base rates'!M$52)) -> 0 | AE35: 84558.7095 | AG35: 413114091 | AH35: 413 | AI35: 114 | AJ35: 091 | AK35: 1 | AL35: 9 | AM35: 84558.7095 | AN35: 9395 | AO35: 0 | AP35: 9395
